Workbook

Sheet Cover
M2: Example and Worksheet Checklist
G3: How to Measure Anything in Project Management
N6: Simple Monte Carlo Example
N7: The Probability of Project Cancellation Using the Beta Distribution
N8: Estimating a Population Mean
N9: Project Planner
N10: Project Risk
F13: Hubbard Decision Research
F14: 2S410 Canterbury Ct
F15: Glen Ellyn, IL 60137
F16: www.hubbardresearch.com

Sheet Project Planner
B1: Project Planner | L1: 0.95 | BA1: 7
B2: Check SIPMath for a 1,000 Trial Interactive Simulation | G2: =IF(SIPmath,"Trial "&BA1,"") -> Trial 7 | J2: Period Highlight: | K2: 60 | L2: Percentile | P2: Plan Duration | V2: Actual Start | AA2: % Complete | AF2: Actual (beyond plan) | AN2: % Complete (beyond plan)
B3: ACTIVITY | C3: PLAN START | D3: MIN DURATION | E3: PLAN DURATION | F3: MAX DURATION | G3: ACTUAL START | H3: ACTUAL DURATION | I3: ACTIVITY FINISH | J3: PERCENT COMPLETE | L3: =IF(L2="Average","PROJECTED AVERAGE FINISH","PROJECTED PERCENTILE FINISH") -> PROJECTED PERCENTILE FINISH | M3: PERIODS
M4: 1 | N4: 2 | O4: 3 | P4: 4 | Q4: 5 | R4: 6 | S4: 7 | T4: 8 | U4: 9 | V4: 10 | W4: 11 | X4: 12 | Y4: 13 | Z4: 14 | AA4: 15 | AB4: 16 | AC4: 17 | AD4: 18 | AE4: 19 | AF4: 20 | AG4: 21 | AH4: 22 | AI4: 23 | AJ4: 24 | AK4: 25 | AL4: 26 | AM4: 27 | AN4: 28 | AO4: 29 | AP4: 30 | AQ4: 31 | AR4: 32 | AS4: 33 | AT4: 34 | AU4: 35 | AV4: 36 | AW4: 37 | AX4: 38 | AY4: 39 | AZ4: 40 | BA4: 41 | BB4: 42 | BC4: 43 | BD4: 44 | BE4: 45 | BF4: 46 | BG4: 47 | BH4: 48 | BI4: 49 | BJ4: 50 | BK4: 51 | BL4: 52 | BM4: 53 | BN4: 54 | BO4: 55 | BP4: 56 | BQ4: 57 | BR4: 58 | BS4: 59 | BT4: 60
B5: Activity 01 | C5: 1 | D5: 1 | E5: 5 | F5: 9 | G5: 1 | H5: =SIPmath*INT(Sheet1!I5)+(1-SIPmath)*'Project Planner'!E5 -> 4 | I5: =G5-1+H5 -> 4 | J5: 0 | L5: =IF(SIPmath,INT( IF( $L$2="Average", AVERAGE(Finish01), _xlfn.PERCENTILE.EXC(Finish01, $L$1 ))),"") -> 7
B6: Activity 02 | C6: 5 | D6: 1 | E6: 5 | F6: 9 | G6: =MAX(I5,C6) -> 5 | H6: =SIPmath*INT(Sheet1!I6)+(1-SIPmath)*'Project Planner'!E6 -> 5 | I6: =G6-1+H6 -> 9 | J6: 0 | L6: =IF(SIPmath,INT( IF( $L$2="Average", AVERAGE(Finish02), _xlfn.PERCENTILE.EXC(Finish02, $L$1 ))),"") -> 12
B7: Activity 03 | C7: 6 | D7: 1 | E7: 4 | F7: 8 | G7: =MAX(I5,C7) -> 6 | H7: =SIPmath*INT(Sheet1!I7)+(1-SIPmath)*'Project Planner'!E7 -> 4 | I7: 9 | J7: 0 | L7: =IF(SIPmath,INT( IF( $L$2="Average", AVERAGE(Finish03), _xlfn.PERCENTILE.EXC(Finish03, $L$1 ))),"") -> 12
B8: Activity 04 | C8: 1 | D8: 2 | E8: 3 | F8: 5 | G8: =I7 -> 9 | H8: =SIPmath*INT(Sheet1!I8)+(1-SIPmath)*'Project Planner'!E8 -> 2 | I8: 10 | J8: 0 | L8: =IF(SIPmath,INT( IF( $L$2="Average", AVERAGE(Finish04), _xlfn.PERCENTILE.EXC(Finish04, $L$1 ))),"") -> 13
B9: Activity 05 | C9: 3 | D9: 2 | E9: 4 | F9: 6 | G9: =MAX(I8,I6) -> 10 | H9: =SIPmath*INT(Sheet1!I9)+(1-SIPmath)*'Project Planner'!E9 -> 3 | I9: =G9-1+H9 -> 12 | J9: 0 | L9: =IF(SIPmath,INT( IF( $L$2="Average", AVERAGE(Finish05), _xlfn.PERCENTILE.EXC(Finish05, $L$1 ))),"") -> 16
B10: Activity 06 | C10: 7 | D10: 2 | E10: 4 | F10: 6 | G10: =I9 -> 12 | H10: =SIPmath*INT(Sheet1!I10)+(1-SIPmath)*'Project Planner'!E10 -> 3 | I10: =G10-1+H10 -> 14 | J10: 0 | L10: =IF(SIPmath,INT( IF( $L$2="Average", AVERAGE(Finish06), _xlfn.PERCENTILE.EXC(Finish06, $L$1 ))),"") -> 19
B11: Activity 07 | C11: 7 | D11: 1 | E11: 3 | F11: 7 | G11: =I9 -> 12 | H11: =SIPmath*INT(Sheet1!I11)+(1-SIPmath)*'Project Planner'!E11 -> 4 | I11: 15 | J11: 0 | L11: =IF(SIPmath,INT( IF( $L$2="Average", AVERAGE(Finish07), _xlfn.PERCENTILE.EXC(Finish07, $L$1 ))),"") -> 19
B12: Activity 08 | C12: 7 | D12: 1 | E12: 3 | F12: 5 | G12: =I9 -> 12 | H12: =SIPmath*INT(Sheet1!I12)+(1-SIPmath)*'Project Planner'!E12 -> 1 | I12: 12 | J12: 0 | L12: =IF(SIPmath,INT( IF( $L$2="Average", AVERAGE(Finish08), _xlfn.PERCENTILE.EXC(Finish08, $L$1 ))),"") -> 17
B13: Activity 09 | C13: 11 | D13: 1 | E13: 2 | F13: 3 | G13: =MAX(I10:I12) -> 15 | H13: =SIPmath*INT(Sheet1!I13)+(1-SIPmath)*'Project Planner'!E13 -> 1 | I13: 15 | J13: 0 | L13: =IF(SIPmath,INT( IF( $L$2="Average", AVERAGE(Finish09), _xlfn.PERCENTILE.EXC(Finish09, $L$1 ))),"") -> 19
B14: Activity 10 | C14: 11 | D14: 1 | E14: 5 | F14: 9 | G14: =I13 -> 15 | H14: =SIPmath*INT(Sheet1!I14)+(1-SIPmath)*'Project Planner'!E14 -> 5 | I14: 19 | J14: 0 | L14: =IF(SIPmath,INT( IF( $L$2="Average", AVERAGE(Finish10), _xlfn.PERCENTILE.EXC(Finish10, $L$1 ))),"") -> 24
B15: Project Complete | G15: =I14 -> 19 | H15: 1 | I15: =G15 -> 19 | L15: =IF(SIPmath,INT( IF( $L$2="Average", AVERAGE(FinishProject), _xlfn.PERCENTILE.EXC(FinishProject, $L$1 ))),"") -> 24
F16: =IF(SIPmath,Sheet1!D17,"") -> Average Completion Period | G16: =IF(SIPmath,Sheet1!E17,"") -> 18.86
F17: =IF(SIPmath,Sheet1!D18,"") -> %ile | G17: =IF(SIPmath,Sheet1!E18,"") -> 0.9
F18: =IF(SIPmath,Sheet1!D19,"") -> % Value | G18: =IF(SIPmath,Sheet1!E19,"") -> 23 | AJ18: DRAFT
F19: =IF(SIPmath,Sheet1!D20,"") -> Target Completion Period | G19: =IF(SIPmath,Sheet1!E20,"") -> 20 | AJ19: Not for Distribution
F20: =IF(SIPmath,Sheet1!D21,"") -> Chance of Exceeding Target | G20: =IF(SIPmath,Sheet1!E21,"") -> 0.409

Sheet About Project Planner

Sheet Risk Register
A1: One-For-One Substitution Model (Chapter 4 and Chapter 11) | I1: ← Uncollapse for Control Input | M1: ← Uncollapse for HDR PRNG | Q1: ← Uncollapse for Residual Loss and ROC
C2: Contact HDR to develop custom quantitative methods for your firm. | E2: Introduction: The One-For-One Substitution Model shows how we can replace the basic heat map using purely quantitative methods. Like the heat map, this approach relies entirely on the subjective estimates of likelihood and impact from experts. Unlike the heat map, it uses mathematically unambiguous probabilistic expressions of likelihood and impact which can be used in simulations where risks can be properly "added up" to compute risks for a larger portfolio. The first tab requires user input. Simply describe the risk or event that is being considered in column B under "Risk Name". Then, estimate the probability that the event will happen over a 1 year period and a 90% confidence interval for the impact of the event, if it did occur. To view the results of the simulation, see the "Loss Exceedance Curve" tab. Make sure that calculation options are set to "Automatic Except for Data Tables" (Formulas>Calculation Options).
C3: www.hubbardresearch.com
C4: info@hubbardresearch.com
B5: Trial Slider Bar>> | D5: Trial ID: | E5: =TrialID -> 184
B6: Input Values | J6: Output Values
B7: The "Risk Name" should be a short, unique identifier for the risk being considered. | C7: Enter the "Risk Classification" that best matches. If the category needs explanation please use the "Notes" column. | D7: Estimate the likelihood of the event occurring at least one time in a year. | E7: Estimate the total impact of the event, given that it occurred, with a 90% confidence interval. That is, estimate a lower bound and upper bound such that you believe there is a 90% chance the actual impact will be between the bounds. Note that the lower bound must be greater than 0. | G7: For the control being applied to the risk, provide an estimate of the cost of implementing the control. | H7: Estimate the effectiveness of the controls being applied as a percent reduction in the likelihood of the event occurring. For example, if the risk has a 10% chance per year of occurring and a control is applied with 25% effectiveness, the mitigated likelihood of the event occurring would be 7.5%. | I7: Record any relevant notes about the risk, such as assumptions made when estimating likelihood and impact, or the controls, such as what controls are included in the total cost. | J7: The expected value, or probability-weighted average, of the loss due to a risk. A lognormal distribution is assumed for impact. | K7: Pseudo-random numbers between 0 and 1 are generated for each variable using a unique variable ID. These numbers are then used in other formulas to generate values for each scenario. | M7: A random draw against the likelihood of the event determines if the event occurs. If it does occur, total losses are randomly drawn from the impact ranges. If the event does not occur, there is $0 simulated loss. | N7: The expected value, or probability-weighted average, of the loss after applying controls. A lognormal distribution is assumed for impact. | O7: The loss simulated in this trial, if there is one, after the implementation of the control. | P7: Return on control is computed by comparing the monetized risk reduction (change in expected loss) to the total cost of controls.
A8: Examples of Enterprise Risks | E8: 90% Confidence Interval of Impact | K8: 100000 | L8: 100001
A9: Risk ID | B9: Risk Name | C9: Risk Classification | D9: Probability of a Loss Over 1 Year | E9: Lower Bound | F9: Upper Bound | G9: Total Cost of Controls | H9: Control Effectiveness | I9: Notes | J9: Expected Inherent Loss | K9: Probability Rand | L9: Impact Rand | M9: Simulated Inherent Loss | N9: Expected Residual Loss | O9: Simulated Residual Loss | P9: Return on Control
A10: =ROW($B10)-ROW($B$9) -> 1 | B10: Economy enters recession | C10: Market risk | D10: 0.4 | E10: 500000 | F10: 10000000 | G10: 300000 | H10: 0.35 | J10: =IFERROR(EXP(((LN($F10)+LN($E10))/2)+((LN($F10)-LN($E10))/3.28971)^2/2)*$D10, 0) -> 1353993.361 | K10: =((MOD((MOD(MOD(999999999999989,MOD($E$5*2499997+$A10*1800451+K$8*2000371,7450589)*4658+7450581)*383,99991)*7440893+MOD(MOD(999999999999989,MOD($E$5*2246527+$A10*2399993+K$8*2100869,7450987)*7580+7560584)*17669,7440893))*1343,4294967296))+0.5)/2^32 -> 0.06398810388 | L10: =((MOD((MOD(MOD(999999999999989,MOD($E$5*2499997+$A10*1800451+L$8*2000371,7450589)*4658+7450581)*383,99991)*7440893+MOD(MOD(999999999999989,MOD($E$5*2246527+$A10*2399993+L$8*2100869,7450987)*7580+7560584)*17669,7440893))*1343,4294967296))+0.5)/2^32 -> 0.8309960299 | M10: =IFERROR(IF($K10<$D10,_xlfn.LOGNORM.INV($L10,(LN($F10)+LN($E10))/2, (LN($F10)-LN($E10))/3.29),0), 0) -> 5350186.825 | N10: =IFERROR((1-$H10)*$J10, $J10) -> 880095.6846 | O10: =IFERROR(IF($K10<(1-$H10)*$D10,_xlfn.LOGNORM.INV($L10,(LN($F10)+LN($E10))/2, (LN($F10)-LN($E10))/3.29),0), 0) -> 5350186.825 | P10: =IFERROR(($J10-$N10)/$G10-1, 0) -> 0.579658921
A11: =ROW($B11)-ROW($B$9) -> 2 | B11: Failure of a major project | C11: Project risk | D11: 0.15 | E11: 2000000 | F11: 5000000 | G11: 500000 | H11: 0.25 | J11: =IFERROR(EXP(((LN($F11)+LN($E11))/2)+((LN($F11)-LN($E11))/3.28971)^2/2)*$D11, 0) -> 493102.953 | K11: =((MOD((MOD(MOD(999999999999989,MOD($E$5*2499997+$A11*1800451+K$8*2000371,7450589)*4658+7450581)*383,99991)*7440893+MOD(MOD(999999999999989,MOD($E$5*2246527+$A11*2399993+K$8*2100869,7450987)*7580+7560584)*17669,7440893))*1343,4294967296))+0.5)/2^32 -> 0.2194150771 | L11: 0.7938396082 | M11: =IFERROR(IF($K11<$D11,_xlfn.LOGNORM.INV($L11,(LN($F11)+LN($E11))/2, (LN($F11)-LN($E11))/3.29),0), 0) -> 0 | N11: =IFERROR((1-$H11)*$J11, $J11) -> 369827.2148 | O11: =IFERROR(IF($K11<(1-$H11)*$D11,_xlfn.LOGNORM.INV($L11,(LN($F11)+LN($E11))/2, (LN($F11)-LN($E11))/3.29),0), 0) -> 0 | P11: =IFERROR(($J11-$N11)/$G11-1, 0) -> -0.7534485235
A12: 3 | B12: Increased cost of capital | C12: Interest rate risk | D12: 0.35 | E12: 150000 | F12: 300000 | G12: 25000 | H12: 0.5 | J12: 75912.72638 | K12: 0.5852006978 | L12: 0.4345443059 | M12: 0 | N12: 37956.36319 | O12: 0 | P12: 0.5182545275
A13: 4 | B13: Industrial accident | C13: Legal risk | D13: 0.1 | E13: 200000 | F13: 500000 | G13: 10000 | H13: 0.1 | J13: 32873.5302 | K13: 0.938791446 | L13: 0.5438810572 | M13: 0 | N13: 29586.17718 | O13: 0 | P13: -0.671264698
A14: 5 | B14: Exposure to a large lawsuit | C14: Legal risk | D14: 0.05 | E14: 500000 | F14: 2000000 | G14: 15000 | H14: 0.3 | J14: 54642.5749 | K14: 0.5274553938 | L14: 0.2444339305 | M14: 0 | N14: 38249.80243 | O14: 0 | P14: 0.09285149808
A15: 6 | B15: Loss of major supplier | C15: Operational risk | D15: 0.12 | E15: 500000 | F15: 10000000 | G15: 250000 | H15: 0.7 | J15: 406198.0083 | K15: 0.7587173368 | L15: 0.9045859234 | M15: 0 | N15: 121859.4025 | O15: 0 | P15: 0.1373544231
A16: 7 | B16: Data breach | C16: Cyber security risk | D16: 0.035 | E16: 1000000 | F16: 25000000 | G16: 150000 | H16: 0.85 | J16: 282445.5379 | K16: 0.2492467667 | L16: 0.259224123 | M16: 0 | N16: 42366.83069 | O16: 0 | P16: 0.600524715
A17: 8 | J17: 0 | K17: 0.07732439029 | L17: 0.6498716957 | M17: 0 | N17: 0 | O17: 0 | P17: 0
A18: 9 | J18: 0 | K18: 0.01241714961 | L18: 0.1215612757 | M18: 0 | N18: 0 | O18: 0 | P18: 0
A19: 10 | J19: 0 | K19: 0.4200589856 | L19: 0.2898389577 | M19: 0 | N19: 0 | O19: 0 | P19: 0
A20: 11 | J20: 0 | K20: 0.9062399761 | L20: 0.3430946403 | M20: 0 | N20: 0 | O20: 0 | P20: 0
A21: 12 | J21: 0 | K21: 0.874931957 | L21: 0.7392419524 | M21: 0 | N21: 0 | O21: 0 | P21: 0
A22: 13 | J22: 0 | K22: 0.0451248762 | L22: 0.292963693 | M22: 0 | N22: 0 | O22: 0 | P22: 0
A23: 14 | J23: 0 | K23: 0.8220507767 | L23: 0.6812198741 | M23: 0 | N23: 0 | O23: 0 | P23: 0
A24: 15 | J24: 0 | K24: 0.361348217 | L24: 0.06255222473 | M24: 0 | N24: 0 | O24: 0 | P24: 0
A25: 16 | J25: 0 | K25: 0.02977402729 | L25: 0.4882215684 | M25: 0 | N25: 0 | O25: 0 | P25: 0
A26: 17 | J26: 0 | K26: 0.3400332619 | L26: 0.07478872209 | M26: 0 | N26: 0 | O26: 0 | P26: 0
A27: 18 | J27: 0 | K27: 0.6473218427 | L27: 0.04619626014 | M27: 0 | N27: 0 | O27: 0 | P27: 0
A28: 19 | J28: 0 | K28: 0.3813141187 | L28: 0.9076742557 | M28: 0 | N28: 0 | O28: 0 | P28: 0
A29: 20 | J29: 0 | K29: 0.8390343863 | L29: 0.8172620457 | M29: 0 | N29: 0 | O29: 0 | P29: 0

Sheet Loss Exceedance
A1: One-For-One Substitution Model | R1: Uncollapse for Residual Loss Data Table --> | W1: Uncollapse for Residual Loss Histogram -->
E2: Contact HDR to develop custom quantitative methods for your firm. | K2: Introduction: The Loss Exceedance Curve tab shows the results of the Monte Carlo simulation. Excel's What-if Data Tables are used to compute 1000 random trials based on the Risk Estimates provided and a histogram counts the number of times the total losses were within specified bins. Expand columns S-U and X-Y to include the residual risk curve on the Loss Exceedance Curve chart. Make sure that calculations are set to "Automatic Except for Data Tables" (Formulas>Calculation Options) so that results update.
E3: www.hubbardresearch.com
E4: info@hubbardresearch.com
B5: Enter a Trial ID between 1 and 1000 to see the details of that trial on the Risk Estimates tab. | E5: Trial ID: | F5: 184
B6: The loss exceedance curve displays the probability of exceeding a given loss in one year compared to your organization's willingness to accept that magnitude of a loss (your risk tolerance). Below the chart, the user can enter a loss in the gold cell and the probability of exceeding that loss will be shown. | K6: Your organization's risk tolerance can be drawn by estimating at least 3 points on this curve. One way to start with this is to leave the Acceptable Prob. Loss Exceeded where it is and adjust the Loss amounts to match your tolerance. Are you willing to accept a 99% chance of losing $1MM or more in a given year? If not, what about $500,000 or more? | P6: This data table calculates the inherent loss that occurs in each trial. A total of 1000 trials are calculated. Note that these are the losses that occur with no controls present. | S6: This data table calculates the residual loss that occurs in each trial. A total of 1000 trials are calculated. Note that these are the losses that occur after controls are applied. | V6: This table calculates the probability of inherent and residual (if controls are included) losses in pre-defined intervals (e.g., the probability of a loss between $500,000 and $999,999). These values are used to plot the loss exceedance curve.
B7: Figure 3.3 "Inherent Risk, Residual Risk and Risk Tolerance" | K7: Loss Exceedance Tolerance | P7: Table 3.3 "Excel Data Table Showing Scenarios of Losses" | S7: Total Simulated Residual Losses | V7: Table 3.4 "Histogram for a Loss Exceedance Curve"
B8: To update the Loss Exceedance Curve, run the model by calculating the Excel sheet. This can be done by pressing the F9 key or "Calculate Now" under the Formulas Ribbon. | M8: Acceptable P Loss Exceeded | P8: Trial | Q8: Loss | S8: Trial | T8: Loss
L9: Loss | Q9: =SUBTOTAL(9, 'Risk Register'!$M$10:$M$29) -> 5350186.825 | T9: =SUBTOTAL(9, 'Risk Register'!$O$10:$O$29) -> 5350186.825 | V9: Loss | W9: Prob. of Inherent Loss or Greater | X9: Prob. of Residual Loss or Greater
L10: 100000 | M10: 0.99 | P10: 1 | Q10: 7501215.595 | S10: 1 | T10: 6471215.123 | V10: 0.0001 | W10: =COUNTIF(Q$10:Q$1009,">"&V10)/1000 -> 0.746 | X10: =COUNTIF(T$10:T$1009,">"&V10)/1000 -> 0.523
L11: 2000000 | M11: 0.15 | P11: 2 | Q11: 453370.4869 | S11: 2 | T11: 453370.4869 | V11: =V10+500000 -> 500000.0001 | W11: =COUNTIF(Q$10:Q$1009,">"&V11)/1000 -> 0.582 | X11: =COUNTIF(T$10:T$1009,">"&V11)/1000 -> 0.379
L12: 10000000 | M12: 0.02 | P12: 3 | Q12: 4474026.378 | S12: 3 | T12: 0 | V12: =V11+500000 -> 1000000 | W12: 0.52 | X12: 0.329
L13: 50000000 | M13: 0.005 | P13: 4 | Q13: 0 | S13: 4 | T13: 0 | V13: =V12*1.07 -> 1070000 | W13: 0.508 | X13: 0.326
P14: 5 | Q14: 0 | S14: 5 | T14: 0 | V14: =V13*1.07 -> 1144900 | W14: 0.497 | X14: 0.32
P15: 6 | Q15: 13654430.39 | S15: 6 | T15: 0 | V15: 1225043 | W15: 0.482 | X15: 0.306
K16: Expected Losses | P16: 7 | Q16: 7326132.701 | S16: 7 | T16: 7326132.701 | V16: 1310796.01 | W16: 0.475 | X16: 0.3
P17: 8 | Q17: 231611.1471 | S17: 8 | T17: 0 | V17: 1402551.731 | W17: 0.466 | X17: 0.294
K18: Expected Inherent Loss | M18: =AVERAGE(Q10:Q1009) -> 2675837.24 | P18: 9 | Q18: 0 | S18: 9 | T18: 0 | V18: 1500730.352 | W18: 0.459 | X18: 0.286
K19: Expected Residual Loss | M19: =AVERAGE(T10:T1009) -> 1471550.207 | P19: 10 | Q19: 5584263.619 | S19: 10 | T19: 371737.5683 | V19: 1605781.477 | W19: 0.448 | X19: 0.281
P20: 11 | Q20: 1319408.836 | S20: 11 | T20: 1127225.197 | V20: 1718186.18 | W20: 0.441 | X20: 0.276
P21: 12 | Q21: 1619653.876 | S21: 12 | T21: 0 | V21: 1838459.213 | W21: 0.421 | X21: 0.258
P22: 13 | Q22: 2642947.19 | S22: 13 | T22: 641593.0931 | V22: 1967151.357 | W22: 0.408 | X22: 0.247
P23: 14 | Q23: 4725404.969 | S23: 14 | T23: 4725404.969 | V23: 2104851.953 | W23: 0.394 | X23: 0.241
P24: 15 | Q24: 5829998.105 | S24: 15 | T24: 5829998.105 | V24: 2252191.589 | W24: 0.381 | X24: 0.229
P25: 16 | Q25: 191999.4027 | S25: 16 | T25: 0 | V25: 2409845 | W25: 0.364 | X25: 0.216
P26: 17 | Q26: 430871.5907 | S26: 17 | T26: 0 | V26: 2578534.15 | W26: 0.353 | X26: 0.209
E27: Probability of Inherent Loss Exceeding | F27: 10000000 | G27: is | H27: =VLOOKUP(F27, V10:W130, 2,TRUE) -> 0.05 | P27: 18 | Q27: 7853115.155 | S27: 18 | T27: 7853115.155 | V27: 2759031.541 | W27: 0.329 | X27: 0.191
P28: 19 | Q28: 1210966.387 | S28: 19 | T28: 1210966.387 | V28: 2952163.749 | W28: 0.305 | X28: 0.175
P29: 20 | Q29: 5395590.608 | S29: 20 | T29: 963764.664 | V29: 3158815.211 | W29: 0.289 | X29: 0.165
P30: 21 | Q30: 1048118.892 | S30: 21 | T30: 212529.5555 | V30: 3379932.276 | W30: 0.271 | X30: 0.151
P31: 22 | Q31: 214128.5115 | S31: 22 | T31: 214128.5115 | V31: 3616527.535 | W31: 0.258 | X31: 0.141
P32: 23 | Q32: 554986.4416 | S32: 23 | T32: 554986.4416 | V32: 3869684.463 | W32: 0.244 | X32: 0.131
P33: 24 | Q33: 1982882.154 | S33: 24 | T33: 186287.517 | V33: 4140562.375 | W33: 0.226 | X33: 0.118
P34: 25 | Q34: 202875.9882 | S34: 25 | T34: 0 | V34: 4430401.742 | W34: 0.21 | X34: 0.106
P35: 26 | Q35: 0 | S35: 26 | T35: 0 | V35: 4740529.863 | W35: 0.193 | X35: 0.096
P36: 27 | Q36: 209338.5972 | S36: 27 | T36: 209338.5972 | V36: 5072366.954 | W36: 0.18 | X36: 0.085
P37: 28 | Q37: 1592357.937 | S37: 28 | T37: 0 | V37: 5427432.641 | W37: 0.158 | X37: 0.076
P38: 29 | Q38: 9305837.672 | S38: 29 | T38: 0 | V38: 5807352.926 | W38: 0.136 | X38: 0.066
P39: 30 | Q39: 0 | S39: 30 | T39: 0 | V39: 6213867.63 | W39: 0.122 | X39: 0.058
P40: 31 | Q40: 0 | S40: 31 | T40: 0 | V40: 6648838.364 | W40: 0.113 | X40: 0.051
P41: 32 | Q41: 141367.0446 | S41: 32 | T41: 141367.0446 | V41: 7114257.05 | W41: 0.1 | X41: 0.04
P42: 33 | Q42: 1446180.463 | S42: 33 | T42: 1446180.463 | V42: 7612255.043 | W42: 0.087 | X42: 0.035
P43: 34 | Q43: 9777040.624 | S43: 34 | T43: 5789871.851 | V43: 8145112.896 | W43: 0.077 | X43: 0.029
P44: 35 | Q44: 149640.1914 | S44: 35 | T44: 0 | V44: 8715270.799 | W44: 0.071 | X44: 0.027
P45: 36 | Q45: 3426401.195 | S45: 36 | T45: 1834928.612 | V45: 9325339.755 | W45: 0.061 | X45: 0.022
P46: 37 | Q46: 0 | S46: 37 | T46: 0 | V46: 9978113.538 | W46: 0.05 | X46: 0.02
P47: 38 | Q47: 636226.7506 | S47: 38 | T47: 636226.7506 | V47: 10676581.49 | W47: 0.045 | X47: 0.015
P48: 39 | Q48: 5835909.148 | S48: 39 | T48: 5835909.148 | V48: 11423942.19 | W48: 0.039 | X48: 0.013
P49: 40 | Q49: 801275.5593 | S49: 40 | T49: 0 | V49: 12223618.14 | W49: 0.033 | X49: 0.012
P50: 41 | Q50: 0 | S50: 41 | T50: 0 | V50: 13079271.41 | W50: 0.027 | X50: 0.011
P51: 42 | Q51: 1907179.274 | S51: 42 | T51: 0 | V51: 13994820.41 | W51: 0.021 | X51: 0.01
P52: 43 | Q52: 9794786.336 | S52: 43 | T52: 9794786.336 | V52: 14974457.84 | W52: 0.019 | X52: 0.008
P53: 44 | Q53: 230093.3611 | S53: 44 | T53: 0 | V53: 16022669.89 | W53: 0.014 | X53: 0.006
P54: 45 | Q54: 5391911.543 | S54: 45 | T54: 5391911.543 | V54: 17144256.78 | W54: 0.011 | X54: 0.005
P55: 46 | Q55: 828199.3931 | S55: 46 | T55: 0 | V55: 18344354.76 | W55: 0.01 | X55: 0.005
P56: 47 | Q56: 0 | S56: 47 | T56: 0 | V56: 19628459.59 | W56: 0.009 | X56: 0.004
P57: 48 | Q57: 6193236.896 | S57: 48 | T57: 6193236.896 | V57: 21002451.76 | W57: 0.008 | X57: 0.004
P58: 49 | Q58: 0 | S58: 49 | T58: 0 | V58: 22472623.38 | W58: 0.005 | X58: 0.002
P59: 50 | Q59: 0 | S59: 50 | T59: 0 | V59: 24045707.02 | W59: 0.004 | X59: 0.002
P60: 51 | Q60: 371647.4368 | S60: 51 | T60: 0 | V60: 25728906.51 | W60: 0.004 | X60: 0.002
P61: 52 | Q61: 0 | S61: 52 | T61: 0 | V61: 27529929.97 | W61: 0.003 | X61: 0.001
P62: 53 | Q62: 0 | S62: 53 | T62: 0 | V62: 29457025.07 | W62: 0.001 | X62: 0
P63: 54 | Q63: 293351.6831 | S63: 54 | T63: 293351.6831 | V63: 31519016.82 | W63: 0.001 | X63: 0
P64: 55 | Q64: 3832848.82 | S64: 55 | T64: 3832848.82 | V64: 33725348 | W64: 0.001 | X64: 0
P65: 56 | Q65: 5492930.444 | S65: 56 | T65: 0 | V65: 36086122.36 | W65: 0.001 | X65: 0
P66: 57 | Q66: 0 | S66: 57 | T66: 0 | V66: 38612150.92 | W66: 0.001 | X66: 0
P67: 58 | Q67: 16830961.87 | S67: 58 | T67: 0 | V67: 41315001.49 | W67: 0.001 | X67: 0
P68: 59 | Q68: 0 | S68: 59 | T68: 0 | V68: 44207051.59 | W68: 0.001 | X68: 0
P69: 60 | Q69: 2126437.667 | S69: 60 | T69: 0 | V69: 47301545.2 | W69: 0.001 | X69: 0
P70: 61 | Q70: 3332108.403 | S70: 61 | T70: 3332108.403 | V70: 50612653.37 | W70: 0.001 | X70: 0
P71: 62 | Q71: 449345.3351 | S71: 62 | T71: 449345.3351 | V71: 54155539.1 | W71: 0.001 | X71: 0
P72: 63 | Q72: 5091723.947 | S72: 63 | T72: 2534716.599 | V72: 57946426.84 | W72: 0.001 | X72: 0
P73: 64 | Q73: 237819.3156 | S73: 64 | T73: 0 | V73: 62002676.72 | W73: 0 | X73: 0
P74: 65 | Q74: 0 | S74: 65 | T74: 0 | V74: 66342864.09 | W74: 0 | X74: 0
P75: 66 | Q75: 18545822.94 | S75: 66 | T75: 18545822.94 | V75: 70986864.58 | W75: =COUNTIF(Q$10:Q$1009,">"&V75)/1000 -> 0 | X75: =COUNTIF(T$10:T$1009,">"&V75)/1000 -> 0
P76: 67 | Q76: 0 | S76: 67 | T76: 0 | V76: 75955945.1 | W76: 0 | X76: 0
P77: 68 | Q77: 3308964.727 | S77: 68 | T77: 3308964.727 | V77: 81272861.25 | W77: 0 | X77: 0
P78: 69 | Q78: 2381896.214 | S78: 69 | T78: 2381896.214 | V78: =V77*1.07 -> 86961961.54 | W78: 0 | X78: 0
P79: 70 | Q79: 214324.3771 | S79: 70 | T79: 0 | V79: 93049298.85 | W79: 0 | X79: 0
P80: 71 | Q80: 5716517.772 | S80: 71 | T80: 5716517.772 | V80: 99562749.77 | W80: 0 | X80: 0
P81: 72 | Q81: 7102629.416 | S81: 72 | T81: 7102629.416 | V81: 106532142.3 | W81: 0 | X81: 0
P82: 73 | Q82: 0 | S82: 73 | T82: 0 | V82: 113989392.2 | W82: 0 | X82: 0
P83: 74 | Q83: 273201.4657 | S83: 74 | T83: 0 | V83: 121968649.7 | W83: 0 | X83: 0
P84: 75 | Q84: 2477809.892 | S84: 75 | T84: 773839.0456 | V84: 130506455.1 | W84: 0 | X84: 0
P85: 76 | Q85: 301983.5248 | S85: 76 | T85: 301983.5248 | V85: 139641907 | W85: 0 | X85: 0
P86: 77 | Q86: 1865694.457 | S86: 77 | T86: 1865694.457 | V86: 149416840.5 | W86: 0 | X86: 0
P87: 78 | Q87: 188739.5491 | S87: 78 | T87: 0 | V87: 159876019.3 | W87: 0 | X87: 0
P88: 79 | Q88: 231080.4423 | S88: 79 | T88: 231080.4423 | V88: 171067340.7 | W88: 0 | X88: 0
P89: 80 | Q89: 0 | S89: 80 | T89: 0 | V89: 183042054.5 | W89: 0 | X89: 0
P90: 81 | Q90: 820606.5136 | S90: 81 | T90: 820606.5136 | V90: 195854998.3 | W90: 0 | X90: 0
P91: 82 | Q91: 2380758.375 | S91: 82 | T91: 0 | V91: 209564848.2 | W91: 0 | X91: 0
P92: 83 | Q92: 0 | S92: 83 | T92: 0 | V92: 224234387.6 | W92: 0 | X92: 0
P93: 84 | Q93: 6461564.537 | S93: 84 | T93: 6461564.537 | V93: 239930794.7 | W93: 0 | X93: 0
P94: 85 | Q94: 12647407.23 | S94: 85 | T94: 12647407.23 | V94: 256725950.4 | W94: 0 | X94: 0
P95: 86 | Q95: 0 | S95: 86 | T95: 0 | V95: 274696766.9 | W95: 0 | X95: 0
P96: 87 | Q96: 4039375.785 | S96: 87 | T96: 4039375.785 | V96: 293925540.6 | W96: 0 | X96: 0
P97: 88 | Q97: 2256763.013 | S97: 88 | T97: 223078.0192 | V97: 314500328.4 | W97: 0 | X97: 0
P98: 89 | Q98: 645632.314 | S98: 89 | T98: 0 | V98: 336515351.4 | W98: 0 | X98: 0
P99: 90 | Q99: 10759529.43 | S99: 90 | T99: 10759529.43 | V99: 360071426 | W99: 0 | X99: 0
P100: 91 | Q100: 0 | S100: 91 | T100: 0 | V100: 385276425.8 | W100: 0 | X100: 0
P101: 92 | Q101: 0 | S101: 92 | T101: 0 | V101: 412245775.6 | W101: 0 | X101: 0
P102: 93 | Q102: 0 | S102: 93 | T102: 0 | V102: 441102979.9 | W102: 0 | X102: 0
P103: 94 | Q103: 1267602.02 | S103: 94 | T103: 152280.7606 | V103: 471980188.5 | W103: 0 | X103: 0
P104: 95 | Q104: 147075.2585 | S104: 95 | T104: 147075.2585 | V104: 505018801.7 | W104: 0 | X104: 0
P105: 96 | Q105: 0 | S105: 96 | T105: 0 | V105: 540370117.8 | W105: 0 | X105: 0
P106: 97 | Q106: 0 | S106: 97 | T106: 0 | V106: 578196026.1 | W106: 0 | X106: 0
P107: 98 | Q107: 517827.963 | S107: 98 | T107: 517827.963 | V107: 618669747.9 | W107: 0 | X107: 0
P108: 99 | Q108: 2841837.661 | S108: 99 | T108: 2635971.027 | V108: 661976630.3 | W108: 0 | X108: 0
P109: 100 | Q109: 0 | S109: 100 | T109: 0 | V109: 708314994.4 | W109: 0 | X109: 0
P110: 101 | Q110: 4554305.78 | S110: 101 | T110: 4554305.78 | V110: 757897044 | W110: 0 | X110: 0
P111: 102 | Q111: 6061246.623 | S111: 102 | T111: 2971962.317 | V111: 810949837.1 | W111: 0 | X111: 0
P112: 103 | Q112: 3633026.578 | S112: 103 | T112: 3633026.578 | V112: 867716325.7 | W112: 0 | X112: 0
P113: 104 | Q113: 2970473.019 | S113: 104 | T113: 2970473.019 | V113: 928456468.4 | W113: 0 | X113: 0
P114: 105 | Q114: 515982.3429 | S114: 105 | T114: 515982.3429 | V114: 993448421.2 | W114: 0 | X114: 0
P115: 106 | Q115: 20446264.01 | S115: 106 | T115: 0 | V115: 1062989811 | W115: 0 | X115: 0
P116: 107 | Q116: 5240982 | S116: 107 | T116: 2908365.788 | V116: 1137399097 | W116: 0 | X116: 0
P117: 108 | Q117: 951082.0298 | S117: 108 | T117: 951082.0298 | V117: 1217017034 | W117: 0 | X117: 0
P118: 109 | Q118: 0 | S118: 109 | T118: 0 | V118: 1302208227 | W118: 0 | X118: 0
P119: 110 | Q119: 0 | S119: 110 | T119: 0 | V119: 1393362803 | W119: 0 | X119: 0
P120: 111 | Q120: 0 | S120: 111 | T120: 0 | V120: 1490898199 | W120: 0 | X120: 0
P121: 112 | Q121: 28716628.61 | S121: 112 | T121: 0 | V121: 1595261073 | W121: 0 | X121: 0
P122: 113 | Q122: 3695950.949 | S122: 113 | T122: 296690.6835 | V122: 1706929348 | W122: 0 | X122: 0
P123: 114 | Q123: 21371107.7 | S123: 114 | T123: 21049401.8 | V123: 1826414402 | W123: 0 | X123: 0
P124: 115 | Q124: 3842030.834 | S124: 115 | T124: 3842030.834 | V124: 1954263410 | W124: 0 | X124: 0
P125: 116 | Q125: 2438001.864 | S125: 116 | T125: 0 | V125: 2091061849 | W125: 0 | X125: 0
P126: 117 | Q126: 7407377.059 | S126: 117 | T126: 6913154.952 | V126: 2237436178 | W126: 0 | X126: 0
P127: 118 | Q127: 7376737.403 | S127: 118 | T127: 0 | V127: 2394056711 | W127: 0 | X127: 0
P128: 119 | Q128: 5882406.674 | S128: 119 | T128: 3267695.212 | V128: 2561640681 | W128: 0 | X128: 0
P129: 120 | Q129: 813550.684 | S129: 120 | T129: 813550.684 | V129: 2740955528 | W129: 0 | X129: 0
P130: 121 | Q130: 11656225.1 | S130: 121 | T130: 10043079.96 | V130: 2932822415 | W130: 0 | X130: 0
P131: 122 | Q131: 5329647.924 | S131: 122 | T131: 0
P132: 123 | Q132: 152573.3522 | S132: 123 | T132: 0
P133: 124 | Q133: 0 | S133: 124 | T133: 0
P134: 125 | Q134: 2161576.758 | S134: 125 | T134: 2161576.758
P135: 126 | Q135: 0 | S135: 126 | T135: 0
P136: 127 | Q136: 0 | S136: 127 | T136: 0
P137: 128 | Q137: 1371944.167 | S137: 128 | T137: 1371944.167
P138: 129 | Q138: 209376.5142 | S138: 129 | T138: 0
P139: 130 | Q139: 0 | S139: 130 | T139: 0
P140: 131 | Q140: 10020567.91 | S140: 131 | T140: 10020567.91
P141: 132 | Q141: 2381675.216 | S141: 132 | T141: 2381675.216
P142: 133 | Q142: 4859659.388 | S142: 133 | T142: 4859659.388
P143: 134 | Q143: 0 | S143: 134 | T143: 0
P144: 135 | Q144: 3898484.025 | S144: 135 | T144: 3898484.025
P145: 136 | Q145: 0 | S145: 136 | T145: 0
P146: 137 | Q146: 0 | S146: 137 | T146: 0
P147: 138 | Q147: 0 | S147: 138 | T147: 0
P148: 139 | Q148: 13302278.56 | S148: 139 | T148: 0
P149: 140 | Q149: 715578.2637 | S149: 140 | T149: 0
P150: 141 | Q150: 13816282.52 | S150: 141 | T150: 13816282.52
P151: 142 | Q151: 2156636.929 | S151: 142 | T151: 285473.4221
P152: 143 | Q152: 0 | S152: 143 | T152: 0
P153: 144 | Q153: 0 | S153: 144 | T153: 0
P154: 145 | Q154: 9363865.943 | S154: 145 | T154: 3240531.013
P155: 146 | Q155: 496986.5836 | S155: 146 | T155: 496986.5836
P156: 147 | Q156: 1984503.467 | S156: 147 | T156: 1984503.467
P157: 148 | Q157: 0 | S157: 148 | T157: 0
P158: 149 | Q158: 4772090.005 | S158: 149 | T158: 4772090.005
P159: 150 | Q159: 1124617.492 | S159: 150 | T159: 0
P160: 151 | Q160: 392297.4522 | S160: 151 | T160: 392297.4522
P161: 152 | Q161: 0 | S161: 152 | T161: 0
P162: 153 | Q162: 635750.8504 | S162: 153 | T162: 635750.8504
P163: 154 | Q163: 727608.6688 | S163: 154 | T163: 727608.6688
P164: 155 | Q164: 1405830.015 | S164: 155 | T164: 0
P165: 156 | Q165: 795041.5724 | S165: 156 | T165: 0
P166: 157 | Q166: 7844326.442 | S166: 157 | T166: 7844326.442
P167: 158 | Q167: 1156325.325 | S167: 158 | T167: 226344.5946
P168: 159 | Q168: 1041937.133 | S168: 159 | T168: 170148.5958
P169: 160 | Q169: 3063318.461 | S169: 160 | T169: 3063318.461
P170: 161 | Q170: 2873644.925 | S170: 161 | T170: 0
P171: 162 | Q171: 230691.6163 | S171: 162 | T171: 0
P172: 163 | Q172: 226575.8973 | S172: 163 | T172: 0
P173: 164 | Q173: 0 | S173: 164 | T173: 0
P174: 165 | Q174: 1398764.828 | S174: 165 | T174: 0
P175: 166 | Q175: 4936278.39 | S175: 166 | T175: 1146438.031
P176: 167 | Q176: 0 | S176: 167 | T176: 0
P177: 168 | Q177: 856991.1442 | S177: 168 | T177: 856991.1442
P178: 169 | Q178: 0 | S178: 169 | T178: 0
P179: 170 | Q179: 217161.9546 | S179: 170 | T179: 217161.9546
P180: 171 | Q180: 2619137.661 | S180: 171 | T180: 2619137.661
P181: 172 | Q181: 7176053.041 | S181: 172 | T181: 433744.7474
P182: 173 | Q182: 2001413.946 | S182: 173 | T182: 1837437.951
P183: 174 | Q183: 0 | S183: 174 | T183: 0
P184: 175 | Q184: 370237.1979 | S184: 175 | T184: 370237.1979
P185: 176 | Q185: 3566685.861 | S185: 176 | T185: 0
P186: 177 | Q186: 0 | S186: 177 | T186: 0
P187: 178 | Q187: 5795893.514 | S187: 178 | T187: 5565208.619
P188: 179 | Q188: 1148207.277 | S188: 179 | T188: 1148207.277
P189: 180 | Q189: 0 | S189: 180 | T189: 0
P190: 181 | Q190: 12277178.36 | S190: 181 | T190: 0
P191: 182 | Q191: 0 | S191: 182 | T191: 0
P192: 183 | Q192: 284444.8891 | S192: 183 | T192: 0
P193: 184 | Q193: 5350186.825 | S193: 184 | T193: 5350186.825
P194: 185 | Q194: 6906037.161 | S194: 185 | T194: 6656159.563
P195: 186 | Q195: 5849972.332 | S195: 186 | T195: 0
P196: 187 | Q196: 3654012.804 | S196: 187 | T196: 0
P197: 188 | Q197: 0 | S197: 188 | T197: 0
P198: 189 | Q198: 2892364.534 | S198: 189 | T198: 2121209.183
P199: 190 | Q199: 0 | S199: 190 | T199: 0
P200: 191 | Q200: 2728394.155 | S200: 191 | T200: 1833847.166
... 809 more rows

Sheet Simple MC WS
A1: Worksheet: Simple Monte Carlo | F1: More calculations to the right. Un-collapse columns. >>> | U1: Excel What-If Data Table to Compute Monte Carlo Simulation
A2: This worksheet provides an example of a simple Monte Carlo Model. In this example we model a project that would reduce potential labor costs for an upfront investment. Describe the Variables you want to use in your simulation here. Each distribution has a "Shape" (aka, probability distribution) described in the table below. Variables declared on this page can be used as random values on the Decision Model Summary table. Always recalculate by pressing the "Recalculate" button in cell I6. after making changes. Detailed calculations are grouped under hidden columns. Click on "+" signs in column headings to ungroup hidden columns. Below one will also find the model results as well as inputs for risk tolerance.
AMK5: Threshold Approximation for continuous variables
A6: Scenario # | B6: =ScenarioNum -> 340 | F6: Scenario NPV | H6: =IFERROR(NPV(CostM,C26:H26), "Check Variable Input") -> 16814.07183 | U6: Trial ID: | V6: 340 | X6: 1 | Y6: 2 | Z6: 3 | AA6: 4 | AB6: 5 | AC6: 6 | AD6: 7 | AE6: 8 | AF6: 9 | AG6: 10 | AH6: 11 | AI6: 12 | AJ6: 13 | AK6: 14 | AL6: 15 | AM6: 16 | AN6: 17 | AO6: 18 | AP6: 19 | AQ6: 20 | AR6: 21 | AS6: 22 | AT6: 23 | AU6: 24 | AV6: 25 | AW6: 26 | AX6: 27 | AY6: 28 | AZ6: 29 | BA6: 30 | BB6: 31 | BC6: 32 | BD6: 33 | BE6: 34 | BF6: 35 | BG6: 36 | BH6: 37 | BI6: 38 | BJ6: 39 | BK6: 40 | BL6: 41 | BM6: 42 | BN6: 43 | BO6: 44 | BP6: 45 | BQ6: 46 | BR6: 47 | BS6: 48 | BT6: 49 | BU6: 50 | BV6: 51 | BW6: 52 | BX6: 53 | BY6: 54 | BZ6: 55 | CA6: 56 | CB6: 57 | CC6: 58 | CD6: 59 | CE6: 60 | CF6: 61 | CG6: 62 | CH6: 63 | CI6: 64 | CJ6: 65 | CK6: 66 | CL6: 67 | CM6: 68 | CN6: 69 | CO6: 70 | CP6: 71 | CQ6: 72 | CR6: 73 | CS6: 74 | CT6: 75 | CU6: 76 | CV6: 77 | CW6: 78 | CX6: 79 | CY6: 80 | CZ6: 81 | DA6: 82 | DB6: 83 | DC6: 84 | DD6: 85 | DE6: 86 | DF6: 87 | DG6: 88 | DH6: 89 | DI6: 90 | DJ6: 91 | DK6: 92 | DL6: 93 | DM6: 94 | DN6: 95 | DO6: 96 | DP6: 97 | DQ6: 98 | DR6: 99 | DS6: 100 | DT6: 101 | DU6: 102 | DV6: 103 | DW6: 104 | DX6: 105 | DY6: 106 | DZ6: 107 | EA6: 108 | EB6: 109 | EC6: 110 | ED6: 111 | EE6: 112 | EF6: 113 | EG6: 114 | EH6: 115 | EI6: 116 | EJ6: 117 | EK6: 118 | EL6: 119 | EM6: 120 | EN6: 121 | EO6: 122 | EP6: 123 | EQ6: 124 | ER6: 125 | ES6: 126 | ET6: 127 | EU6: 128 | EV6: 129 | EW6: 130 | EX6: 131 | EY6: 132 | EZ6: 133 | FA6: 134 | FB6: 135 | FC6: 136 | FD6: 137 | FE6: 138 | FF6: 139 | FG6: 140 | FH6: 141 | FI6: 142 | FJ6: 143 | FK6: 144 | FL6: 145 | FM6: 146 | FN6: 147 | FO6: 148 | FP6: 149 | FQ6: 150 | FR6: 151 | FS6: 152 | FT6: 153 | FU6: 154 | FV6: 155 | FW6: 156 | FX6: 157 | FY6: 158 | FZ6: 159 | GA6: 160 | GB6: 161 | GC6: 162 | GD6: 163 | GE6: 164 | GF6: 165 | GG6: 166 | GH6: 167 | GI6: 168 | GJ6: 169 | GK6: 170 | GL6: 171 | GM6: 172 | GN6: 173 | GO6: 174 | GP6: 175 | GQ6: 176 | GR6: 177 | GS6: 178 | GT6: 179 | GU6: 180 | GV6: 181 | GW6: 182 | GX6: 183 | GY6: 184 | GZ6: 185 | HA6: 186 | HB6: 187 | HC6: 188 | HD6: 189 | HE6: 190 | HF6: 191 | HG6: 192 | HH6: 193 | HI6: 194 | HJ6: 195 | HK6: 196 | HL6: 197 | HM6: 198 | HN6: 199 | HO6: 200 | HP6: 201 | HQ6: 202 | HR6: 203 | HS6: 204 | HT6: 205 | HU6: 206 | HV6: 207 | HW6: 208 | HX6: 209 | HY6: 210 | HZ6: 211 | IA6: 212 | IB6: 213 | IC6: 214 | ID6: 215 | IE6: 216 | IF6: 217 | IG6: 218 | IH6: 219 | II6: 220 | IJ6: 221 | IK6: 222 | IL6: 223 | IM6: 224 | IN6: 225 | IO6: 226 | IP6: 227 | IQ6: 228 | IR6: 229 | IS6: 230 | IT6: 231 | IU6: 232 | IV6: 233 | IW6: 234 | IX6: 235 | IY6: 236 | IZ6: 237 | JA6: 238 | JB6: 239 | JC6: 240 | JD6: 241 | JE6: 242 | JF6: 243 | JG6: 244 | JH6: 245 | JI6: 246 | JJ6: 247 | JK6: 248 | JL6: 249 | JM6: 250 | JN6: 251 | JO6: 252 | JP6: 253 | JQ6: 254 | JR6: 255 | JS6: 256 | JT6: 257 | JU6: 258 | JV6: 259 | JW6: 260 | JX6: 261 | JY6: 262 | JZ6: 263 | KA6: 264 | KB6: 265 | KC6: 266 | KD6: 267 | KE6: 268 | KF6: 269 | KG6: 270 | KH6: 271 | KI6: 272 | KJ6: 273 | KK6: 274 | KL6: 275 | KM6: 276 | KN6: 277 | KO6: 278 | KP6: 279 | KQ6: 280 | KR6: 281 | KS6: 282 | KT6: 283 | KU6: 284 | KV6: 285 | KW6: 286 | KX6: 287 | KY6: 288 | KZ6: 289 | LA6: 290 | LB6: 291 | LC6: 292 | LD6: 293 | LE6: 294 | LF6: 295 | LG6: 296 | LH6: 297 | LI6: 298 | LJ6: 299 | LK6: 300 | LL6: 301 | LM6: 302 | LN6: 303 | LO6: 304 | LP6: 305 | LQ6: 306 | LR6: 307 | LS6: 308 | LT6: 309 | LU6: 310 | LV6: 311 | LW6: 312 | LX6: 313 | LY6: 314 | LZ6: 315 | MA6: 316 | MB6: 317 | MC6: 318 | MD6: 319 | ME6: 320 | MF6: 321 | MG6: 322 | MH6: 323 | MI6: 324 | MJ6: 325 | MK6: 326 | ML6: 327 | MM6: 328 | MN6: 329 | MO6: 330 | MP6: 331 | MQ6: 332 | MR6: 333 | MS6: 334 | MT6: 335 | MU6: 336 | MV6: 337 | MW6: 338 | MX6: 339 | MY6: 340 | MZ6: 341 | NA6: 342 | NB6: 343 | NC6: 344 | ND6: 345 | NE6: 346 | NF6: 347 | NG6: 348 | NH6: 349 | NI6: 350 | NJ6: 351 | NK6: 352 | NL6: 353 | NM6: 354 | NN6: 355 | NO6: 356 | NP6: 357 | NQ6: 358 | NR6: 359 | NS6: 360 | NT6: 361 | NU6: 362 | NV6: 363 | NW6: 364 | NX6: 365 | NY6: 366 | NZ6: 367 | OA6: 368 | OB6: 369 | OC6: 370 | OD6: 371 | OE6: 372 | OF6: 373 | OG6: 374 | OH6: 375 | OI6: 376 | OJ6: 377 | OK6: 378 | OL6: 379 | OM6: 380 | ON6: 381 | OO6: 382 | OP6: 383 | OQ6: 384 | OR6: 385 | OS6: 386 | OT6: 387 | OU6: 388 | OV6: 389 | OW6: 390 | OX6: 391 | OY6: 392 | OZ6: 393 | PA6: 394 | PB6: 395 | PC6: 396 | PD6: 397 | PE6: 398 | PF6: 399 | PG6: 400 | PH6: 401 | PI6: 402 | PJ6: 403 | PK6: 404 | PL6: 405 | PM6: 406 | PN6: 407 | PO6: 408 | PP6: 409 | PQ6: 410 | PR6: 411 | PS6: 412 | PT6: 413 | PU6: 414 | PV6: 415 | PW6: 416 | PX6: 417 | PY6: 418 | PZ6: 419 | QA6: 420 | QB6: 421 | QC6: 422 | QD6: 423 | QE6: 424 | QF6: 425 | QG6: 426 | QH6: 427 | QI6: 428 | QJ6: 429 | QK6: 430 | QL6: 431 | QM6: 432 | QN6: 433 | QO6: 434 | QP6: 435 | QQ6: 436 | QR6: 437 | QS6: 438 | QT6: 439 | QU6: 440 | QV6: 441 | QW6: 442 | QX6: 443 | QY6: 444 | QZ6: 445 | RA6: 446 | RB6: 447 | RC6: 448 | RD6: 449 | RE6: 450 | RF6: 451 | RG6: 452 | RH6: 453 | RI6: 454 | RJ6: 455 | RK6: 456 | RL6: 457 | RM6: 458 | RN6: 459 | RO6: 460 | RP6: 461 | RQ6: 462 | RR6: 463 | RS6: 464 | RT6: 465 | RU6: 466 | RV6: 467 | RW6: 468 | RX6: 469 | RY6: 470 | RZ6: 471 | SA6: 472 | SB6: 473 | SC6: 474 | SD6: 475 | SE6: 476 | SF6: 477 | SG6: 478 | SH6: 479 | SI6: 480 | SJ6: 481 | SK6: 482 | SL6: 483 | SM6: 484 | SN6: 485 | SO6: 486 | SP6: 487 | SQ6: 488 | SR6: 489 | SS6: 490 | ST6: 491 | SU6: 492 | SV6: 493 | SW6: 494 | SX6: 495 | SY6: 496 | SZ6: 497 | TA6: 498 | TB6: 499 | TC6: 500 | TD6: 501 | TE6: 502 | TF6: 503 | TG6: 504 | TH6: 505 | TI6: 506 | TJ6: 507 | TK6: 508 | TL6: 509 | TM6: 510 | TN6: 511 | TO6: 512 | TP6: 513 | TQ6: 514 | TR6: 515 | TS6: 516 | TT6: 517 | TU6: 518 | TV6: 519 | TW6: 520 | TX6: 521 | TY6: 522 | TZ6: 523 | UA6: 524 | UB6: 525 | UC6: 526 | UD6: 527 | UE6: 528 | UF6: 529 | UG6: 530 | UH6: 531 | UI6: 532 | UJ6: 533 | UK6: 534 | UL6: 535 | UM6: 536 | UN6: 537 | UO6: 538 | UP6: 539 | UQ6: 540 | UR6: 541 | US6: 542 | UT6: 543 | UU6: 544 | UV6: 545 | UW6: 546 | UX6: 547 | UY6: 548 | UZ6: 549 | VA6: 550 | VB6: 551 | VC6: 552 | VD6: 553 | VE6: 554 | VF6: 555 | VG6: 556 | VH6: 557 | VI6: 558 | VJ6: 559 | VK6: 560 | VL6: 561 | VM6: 562 | VN6: 563 | VO6: 564 | VP6: 565 | VQ6: 566 | VR6: 567 | VS6: 568 | VT6: 569 | VU6: 570 | VV6: 571 | VW6: 572 | VX6: 573 | VY6: 574 | VZ6: 575 | WA6: 576 | WB6: 577 | WC6: 578 | WD6: 579 | WE6: 580 | WF6: 581 | WG6: 582 | WH6: 583 | WI6: 584 | WJ6: 585 | WK6: 586 | WL6: 587 | WM6: 588 | WN6: 589 | WO6: 590 | WP6: 591 | WQ6: 592 | WR6: 593 | WS6: 594 | WT6: 595 | WU6: 596 | WV6: 597 | WW6: 598 | WX6: 599 | WY6: 600 | WZ6: 601 | XA6: 602 | XB6: 603 | XC6: 604 | XD6: 605 | XE6: 606 | XF6: 607 | XG6: 608 | XH6: 609 | XI6: 610 | XJ6: 611 | XK6: 612 | XL6: 613 | XM6: 614 | XN6: 615 | XO6: 616 | XP6: 617 | XQ6: 618 | XR6: 619 | XS6: 620 | XT6: 621 | XU6: 622 | XV6: 623 | XW6: 624 | XX6: 625 | XY6: 626 | XZ6: 627 | YA6: 628 | YB6: 629 | YC6: 630 | YD6: 631 | YE6: 632 | YF6: 633 | YG6: 634 | YH6: 635 | YI6: 636 | YJ6: 637 | YK6: 638 | YL6: 639 | YM6: 640 | YN6: 641 | YO6: 642 | YP6: 643 | YQ6: 644 | YR6: 645 | YS6: 646 | YT6: 647 | YU6: 648 | YV6: 649 | YW6: 650 | YX6: 651 | YY6: 652 | YZ6: 653 | ZA6: 654 | ZB6: 655 | ZC6: 656 | ZD6: 657 | ZE6: 658 | ZF6: 659 | ZG6: 660 | ZH6: 661 | ZI6: 662 | ZJ6: 663 | ZK6: 664 | ZL6: 665 | ZM6: 666 | ZN6: 667 | ZO6: 668 | ZP6: 669 | ZQ6: 670 | ZR6: 671 | ZS6: 672 | ZT6: 673 | ZU6: 674 | ZV6: 675 | ZW6: 676 | ZX6: 677 | ZY6: 678 | ZZ6: 679 | AAA6: 680 | AAB6: 681 | AAC6: 682 | AAD6: 683 | AAE6: 684 | AAF6: 685 | AAG6: 686 | AAH6: 687 | AAI6: 688 | AAJ6: 689 | AAK6: 690 | AAL6: 691 | AAM6: 692 | AAN6: 693 | AAO6: 694 | AAP6: 695 | AAQ6: 696 | AAR6: 697 | AAS6: 698 | AAT6: 699 | AAU6: 700 | AAV6: 701 | AAW6: 702 | AAX6: 703 | AAY6: 704 | AAZ6: 705 | ABA6: 706 | ABB6: 707 | ABC6: 708 | ABD6: 709 | ABE6: 710 | ABF6: 711 | ABG6: 712 | ABH6: 713 | ABI6: 714 | ABJ6: 715 | ABK6: 716 | ABL6: 717 | ABM6: 718 | ABN6: 719 | ABO6: 720 | ABP6: 721 | ABQ6: 722 | ABR6: 723 | ABS6: 724 | ABT6: 725 | ABU6: 726 | ABV6: 727 | ABW6: 728 | ABX6: 729 | ABY6: 730 | ABZ6: 731 | ACA6: 732 | ACB6: 733 | ACC6: 734 | ACD6: 735 | ACE6: 736 | ACF6: 737 | ACG6: 738 | ACH6: 739 | ACI6: 740 | ACJ6: 741 | ACK6: 742 | ACL6: 743 | ACM6: 744 | ACN6: 745 | ACO6: 746 | ACP6: 747 | ACQ6: 748 | ACR6: 749 | ACS6: 750 | ACT6: 751 | ACU6: 752 | ACV6: 753 | ACW6: 754 | ACX6: 755 | ACY6: 756 | ACZ6: 757 | ADA6: 758 | ADB6: 759 | ADC6: 760 | ADD6: 761 | ADE6: 762 | ADF6: 763 | ADG6: 764 | ADH6: 765 | ADI6: 766 | ADJ6: 767 | ADK6: 768 | ADL6: 769 | ADM6: 770 | ADN6: 771 | ADO6: 772 | ADP6: 773 | ADQ6: 774 | ADR6: 775 | ADS6: 776 | ADT6: 777 | ADU6: 778 | ADV6: 779 | ADW6: 780 | ADX6: 781 | ADY6: 782 | ADZ6: 783 | AEA6: 784 | AEB6: 785 | AEC6: 786 | AED6: 787 | AEE6: 788 | AEF6: 789 | AEG6: 790 | AEH6: 791 | AEI6: 792 | AEJ6: 793 | AEK6: 794 | AEL6: 795 | AEM6: 796 | AEN6: 797 | AEO6: 798 | AEP6: 799 | AEQ6: 800 | AER6: 801 | AES6: 802 | AET6: 803 | AEU6: 804 | AEV6: 805 | AEW6: 806 | AEX6: 807 | AEY6: 808 | AEZ6: 809 | AFA6: 810 | AFB6: 811 | AFC6: 812 | AFD6: 813 | AFE6: 814 | AFF6: 815 | AFG6: 816 | AFH6: 817 | AFI6: 818 | AFJ6: 819 | AFK6: 820 | AFL6: 821 | AFM6: 822 | AFN6: 823 | AFO6: 824 | AFP6: 825 | AFQ6: 826 | AFR6: 827 | AFS6: 828 | AFT6: 829 | AFU6: 830 | AFV6: 831 | AFW6: 832 | AFX6: 833 | AFY6: 834 | AFZ6: 835 | AGA6: 836 | AGB6: 837 | AGC6: 838 | AGD6: 839 | AGE6: 840 | AGF6: 841 | AGG6: 842 | AGH6: 843 | AGI6: 844 | AGJ6: 845 | AGK6: 846 | AGL6: 847 | AGM6: 848 | AGN6: 849 | AGO6: 850 | AGP6: 851 | AGQ6: 852 | AGR6: 853 | AGS6: 854 | AGT6: 855 | AGU6: 856 | AGV6: 857 | AGW6: 858 | AGX6: 859 | AGY6: 860 | AGZ6: 861 | AHA6: 862 | AHB6: 863 | AHC6: 864 | AHD6: 865 | AHE6: 866 | AHF6: 867 | AHG6: 868 | AHH6: 869 | AHI6: 870 | AHJ6: 871 | AHK6: 872 | AHL6: 873 | AHM6: 874 | AHN6: 875 | AHO6: 876 | AHP6: 877 | AHQ6: 878 | AHR6: 879 | AHS6: 880 | AHT6: 881 | AHU6: 882 | AHV6: 883 | AHW6: 884 | AHX6: 885 | AHY6: 886 | AHZ6: 887 | AIA6: 888 | AIB6: 889 | AIC6: 890 | AID6: 891 | AIE6: 892 | AIF6: 893 | AIG6: 894 | AIH6: 895 | AII6: 896 | AIJ6: 897 | AIK6: 898 | AIL6: 899 | AIM6: 900 | AIN6: 901 | AIO6: 902 | AIP6: 903 | AIQ6: 904 | AIR6: 905 | AIS6: 906 | AIT6: 907 | AIU6: 908 | AIV6: 909 | AIW6: 910 | AIX6: 911 | AIY6: 912 | AIZ6: 913 | AJA6: 914 | AJB6: 915 | AJC6: 916 | AJD6: 917 | AJE6: 918 | AJF6: 919 | AJG6: 920 | AJH6: 921 | AJI6: 922 | AJJ6: 923 | AJK6: 924 | AJL6: 925 | AJM6: 926 | AJN6: 927 | AJO6: 928 | AJP6: 929 | AJQ6: 930 | AJR6: 931 | AJS6: 932 | AJT6: 933 | AJU6: 934 | AJV6: 935 | AJW6: 936 | AJX6: 937 | AJY6: 938 | AJZ6: 939 | AKA6: 940 | AKB6: 941 | AKC6: 942 | AKD6: 943 | AKE6: 944 | AKF6: 945 | AKG6: 946 | AKH6: 947 | AKI6: 948 | AKJ6: 949 | AKK6: 950 | AKL6: 951 | AKM6: 952 | AKN6: 953 | AKO6: 954 | AKP6: 955 | AKQ6: 956 | AKR6: 957 | AKS6: 958 | AKT6: 959 | AKU6: 960 | AKV6: 961 | AKW6: 962 | AKX6: 963 | AKY6: 964 | AKZ6: 965 | ALA6: 966 | ALB6: 967 | ALC6: 968 | ALD6: 969 | ALE6: 970 | ALF6: 971 | ALG6: 972 | ALH6: 973 | ALI6: 974 | ALJ6: 975 | ALK6: 976 | ALL6: 977 | ALM6: 978 | ALN6: 979 | ALO6: 980 | ALP6: 981 | ALQ6: 982 | ALR6: 983 | ALS6: 984 | ALT6: 985 | ALU6: 986 | ALV6: 987 | ALW6: 988 | ALX6: 989 | ALY6: 990 | ALZ6: 991 | AMA6: 992 | AMB6: 993 | AMC6: 994 | AMD6: 995 | AME6: 996 | AMF6: 997 | AMG6: 998 | AMH6: 999 | AMI6: 1000 | AMK6: Clustering Variables by Nth size | ANF6: Average NPV by variable cluster | ANY6: Selection of nearest points and forecast
A7: Variable Summary | V7: NPV | W7: =H6 -> 16814.07183 | X7: 5925.80228 | Y7: 3948.560645 | Z7: -5660.02532 | AA7: 9678.626117 | AB7: 7928.734098 | AC7: 12682.96947 | AD7: -337.61639 | AE7: 9228.902517 | AF7: -6207.257644 | AG7: 12190.88643 | AH7: -10146.66372 | AI7: 4858.752946 | AJ7: 2105.519945 | AK7: -414.0136912 | AL7: -4829.601602 | AM7: 20090.23881 | AN7: 15136.98908 | AO7: 5385.149321 | AP7: -284.0158198 | AQ7: 2928.739415 | AR7: 11942.81369 | AS7: 1168.403882 | AT7: 1784.184977 | AU7: 3715.249695 | AV7: 14524.42306 | AW7: 8604.994206 | AX7: 1801.82014 | AY7: 2715.92285 | AZ7: -4852.058577 | BA7: 6275.611265 | BB7: 674.8320995 | BC7: -4241.90851 | BD7: -1459.597014 | BE7: 7344.059235 | BF7: -2648.011617 | BG7: -6710.984085 | BH7: 8541.505351 | BI7: -3986.19226 | BJ7: 1599.861353 | BK7: -7600.95082 | BL7: 9628.639948 | BM7: 2637.393812 | BN7: 1939.153271 | BO7: -1458.700167 | BP7: 1740.080855 | BQ7: 1094.157321 | BR7: -3887.939834 | BS7: 4134.446348 | BT7: 3678.937583 | BU7: 5411.029446 | BV7: 24496.44209 | BW7: 3831.025152 | BX7: 211.4509044 | BY7: 6001.212007 | BZ7: 8697.516805 | CA7: 2066.441586 | CB7: 3751.341508 | CC7: -607.7958311 | CD7: 12202.42892 | CE7: 3458.323394 | CF7: 7278.706997 | CG7: -256.655328 | CH7: -2641.2765 | CI7: -7892.263418 | CJ7: -3789.92905 | CK7: 7819.949057 | CL7: -4433.447752 | CM7: 1570.090672 | CN7: 10938.07501 | CO7: 12173.20651 | CP7: 2563.717087 | CQ7: 236.9557019 | CR7: 14576.59483 | CS7: 2205.276302 | CT7: 18906.94865 | CU7: 1327.352114 | CV7: 4879.491668 | CW7: -3320.438373 | CX7: 8085.426629 | CY7: 5569.393205 | CZ7: 5543.28265 | DA7: 2179.335455 | DB7: 993.8997675 | DC7: 13614.08459 | DD7: 4962.110501 | DE7: 19043.28355 | DF7: 2597.343781 | DG7: 8675.949283 | DH7: 16410.2598 | DI7: -7655.583751 | DJ7: -11065.57175 | DK7: 15914.68396 | DL7: 12715.59059 | DM7: 4029.867709 | DN7: 4583.194939 | DO7: 15080.0108 | DP7: -5619.058807 | DQ7: -2907.217325 | DR7: -5927.304458 | DS7: 1104.307731 | DT7: 1776.951509 | DU7: -5362.354608 | DV7: -5250.995436 | DW7: 7098.385615 | DX7: 2108.815621 | DY7: 3599.501969 | DZ7: 4322.462029 | EA7: 2598.786244 | EB7: 11042.51039 | EC7: -2695.504981 | ED7: 860.2921205 | EE7: 1779.989411 | EF7: 457.1010486 | EG7: 4032.126055 | EH7: 21186.44352 | EI7: 5503.456349 | EJ7: 4190.690457 | EK7: 13169.11622 | EL7: -1517.354706 | EM7: 5913.329573 | EN7: 5235.241282 | EO7: 13664.54269 | EP7: 3456.399306 | EQ7: 1449.401191 | ER7: 3817.066498 | ES7: 3687.761654 | ET7: -1508.112589 | EU7: 10980.866 | EV7: 6550.214452 | EW7: 8396.336103 | EX7: 7989.206902 | EY7: 12429.30067 | EZ7: 872.8611159 | FA7: 2286.369192 | FB7: -983.2107704 | FC7: -210.0724135 | FD7: 1151.443712 | FE7: 11581.99742 | FF7: 13713.544 | FG7: 11973.00297 | FH7: 1578.777892 | FI7: 8733.600373 | FJ7: 3065.968988 | FK7: -2324.148681 | FL7: 6501.427689 | FM7: 7875.94708 | FN7: 5183.168872 | FO7: 722.7309905 | FP7: -1066.951117 | FQ7: 12514.17911 | FR7: -4382.141117 | FS7: 13814.6881 | FT7: 2773.899977 | FU7: 2265.669351 | FV7: 10621.05634 | FW7: 2691.581409 | FX7: 3023.173934 | FY7: 1321.084324 | FZ7: 18570.47702 | GA7: 1654.96814 | GB7: 3942.479378 | GC7: 14784.25216 | GD7: -9689.079523 | GE7: 8516.715411 | GF7: -3144.743119 | GG7: 4039.133891 | GH7: -3683.797961 | GI7: 23220.91938 | GJ7: 7164.553245 | GK7: 4523.803031 | GL7: -272.5348178 | GM7: 4508.019607 | GN7: 437.1032582 | GO7: 1458.544154 | GP7: 9297.009442 | GQ7: 7384.928198 | GR7: 564.6180866 | GS7: 6260.895363 | GT7: 3700.525127 | GU7: -980.0070208 | GV7: 15162.71864 | GW7: -4627.553275 | GX7: 11709.64572 | GY7: 10.07580819 | GZ7: 10459.98748 | HA7: 14496.66873 | HB7: -432.3707148 | HC7: 5862.586323 | HD7: 4778.063335 | HE7: -995.2641063 | HF7: 7736.363032 | HG7: 13484.71182 | HH7: -9978.450674 | HI7: 79.81286373 | HJ7: 2676.521751 | HK7: -4274.733435 | HL7: 2435.52202 | HM7: 3234.300934 | HN7: 5621.716223 | HO7: 2075.990993 | HP7: 2603.417768 | HQ7: 10092.35852 | HR7: 2992.30706 | HS7: 14198.52463 | HT7: 7027.854773 | HU7: -5772.381106 | HV7: 6199.910978 | HW7: 793.5494444 | HX7: 8738.038803 | HY7: 7760.721695 | HZ7: 10678.6169 | IA7: 7981.990314 | IB7: 3046.438509 | IC7: 4350.105108 | ID7: 7457.242978 | IE7: 11466.03841 | IF7: 4549.887422 | IG7: 3670.638521 | IH7: 2623.088829 | II7: 19207.08163 | IJ7: 7214.791968 | IK7: -6515.52147 | IL7: 3102.818529 | IM7: 9072.49338 | IN7: -1831.822629 | IO7: -6092.871639 | IP7: 5217.753984 | IQ7: 4660.26171 | IR7: 3982.885349 | IS7: -377.7748085 | IT7: 19847.16228 | IU7: 2029.922716 | IV7: 27994.27057 | IW7: -822.2940402 | IX7: 650.7331834 | IY7: 14439.9164 | IZ7: 6346.219779 | JA7: 12112.77507 | JB7: -5701.739881 | JC7: 4266.96591 | JD7: -2565.566904 | JE7: 12797.245 | JF7: 15159.53173 | JG7: 12530.23136 | JH7: -791.9358112 | JI7: 10422.52436 | JJ7: 5961.248142 | JK7: 6897.568118 | JL7: 12638.45445 | JM7: -697.8628383 | JN7: 9314.776778 | JO7: 7972.692683 | JP7: 15264.6987 | JQ7: 2175.61217 | JR7: -92.99644886 | JS7: -10208.58506 | JT7: -89.83836188 | JU7: 9789.857272 | JV7: 7988.34883 | JW7: 3249.133154 | JX7: 4439.056959 | JY7: 4932.285851 | JZ7: 3024.96106 | KA7: 17125.91885 | KB7: 8562.812875 | KC7: 7572.934458 | KD7: 489.4886742 | KE7: -6050.351738 | KF7: 16725.34638 | KG7: 8272.443006 | KH7: 615.6914771 | KI7: 6158.5287 | KJ7: 2886.910795 | KK7: 11935.29009 | KL7: 13026.28621 | KM7: 825.5229913 | KN7: 7996.491463 | KO7: 1105.681641 | KP7: -2323.601027 | KQ7: 11563.07367 | KR7: -183.0147855 | KS7: 5625.516094 | KT7: 1763.087821 | KU7: 1202.139399 | KV7: 17610.29367 | KW7: -2362.412413 | KX7: -5118.870257 | KY7: 8352.566248 | KZ7: 9536.533467 | LA7: 3472.297305 | LB7: 128.7949636 | LC7: 784.3340655 | LD7: 12735.94461 | LE7: 5616.842513 | LF7: 802.941693 | LG7: 4027.434513 | LH7: 16098.57128 | LI7: 2630.642102 | LJ7: 1892.559798 | LK7: 3371.4206 | LL7: 3142.887864 | LM7: 5898.30833 | LN7: -250.0890978 | LO7: -3739.966275 | LP7: 2348.830775 | LQ7: 10751.89014 | LR7: 6721.643735 | LS7: 13555.99952 | LT7: 1304.644381 | LU7: 8206.182881 | LV7: 21867.91302 | LW7: 10990.01688 | LX7: -187.787724 | LY7: 14048.54432 | LZ7: -946.0993134 | MA7: 1752.661516 | MB7: 12644.48036 | MC7: 9653.253706 | MD7: -38.21865685 | ME7: 1569.196352 | MF7: 3951.806004 | MG7: 12896.47495 | MH7: 8155.631778 | MI7: 3967.622377 | MJ7: 11311.37255 | MK7: 11960.46824 | ML7: -1914.07601 | MM7: 3860.899697 | MN7: -834.4933701 | MO7: 6132.752397 | MP7: -5625.055667 | MQ7: 5119.31093 | MR7: -10658.95991 | MS7: 1324.569252 | MT7: 4186.425302 | MU7: 15969.37269 | MV7: 10334.36033 | MW7: -2124.243418 | MX7: 1773.381885 | MY7: 16814.07183 | MZ7: 2694.156278 | NA7: 18777.15883 | NB7: -1242.96486 | NC7: 5945.265152 | ND7: 4805.001462 | NE7: 18199.92483 | NF7: 15360.13081 | NG7: 716.7181134 | NH7: 7695.454145 | NI7: 3964.644118 | NJ7: -3677.930818 | NK7: 11278.63979 | NL7: 12215.41409 | NM7: 5869.796202 | NN7: 9038.725825 | NO7: 2423.510762 | NP7: 7151.922568 | NQ7: 11446.78684 | NR7: 342.1105023 | NS7: 5902.566061 | NT7: 2713.679511 | NU7: -5148.324556 | NV7: -1476.904592 | NW7: 7160.334456 | NX7: -5304.230621 | NY7: 1594.739644 | NZ7: -10259.77326 | OA7: 9339.460161 | OB7: 6210.917108 | OC7: 14622.21814 | OD7: -3551.897354 | OE7: 31951.15813 | OF7: 892.6739629 | OG7: -12586.78465 | OH7: 13803.65244 | OI7: 8743.42402 | OJ7: 16851.0631 | OK7: 7881.338112 | OL7: 3540.635751 | OM7: 7753.586334 | ON7: 2050.135915 | OO7: 2020.369685 | OP7: 8442.959025 | OQ7: 5715.901192 | OR7: -3036.669616 | OS7: 734.1596037 | OT7: -3625.114887 | OU7: 11637.97175 | OV7: 3727.010062 | OW7: 2781.656708 | OX7: 9142.786909 | OY7: 7413.148578 | OZ7: -1579.957341 | PA7: 12547.74843 | PB7: 13365.68483 | PC7: -811.5453287 | PD7: 18476.94986 | PE7: 16364.90878 | PF7: -4697.101664 | PG7: 4601.772067 | PH7: 6211.879175 | PI7: -5440.52782 | PJ7: 4213.52499 | PK7: 10914.66652 | PL7: 16061.18143 | PM7: 8708.818729 | PN7: -13565.90749 | PO7: 6427.34125 | PP7: 5461.828195 | PQ7: -379.9806898 | PR7: 14716.05105 | PS7: -1744.627696 | PT7: -260.9128253 | PU7: 12771.68221 | PV7: 9066.293556 | PW7: 8033.188544 | PX7: 9168.084494 | PY7: 7839.973438 | PZ7: 3819.465395 | QA7: 9464.469638 | QB7: 345.532414 | QC7: 8420.906562 | QD7: 1340.676094 | QE7: 11310.56974 | QF7: 5303.853861 | QG7: 11631.88937 | QH7: 9296.366586 | QI7: 14156.9126 | QJ7: 4940.050679 | QK7: 8487.976437 | QL7: -4161.423647 | QM7: 14264.47807 | QN7: -3912.131836 | QO7: 4852.892442 | QP7: 9663.09685 | QQ7: 19456.36313 | QR7: 6798.691536 | QS7: 3871.132033 | QT7: 3534.280681 | QU7: -317.5125491 | QV7: 408.3290989 | QW7: 4410.564752 | QX7: 8373.399133 | QY7: 14737.18335 | QZ7: -2809.834433 | RA7: 10431.08838 | RB7: 933.7653617 | RC7: 3869.812471 | RD7: 4363.015865 | RE7: 8040.959153 | RF7: 19956.82818 | RG7: -2284.568109 | RH7: 2777.747267 | RI7: 1069.890235 | RJ7: 6389.335108 | RK7: 4509.082971 | RL7: -2976.82659 | RM7: 6758.153615 | RN7: 6100.929349 | RO7: 6964.020792 | RP7: -2294.370105 | RQ7: 3471.959958 | RR7: 22021.33742 | RS7: 4988.157961 | RT7: 9047.242425 | RU7: -2460.165143 | RV7: 7474.275849 | RW7: -10305.25751 | RX7: 4244.356606 | RY7: 1904.866108 | RZ7: 7114.74557 | SA7: 17443.62298 | SB7: 5196.035375 | SC7: 2510.46683 | SD7: 7308.372713 | SE7: 16962.83813 | SF7: 22550.80578 | SG7: 9824.570671 | SH7: 13952.27078 | SI7: 1418.648527 | SJ7: 3995.326521 | SK7: 17081.80308 | SL7: 10161.81445 | SM7: 1546.967902 | SN7: -29.06765193 | SO7: 17378.25855 | SP7: 2392.009235 | SQ7: 8952.846155 | SR7: -665.0341528 | SS7: 11084.30094 | ST7: 13355.74731 | SU7: 7116.240843 | SV7: 1441.335786 | SW7: 15015.06307 | SX7: 3090.145519 | SY7: -2337.533906 | SZ7: 3650.962353 | TA7: 393.1957908 | TB7: -1812.334027 | TC7: -2582.49152 | TD7: 6599.131838 | TE7: -1288.407535 | TF7: 285.0179423 | TG7: 2884.112191 | TH7: 5428.279556 | TI7: 7370.68643 | TJ7: 4850.306711 | TK7: 9788.142915 | TL7: 25408.69858 | TM7: -1761.972721 | TN7: 3134.260105 | TO7: 7420.975322 | TP7: 2047.489842 | TQ7: 11734.01601 | TR7: 10456.98757 | TS7: -2864.440166 | TT7: 2196.694733 | TU7: 5166.98909 | TV7: -3371.477409 | TW7: 1721.321707 | TX7: 3125.455248 | TY7: 8380.554531 | TZ7: 3594.641635 | UA7: 4976.682599 | UB7: 10609.02823 | UC7: 7007.015493 | UD7: 1392.270083 | UE7: 12606.28923 | UF7: -3677.097577 | UG7: 7823.575546 | UH7: 16046.49982 | UI7: -453.1148331 | UJ7: 14201.75629 | UK7: 5165.581592 | UL7: -7585.435113 | UM7: -2313.35843 | UN7: 6068.861489 | UO7: 3955.438863 | UP7: 8851.633418 | UQ7: 2659.941887 | UR7: 4948.142317 | US7: 7551.677909 | UT7: 16858.42412 | UU7: -112.2741372 | UV7: 3532.4996 | UW7: 9220.616138 | UX7: 291.6819088 | UY7: 2673.880173 | UZ7: 9168.238161 | VA7: 13584.5383 | VB7: 9726.421512 | VC7: 24129.45854 | VD7: 4515.679805 | VE7: 13996.43016 | VF7: 2450.485611 | VG7: 15196.80824 | VH7: 10956.21961 | VI7: 7335.028758 | VJ7: 4403.443075 | VK7: 10317.09735 | VL7: 8029.702661 | VM7: 11894.14284 | VN7: 1614.9157 | VO7: 11394.06959 | VP7: 15122.00314 | VQ7: 10628.56792 | VR7: 3272.042614 | VS7: -1231.815417 | VT7: 942.812069 | VU7: 6356.77716 | VV7: -2203.04645 | VW7: 461.9029294 | VX7: -1346.008924 | VY7: 8478.830326 | VZ7: 8240.939978 | WA7: 1865.634485 | WB7: 8791.186674 | WC7: 418.4751445 | WD7: -1902.600229 | WE7: 8291.832661 | WF7: 14973.33257 | WG7: 2715.724428 | WH7: 1779.9992 | WI7: 4344.976975 | WJ7: 5364.173072 | WK7: -5760.144522 | WL7: 4055.108104 | WM7: -2411.500869 | WN7: 11615.48068 | WO7: 3318.916195 | WP7: 3315.984143 | WQ7: -6299.162734 | WR7: 2711.552594 | WS7: 9154.923274 | WT7: 17915.62065 | WU7: -3053.65774 | WV7: -669.7120564 | WW7: 3813.975799 | WX7: 6872.704125 | WY7: -1490.265936 | WZ7: 2860.992403 | XA7: 5037.739123 | XB7: 2625.488318 | XC7: 11759.18422 | XD7: 6501.557013 | XE7: 2302.659699 | XF7: 5407.925473 | XG7: 3879.051336 | XH7: 13310.64341 | XI7: 6047.567315 | XJ7: 4348.872444 | XK7: 3593.906636 | XL7: 368.9684301 | XM7: 10892.84801 | XN7: 212.4883177 | XO7: -934.9432561 | XP7: 3457.185059 | XQ7: 11458.97676 | XR7: 8884.179062 | XS7: 10970.30955 | XT7: 6051.067938 | XU7: 11218.2893 | XV7: 4428.368492 | XW7: 2568.649505 | XX7: 7735.557048 | XY7: 5057.988889 | XZ7: 1624.089831 | YA7: -3590.451959 | YB7: 13094.58258 | YC7: 1887.24357 | YD7: 19601.35516 | YE7: -6792.454453 | YF7: 4863.443572 | YG7: -65.70382777 | YH7: -172.3976101 | YI7: 1633.574339 | YJ7: 13655.3905 | YK7: 1430.619923 | YL7: 14929.94862 | YM7: 1838.453668 | YN7: -502.1001774 | YO7: 13100.36099 | YP7: -2797.084348 | YQ7: 2258.444326 | YR7: -2730.270585 | YS7: 11209.11031 | YT7: 8427.347717 | YU7: 11476.34587 | YV7: 5683.730441 | YW7: -1969.952428 | YX7: 5860.816887 | YY7: -3976.397961 | YZ7: 3396.214999 | ZA7: 284.5708764 | ZB7: 7127.92585 | ZC7: 10228.05648 | ZD7: 7726.726452 | ZE7: -6410.525946 | ZF7: 5085.520794 | ZG7: 2930.058651 | ZH7: 10023.36798 | ZI7: 10034.06691 | ZJ7: -3537.048794 | ZK7: -4757.434932 | ZL7: 3635.685045 | ZM7: -1552.072058 | ZN7: 15550.9348 | ZO7: -7033.080579 | ZP7: 845.6084768 | ZQ7: -1825.907164 | ZR7: 18534.8321 | ZS7: 10958.09403 | ZT7: -5719.965532 | ZU7: 3076.951187 | ZV7: -535.5290088 | ZW7: -952.9672726 | ZX7: 2592.19828 | ZY7: 1177.500029 | ZZ7: 2774.047395 | AAA7: 9336.96069 | AAB7: 811.2871126 | AAC7: 2080.975182 | AAD7: 9488.47627 | AAE7: -455.1479314 | AAF7: 7217.551344 | AAG7: 7074.228514 | AAH7: 17806.6814 | AAI7: -659.3100841 | AAJ7: 3948.212138 | AAK7: 789.1000962 | AAL7: 15723.52793 | AAM7: 5734.425348 | AAN7: 7559.639422 | AAO7: 441.540677 | AAP7: 9377.543969 | AAQ7: 6475.716075 | AAR7: 5317.063783 | AAS7: 4280.172465 | AAT7: 250.1867421 | AAU7: 3564.902801 | AAV7: 10965.08212 | AAW7: 5167.644456 | AAX7: 7769.647979 | AAY7: 7548.143271 | AAZ7: 7203.983316 | ABA7: 6078.750116 | ABB7: 5955.771504 | ABC7: 238.0741173 | ABD7: 4053.240734 | ABE7: 5079.348323 | ABF7: -2780.770819 | ABG7: 2143.4408 | ABH7: -9562.21611 | ABI7: 16107.57998 | ABJ7: 1608.39423 | ABK7: 17762.96815 | ABL7: 552.6543667 | ABM7: 6024.957568 | ABN7: 17624.90008 | ABO7: 6827.459046 | ABP7: 11017.09234 | ABQ7: -8048.714246 | ABR7: -2149.419258 | ABS7: 16929.09496 | ABT7: -2012.389374 | ABU7: -3347.401536 | ABV7: 3248.107129 | ABW7: -1223.865723 | ABX7: 2950.527803 | ABY7: 1854.631085 | ABZ7: 14353.69959 | ACA7: 11019.22692 | ACB7: 3169.73939 | ACC7: 1539.832289 | ACD7: 6279.183201 | ACE7: -4485.48887 | ACF7: 3269.047449 | ACG7: 1046.258742 | ACH7: 5502.973543 | ACI7: 7306.862831 | ACJ7: 5520.204796 | ACK7: 3787.672629 | ACL7: 13185.90502 | ACM7: 16779.31738 | ACN7: -5181.400278 | ACO7: 10371.1587 | ACP7: 9309.240066 | ACQ7: 7721.13545 | ACR7: 3363.291812 | ACS7: 14589.61779 | ACT7: 3241.644026 | ACU7: -1640.68008 | ACV7: -8276.347811 | ACW7: 5796.07603 | ACX7: 7539.842743 | ACY7: 16584.17761 | ACZ7: 9145.326822 | ADA7: -1080.94117 | ADB7: 3592.119644 | ADC7: 3510.863206 | ADD7: 17605.79121 | ADE7: 4205.710192 | ADF7: -976.3387942 | ADG7: 6026.888758 | ADH7: 825.5898718 | ADI7: -895.9575576 | ADJ7: 3965.754465 | ADK7: -2510.034384 | ADL7: 5722.412898 | ADM7: 2419.77533 | ADN7: 8379.208686 | ADO7: -2355.11693 | ADP7: -8280.542276 | ADQ7: 4482.895138 | ADR7: 12116.59293 | ADS7: 2341.713787 | ADT7: 1551.161565 | ADU7: 12987.91492 | ADV7: 15842.53819 | ADW7: 7157.770575 | ADX7: 10921.04826 | ADY7: 13254.39754 | ADZ7: 11751.6245 | AEA7: -1017.355028 | AEB7: -12739.21501 | AEC7: 12539.39214 | AED7: 7155.796768 | AEE7: 101.7468006 | AEF7: 2815.257194 | AEG7: 6166.399606 | AEH7: 1995.585248 | AEI7: 7909.010703 | AEJ7: -2531.293922 | AEK7: 14055.25425 | AEL7: -6481.33355 | AEM7: 5671.940956 | AEN7: 12501.27918 | AEO7: 10211.79882 | AEP7: -12598.73227 | AEQ7: -4118.404081 | AER7: 3879.873681 | AES7: -3001.428948 | AET7: 5125.62822 | AEU7: 20583.01909 | AEV7: 9322.903064 | AEW7: 9936.499023 | AEX7: -4143.785096 | AEY7: -9.253862429 | AEZ7: 3161.047218 | AFA7: 2635.838829 | AFB7: 5769.885509 | AFC7: 13577.12917 | AFD7: -6520.083999 | AFE7: 15361.03158 | AFF7: 6218.053962 | AFG7: -30.71645357 | AFH7: 10406.27829 | AFI7: 16887.96203 | AFJ7: -2058.642872 | AFK7: 3754.194034 | AFL7: 8801.882762 | AFM7: 1605.838225 | AFN7: -2879.544956 | AFO7: -1006.756775 | AFP7: -6597.697453 | AFQ7: 1429.658027 | AFR7: -3374.617345 | AFS7: -6343.836383 | AFT7: 15464.29118 | AFU7: 5182.415503 | AFV7: 595.7652512 | AFW7: 1908.147901 | AFX7: 10361.81389 | AFY7: -4526.913256 | AFZ7: 1679.663652 | AGA7: -8307.463303 | AGB7: -3351.021785 | AGC7: -2239.580643 | AGD7: 7649.647403 | AGE7: -7614.756886 | AGF7: 724.0464767 | AGG7: 15679.84038 | AGH7: 5345.806224 | AGI7: 12647.58691 | AGJ7: 5556.581855 | AGK7: -3221.78057 | AGL7: 19978.81552 | AGM7: 1786.590938 | AGN7: 254.124109 | AGO7: 5620.266602 | AGP7: 12993.2993 | AGQ7: 14750.87711 | AGR7: 5822.417295 | AGS7: 3658.5096 | AGT7: 6574.658022 | AGU7: 488.2956965 | AGV7: -4486.137333 | AGW7: 10164.82089 | AGX7: 10337.84905 | AGY7: 8383.258061 | AGZ7: 11448.51566 | AHA7: -1784.884442 | AHB7: 14353.99806 | AHC7: 5548.473133 | AHD7: -5018.090158 | AHE7: 5647.853801 | AHF7: 3733.639323 | AHG7: -4590.578686 | AHH7: 1411.71913 | AHI7: 8447.899386 | AHJ7: 7638.686344 | AHK7: 16685.68387 | AHL7: -12019.29371 | AHM7: 15095.00866 | AHN7: -1230.654058 | AHO7: 4588.858404 | AHP7: 1803.820634 | AHQ7: 1591.651989 | AHR7: 18677.85056 | AHS7: -2146.230693 | AHT7: 8999.635572 | AHU7: -7114.263189 | AHV7: 15292.12827 | AHW7: -11297.57778 | AHX7: -6838.88889 | AHY7: -3336.918865 | AHZ7: -808.1123959 | AIA7: 4752.577893 | AIB7: 16264.51481 | AIC7: -13548.66733 | AID7: 12080.39413 | AIE7: 7577.951621 | AIF7: 13146.44488 | AIG7: -5722.603874 | AIH7: 15045.37879 | AII7: 6911.852008 | AIJ7: 7097.811694 | AIK7: 12566.94295 | AIL7: 5835.479848 | AIM7: -1209.133704 | AIN7: 6555.618408 | AIO7: 4861.99732 | AIP7: 8817.728903 | AIQ7: -149.8836747 | AIR7: -867.0975231 | AIS7: 3788.402286 | AIT7: 2386.904861 | AIU7: 2514.433675 | AIV7: 10636.24314 | AIW7: 1924.818806 | AIX7: 6090.903071 | AIY7: 12553.21528 | AIZ7: 1423.899115 | AJA7: -11668.43883 | AJB7: 4107.900595 | AJC7: 7040.016617 | AJD7: -4951.481462 | AJE7: 1259.345632 | AJF7: -1539.369958 | AJG7: 2614.404673 | AJH7: 3597.902653 | AJI7: 4139.990307 | AJJ7: -579.1892722 | AJK7: 1103.691608 | AJL7: 15995.96293 | AJM7: -1513.482138 | AJN7: 1456.302849 | AJO7: 10982.8319 | AJP7: -1575.581453 | AJQ7: 637.7723899 | AJR7: -26.04464573 | AJS7: -665.8413287 | AJT7: 14081.10537 | AJU7: 16735.13313 | AJV7: -224.6769735 | AJW7: 5341.664678 | AJX7: -207.5795573 | AJY7: 43.06164903 | AJZ7: 1476.603394 | AKA7: 5621.012833 | AKB7: 11042.5373 | AKC7: 16870.58416 | AKD7: 3359.872894 | AKE7: 4369.77761 | AKF7: 9794.153144 | AKG7: -7693.665663 | AKH7: 913.1183948 | AKI7: 1590.2157 | AKJ7: 7073.642826 | AKK7: -8.268524409 | AKL7: -2354.799567 | AKM7: -10510.81791 | AKN7: -1980.345249 | AKO7: -1911.296149 | AKP7: 16902.22184 | AKQ7: 12142.55799 | AKR7: 15837.01681 | AKS7: 9886.907797 | AKT7: 7082.651085 | AKU7: 4725.338278 | AKV7: 793.1072319 | AKW7: 6687.464925 | AKX7: 3044.150803 | AKY7: 7450.454022 | AKZ7: 10351.00461 | ALA7: 13137.96604 | ALB7: 6660.176708 | ALC7: 986.1331725 | ALD7: 6589.114304 | ALE7: 7803.033131 | ALF7: 59.11407468 | ALG7: 3532.181925 | ALH7: 5970.165587 | ALI7: 7663.082192 | ALJ7: 10997.46903 | ALK7: 5344.039877 | ALL7: 1081.391711 | ALM7: -4.075317342 | ALN7: 8883.089851 | ALO7: 19849.36235 | ALP7: -8684.49633 | ALQ7: 5518.91874 | ALR7: 8518.475839 | ALS7: -1920.200673 | ALT7: -4998.048818 | ALU7: 2343.879119 | ALV7: 6603.98037 | ALW7: 21197.84473 | ALX7: 9003.032595 | ALY7: 12526.8182 | ALZ7: -2394.80069 | AMA7: 9866.249591 | AMB7: 6773.585522 | AMC7: 5652.124079 | AMD7: -767.8646563 | AME7: 1012.707689 | AMF7: 8470.126575 | AMG7: 1432.065339 | AMH7: 1014.17416 | AMI7: -4713.868238 | AMK7: 1 | AML7: 50 | AMM7: 100 | AMN7: 150 | AMO7: 200 | AMP7: 250 | AMQ7: 300 | AMR7: 350 | AMS7: 400 | AMT7: 450 | AMU7: 500 | AMV7: 550 | AMW7: 600 | AMX7: 650 | AMY7: 700 | AMZ7: 750 | ANA7: 800 | ANB7: 850 | ANC7: 900 | AND7: 950 | ANE7: 1000
A8: VarID | B8: Variable Name | C8: Short Name | D8: Simulated Value | E8: Shape | F8: Lower Bound | G8: Mode or P | H8: Upper Bound | I8: Notes | J8: EVPI Estimate | K8: Mean | L8: Uniform PRNG | M8: P(X<T) | N8: P(X>T) | O8: EOL(X<T) | P8: EOL(X>T) | Q8: Threshold Estimate | V8: Exponential Utility | W8: =1-EXP(-W7/$B$51) -> 0.9653623613 | X8: 0.6943028754 | Y8: 0.5460245371 | Z8: -2.101869717 | AA8: 0.8556804331 | AB8: 0.7952052088 | AC8: 0.9208645149 | AD8: -0.06985516341 | AE8: 0.8420979703 | AF8: -2.46063303 | AG8: 0.9126801344 | AH8: -6.609007503 | AI8: 0.6215800001 | AJ8: 0.3436781524 | AK8: -0.08632749654 | AL8: -1.627204414 | AM8: 0.9820119524 | AN8: 0.951558472 | AO8: 0.6593943302 | AP8: -0.05844744929 | AQ8: 0.4433106324 | AR8: 0.9082385256 | AS8: 0.2083855224 | AT8: 0.3001134268 | AU8: 0.524339036 | AV8: 0.9452448917 | AW8: 0.8211126214 | AX8: 0.3025776015 | AY8: 0.4191045984 | AZ8: -1.639030765 | BA8: 0.714959001 | BB8: 0.1262547483 | BC8: -1.335863668 | BD8: -0.338995094 | BE8: 0.7698011658 | BF8: -0.6982568172 | BG8: -2.827442467 | BH8: 0.8188266679 | BI8: -1.219403469 | BJ8: 0.273830827 | BK8: -3.57309475 | BL8: 0.8542304005 | BM8: 0.409909145 | BN8: 0.3214727608 | BO8: -0.3387549409 | BP8: 0.293912542 | BQ8: 0.196542882 | BR8: -1.176216823 | BS8: 0.5625921699 | BT8: 0.5208720109 | BU8: 0.6611527588 | BV8: 0.9925481162 | BW8: 0.5352264729 | BX8: 0.04140842475 | BY8: 0.6988787891 | BZ8: 0.8243924074 | CA8: 0.3385284583 | CB8: 0.527760167 | CC8: -0.1292561778 | CD8: 0.9128814795 | CE8: 0.4992581994 | CF8: 0.7667726149 | CG8: -0.05267133887 | CH8: -0.6959707657 | CI8: -3.847449467 | CJ8: -1.13397366 | CK8: 0.7907006618 | CL8: -1.427081606 | CM8: 0.2694942192 | CN8: 0.8878160115 | CO8: 0.9123708263 | CP8: 0.4011495735 | CQ8: 0.04628571154 | CR8: 0.9458132555 | CS8: 0.3566428465 | CT8: 0.9772090039 | CU8: 0.2331548763 | CV8: 0.6231463389 | CW8: -0.9427173221 | CX8: 0.8015236493 | CY8: 0.6717168041 | CZ8: 0.6699979888 | DA8: 0.353296327 | DB8: 0.1802697477 | DC8: 0.9343105482 | DD8: 0.6293222159 | DE8: 0.9778220496 | DF8: 0.4051635327 | DG8: 0.8236332873 | DH8: 0.9624488757 | DI8: -3.623337053 | DJ8: -8.144150184 | DK8: 0.9585362941 | DL8: 0.921379132 | DM8: 0.5533471204 | DN8: 0.6001392781 | DO8: 0.9510032917 | DP8: -2.07655899 | DQ8: -0.7886183764 | DR8: -2.272194601 | DS8: 0.1981723113 | DT8: 0.2991001727 | DU8: -1.922592081 | DV8: -1.858220096 | DW8: 0.7582079266 | DX8: 0.3441106147 | DY8: 0.5131992581 | DZ8: 0.5787346698 | EA8: 0.4053351139 | EB8: 0.8901349054 | EC8: -0.7144648589 | ED8: 0.1580700173 | EE8: 0.2995258963 | EF8: 0.08736586742 | EG8: 0.5535488142 | EH8: 0.9855532919 | EI8: 0.6673589405 | EJ8: 0.5674849223 | EK8: 0.9281965851 | EL8: -0.3545522286 | EM8: 0.6935393493 | EN8: 0.6490277984 | EO8: 0.9349701275 | EP8: 0.4990654681 | EQ8: 0.2516468137 | ER8: 0.5339271374 | ES8: 0.521716837 | ET8: -0.3520507553 | EU8: 0.8887720077 | EV8: 0.730191516 | EW8: 0.8134894029 | EX8: 0.7976671935 | EY8: 0.9167460858 | EZ8: 0.1601838022 | FA8: 0.3669930253 | FB8: -0.2173083539 | FC8: -0.04290958279 | FD8: 0.20569578 | FE8: 0.901371941 | FF8: 0.9356043246 | FG8: 0.9087908989 | FH8: 0.2707623302 | FI8: 0.8256551552 | FJ8: 0.4583817154 | FK8: -0.5917431497 | FL8: 0.727546014 | FM8: 0.7930316541 | FN8: 0.645353505 | FO8: 0.134585069 | FP8: -0.2378676019 | FQ8: 0.91814745 | FR8: -1.402303871 | FS8: 0.9368938859 | FT8: 0.4258014264 | FU8: 0.3643669644 | FV8: 0.880472794 | FW8: 0.4162697372 | FX8: 0.4537261033 | FY8: 0.2321929888 | FZ8: 0.9756225171 | GA8: 0.2817902545 | GB8: 0.5454720521 | GC8: 0.9480176183 | GD8: -5.943568981 | GE8: 0.8179261823 | GF8: -0.8756375415 | GG8: 0.5541741073 | GH8: -1.089154821 | GI8: 0.9903826246 | GJ8: 0.7613866093 | GK8: 0.5953612585 | GL8: -0.05601983005 | GM8: 0.5940819234 | GN8: 0.083708425 | GO8: 0.2530139964 | GP8: 0.8442342322 | GQ8: 0.7716750943 | GR8: 0.106781116 | GS8: 0.7141188381 | GT8: 0.5229361909 | GU8: -0.2165286135 | GV8: 0.9518071075 | GW8: -1.523156394 | GX8: 0.9038580125 | GY8: 0.002013132563 | GZ8: 0.876559682 | HA8: 0.9449401083 | HB8: -0.09032317482 | HC8: 0.6904133519 | HD8: 0.6154235449 | HE8: -0.2202464191 | HF8: 0.7871723523 | HG8: 0.9325886828 | HH8: -6.357278791 | HI8: 0.01583584607 | HJ8: 0.4145089313 | HK8: -1.351249025 | HL8: 0.3855971166 | HM8: 0.4763125211 | HN8: 0.6751342454 | HO8: 0.3397905848 | HP8: 0.4058856998 | HQ8: 0.867141643 | HR8: 0.450343319 | HS8: 0.9415570916 | HT8: 0.754772997 | HU8: -2.172361367 | HV8: 0.7106106297 | HW8: 0.1467561414 | HX8: 0.82580985 | HY8: 0.7882066702 | HZ8: 0.8818409144 | IA8: 0.7973749522 | IB8: 0.4562619652 | IC8: 0.5810572577 | ID8: 0.774953582 | IE8: 0.8990578483 | IF8: 0.5974667128 | IG8: 0.520076088 | IH8: 0.4082184797 | II8: 0.978536819 | IJ8: 0.7637721311 | IK8: -2.680704941 | IL8: 0.4623587194 | IM8: 0.8370804366 | IN8: -0.4424809682 | IO8: -2.382362155 | IP8: 0.6477981382 | IQ8: 0.6062552184 | IR8: 0.5491303789 | IS8: -0.07848250132 | IT8: 0.9811158523 | IU8: 0.3336795334 | IV8: 0.9962978965 | IW8: -0.1787550133 | IX8: 0.1220333206 | IY8: 0.9443115927 | IZ8: 0.7189559768 | JA8: 0.9113052886 | JB8: -2.127856595 | JC8: 0.574032907 | JD8: -0.6704839598 | JE8: 0.9226526529 | JF8: 0.9517763804 | JG8: 0.9184098122 | JH8: -0.1716197138 | JI8: 0.8756313168 | JJ8: 0.6964623515 | JK8: 0.7482990553 | JL8: 0.9201568257 | JM8: -0.1497822397 | JN8: 0.8447867584 | JO8: 0.796997815 | JP8: 0.9527800941 | JQ8: 0.3528145753 | JR8: -0.01877333392 | JS8: -6.703825413 | JT8: -0.01813006213 | JU8: 0.8588555513 | JV8: 0.7976324673 | JW8: 0.4778637087 | JX8: 0.5884444985 | JY8: 0.6271045413 | JZ8: 0.4539213205 | KA8: 0.9674567 | KB8: 0.8195970962 | KC8: 0.7801009918 | KD8: 0.09325837291 | KE8: -2.35372057 | KF8: 0.9647422274 | KG8: 0.8088101951 | KH8: 0.1158586186 | KI8: 0.7082055725 | KJ8: 0.4386339883 | KK8: 0.9081003463 | KL8: 0.9261158713 | KM8: 0.1521949795 | KN8: 0.79796176 | KO8: 0.1983926089 | KP8: -0.5915688143 | KQ8: 0.9009979512 | KR8: -0.03728109397 | KS8: 0.6753810411 | KT8: 0.2971540645 | KU8: 0.2137086491 | KV8: 0.9704614395 | KW8: -0.603971085 | KX8: -1.783680718 | KY8: 0.8118495273 | KZ8: 0.85152025 | LA8: 0.5006557099 | LB8: 0.02543006025 | LC8: 0.1451820982 | LD8: 0.9216985315 | LE8: 0.6748174307 | LF8: 0.1483574127 | LG8: 0.5531297087 | LH8: 0.9600335232 | LI8: 0.4091117823 | LJ8: 0.3151202199 | LK8: 0.490478954 | LL8: 0.4666500868 | LM8: 0.692617281 | LN8: -0.05128982974 | LO8: -1.112755997 | LP8: 0.3748515609 | LQ8: 0.8835598682 | LR8: 0.7392853454 | LS8: 0.9335429832 | LT8: 0.2296642932 | LU8: 0.8062596806 | LV8: 0.9873940027 | LW8: 0.8889753884 | LX8: -0.03827174251 | LY8: 0.9397774773 | LZ8: -0.2083065848 | MA8: 0.2956869183 | MB8: 0.9202529934 | MC8: 0.8549462247 | MD8: -0.007673019259 | ME8: 0.2693635464 | MF8: 0.5463191042 | MG8: 0.9241725558 | MH8: 0.804290988 | MI8: 0.547751954 | MJ8: 0.8958865918 | MK8: 0.9085619558 | ML8: -0.4664070159 | MM8: 0.5379951728 | MN8: -0.181634529 | MO8: 0.706697412 | MP8: -2.080251142 | MQ8: 0.6407950586 | MR8: -7.429959622 | MS8: 0.2327279527 | MT8: 0.5671158161 | MU8: 0.9589873424 | MV8: 0.8734188995 | MW8: -0.529358985 | MX8: 0.2985996042 | MY8: 0.9653623613 | MZ8: 0.4165702657 | NA8: 0.9766096507 | NB8: -0.2822200274 | NC8: 0.6954905112 | ND8: 0.6174899274 | NE8: 0.9737472613 | NF8: 0.9536728067 | NG8: 0.1335437163 | NH8: 0.7854239009 | NI8: 0.5474824914 | NJ8: -1.086704785 | NK8: 0.895202772 | NL8: 0.9131074358 | NM8: 0.6908594467 | NN8: 0.8359764338 | NO8: 0.384119392 | NP8: 0.7607830776 | NQ8: 0.8986684401 | NR8: 0.06613379498 | NS8: 0.6928789202 | NT8: 0.4188439108 | NU8: -1.800127386 | NV8: -0.3436380776 | NW8: 0.7611851925 | NX8: -1.888814251 | NY8: 0.2730866004 | NZ8: -6.783099495 | OA8: 0.8455511078 | OB8: 0.7112469405 | OC8: 0.9463054422 | OD8: -1.034763245 | OE8: 0.9983221325 | OF8: 0.1635050475 | OG8: -11.39579039 | OH8: 0.9367544487 | OI8: 0.8259973594 | OJ8: 0.9656176738 | OK8: 0.7932546885 | OL8: 0.507434164 | OM8: 0.78790421 | ON8: 0.3363677897 | OO8: 0.3324052405 | OP8: 0.8152204535 | OQ8: 0.6811964633 | OR8: -0.8355312025 | OS8: 0.1365609086 | OT8: -1.064778543 | OU8: 0.9024699117 | OV8: 0.5254565108 | OW8: 0.4266915166 | OX8: 0.8393548497 | OY8: 0.7729601476 | OZ8: -0.3716185533 | PA8: 0.9186951563 | PB8: 0.9309646762 | PC8: -0.1762237156 | PD8: 0.9751622343 | PE8: 0.96210673 | PF8: -1.558497911 | PG8: 0.6016221744 | PH8: 0.7113024952 | PI8: -1.968644835 | PJ8: 0.5694556747 | PK8: 0.8872895688 | PL8: 0.9597335349 | PM8: 0.8247888999 | PN8: -14.07716726 | PO8: 0.7234789277 | PP8: 0.6645779331 | PQ8: -0.07895840717 | PR8: 0.9473037093 | PS8: -0.4175436349 | PT8: -0.05356806968 | PU8: 0.9222561976 | PV8: 0.8368782968 | PW8: 0.7994391744 | PX8: 0.8401655839 | PY8: 0.7915372035 | PZ8: 0.5341506959 | QA8: 0.8493647501 | QB8: 0.06677269786 | QC8: 0.8144036848 | QD8: 0.2351956419 | QE8: 0.8958698737 | QF8: 0.6538111253 | QG8: 0.9023511964 | QH8: 0.8442142039 | QI8: 0.9410686764 | QJ8: 0.6276831857 | QK8: 0.816876646 | QL8: -1.298564343 | QM8: 0.9423229317 | QN8: -1.186771745 | QO8: 0.6211361936 | QP8: 0.8552315008 | QQ8: 0.9795806567 | QR8: 0.743272048 | QS8: 0.5389396837 | QT8: 0.5068077079 | QU8: -0.06556216017 | QV8: 0.078420119 | QW8: 0.5860925788 | QX8: 0.8126318398 | QY8: 0.947525958 | QZ8: -0.7541192631 | RA8: 0.8758441536 | RB8: 0.1703514257 | RC8: 0.5388179881 | RD8: 0.5821376359 | RE8: 0.7997506283 | RF8: 0.9815255325 | RG8: -0.5791924706 | RH8: 0.4262430781 | RI8: 0.1926338911 | RJ8: 0.7213690191 | RK8: 0.5941682419 | RL8: -0.813693399 | RM8: 0.7411821439 | RN8: 0.7048247023 | RO8: 0.7516221636 | RP8: -0.5822913548 | RQ8: 0.5006220183 | RR8: 0.9877749418 | RS8: 0.6312482377 | RT8: 0.8362555806 | RU8: -0.6356381413 | RV8: 0.7757189149 | RW8: -6.854224205 | RX8: 0.5721023815 | RY8: 0.3168038157 | RZ8: 0.7589977752 | SA8: 0.9694602021 | SB8: 0.6462649438 | SC8: 0.3947377029 | SD8: 0.7681522894 | SE8: 0.9663777633 | SF8: 0.9890033121 | SG8: 0.8598320783 | SH8: 0.9386066746 | SI8: 0.247029859 | SJ8: 0.5502508537 | SK8: 0.967168295 | SL8: 0.8689744438 | SM8: 0.2661081323 | SN8: -0.005830461749 | SO8: 0.9690583377 | SP8: 0.3802269071 | SQ8: 0.8331348422 | SR8: -0.1422578006 | SS8: 0.8910493432 | ST8: 0.9308273317 | SU8: 0.7590698373 | SV8: 0.2504386852 | SW8: 0.9503626951 | SX8: 0.4609942842 | SY8: -0.5960100263 | SZ8: 0.5181837543 | TA8: 0.07562658313 | TB8: -0.436869524 | TC8: -0.6761480006 | TD8: 0.7328183107 | TE8: -0.2939266465 | TF8: 0.05540932027 | TG8: 0.4383196922 | TH8: 0.662319775 | TI8: 0.7710238172 | TJ8: 0.620940215 | TK8: 0.8588071486 | TL8: 0.9937909025 | TM8: -0.4224696402 | TN8: 0.4657289695 | TO8: 0.7733152661 | TP8: 0.3360164928 | TQ8: 0.904325474 | TR8: 0.8764855979 | TS8: -0.773381247 | TT8: 0.3555376957 | TU8: 0.6442040256 | TV8: -0.9626497661 | TW8: 0.2912584464 | TX8: 0.4647873046 | TY8: 0.8128997868 | TZ8: 0.5127258251 | UA8: 0.6304009538 | UB8: 0.8801849106 | UC8: 0.7537487933 | UD8: 0.2430469257 | UE8: 0.9196415354 | UF8: -1.086357068 | UG8: 0.7908524111 | UH8: 0.9596151258 | UI8: -0.09485613012 | UJ8: 0.941594853 | UK8: 0.6441038551 | UL8: -3.558925786 | UM8: -0.5883117918 | UN8: 0.7029254905 | UO8: 0.5466486163 | UP8: 0.8297226471 | UQ8: 0.4125642363 | UR8: 0.628285229 | US8: 0.779164143 | UT8: 0.9656682544 | UU8: -0.02270883475 | UV8: 0.5066319935 | UW8: 0.8418360661 | UX8: 0.05666742582 | UY8: 0.4141995255 | UZ8: 0.840170496 | VA8: 0.9339212231 | VB8: 0.8570534225 | VC8: 0.9919806003 | VD8: 0.5947033298 | VE8: 0.9391465055 | VF8: 0.3874331026 | VG8: 0.9521345652 | VH8: 0.8882223804 | VI8: 0.7693850291 | VJ8: 0.5855026158 | VK8: 0.8729811108 | VL8: 0.7992992994 | VM8: 0.9073409423 | VN8: 0.2760139393 | VO8: 0.8975944038 | VP8: 0.9514130658 | VQ8: 0.8806522267 | VR8: 0.4802506084 | VS8: -0.2793640051 | VT8: 0.1718511861 | VU8: 0.7195487685 | VV8: -0.5536535558 | VW8: 0.08824191875 | VX8: -0.3089192343 | VY8: 0.8165413661 | VZ8: 0.8076017806 | WA8: 0.3114221512 | WB8: 0.8276516112 | WC8: 0.08028830119 | WD8: -0.4630452423 | WE8: 0.8095501802 | WF8: 0.9499466836 | WG8: 0.4190815455 | WH8: 0.2995272677 | WI8: 0.5806273585 | WJ8: 0.6579624027 | WK8: -2.164607086 | WL8: 0.555596178 | WM8: -0.6197959326 | WN8: 0.9020302123 | WO8: 0.4851003434 | WP8: 0.4847983124 | WQ8: -2.524831193 | WR8: 0.4185966441 | WS8: 0.8397443065 | WT8: 0.9722112531 | WU8: -0.8417782554 | WV8: -0.143326975 | WW8: 0.5336389502 | WX8: 0.7470442799 | WY8: -0.3472334416 | WZ8: 0.4357164923 | XA8: 0.6348867957 | XB8: 0.4085024062 | XC8: 0.9048058553 | XD8: 0.7275530609 | XE8: 0.3690520701 | XF8: 0.660942339 | XG8: 0.539669361 | XH8: 0.9302005175 | XI8: 0.7016576012 | XJ8: 0.5809539619 | XK8: 0.5126541907 | XL8: 0.07113668845 | XM8: 0.8867966593 | XN8: 0.04160729523 | XO8: -0.2056136027 | XP8: 0.4991441841 | XQ8: 0.8989151839 | XR8: 0.8308274049 | XS8: 0.8885369252 | XT8: 0.701866405 | XU8: 0.8939301945 | XV8: 0.587563778 | XW8: 0.4017400384 | XX8: 0.7871380424 | XY8: 0.6363624968 | XZ8: 0.2773411101 | YA8: -1.050513792 | YB8: 0.9271182137 | YC8: 0.3143916372 | YD8: 0.9801642821 | YE8: -2.890317954 | YF8: 0.6219348389 | YG8: -0.01322748485 | YH8: -0.0350808318 | YI8: 0.2787106235 | YJ8: 0.9348509854 | YK8: 0.2488305232 | YL8: 0.9495104919 | YM8: 0.3076687366 | YN8: -0.1056352266 | YO8: 0.9272023932 | YP8: -0.7496519275 | YQ8: 0.3634478075 | YR8: -0.7264272799 | YS8: 0.8937352931 | YT8: 0.8146426218 | YU8: 0.8992657254 | YV8: 0.6791386203 | YW8: -0.4828864399 | YX8: 0.6903037738 | YY8: -1.215060224 | YZ8: 0.4929993533 | ZA8: 0.05532485764 | ZB8: 0.759632234 | ZC8: 0.8706988754 | ZD8: 0.7867617706 | ZE8: -2.604219308 | ZF8: 0.6383593207 | ZG8: 0.443457494 | ZH8: 0.8652957435 | ZI8: 0.8655836735 | ZJ8: -1.028729548 | ZK8: -1.589557435 | ZL8: 0.5167093319 | ZM8: -0.3639902505 | ZN8: 0.9554073824 | ZO8: -3.082118589 | ZP8: 0.1555938632 | ZQ8: -0.4407753884 | ZR8: 0.9754481094 | ZS8: 0.8882642764 | ZT8: -2.139278845 | ZU8: 0.4595700418 | ZV8: -0.1130520111 | ZW8: -0.2099674453 | ZX8: 0.4045510713 | ZY8: 0.2098243415 | ZZ8: 0.4258183555 | AAA8: 0.8454738804 | AAB8: 0.14977769 | AAC8: 0.3404483787 | AAD8: 0.8500862656 | AAE8: -0.09530141067 | AAF8: 0.7639024634 | AAG8: 0.7570369009 | AAH8: 0.9715991521 | AAI8: -0.1409508764 | AAJ8: 0.5459928934 | AAK8: 0.1459965277 | AAL8: 0.9569203946 | AAM8: 0.6823753914 | AAN8: 0.7795155007 | AAO8: 0.08452125816 | AAP8: 0.8467230394 | AAQ8: 0.7261413591 | AAR8: 0.6547245437 | AAS8: 0.5751565339 | AAT8: 0.04880610176 | AAU8: 0.5098189961 | AAV8: 0.8884203311 | AAW8: 0.6442506579 | AAX8: 0.7885844383 | AAY8: 0.7790079728 | AAZ8: 0.7632609178 | ABA8: 0.7035124417 | ABB8: 0.6961296962 | ABC8: 0.04649901744 | ABD8: 0.5554301737 | ABE8: 0.6379126017 | ABF8: -0.7439526306 | ABG8: 0.3486369814 | ABH8: -5.769608265 | ABI8: 0.9601054676 | ABJ8: 0.2750690326 | ABK8: 0.9713497649 | ABL8: 0.104641313 | ABM8: 0.7003054572 | ABN8: 0.9705476041 | ABO8: 0.7447448917 | ABP8: 0.8895749721 | ABQ8: -4.001524917 | ABR8: -0.5370789839 | ABS8: 0.9661500918 | ABT8: -0.495525836 | ABU8: -0.9532219815 | ABV8: 0.4777565528 | ABW8: -0.2773315108 | ABX8: 0.4457312273 | ABY8: 0.309905143 | ABZ8: 0.9433430104 | ACA8: 0.8896221041 | ACB8: 0.4695066615 | ACC8: 0.2650600309 | ACD8: 0.7151625579 | ACE8: -1.452475135 | ACF8: 0.4799391681 | ACG8: 0.1888090061 | ACH8: 0.6673268187 | ACI8: 0.7680822663 | ACJ8: 0.6684713207 | ACK8: 0.5311791309 | ACL8: 0.9284372795 | ACM8: 0.9651207603 | ACN8: -1.818712036 | ACO8: 0.8743470755 | ACP8: 0.844614789 | ACQ8: 0.7865231942 | ACR8: 0.4896499226 | ACS8: 0.9459542062 | ACT8: 0.4770810536 | ACU8: -0.3883778011 | ACV8: -4.234490753 | ACW8: 0.6862677005 | ACX8: 0.778640798 | ACY8: 0.9637325822 | ACZ8: 0.8394364339 | ADA8: -0.2413360185 | ADB8: 0.512479983 | ADC8: 0.5044924267 | ADD8: 0.9704348283 | ADE8: 0.5687822251 | ADF8: -0.2156364403 | ADG8: 0.7004211882 | ADH8: 0.1522063197 | ADI8: -0.1962498178 | ADJ8: 0.5475829705 | ADK8: -0.6520333736 | ADL8: 0.681611384 | ADM8: 0.3836591041 | ADN8: 0.8128494185 | ADO8: -0.6016324432 | ADP8: -4.238883773 | ADQ8: 0.5920370949 | ADR8: 0.9113729874 | ADS8: 0.3739610925 | ADT8: 0.2667234132 | ADU8: 0.9255466843 | ADV8: 0.9579336707 | ADW8: 0.7610627025 | ADX8: 0.8874333347 | ADY8: 0.9294108979 | ADZ8: 0.9046618182 | AEA8: -0.2256496202 | AEB8: -11.77950865 | AEC8: 0.9185591614 | AED8: 0.7609683606 | AEE8: 0.02014370922 | AEF8: 0.4305312891 | AEG8: 0.7086645484 | AEH8: 0.3290878333 | AEI8: 0.7943957636 | AEJ8: -0.6590726214 | AEK8: 0.9398582408 | AEL8: -2.655623658 | AEM8: 0.6783811696 | AEN8: 0.917935999 | AEO8: 0.8702777645 | AEP8: -11.42544584 | AEQ8: -1.27887253 | AER8: 0.5397450649 | AES8: -0.8226396173 | AET8: 0.6412486124 | AEU8: 0.9837002224 | AEV8: 0.845038815 | AEW8: 0.8629349714 | AEX8: -1.29046996 | AEY8: -0.001852486222 | AEZ8: 0.4685836315 | AFA8: 0.4097256001 | AFB8: 0.6846200264 | AFC8: 0.9338232334 | AFD8: -2.684065139 | AFE8: 0.953681152 | AFF8: 0.7116588042 | AFG8: -0.006162199426 | AFH8: 0.8752265591 | AFI8: 0.9658704741 | AFJ8: -0.5094246843 | AFK8: 0.5280295054 | AFL8: 0.8280199079 | AFM8: 0.2746983524 | AFN8: -0.7787466573 | AFO8: -0.2230544226 | AFP8: -2.741697894 | AFQ8: 0.248686 | AFR8: -0.9638826725 | AFS8: -2.55646572 | AFT8: 0.9546279152 | AFU8: 0.645300065 | AFV8: 0.112328068 | AFW8: 0.3172520903 | AFX8: 0.8741120153 | AFY8: -1.472877992 | AFZ8: 0.2853288201 | AGA8: -4.267167072 | AGB8: -0.9546367235 | AGC8: -0.5650474275 | AGD8: 0.7834490622 | AGE8: -3.585739489 | AGF8: 0.1348127274 | AGG8: 0.9565423368 | AGH8: 0.6567036617 | AGI8: 0.9203025256 | AGJ8: 0.6708745754 | AGK8: -0.9047601858 | AGL8: 0.981606595 | AGM8: 0.3004501258 | AGN8: 0.04955484678 | AGO8: 0.6750400453 | AGP8: 0.925626818 | AGQ8: 0.9476694747 | AGR8: 0.6879161755 | AGS8: 0.5189104829 | AGT8: 0.7315073137 | AGU8: 0.09304200259 | AGV8: -1.452793224 | AGW8: 0.8690532042 | AGX8: 0.8735071899 | AGY8: 0.8130009257 | AGZ8: 0.8987034709 | AHA8: -0.4290028429 | AHB8: 0.9433463924 | AHC8: 0.670340385 | AHD8: -1.728134471 | AHE8: 0.6768280551 | AHF8: 0.5260852684 | AHG8: -1.504566679 | AHH8: 0.2459856098 | AHI8: 0.8154029389 | AHJ8: 0.7829738159 | AHK8: 0.9644614329 | AHL8: -10.06579416 | AHM8: 0.9511500406 | AHN8: -0.2790668794 | AHO8: 0.6005919412 | AHP8: 0.3028565835 | AHQ8: 0.2726375702 | AHR8: 0.9761404354 | AHS8: -0.5360990813 | AHT8: 0.8346890634 | AHU8: -3.148938995 | AHV8: 0.9530384292 | AHW8: -8.578447819 | AHX8: -2.926615182 | AHY8: -0.9491312745 | AHZ8: -0.1754164134 | AIA8: 0.6134583206 | AIB8: 0.961338189 | AIC8: -14.02527024 | AID8: 0.9107290208 | AIE8: 0.780321535 | AIF8: 0.92787027 | AIG8: -2.140935781 | AIH8: 0.9506627427 | AII8: 0.7490170829 | AIJ8: 0.7581801711 | AIK8: 0.9190066795 | AIL8: 0.6887304337 | AIM8: -0.2735735155 | AIN8: 0.7304829652 | AIO8: 0.6218254676 | AIP8: 0.8285640893 | AIQ8: -0.03043056065 | AIR8: -0.1893649445 | AIS8: 0.5312475417 | AIT8: 0.3795938732 | AIU8: 0.3952177088 | AIV8: 0.8808352904 | AIW8: 0.3195247046 | AIX8: 0.7042322066 | AIY8: 0.9187840041 | AIZ8: 0.2478201512 | AJA8: -9.315914156 | AJB8: 0.5602637303 | AJC8: 0.7553687547 | AJD8: -1.692031983 | AJE8: 0.2226535344 | AJF8: -0.36052954 | AJG8: 0.407189762 | AJH8: 0.5130435236 | AJI8: 0.5630768954 | AJJ8: -0.1228137981 | AJK8: 0.1980735003 | AJL8: 0.9592048707 | AJM8: -0.3535035159 | AJN8: 0.2526790767 | AJO8: 0.8888157318 | AJP8: -0.3704186686 | AJQ8: 0.1197545395 | AJR8: -0.005222519203 | AJS8: -0.142442216 | AJT8: 0.9401683847 | AJU8: 0.9648111717 | AJV8: -0.04596028315 | AJW8: 0.6564191884 | AJX8: -0.04238974767 | AJY8: 0.00857534993 | AJZ8: 0.2557071297 | AKA8: 0.6750885407 | AKB8: 0.8901354967 | AKC8: 0.965751648 | AKD8: 0.4893008342 | AKE8: 0.5827023497 | AKF8: 0.858976767 | AKG8: -3.658684595 | AKH8: 0.1669183971 | AKI8: 0.2724285996 | AKJ8: 0.7570084391 | AKK8: -0.001655073006 | AKL8: -0.6015307865 | AKM8: -7.183857214 | AKN8: -0.4859719201 | AKO8: -0.465591961 | AKP8: 0.9659676715 | AKQ8: 0.9118320356 | AKR8: 0.9578871922 | AKS8: 0.8615687629 | AKT8: 0.7574458312 | AKU8: 0.6113467246 | AKV8: 0.146680675 | AKW8: 0.7374970569 | AKX8: 0.4560131258 | AKY8: 0.7746478084 | AKZ8: 0.8738395692 | ALA8: 0.927747851 | ALB8: 0.7360604928 | ALC8: 0.1789954557 | ALD8: 0.7322824737 | ALE8: 0.7899913642 | ALF8: 0.01175320008 | ALG8: 0.5066006464 | ALH8: 0.6970032251 | ALI8: 0.7840301444 | ALJ8: 0.8891407395 | ALK8: 0.6565823642 | ALL8: 0.1944889371 | ALM8: -0.000815395723 | ALN8: 0.830790548 | ALO8: 0.9811241598 | ALP8: -4.679704836 | ALQ8: 0.6683860368 | ALR8: 0.8179902766 | ALS8: -0.4682043664 | ALT8: -1.717221263 | ALU8: 0.3742321503 | ALV8: 0.7330772729 | ALW8: 0.9855861964 | ALX8: 0.8348013383 | ALY8: 0.9183540972 | ALZ8: -0.6143947811 | AMA8: 0.8609956315 | AMB8: 0.7419797231 | AMC8: 0.6771039441 | AMD8: -0.1659928213 | AME8: 0.18334744 | AMF8: 0.8162217323 | AMG8: 0.2490476423 | AMH8: 0.1835869244 | AMI8: -1.567091761
A9: =ROW(Variables[[#This Row],[Variable Name]])-ROW(Variables[[#Headers],[Variable Name]]) -> 1 | B9: Percent reduction in labor cost | C9: Reduc | D9: =IF(COUNTA(Variables[[#This Row],[Lower Bound]], Variables[[#This Row],[Mode or P]], Variables[[#This Row],[Upper Bound]])=0, "", IF(Variables[[#This Row],[Shape]]="Constant",Variables[[#This Row],[Mode or P]],IF(Variables[[#This Row],[Shape]]="Lognorm",LOGINV(Variables[[#This Row],[Uniform PRNG]],((LN(Variables[[#This Row],[Lower Bound]]) + LN(Variables[[#This Row],[Upper Bound]]))/2),((LN(Variables[[#This Row],[Upper Bound]]) - LN(Variables[[#This Row],[Lower Bound]]))/3.28971)),IF(Variables[[#This Row],[Shape]]="Normal",NORMINV(Variables[[#This Row],[Uniform PRNG]],(Variables[[#This Row],[Upper Bound]]+Variables[[#This Row],[Lower Bound]])/2,(Variables[[#This Row],[Upper Bound]]-Variables[[#This Row],[Lower Bound]])/3.29),IF(Variables[[#This Row],[Shape]]="Uniform",(Variables[[#This Row],[Upper Bound]]-Variables[[#This Row],[Lower Bound]])*Variables[[#This Row],[Uniform PRNG]]+Variables[[#This Row],[Lower Bound]],IF(Variables[[#This Row],[Shape]]="Binary",IF(Variables[[#This Row],[Uniform PRNG]]<Variables[[#This Row],[Mode or P]],1,0),IF(Variables[[#This Row],[Shape]]="Triangular",IF(Variables[[#This Row],[Uniform PRNG]]<(Variables[[#This Row],[Mode or P]]-Variables[[#This Row],[Lower Bound]])/(Variables[[#This Row],[Upper Bound]]-Variables[[#This Row],[Lower Bound]]), 1, 0) * (Variables[[#This Row],[Lower Bound]] + SQRT(Variables[[#This Row],[Uniform PRNG]]*(Variables[[#This Row],[Upper Bound]]-Variables[[#This Row],[Lower Bound]])*(Variables[[#This Row],[Mode or P]]-Variables[[#This Row],[Lower Bound]]))) + IF(Variables[[#This Row],[Uniform PRNG]]>= (Variables[[#This Row],[Mode or P]]-Variables[[#This Row],[Lower Bound]])/(Variables[[#This Row],[Upper Bound]]-Variables[[#This Row],[Lower Bound]]), 1, 0) * (Variables[[#This Row],[Upper Bound]] - SQRT((1-Variables[[#This Row],[Uniform PRNG]]) * (Variables[[#This Row],[Upper Bound]] - Variables[[#This Row],[Lower Bound]]) * (Variables[[#This Row],[Upper Bound]] - Variables[[#This Row],[Mode or P]]))),""))))))) -> 0.06256811694 | E9: Triangular | F9: 0.02 | G9: 0.03 | H9: 0.1 | I9: CE, PM 2/15/2019 | J9: =IFERROR(IF(OR(MIN(Variables[[#This Row],[P(X<T)]], Variables[[#This Row],[P(X>T)]])<0.002,SIGN(Variables[[#This Row],[EOL(X<T)]])=SIGN(Variables[[#This Row],[EOL(X>T)]])),0,IFERROR(IF(B$38=1,IF(Variables[[#This Row],[EOL(X<T)]]<Variables[[#This Row],[EOL(X>T)]],-Variables[[#This Row],[EOL(X<T)]]*Variables[[#This Row],[P(X<T)]],-Variables[[#This Row],[EOL(X>T)]]*Variables[[#This Row],[P(X>T)]]),IF(Variables[[#This Row],[EOL(X<T)]]>Variables[[#This Row],[EOL(X>T)]],Variables[[#This Row],[EOL(X<T)]]*Variables[[#This Row],[P(X<T)]],Variables[[#This Row],[EOL(X>T)]]*Variables[[#This Row],[P(X>T)]])),"")),0) -> 160.3654311 | K9: =IF(Variables[[#This Row],[Shape]]="Constant",Variables[[#This Row],[Mode or P]],IF(Variables[[#This Row],[Shape]]="Lognorm",EXP((LN(Variables[[#This Row],[Upper Bound]])+LN(Variables[[#This Row],[Lower Bound]]))/2+((LN(Variables[[#This Row],[Upper Bound]])-LN(Variables[[#This Row],[Lower Bound]]))/3.29)^2/2),IF(Variables[[#This Row],[Shape]]="Normal",(Variables[[#This Row],[Lower Bound]]+Variables[[#This Row],[Upper Bound]])/2,IF(Variables[[#This Row],[Shape]]="Uniform",(Variables[[#This Row],[Lower Bound]]+Variables[[#This Row],[Upper Bound]])/2,IF(Variables[[#This Row],[Shape]]="Binary",Variables[[#This Row],[Mode or P]],IF(Variables[[#This Row],[Shape]]="Triangular",(Variables[[#This Row],[Lower Bound]]+Variables[[#This Row],[Mode or P]]+Variables[[#This Row],[Upper Bound]])/3,"")))))) -> 0.05 | L9: =IF(Variables[[#This Row],[Shape]]="","",(MOD((MOD(MOD(999999999999989,MOD(ScenarioNum*2499997+Variables[[#This Row],[VarID]]*1800451,7450589)*4658+7450581)*383,99991)*231109+MOD(MOD(999999999999989,MOD(ScenarioNum*2246527+Variables[[#This Row],[VarID]]*2399993,7450987)*7580+7560584)*547,231109))*43271,4294967296)+0.5)/4294967296) -> 0.7497953804 | M9: =IF(Variables[[#This Row],[Shape]]="Binary", 1-Variables[[#This Row],[Mode or P]], IF(Variables[[#This Row],[Shape]]<>"",COUNTIF(INDEX($X$9:$AMI$159, ROW(Variables[[#This Row],[Variable Name]])-ROW(Variables[[#Headers],[Variable Name]]), ),"<"&Variables[[#This Row],[Threshold Estimate]])/1000,"")) -> 0.183 | N9: =IF(Variables[[#This Row],[Shape]]<>"",1-Variables[[#This Row],[P(X<T)]],"") -> 0.817 | O9: =IFERROR(AVERAGEIFS(X$7:AMI$7,INDEX(X$9:$AMI$159, ROW(Variables[[#This Row],[Variable Name]])-ROW(Variables[[#Headers],[Variable Name]]), ),IF(Variables[[#This Row],[Shape]]="Binary","=0","<"&Variables[[#This Row],[Threshold Estimate]])),"") -> -876.313831 | P9: =IFERROR(AVERAGEIFS(X$7:AMI$7,INDEX($X$9:$AMI$159, ROW(Variables[[#This Row],[Variable Name]])-ROW(Variables[[#Headers],[Variable Name]]), ),IF(Variables[[#This Row],[Shape]]="Binary","=1",">"&Variables[[#This Row],[Threshold Estimate]])),"") -> 6142.494441 | Q9: =IFERROR(IF(Variables[[#This Row],[Shape]]="Binary",IF(B$38=1,IF(Variables[[#This Row],[EOL(X<T)]]<Variables[[#This Row],[EOL(X>T)]],0,1),IF(Variables[[#This Row],[EOL(X<T)]]<Variables[[#This Row],[EOL(X>T)]],1,0)), INDEX($AOF$9:$AOF$159, ROW(Variables[[#This Row],[Variable Name]])-ROW(Variables[[#Headers],[Variable Name]]))),"") -> 0.03295251184 | U9: Sampled Variable Values | V9: =IFERROR(IF(ISBLANK(Variables[[#This Row],[Variable Name]]), "", Variables[[#This Row],[Variable Name]]), "") -> Percent reduction in labor cost | W9: =IFERROR(IF(ISBLANK(D9), "", D9), "") -> 0.06256811694 | X9: 0.05232606523 | Y9: 0.04310689731 | Z9: 0.02896090199 | AA9: 0.04803091802 | AB9: 0.042438643 | AC9: 0.08778890732 | AD9: 0.02605035977 | AE9: 0.06523035783 | AF9: 0.03757459442 | AG9: 0.06378525101 | AH9: 0.07080516832 | AI9: 0.03012243552 | AJ9: 0.03768594562 | AK9: 0.02999356447 | AL9: 0.0266698443 | AM9: 0.0909939095 | AN9: 0.06388106068 | AO9: 0.04513773393 | AP9: 0.06053589488 | AQ9: 0.05021725113 | AR9: 0.0695734177 | AS9: 0.04656252917 | AT9: 0.03859106617 | AU9: 0.05297182266 | AV9: 0.06809351817 | AW9: 0.06401730374 | AX9: 0.03865863834 | AY9: 0.05672751798 | AZ9: 0.03798931467 | BA9: 0.05510842826 | BB9: 0.02957328971 | BC9: 0.03106094007 | BD9: 0.02312731894 | BE9: 0.03847248749 | BF9: 0.04939787206 | BG9: 0.026853254 | BH9: 0.04662994098 | BI9: 0.03355143207 | BJ9: 0.04119025052 | BK9: 0.03230586926 | BL9: 0.0639919334 | BM9: 0.02923560548 | BN9: 0.06548477149 | BO9: 0.04555012747 | BP9: 0.04142357077 | BQ9: 0.03126436119 | BR9: 0.05141535324 | BS9: 0.05508593487 | BT9: 0.06700499926 | BU9: 0.0327340099 | BV9: 0.09180900234 | BW9: 0.03666449486 | BX9: 0.03096318945 | BY9: 0.04485729603 | BZ9: 0.05575610198 | CA9: 0.03492006295 | CB9: 0.04023885603 | CC9: 0.0315045587 | CD9: 0.09523173227 | CE9: 0.03197415616 | CF9: 0.05633029115 | CG9: 0.04407599186 | CH9: 0.0678447121 | CI9: 0.087344325 | CJ9: 0.02302040374 | CK9: 0.05790574377 | CL9: 0.03295406205 | CM9: 0.02552474074 | CN9: 0.06986947156 | CO9: 0.05404018003 | CP9: 0.04219442724 | CQ9: 0.04984091024 | CR9: 0.07441063421 | CS9: 0.04026722893 | CT9: 0.07388094697 | CU9: 0.03079483787 | CV9: 0.05195885161 | CW9: 0.03384105561 | CX9: 0.04553436361 | CY9: 0.05782083743 | CZ9: 0.06420853942 | DA9: 0.03615911163 | DB9: 0.0288049436 | DC9: 0.08089634482 | DD9: 0.05376171045 | DE9: 0.05596276999 | DF9: 0.02379190052 | DG9: 0.06360895446 | DH9: 0.07500938804 | DI9: 0.02815954593 | DJ9: 0.02469132747 | DK9: 0.07440847969 | DL9: 0.08843251163 | DM9: 0.026343636 | DN9: 0.05975273671 | DO9: 0.06506399282 | DP9: 0.07214872405 | DQ9: 0.03012591251 | DR9: 0.02195302016 | DS9: 0.04429285023 | DT9: 0.04006032721 | DU9: 0.02798844299 | DV9: 0.05085457526 | DW9: 0.05005573453 | DX9: 0.06661280021 | DY9: 0.03734546393 | DZ9: 0.05734800206 | EA9: 0.03541495368 | EB9: 0.08908280036 | EC9: 0.02702136711 | ED9: 0.0611880506 | EE9: 0.04297089113 | EF9: 0.02444897097 | EG9: 0.03797441178 | EH9: 0.0842761953 | EI9: 0.05037396243 | EJ9: 0.0412648274 | EK9: 0.06150472678 | EL9: 0.04019834895 | EM9: 0.08407286528 | EN9: 0.03903833196 | EO9: 0.06673627935 | EP9: 0.06410162162 | EQ9: 0.04667047192 | ER9: 0.03456986478 | ES9: 0.04514904197 | ET9: 0.05375515051 | EU9: 0.07117999556 | EV9: 0.06375439509 | EW9: 0.08121178061 | EX9: 0.03889236979 | EY9: 0.07185216069 | EZ9: 0.06438255839 | FA9: 0.04683713372 | FB9: 0.03164088638 | FC9: 0.02927319639 | FD9: 0.03396834357 | FE9: 0.06554559639 | FF9: 0.07833342691 | FG9: 0.07163238354 | FH9: 0.03193531306 | FI9: 0.06408666015 | FJ9: 0.0449462364 | FK9: 0.03499122479 | FL9: 0.04208559759 | FM9: 0.04142811331 | FN9: 0.04043211829 | FO9: 0.03534066774 | FP9: 0.02862778864 | FQ9: 0.05773135202 | FR9: 0.03740706558 | FS9: 0.05803055341 | FT9: 0.06323074429 | FU9: 0.04876554777 | FV9: 0.07619568299 | FW9: 0.04358566159 | FX9: 0.06792933161 | FY9: 0.04955185721 | FZ9: 0.08487062252 | GA9: 0.03370645462 | GB9: 0.03158395676 | GC9: 0.07175409709 | GD9: 0.03139961792 | GE9: 0.05762364087 | GF9: 0.04759983199 | GG9: 0.04834858549 | GH9: 0.023991071 | GI9: 0.07401445026 | GJ9: 0.05030308506 | GK9: 0.05401875397 | GL9: 0.02800103626 | GM9: 0.0605374801 | GN9: 0.02982848311 | GO9: 0.0264576182 | GP9: 0.08829138249 | GQ9: 0.05227579274 | GR9: 0.034996031 | GS9: 0.03987403068 | GT9: 0.04186090952 | GU9: 0.02477126078 | GV9: 0.04651275404 | GW9: 0.03406659141 | GX9: 0.06114510197 | GY9: 0.03929613469 | GZ9: 0.04929624883 | HA9: 0.0810145598 | HB9: 0.04000713885 | HC9: 0.05507358932 | HD9: 0.04959728549 | HE9: 0.03397218744 | HF9: 0.07089344274 | HG9: 0.08967962165 | HH9: 0.05157868935 | HI9: 0.03660273683 | HJ9: 0.02954162583 | HK9: 0.02401187563 | HL9: 0.02841349409 | HM9: 0.03666994542 | HN9: 0.05341859956 | HO9: 0.0325156573 | HP9: 0.03849328456 | HQ9: 0.0628749011 | HR9: 0.04992269704 | HS9: 0.07613091692 | HT9: 0.04002112106 | HU9: 0.02763842068 | HV9: 0.05413488199 | HW9: 0.03305031934 | HX9: 0.07536994911 | HY9: 0.07795022166 | HZ9: 0.05586041464 | IA9: 0.04758809628 | IB9: 0.04908876129 | IC9: 0.04966318101 | ID9: 0.06193999265 | IE9: 0.06436779706 | IF9: 0.05136027092 | IG9: 0.04734700616 | IH9: 0.05893172608 | II9: 0.08198085092 | IJ9: 0.04318329568 | IK9: 0.04145141072 | IL9: 0.04058892554 | IM9: 0.07118468028 | IN9: 0.02809989859 | IO9: 0.0374071324 | IP9: 0.04192426193 | IQ9: 0.06622964596 | IR9: 0.03313894754 | IS9: 0.02719244128 | IT9: 0.07516711905 | IU9: 0.03110308287 | IV9: 0.08225907771 | IW9: 0.02334600175 | IX9: 0.03392936962 | IY9: 0.07558506972 | IZ9: 0.05894611275 | JA9: 0.06307421938 | JB9: 0.03662674801 | JC9: 0.02933979898 | JD9: 0.03748737213 | JE9: 0.07212141396 | JF9: 0.06631716042 | JG9: 0.07875549703 | JH9: 0.03116656394 | JI9: 0.09145242835 | JJ9: 0.04434954689 | JK9: 0.06526079904 | JL9: 0.05862543741 | JM9: 0.03791263012 | JN9: 0.08022276462 | JO9: 0.05317809295 | JP9: 0.05980095327 | JQ9: 0.05555326415 | JR9: 0.02345632935 | JS9: 0.07972471209 | JT9: 0.03980378688 | JU9: 0.0612250502 | JV9: 0.07604421395 | JW9: 0.02648840004 | JX9: 0.0398009097 | JY9: 0.06796758624 | JZ9: 0.04805618611 | KA9: 0.0821314625 | KB9: 0.05005041569 | KC9: 0.088819434 | KD9: 0.0331110765 | KE9: 0.02295360525 | KF9: 0.06332172806 | KG9: 0.09042677552 | KH9: 0.06704154224 | KI9: 0.04110933204 | KJ9: 0.03867369683 | KK9: 0.05803521458 | KL9: 0.06674425287 | KM9: 0.0297192165 | KN9: 0.04870397222 | KO9: 0.04836252686 | KP9: 0.04412253647 | KQ9: 0.0664029632 | KR9: 0.03718390211 | KS9: 0.04713853163 | KT9: 0.03558386558 | KU9: 0.03912412267 | KV9: 0.06464575029 | KW9: 0.03144142679 | KX9: 0.05699766891 | KY9: 0.04107610982 | KZ9: 0.05892454343 | LA9: 0.06198007753 | LB9: 0.02838010695 | LC9: 0.04438369037 | LD9: 0.05553858896 | LE9: 0.03939932438 | LF9: 0.03342242612 | LG9: 0.04740093072 | LH9: 0.07522267441 | LI9: 0.02609810625 | LJ9: 0.02841924316 | LK9: 0.03316823468 | LL9: 0.02637338237 | LM9: 0.03051382525 | LN9: 0.03939950308 | LO9: 0.02745465975 | LP9: 0.0338109917 | LQ9: 0.07002180316 | LR9: 0.05960971015 | LS9: 0.09674539807 | LT9: 0.0407453176 | LU9: 0.05708708352 | LV9: 0.08004780152 | LW9: 0.05878570758 | LX9: 0.04433789417 | LY9: 0.05202936136 | LZ9: 0.0400157693 | MA9: 0.02894649277 | MB9: 0.05924033878 | MC9: 0.0475018393 | MD9: 0.03673087333 | ME9: 0.05124818024 | MF9: 0.049461346 | MG9: 0.07428101675 | MH9: 0.06060991589 | MI9: 0.03385696833 | MJ9: 0.07705059047 | MK9: 0.06621019978 | ML9: 0.02801536321 | MM9: 0.03910853967 | MN9: 0.03518661788 | MO9: 0.04834150329 | MP9: 0.03893207364 | MQ9: 0.03015520737 | MR9: 0.07934008027 | MS9: 0.05440266776 | MT9: 0.05180297977 | MU9: 0.08404808482 | MV9: 0.08573213214 | MW9: 0.03607724331 | MX9: 0.03829388921 | MY9: 0.06256811694 | MZ9: 0.05013905971 | NA9: 0.08340689196 | NB9: 0.02833423678 | NC9: 0.05290104918 | ND9: 0.04858156214 | NE9: 0.0868246798 | NF9: 0.06488497867 | NG9: 0.03304615698 | NH9: 0.06026700152 | NI9: 0.04477501248 | NJ9: 0.03772846983 | NK9: 0.08119682842 | NL9: 0.06821310768 | NM9: 0.03650381137 | NN9: 0.05464656908 | NO9: 0.04467308497 | NP9: 0.07184597353 | NQ9: 0.07177981516 | NR9: 0.04580654181 | NS9: 0.04537865916 | NT9: 0.03734084103 | NU9: 0.04742654528 | NV9: 0.02467926905 | NW9: 0.04908266215 | NX9: 0.02640181707 | NY9: 0.05308275511 | NZ9: 0.03376365703 | OA9: 0.06308930007 | OB9: 0.03776658545 | OC9: 0.06434076491 | OD9: 0.02890342664 | OE9: 0.09326380739 | OF9: 0.04881020313 | OG9: 0.05881750916 | OH9: 0.06556466521 | OI9: 0.04374448621 | OJ9: 0.05980320973 | OK9: 0.05688353562 | OL9: 0.04610916551 | OM9: 0.04411405215 | ON9: 0.04076571216 | OO9: 0.0353033728 | OP9: 0.04544948418 | OQ9: 0.06227513965 | OR9: 0.04487148298 | OS9: 0.06466500017 | OT9: 0.03257977554 | OU9: 0.0718147552 | OV9: 0.0454901456 | OW9: 0.02503497641 | OX9: 0.05293454227 | OY9: 0.08801718673 | OZ9: 0.02942920476 | PA9: 0.06004182484 | PB9: 0.05749698674 | PC9: 0.03155895022 | PD9: 0.06237336659 | PE9: 0.07076371598 | PF9: 0.02568624717 | PG9: 0.04750878437 | PH9: 0.04748605879 | PI9: 0.02995973247 | PJ9: 0.05592507579 | PK9: 0.04577961828 | PL9: 0.06440402705 | PM9: 0.07324020222 | PN9: 0.02393448213 | PO9: 0.04270289246 | PP9: 0.04774856529 | PQ9: 0.02928043329 | PR9: 0.06243273015 | PS9: 0.03200886719 | PT9: 0.03265084365 | PU9: 0.08196467218 | PV9: 0.04953387937 | PW9: 0.0531992811 | PX9: 0.06923583923 | PY9: 0.04420811185 | PZ9: 0.03786181218 | QA9: 0.0769513356 | QB9: 0.02751702008 | QC9: 0.04060584838 | QD9: 0.03353223531 | QE9: 0.06946162707 | QF9: 0.03240026125 | QG9: 0.05756489415 | QH9: 0.04205325571 | QI9: 0.06994533022 | QJ9: 0.04968926598 | QK9: 0.07002401021 | QL9: 0.06395006141 | QM9: 0.05276918713 | QN9: 0.05442790553 | QO9: 0.04502201403 | QP9: 0.06285018057 | QQ9: 0.08853397919 | QR9: 0.05493802129 | QS9: 0.05693833788 | QT9: 0.07277880296 | QU9: 0.04646893873 | QV9: 0.03567549004 | QW9: 0.03752689887 | QX9: 0.04494086375 | QY9: 0.07922138016 | QZ9: 0.03689350023 | RA9: 0.06085171009 | RB9: 0.0274602824 | RC9: 0.02850260581 | RD9: 0.03407477187 | RE9: 0.07576348954 | RF9: 0.08718370368 | RG9: 0.05193961473 | RH9: 0.04128201427 | RI9: 0.03504157066 | RJ9: 0.05036252945 | RK9: 0.04481476842 | RL9: 0.02664203697 | RM9: 0.05516286033 | RN9: 0.06283567357 | RO9: 0.0695720739 | RP9: 0.07576871514 | RQ9: 0.0478415842 | RR9: 0.08958345813 | RS9: 0.04551680318 | RT9: 0.06914820321 | RU9: 0.02086400815 | RV9: 0.05968915232 | RW9: 0.08618095843 | RX9: 0.03626903069 | RY9: 0.04556783555 | RZ9: 0.07360618937 | SA9: 0.07273606463 | SB9: 0.05595307954 | SC9: 0.03287650566 | SD9: 0.04834444696 | SE9: 0.07266439289 | SF9: 0.09859690633 | SG9: 0.05714273995 | SH9: 0.07104212167 | SI9: 0.0278791147 | SJ9: 0.05509018047 | SK9: 0.05303947515 | SL9: 0.08559259018 | SM9: 0.0441483782 | SN9: 0.03128647887 | SO9: 0.08267771953 | SP9: 0.04296202209 | SQ9: 0.0702161302 | SR9: 0.03032865654 | SS9: 0.06428721494 | ST9: 0.08497950883 | SU9: 0.04854527554 | SV9: 0.02569263274 | SW9: 0.07450818162 | SX9: 0.05417877687 | SY9: 0.03429150973 | SZ9: 0.03183150459 | TA9: 0.04958502916 | TB9: 0.02869603175 | TC9: 0.03326900977 | TD9: 0.06794548951 | TE9: 0.03073062338 | TF9: 0.03845932221 | TG9: 0.04727598556 | TH9: 0.05634849778 | TI9: 0.05466305314 | TJ9: 0.04972124268 | TK9: 0.04431484187 | TL9: 0.0949552454 | TM9: 0.02435797488 | TN9: 0.04469190964 | TO9: 0.05066758406 | TP9: 0.04757011589 | TQ9: 0.07116765893 | TR9: 0.07760744135 | TS9: 0.03598019627 | TT9: 0.03908511059 | TU9: 0.0344842217 | TV9: 0.03966588694 | TW9: 0.07944244436 | TX9: 0.03798260452 | TY9: 0.04592268955 | TZ9: 0.05091156105 | UA9: 0.05660415276 | UB9: 0.06072817263 | UC9: 0.04379131277 | UD9: 0.03503107513 | UE9: 0.07652344719 | UF9: 0.04201464471 | UG9: 0.05510403669 | UH9: 0.0775076769 | UI9: 0.04387207372 | UJ9: 0.07573388111 | UK9: 0.03452222215 | UL9: 0.07668631319 | UM9: 0.03015865207 | UN9: 0.06503832139 | UO9: 0.04773733743 | UP9: 0.08159562443 | UQ9: 0.03434914355 | UR9: 0.04400974793 | US9: 0.05768350242 | UT9: 0.08425476247 | UU9: 0.0365973226 | UV9: 0.04284972085 | UW9: 0.07532212792 | UX9: 0.05605711248 | UY9: 0.02855213764 | UZ9: 0.04898631286 | VA9: 0.06750160191 | VB9: 0.0620588583 | VC9: 0.08358447649 | VD9: 0.04296490398 | VE9: 0.05147883298 | VF9: 0.04514063769 | VG9: 0.07646809605 | VH9: 0.06328086355 | VI9: 0.07807081679 | VJ9: 0.05732982151 | VK9: 0.05999528475 | VL9: 0.05754839642 | VM9: 0.05989996238 | VN9: 0.05020010003 | VO9: 0.07453501888 | VP9: 0.0609255225 | VQ9: 0.05656584096 | VR9: 0.0456795824 | VS9: 0.02657683862 | VT9: 0.03317103173 | VU9: 0.03626711206 | VV9: 0.03059330893 | VW9: 0.03642304061 | VX9: 0.02501768098 | VY9: 0.04966440213 | VZ9: 0.05532928582 | WA9: 0.0359063943 | WB9: 0.04496126124 | WC9: 0.03786790531 | WD9: 0.05500261443 | WE9: 0.04205135418 | WF9: 0.08787880869 | WG9: 0.03765124801 | WH9: 0.03544799969 | WI9: 0.04533328433 | WJ9: 0.04252053135 | WK9: 0.07261890764 | WL9: 0.0336108994 | WM9: 0.02938718444 | WN9: 0.05561333318 | WO9: 0.03623590415 | WP9: 0.03562362635 | WQ9: 0.04019387936 | WR9: 0.02838432789 | WS9: 0.06504780951 | WT9: 0.09752796648 | WU9: 0.03170300976 | WV9: 0.02559022959 | WW9: 0.05268054201 | WX9: 0.04468121129 | WY9: 0.03023643938 | WZ9: 0.02941888867 | XA9: 0.04098373732 | XB9: 0.04800825789 | XC9: 0.06051702399 | XD9: 0.04709952447 | XE9: 0.03806215478 | XF9: 0.06071909111 | XG9: 0.06436219944 | XH9: 0.06464853224 | XI9: 0.04428040488 | XJ9: 0.03776076299 | XK9: 0.0431737737 | XL9: 0.03183040883 | XM9: 0.06515403627 | XN9: 0.03999987451 | XO9: 0.03500955659 | XP9: 0.03654531167 | XQ9: 0.07634130441 | XR9: 0.05505005303 | XS9: 0.0823157832 | XT9: 0.03861739361 | XU9: 0.06390404434 | XV9: 0.03182814261 | XW9: 0.04318902445 | XX9: 0.07348184231 | XY9: 0.03145732676 | XZ9: 0.04215746236 | YA9: 0.03829920649 | YB9: 0.06260698025 | YC9: 0.02864753527 | YD9: 0.07363863583 | YE9: 0.03602260199 | YF9: 0.05470157342 | YG9: 0.05963951096 | YH9: 0.02484437951 | YI9: 0.08219643536 | YJ9: 0.08236814701 | YK9: 0.02863044443 | YL9: 0.06812648268 | YM9: 0.03517625837 | YN9: 0.0660726808 | YO9: 0.07824345014 | YP9: 0.03646890069 | YQ9: 0.03626249399 | YR9: 0.03453701841 | YS9: 0.03675473866 | YT9: 0.04396701475 | YU9: 0.06974738175 | YV9: 0.03665873487 | YW9: 0.03290214383 | YX9: 0.06009324366 | YY9: 0.03133138171 | YZ9: 0.03277376266 | ZA9: 0.04274871653 | ZB9: 0.0682542956 | ZC9: 0.08844466213 | ZD9: 0.06486205722 | ZE9: 0.05021321413 | ZF9: 0.08613485479 | ZG9: 0.04005457113 | ZH9: 0.07372147651 | ZI9: 0.08219197556 | ZJ9: 0.03141412284 | ZK9: 0.02892893418 | ZL9: 0.05816596767 | ZM9: 0.02563624339 | ZN9: 0.06898037138 | ZO9: 0.0293557129 | ZP9: 0.03175707922 | ZQ9: 0.02676943688 | ZR9: 0.07370582348 | ZS9: 0.07826610944 | ZT9: 0.04927784215 | ZU9: 0.04095145633 | ZV9: 0.03505697491 | ZW9: 0.03728523617 | ZX9: 0.03778204309 | ZY9: 0.05002231585 | ZZ9: 0.04433904585 | AAA9: 0.07635074461 | AAB9: 0.03221465367 | AAC9: 0.04129932256 | AAD9: 0.0425516447 | AAE9: 0.02824127665 | AAF9: 0.05577236501 | AAG9: 0.05838721821 | AAH9: 0.07593762334 | AAI9: 0.03309721595 | AAJ9: 0.03280778093 | AAK9: 0.03884470717 | AAL9: 0.08788546128 | AAM9: 0.03979204732 | AAN9: 0.04188134563 | AAO9: 0.04641996071 | AAP9: 0.07590457001 | AAQ9: 0.04488185139 | AAR9: 0.04544757013 | AAS9: 0.05149462604 | AAT9: 0.03329465074 | AAU9: 0.03910913181 | AAV9: 0.0580056876 | AAW9: 0.05771342235 | AAX9: 0.03915376498 | AAY9: 0.05211709586 | AAZ9: 0.04077520124 | ABA9: 0.05273427225 | ABB9: 0.06442179387 | ABC9: 0.0274737557 | ABD9: 0.04945481467 | ABE9: 0.03533525713 | ABF9: 0.02646129875 | ABG9: 0.0638932039 | ABH9: 0.04601828151 | ABI9: 0.08381046603 | ABJ9: 0.04063075668 | ABK9: 0.07863393168 | ABL9: 0.03282390774 | ABM9: 0.04642995738 | ABN9: 0.07956594483 | ABO9: 0.0530056547 | ABP9: 0.07443893905 | ABQ9: 0.03506563574 | ABR9: 0.03649331124 | ABS9: 0.05717095283 | ABT9: 0.02177355874 | ABU9: 0.03897701068 | ABV9: 0.05306100578 | ABW9: 0.0361380036 | ABX9: 0.04868878393 | ABY9: 0.03729094188 | ABZ9: 0.05835276978 | ACA9: 0.06506220527 | ACB9: 0.05522057778 | ACC9: 0.04428157915 | ACD9: 0.04887025021 | ACE9: 0.02915820666 | ACF9: 0.06545816035 | ACG9: 0.0487393929 | ACH9: 0.05497454842 | ACI9: 0.05589044849 | ACJ9: 0.05665156034 | ACK9: 0.04216756305 | ACL9: 0.05909888173 | ACM9: 0.08042821214 | ACN9: 0.02484709245 | ACO9: 0.08714253868 | ACP9: 0.05950962367 | ACQ9: 0.04918858633 | ACR9: 0.06770105404 | ACS9: 0.06866731499 | ACT9: 0.03647740168 | ACU9: 0.03233222591 | ACV9: 0.07722582915 | ACW9: 0.08194316761 | ACX9: 0.05703832701 | ACY9: 0.06857746166 | ACZ9: 0.06279061149 | ADA9: 0.03952672574 | ADB9: 0.04097038947 | ADC9: 0.0348291484 | ADD9: 0.06182151403 | ADE9: 0.05205142859 | ADF9: 0.02710787006 | ADG9: 0.04015012251 | ADH9: 0.04096729944 | ADI9: 0.04012116906 | ADJ9: 0.06031146358 | ADK9: 0.02806468275 | ADL9: 0.02854104338 | ADM9: 0.06287050972 | ADN9: 0.04478452685 | ADO9: 0.02978392521 | ADP9: 0.07932489901 | ADQ9: 0.03635627852 | ADR9: 0.06087692936 | ADS9: 0.0293318727 | ADT9: 0.04090616589 | ADU9: 0.08650848491 | ADV9: 0.07757633939 | ADW9: 0.03682176049 | ADX9: 0.06118754025 | ADY9: 0.07177141713 | ADZ9: 0.09495281598 | AEA9: 0.0325278571 | AEB9: 0.07106041269 | AEC9: 0.05741961621 | AED9: 0.04158432356 | AEE9: 0.03070596187 | AEF9: 0.02849136159 | AEG9: 0.05942327411 | AEH9: 0.02866633873 | AEI9: 0.06843936754 | AEJ9: 0.02560245547 | AEK9: 0.07355566096 | AEL9: 0.03731717347 | AEM9: 0.05010371183 | AEN9: 0.05334725005 | AEO9: 0.06022411116 | AEP9: 0.03352552988 | AEQ9: 0.02744038676 | AER9: 0.05687595033 | AES9: 0.05294377572 | AET9: 0.04671414764 | AEU9: 0.08831776041 | AEV9: 0.04434418582 | AEW9: 0.06116151494 | AEX9: 0.04078464974 | AEY9: 0.03625779129 | AEZ9: 0.03854356628 | AFA9: 0.03749932463 | AFB9: 0.06760789696 | AFC9: 0.03933537067 | AFD9: 0.02425714758 | AFE9: 0.09482216002 | AFF9: 0.06115538416 | AFG9: 0.02738814448 | AFH9: 0.05333756971 | AFI9: 0.07037314817 | AFJ9: 0.03235866411 | AFK9: 0.03521363611 | AFL9: 0.07025846414 | AFM9: 0.03479206083 | AFN9: 0.04919663728 | AFO9: 0.05342028608 | AFP9: 0.06268389076 | AFQ9: 0.03249925205 | AFR9: 0.03244476612 | AFS9: 0.06421885048 | AFT9: 0.06284336283 | AFU9: 0.03903355504 | AFV9: 0.03129374198 | AFW9: 0.03969725022 | AFX9: 0.08013628571 | AFY9: 0.02747922863 | AFZ9: 0.03722991369 | AGA9: 0.03293781128 | AGB9: 0.02490328336 | AGC9: 0.02674052561 | AGD9: 0.05873916369 | AGE9: 0.0739167828 | AGF9: 0.02761296086 | AGG9: 0.091115203 | AGH9: 0.05200845496 | AGI9: 0.05779442894 | AGJ9: 0.04614262132 | AGK9: 0.0395592818 | AGL9: 0.08259563907 | AGM9: 0.02246880973 | AGN9: 0.04350768106 | AGO9: 0.04729497052 | AGP9: 0.05071133455 | AGQ9: 0.05578408942 | AGR9: 0.03295158609 | AGS9: 0.02982892201 | AGT9: 0.03642864936 | AGU9: 0.03396196995 | AGV9: 0.02994566514 | AGW9: 0.05793060934 | AGX9: 0.05270065378 | AGY9: 0.04119472413 | AGZ9: 0.07445658434 | AHA9: 0.02984528796 | AHB9: 0.07204428224 | AHC9: 0.04817154677 | AHD9: 0.02686520329 | AHE9: 0.04193732509 | AHF9: 0.03670904411 | AHG9: 0.03132847829 | AHH9: 0.04586137584 | AHI9: 0.05142402784 | AHJ9: 0.0558895068 | AHK9: 0.0854667157 | AHL9: 0.05451335979 | AHM9: 0.06405629083 | AHN9: 0.04263926782 | AHO9: 0.04188143875 | AHP9: 0.03122882649 | AHQ9: 0.05141714522 | AHR9: 0.08952593603 | AHS9: 0.0353475958 | AHT9: 0.07910536077 | AHU9: 0.02606847343 | AHV9: 0.06437837112 | AHW9: 0.05067731668 | AHX9: 0.03541294251 | AHY9: 0.03643977198 | AHZ9: 0.02394068868 | AIA9: 0.0630440456 | AIB9: 0.06471915377 | AIC9: 0.03217443587 | AID9: 0.06519989188 | AIE9: 0.05287327438 | AIF9: 0.08458390967 | AIG9: 0.0290157351 | AIH9: 0.08463742048 | AII9: 0.05282693508 | AIJ9: 0.07399205584 | AIK9: 0.06619031404 | AIL9: 0.03755863784 | AIM9: 0.03432960109 | AIN9: 0.04379304414 | AIO9: 0.04835666476 | AIP9: 0.07096155784 | AIQ9: 0.04428318139 | AIR9: 0.03579736087 | AIS9: 0.03905631853 | AIT9: 0.0530187159 | AIU9: 0.02728610408 | AIV9: 0.05291522291 | AIW9: 0.06930429288 | AIX9: 0.04811935522 | AIY9: 0.07164116204 | AIZ9: 0.05806828031 | AJA9: 0.04762365743 | AJB9: 0.03430568111 | AJC9: 0.03659979655 | AJD9: 0.03202488948 | AJE9: 0.04188845544 | AJF9: 0.03782249259 | AJG9: 0.04359085047 | AJH9: 0.02694648492 | AJI9: 0.07351257113 | AJJ9: 0.03045497669 | AJK9: 0.03276539308 | AJL9: 0.08943596536 | AJM9: 0.05339065516 | AJN9: 0.03518223813 | AJO9: 0.0622594412 | AJP9: 0.04331401018 | AJQ9: 0.03884051993 | AJR9: 0.04357730122 | AJS9: 0.02174212211 | AJT9: 0.06112205952 | AJU9: 0.07858212898 | AJV9: 0.02748131332 | AJW9: 0.04112712852 | AJX9: 0.04145048111 | AJY9: 0.02989436238 | AJZ9: 0.02994597066 | AKA9: 0.0575209974 | AKB9: 0.06873683009 | AKC9: 0.09684202157 | AKD9: 0.03510724545 | AKE9: 0.02798329095 | AKF9: 0.0514258754 | AKG9: 0.03626404042 | AKH9: 0.03054957773 | AKI9: 0.04285642458 | AKJ9: 0.03974137447 | AKK9: 0.02925026801 | AKL9: 0.03028015726 | AKM9: 0.06261821206 | AKN9: 0.02981840108 | AKO9: 0.03502089734 | AKP9: 0.07496868446 | AKQ9: 0.07027718927 | AKR9: 0.0648453152 | AKS9: 0.06047158996 | AKT9: 0.03472023433 | AKU9: 0.07123769747 | AKV9: 0.03308520384 | AKW9: 0.04545647423 | AKX9: 0.05567354164 | AKY9: 0.03919260992 | AKZ9: 0.06854606826 | ALA9: 0.08558254299 | ALB9: 0.0565238883 | ALC9: 0.04061356235 | ALD9: 0.0559830295 | ALE9: 0.05787651785 | ALF9: 0.03335819238 | ALG9: 0.04504150324 | ALH9: 0.05043185276 | ALI9: 0.04727662876 | ALJ9: 0.06420127763 | ALK9: 0.04542324377 | ALL9: 0.02574361943 | ALM9: 0.03990578417 | ALN9: 0.07158980742 | ALO9: 0.06233776344 | ALP9: 0.06802753477 | ALQ9: 0.05597309242 | ALR9: 0.05336383397 | ALS9: 0.02862320027 | ALT9: 0.02084746073 | ALU9: 0.04170789491 | ALV9: 0.06881735541 | ALW9: 0.07589510609 | ALX9: 0.05002024123 | ALY9: 0.04289734615 | ALZ9: 0.02155892049 | AMA9: 0.0436406088 | AMB9: 0.07878971152 | AMC9: 0.04436550674 | AMD9: 0.05564728713 | AME9: 0.03777407983 | AMF9: 0.05380689878 | AMG9: 0.03066299097 | AMH9: 0.05162303632 | AMI9: 0.04187306585 | AML9: =IFERROR(AVERAGEIFS($X9:$AMI9,$X9:$AMI9,"<"&SMALL($X9:$AMI9,AMM$7),$X9:$AMI9,">"&SMALL($X9:$AMI9,AMK$7)),"") -> 0.02646093248 | AMM9: =IFERROR(AVERAGEIFS($X9:$AMI9,$X9:$AMI9,"<"&SMALL($X9:$AMI9,AMN$7),$X9:$AMI9,">"&SMALL($X9:$AMI9,AML$7)),"") -> 0.02924808634 | AMN9: =IFERROR(AVERAGEIFS($X9:$AMI9,$X9:$AMI9,"<"&SMALL($X9:$AMI9,AMO$7),$X9:$AMI9,">"&SMALL($X9:$AMI9,AMM$7)),"") -> 0.03148393187 | AMO9: 0.03371204815 | AMP9: 0.03584160436 | AMQ9: 0.03789665661 | AMR9: 0.04001809763 | AMS9: 0.04238182 | AMT9: 0.0448122862 | AMU9: 0.04739477952 | AMV9: 0.0502829717 | AMW9: 0.05330587865 | AMX9: 0.05634742448 | AMY9: 0.05959201137 | AMZ9: 0.06294810799 | ANA9: 0.06673081698 | ANB9: 0.07131222488 | ANC9: =IFERROR(AVERAGEIFS($X9:$AMI9,$X9:$AMI9,"<"&SMALL($X9:$AMI9,AND$7),$X9:$AMI9,">"&SMALL($X9:$AMI9,ANB$7)),"") -> 0.0765492013 | AND9: =IFERROR(AVERAGEIFS($X9:$AMI9,$X9:$AMI9,"<"&SMALL($X9:$AMI9,ANE$7),$X9:$AMI9,">"&SMALL($X9:$AMI9,ANC$7)),"") -> 0.08401430341 | ANF9: =IFERROR(AVERAGEIFS($X$7:$AMI$7,$X9:$AMI9,"<"&SMALL($X9:$AMI9,AMM$7),$X9:$AMI9,">"&SMALL($X9:$AMI9,AMK$7)),"") -> -1316.93769 | ANG9: =IFERROR(AVERAGEIFS($X$7:$AMI$7,$X9:$AMI9,"<"&SMALL($X9:$AMI9,AMN$7),$X9:$AMI9,">"&SMALL($X9:$AMI9,AML$7)),"") -> -525.362543 | ANH9: -371.8655556 | ANI9: 192.3255115 | ANJ9: 880.8682893 | ANK9: 1771.483964 | ANL9: 2634.469458 | ANM9: 3558.61641 | ANN9: 4178.621697 | ANO9: 4128.915671 | ANP9: 4305.099396 | ANQ9: 5199.663865 | ANR9: 6676.21431 | ANS9: 8328.067409 | ANT9: 9191.938503 | ANU9: 8786.774614 | ANV9: 9921.674294 | ANW9: =IFERROR(AVERAGEIFS($X$7:$AMI$7,$X9:$AMI9,"<"&SMALL($X9:$AMI9,AND$7),$X9:$AMI9,">"&SMALL($X9:$AMI9,ANB$7)),"") -> 10879.84746 | ANX9: 12388.08461 | ANY9: =IFERROR(MATCH(MIN(ABS(ANF9:ANX9)),ABS(ANF9:ANX9),0),"") -> 4 | ANZ9: =IFERROR(INDEX(ANF9:ANX9,MIN(MAX(ANY9-1,1),17)),"") -> -371.8655556 | AOA9: =IFERROR(INDEX(ANF9:ANX9,MIN(MAX(ANY9,2),18)),"") -> 192.3255115 | AOB9: =IFERROR(INDEX(ANF9:ANX9,MIN(MAX(ANY9,3),19)),"") -> 192.3255115 | AOC9: =IFERROR(INDEX(AML9:AND9,MIN(MAX(ANY9-1,1),17)),"") -> 0.03148393187 | AOD9: =IFERROR(INDEX(AML9:AND9,MIN(MAX(ANY9,2),18)),"") -> 0.03371204815 | AOE9: =IFERROR(INDEX(AML9:AND9,MIN(MAX(ANY9,3),19)),"") -> 0.03371204815 | AOF9: =IFERROR(FORECAST(0,AOC9:AOE9,ANZ9:AOB9),"") -> 0.03295251184
A10: =ROW(Variables[[#This Row],[Variable Name]])-ROW(Variables[[#Headers],[Variable Name]]) -> 2 | B10: Current total labor cost | C10: LoadLab | D10: =IF(COUNTA(Variables[[#This Row],[Lower Bound]], Variables[[#This Row],[Mode or P]], Variables[[#This Row],[Upper Bound]])=0, "", IF(Variables[[#This Row],[Shape]]="Constant",Variables[[#This Row],[Mode or P]],IF(Variables[[#This Row],[Shape]]="Lognorm",LOGINV(Variables[[#This Row],[Uniform PRNG]],((LN(Variables[[#This Row],[Lower Bound]]) + LN(Variables[[#This Row],[Upper Bound]]))/2),((LN(Variables[[#This Row],[Upper Bound]]) - LN(Variables[[#This Row],[Lower Bound]]))/3.28971)),IF(Variables[[#This Row],[Shape]]="Normal",NORMINV(Variables[[#This Row],[Uniform PRNG]],(Variables[[#This Row],[Upper Bound]]+Variables[[#This Row],[Lower Bound]])/2,(Variables[[#This Row],[Upper Bound]]-Variables[[#This Row],[Lower Bound]])/3.29),IF(Variables[[#This Row],[Shape]]="Uniform",(Variables[[#This Row],[Upper Bound]]-Variables[[#This Row],[Lower Bound]])*Variables[[#This Row],[Uniform PRNG]]+Variables[[#This Row],[Lower Bound]],IF(Variables[[#This Row],[Shape]]="Binary",IF(Variables[[#This Row],[Uniform PRNG]]<Variables[[#This Row],[Mode or P]],1,0),IF(Variables[[#This Row],[Shape]]="Triangular",IF(Variables[[#This Row],[Uniform PRNG]]<(Variables[[#This Row],[Mode or P]]-Variables[[#This Row],[Lower Bound]])/(Variables[[#This Row],[Upper Bound]]-Variables[[#This Row],[Lower Bound]]), 1, 0) * (Variables[[#This Row],[Lower Bound]] + SQRT(Variables[[#This Row],[Uniform PRNG]]*(Variables[[#This Row],[Upper Bound]]-Variables[[#This Row],[Lower Bound]])*(Variables[[#This Row],[Mode or P]]-Variables[[#This Row],[Lower Bound]]))) + IF(Variables[[#This Row],[Uniform PRNG]]>= (Variables[[#This Row],[Mode or P]]-Variables[[#This Row],[Lower Bound]])/(Variables[[#This Row],[Upper Bound]]-Variables[[#This Row],[Lower Bound]]), 1, 0) * (Variables[[#This Row],[Upper Bound]] - SQRT((1-Variables[[#This Row],[Uniform PRNG]]) * (Variables[[#This Row],[Upper Bound]] - Variables[[#This Row],[Lower Bound]]) * (Variables[[#This Row],[Upper Bound]] - Variables[[#This Row],[Mode or P]]))),""))))))) -> 86594.33422 | E10: Lognorm | F10: 50000 | H10: 90000 | I10: HR | J10: =IFERROR(IF(OR(MIN(Variables[[#This Row],[P(X<T)]], Variables[[#This Row],[P(X>T)]])<0.002,SIGN(Variables[[#This Row],[EOL(X<T)]])=SIGN(Variables[[#This Row],[EOL(X>T)]])),0,IFERROR(IF(B$38=1,IF(Variables[[#This Row],[EOL(X<T)]]<Variables[[#This Row],[EOL(X>T)]],-Variables[[#This Row],[EOL(X<T)]]*Variables[[#This Row],[P(X<T)]],-Variables[[#This Row],[EOL(X>T)]]*Variables[[#This Row],[P(X>T)]]),IF(Variables[[#This Row],[EOL(X<T)]]>Variables[[#This Row],[EOL(X>T)]],Variables[[#This Row],[EOL(X<T)]]*Variables[[#This Row],[P(X<T)]],Variables[[#This Row],[EOL(X>T)]]*Variables[[#This Row],[P(X>T)]])),"")),0) -> 0 | K10: =IF(Variables[[#This Row],[Shape]]="Constant",Variables[[#This Row],[Mode or P]],IF(Variables[[#This Row],[Shape]]="Lognorm",EXP((LN(Variables[[#This Row],[Upper Bound]])+LN(Variables[[#This Row],[Lower Bound]]))/2+((LN(Variables[[#This Row],[Upper Bound]])-LN(Variables[[#This Row],[Lower Bound]]))/3.29)^2/2),IF(Variables[[#This Row],[Shape]]="Normal",(Variables[[#This Row],[Lower Bound]]+Variables[[#This Row],[Upper Bound]])/2,IF(Variables[[#This Row],[Shape]]="Uniform",(Variables[[#This Row],[Lower Bound]]+Variables[[#This Row],[Upper Bound]])/2,IF(Variables[[#This Row],[Shape]]="Binary",Variables[[#This Row],[Mode or P]],IF(Variables[[#This Row],[Shape]]="Triangular",(Variables[[#This Row],[Lower Bound]]+Variables[[#This Row],[Mode or P]]+Variables[[#This Row],[Upper Bound]])/3,"")))))) -> 68161.2198 | L10: =IF(Variables[[#This Row],[Shape]]="","",(MOD((MOD(MOD(999999999999989,MOD(ScenarioNum*2499997+Variables[[#This Row],[VarID]]*1800451,7450589)*4658+7450581)*383,99991)*231109+MOD(MOD(999999999999989,MOD(ScenarioNum*2246527+Variables[[#This Row],[VarID]]*2399993,7450987)*7580+7560584)*547,231109))*43271,4294967296)+0.5)/4294967296) -> 0.9234918199 | M10: =IF(Variables[[#This Row],[Shape]]="Binary", 1-Variables[[#This Row],[Mode or P]], IF(Variables[[#This Row],[Shape]]<>"",COUNTIF(INDEX($X$9:$AMI$159, ROW(Variables[[#This Row],[Variable Name]])-ROW(Variables[[#Headers],[Variable Name]]), ),"<"&Variables[[#This Row],[Threshold Estimate]])/1000,"")) -> 0 | N10: =IF(Variables[[#This Row],[Shape]]<>"",1-Variables[[#This Row],[P(X<T)]],"") -> 1 | O10: =IFERROR(AVERAGEIFS(X$7:AMI$7,INDEX(X$9:$AMI$159, ROW(Variables[[#This Row],[Variable Name]])-ROW(Variables[[#Headers],[Variable Name]]), ),IF(Variables[[#This Row],[Shape]]="Binary","=0","<"&Variables[[#This Row],[Threshold Estimate]])),"") ->  | P10: =IFERROR(AVERAGEIFS(X$7:AMI$7,INDEX($X$9:$AMI$159, ROW(Variables[[#This Row],[Variable Name]])-ROW(Variables[[#Headers],[Variable Name]]), ),IF(Variables[[#This Row],[Shape]]="Binary","=1",">"&Variables[[#This Row],[Threshold Estimate]])),"") -> 4858.052527 | Q10: =IFERROR(IF(Variables[[#This Row],[Shape]]="Binary",IF(B$38=1,IF(Variables[[#This Row],[EOL(X<T)]]<Variables[[#This Row],[EOL(X>T)]],0,1),IF(Variables[[#This Row],[EOL(X<T)]]<Variables[[#This Row],[EOL(X>T)]],1,0)), INDEX($AOF$9:$AOF$159, ROW(Variables[[#This Row],[Variable Name]])-ROW(Variables[[#Headers],[Variable Name]]))),"") -> 35538.4294 | V10: =IFERROR(IF(ISBLANK(Variables[[#This Row],[Variable Name]]), "", Variables[[#This Row],[Variable Name]]), "") -> Current total labor cost | W10: =IFERROR(IF(ISBLANK(D10), "", D10), "") -> 86594.33422 | X10: 56478.72017 | Y10: 64905.13189 | Z10: 56093.50858 | AA10: 88101.76069 | AB10: 86541.57026 | AC10: 61737.76728 | AD10: 44031.85095 | AE10: 92534.66129 | AF10: 59487.99112 | AG10: 64685.97097 | AH10: 68313.83786 | AI10: 75084.85953 | AJ10: 70705.40674 | AK10: 76074.72364 | AL10: 52913.34802 | AM10: 64630.71538 | AN10: 81083.91553 | AO10: 72384.25001 | AP10: 45918.23733 | AQ10: 64583.76423 | AR10: 77729.87035 | AS10: 54998.05521 | AT10: 59549.66418 | AU10: 55949.28833 | AV10: 75454.69079 | AW10: 58743.91302 | AX10: 47387.52933 | AY10: 56098.9269 | AZ10: 43148.76223 | BA10: 77441.94509 | BB10: 65858.50784 | BC10: 51922.76288 | BD10: 65346.27862 | BE10: 87176.01263 | BF10: 55189.35622 | BG10: 37997.72401 | BH10: 75884.36984 | BI10: 60481.4728 | BJ10: 72211.77444 | BK10: 77560.38165 | BL10: 52120.55664 | BM10: 102463.0659 | BN10: 67587.01713 | BO10: 67186.09327 | BP10: 78078.79852 | BQ10: 65067.25303 | BR10: 80390.84841 | BS10: 66381.71035 | BT10: 58733.30431 | BU10: 83816.22475 | BV10: 78893.58192 | BW10: 68129.90876 | BX10: 77373.96652 | BY10: 75309.75284 | BZ10: 62707.49098 | CA10: 59839.05749 | CB10: 60095.16664 | CC10: 70286.96444 | CD10: 48642.08304 | CE10: 68742.51941 | CF10: 62749.68733 | CG10: 56150.57486 | CH10: 52831.23788 | CI10: 69301.4511 | CJ10: 66537.46459 | CK10: 65274.59807 | CL10: 41607.22868 | CM10: 67569.2185 | CN10: 56961.37355 | CO10: 75118.55208 | CP10: 66014.40006 | CQ10: 58172.04167 | CR10: 70253.79977 | CS10: 69487.55547 | CT10: 73759.77473 | CU10: 56497.02561 | CV10: 73145.51507 | CW10: 59135.3633 | CX10: 75525.87757 | CY10: 79199.94364 | CZ10: 48906.38331 | DA10: 76437.69697 | DB10: 63016.95184 | DC10: 64976.19823 | DD10: 66972.84475 | DE10: 110525.2914 | DF10: 61694.20402 | DG10: 78398.72777 | DH10: 71868.54695 | DI10: 59068.35852 | DJ10: 74828.17929 | DK10: 72612.03199 | DL10: 63134.08089 | DM10: 73289.99015 | DN10: 50735.06412 | DO10: 70613.2784 | DP10: 93083.68817 | DQ10: 70445.30691 | DR10: 61548.82882 | DS10: 74429.32512 | DT10: 71870.07465 | DU10: 67717.94676 | DV10: 56803.38258 | DW10: 63216.97711 | DX10: 49719.18591 | DY10: 61053.44593 | DZ10: 67036.15305 | EA10: 59279.67538 | EB10: 57311.10564 | EC10: 54581.22491 | ED10: 64601.92801 | EE10: 87642.3885 | EF10: 74496.69017 | EG10: 68390.86233 | EH10: 81201.90905 | EI10: 76191.0694 | EJ10: 57756.41871 | EK10: 75426.42965 | EL10: 50949.13015 | EM10: 62807.38399 | EN10: 82494.05558 | EO10: 90210.41249 | EP10: 55321.79891 | EQ10: 64206.26625 | ER10: 94507.8569 | ES10: 88530.21359 | ET10: 71847.19868 | EU10: 67467.89579 | EV10: 64616.79212 | EW10: 73951.49327 | EX10: 75967.80247 | EY10: 69838.38455 | EZ10: 69976.10359 | FA10: 55750.22862 | FB10: 56497.72717 | FC10: 62440.35668 | FD10: 57169.22008 | FE10: 68617.43436 | FF10: 72330.36186 | FG10: 58205.9896 | FH10: 56154.72809 | FI10: 68907.79587 | FJ10: 56392.96179 | FK10: 59587.77073 | FL10: 82562.63044 | FM10: 79861.75493 | FN10: 72675.00713 | FO10: 61095.85849 | FP10: 60531.36095 | FQ10: 80492.52764 | FR10: 64914.37114 | FS10: 86154.39394 | FT10: 66625.10649 | FU10: 59610.87794 | FV10: 68740.63167 | FW10: 42406.91839 | FX10: 43570.73286 | FY10: 67520.41571 | FZ10: 73899.78199 | GA10: 66578.11937 | GB10: 63333.20936 | GC10: 71292.45983 | GD10: 70389.55693 | GE10: 55037.02922 | GF10: 54700.17181 | GG10: 52656.23099 | GH10: 67508.17029 | GI10: 100256.9087 | GJ10: 78822.50897 | GK10: 64192.88841 | GL10: 59284.8656 | GM10: 67062.97678 | GN10: 58775.64612 | GO10: 66801.51019 | GP10: 57362.39044 | GQ10: 80909.63351 | GR10: 62273.10632 | GS10: 73765.39985 | GT10: 60482.23634 | GU10: 80840.36879 | GV10: 100052.5829 | GW10: 69879.43311 | GX10: 78783.8113 | GY10: 69607.68608 | GZ10: 80009.48505 | HA10: 58311.1717 | HB10: 60455.53277 | HC10: 56771.14173 | HD10: 66883.93566 | HE10: 48356.88247 | HF10: 56257.39432 | HG10: 51370.19784 | HH10: 84574.48538 | HI10: 62586.05637 | HJ10: 80357.64668 | HK10: 59765.75321 | HL10: 60868.86042 | HM10: 76132.17331 | HN10: 56693.93831 | HO10: 64236.19919 | HP10: 66992.36659 | HQ10: 63379.86985 | HR10: 86352.51397 | HS10: 72635.43413 | HT10: 82838.03475 | HU10: 56134.50561 | HV10: 61497.85527 | HW10: 71143.62563 | HX10: 68866.2213 | HY10: 61110.96995 | HZ10: 74629.54095 | IA10: 71596.62031 | IB10: 54567.67583 | IC10: 58673.08942 | ID10: 59947.98064 | IE10: 72838.2436 | IF10: 79515.86794 | IG10: 73883.99516 | IH10: 57416.81409 | II10: 73961.30833 | IJ10: 64587.42625 | IK10: 52139.73357 | IL10: 59590.38604 | IM10: 69858.9183 | IN10: 71513.70351 | IO10: 54066.86655 | IP10: 59220.38533 | IQ10: 69150.73861 | IR10: 79229.40863 | IS10: 48632.76944 | IT10: 86784.68628 | IU10: 70781.66421 | IV10: 94514.98951 | IW10: 70816.92505 | IX10: 68437.43478 | IY10: 69930.1454 | IZ10: 53825.01307 | JA10: 64986.6845 | JB10: 64041.44916 | JC10: 85299.89196 | JD10: 63922.4144 | JE10: 76415.11596 | JF10: 76419.74765 | JG10: 63363.64695 | JH10: 77860.98243 | JI10: 46552.0907 | JJ10: 78161.59835 | JK10: 72824.11865 | JL10: 73427.42727 | JM10: 58684.18077 | JN10: 51042.97167 | JO10: 73486.87459 | JP10: 78148.50786 | JQ10: 54107.35815 | JR10: 61072.14743 | JS10: 72686.60074 | JT10: 70937.86411 | JU10: 72708.42967 | JV10: 53077.11656 | JW10: 78177.39159 | JX10: 75387.62451 | JY10: 60083.50573 | JZ10: 51076.83084 | KA10: 68829.13318 | KB10: 69071.26638 | KC10: 52490.51573 | KD10: 79816.6695 | KE10: 109530.5859 | KF10: 84978.2853 | KG10: 54468.40606 | KH10: 61021.98787 | KI10: 79100.03015 | KJ10: 64224.79776 | KK10: 76713.96534 | KL10: 66847.374 | KM10: 77066.93346 | KN10: 61223.2377 | KO10: 63359.46924 | KP10: 58440.37793 | KQ10: 68820.08426 | KR10: 60842.0086 | KS10: 66816.88774 | KT10: 63655.97868 | KU10: 52592.06171 | KV10: 87284.74637 | KW10: 59024.62651 | KX10: 73357.85859 | KY10: 82150.99098 | KZ10: 78690.45205 | LA10: 57136.44052 | LB10: 59281.03499 | LC10: 54602.35939 | LD10: 80976.21926 | LE10: 69529.66573 | LF10: 81706.97477 | LG10: 62511.78176 | LH10: 71457.06311 | LI10: 88087.4659 | LJ10: 66359.82472 | LK10: 67963.95317 | LL10: 72158.82506 | LM10: 106468.789 | LN10: 62971.49936 | LO10: 68300.24613 | LP10: 62746.39193 | LQ10: 66612.22175 | LR10: 57496.12176 | LS10: 52896.77932 | LT10: 65556.28975 | LU10: 70466.65861 | LV10: 90735.87586 | LW10: 81020.93575 | LX10: 67354.49602 | LY10: 99637.56016 | LZ10: 56633.02071 | MA10: 67950.73324 | MB10: 84409.08529 | MC10: 81467.9081 | MD10: 46814.1663 | ME10: 52631.42572 | MF10: 73706.16159 | MG10: 62536.54036 | MH10: 62921.04359 | MI10: 87863.47856 | MJ10: 60618.56899 | MK10: 68033.95568 | ML10: 65397.6427 | MM10: 62488.10464 | MN10: 67529.9931 | MO10: 66909.65499 | MP10: 75283.52722 | MQ10: 76034.67981 | MR10: 54693.20993 | MS10: 65876.48578 | MT10: 77756.38272 | MU10: 71039.94337 | MV10: 61372.10427 | MW10: 63521.98384 | MX10: 67517.12818 | MY10: 86594.33422 | MZ10: 61598.50401 | NA10: 80111.16252 | NB10: 69244.54325 | NC10: 59341.68913 | ND10: 72063.4637 | NE10: 69825.67619 | NF10: 74905.94412 | NG10: 66220.15337 | NH10: 72639.13083 | NI10: 92479.497 | NJ10: 59936.44267 | NK10: 60006.20371 | NL10: 83621.86368 | NM10: 81121.00687 | NN10: 67802.98221 | NO10: 56887.69683 | NP10: 53538.25859 | NQ10: 80648.36239 | NR10: 56891.1432 | NS10: 53033.54795 | NT10: 62817.15333 | NU10: 63333.96959 | NV10: 73931.65482 | NW10: 57368.34449 | NX10: 68009.75019 | NY10: 79525.84682 | NZ10: 60064.70912 | OA10: 75295.79903 | OB10: 73011.43421 | OC10: 98105.20219 | OD10: 59494.53725 | OE10: 105165.9338 | OF10: 52138.01718 | OG10: 97357.23903 | OH10: 73386.8901 | OI10: 88673.97404 | OJ10: 98652.74954 | OK10: 64257.44597 | OL10: 71934.90079 | OM10: 70221.35037 | ON10: 56613.6543 | OO10: 75872.01214 | OP10: 58436.75674 | OQ10: 79241.27578 | OR10: 73156.4842 | OS10: 61915.90648 | OT10: 76652.37027 | OU10: 59994.91034 | OV10: 68002.05699 | OW10: 86524.89728 | OX10: 79064.10991 | OY10: 44716.96919 | OZ10: 72304.53329 | PA10: 75804.86519 | PB10: 82795.3054 | PC10: 55755.56495 | PD10: 81479.7251 | PE10: 65946.21339 | PF10: 65670.61221 | PG10: 60698.90931 | PH10: 87393.98118 | PI10: 88629.30802 | PJ10: 59564.88572 | PK10: 74463.60239 | PL10: 85736.46827 | PM10: 54874.76247 | PN10: 66733.61189 | PO10: 68805.99578 | PP10: 81410.49006 | PQ10: 84234.98594 | PR10: 76039.28596 | PS10: 68641.91162 | PT10: 59364.0442 | PU10: 77024.24131 | PV10: 66406.57049 | PW10: 62016.62184 | PX10: 75178.71963 | PY10: 68984.02767 | PZ10: 71620.46353 | QA10: 55585.86771 | QB10: 57706.23794 | QC10: 99117.28622 | QD10: 56990.13053 | QE10: 58954.18085 | QF10: 71170.97494 | QG10: 69641.39218 | QH10: 90532.34947 | QI10: 71981.39461 | QJ10: 70024.92611 | QK10: 60164.58641 | QL10: 64088.29848 | QM10: 91149.86721 | QN10: 85669.65862 | QO10: 70009.64406 | QP10: 82558.88269 | QQ10: 71791.26676 | QR10: 68745.47642 | QS10: 53935.77164 | QT10: 52355.86435 | QU10: 52910.91112 | QV10: 58661.36325 | QW10: 87025.30286 | QX10: 81597.23851 | QY10: 65884.11532 | QZ10: 59044.60054 | RA10: 72812.49952 | RB10: 59549.17846 | RC10: 96075.67181 | RD10: 80257.22102 | RE10: 54605.9209 | RF10: 75018.07084 | RG10: 52853.48877 | RH10: 61031.56019 | RI10: 46070.80686 | RJ10: 84201.75426 | RK10: 79537.07401 | RL10: 72265.86298 | RM10: 72540.38511 | RN10: 59397.96182 | RO10: 75917.33605 | RP10: 62303.95602 | RQ10: 59612.04889 | RR10: 69236.52125 | RS10: 49000.6795 | RT10: 54386.97579 | RU10: 59375.18203 | RV10: 53026.17177 | RW10: 53758.75217 | RX10: 65314.04705 | RY10: 62994.62293 | RZ10: 50502.34083 | SA10: 94865.60396 | SB10: 53187.10613 | SC10: 76475.07229 | SD10: 67819.13687 | SE10: 92803.24258 | SF10: 76741.42102 | SG10: 71244.90882 | SH10: 93388.48094 | SI10: 74887.71733 | SJ10: 61288.20144 | SK10: 93976.54445 | SL10: 52132.05331 | SM10: 67869.87981 | SN10: 80427.95928 | SO10: 75921.34122 | SP10: 53094.83894 | SQ10: 59013.80941 | SR10: 58177.69447 | SS10: 80110.35085 | ST10: 60475.8042 | SU10: 71050.0514 | SV10: 72180.57163 | SW10: 84312.89573 | SX10: 49584.53886 | SY10: 56766.66488 | SZ10: 89327.92195 | TA10: 55735.93789 | TB10: 57689.11842 | TC10: 64684.34287 | TD10: 61999.41202 | TE10: 66134.85693 | TF10: 59179.12128 | TG10: 54873.63076 | TH10: 65818.06119 | TI10: 63514.26765 | TJ10: 67106.91438 | TK10: 94277.19357 | TL10: 73871.53957 | TM10: 64429.8223 | TN10: 52418.98213 | TO10: 76374.78723 | TP10: 57703.18996 | TQ10: 75566.10838 | TR10: 54152.51007 | TS10: 94332.47217 | TT10: 76704.78223 | TU10: 91512.33098 | TV10: 69642.63113 | TW10: 55083.26148 | TX10: 85754.49714 | TY10: 82521.23683 | TZ10: 61245.84765 | UA10: 66964.43059 | UB10: 58437.97148 | UC10: 98442.53258 | UD10: 69357.53269 | UE10: 60393.50167 | UF10: 72859.15078 | UG10: 64002.36076 | UH10: 73526.10089 | UI10: 40231.22043 | UJ10: 78450.51475 | UK10: 71910.32806 | UL10: 67228.53104 | UM10: 88309.68596 | UN10: 51628.80284 | UO10: 52773.44741 | UP10: 53353.78763 | UQ10: 87372.49506 | UR10: 56717.48509 | US10: 77168.52753 | UT10: 80119.77446 | UU10: 72063.87326 | UV10: 73924.75499 | UW10: 54028.23353 | UX10: 61367.87422 | UY10: 72305.98195 | UZ10: 68951.12165 | VA10: 70376.29915 | VB10: 71731.42806 | VC10: 96154.92542 | VD10: 68985.03095 | VE10: 87850.33245 | VF10: 58217.81953 | VG10: 71810.79221 | VH10: 80357.26097 | VI10: 55992.42732 | VJ10: 55494.9849 | VK10: 71858.34418 | VL10: 59932.89618 | VM10: 70747.60927 | VN10: 65187.74585 | VO10: 53788.72797 | VP10: 87105.47696 | VQ10: 73507.76104 | VR10: 58979.03929 | VS10: 57425.16769 | VT10: 50382.3137 | VU10: 70151.04019 | VV10: 58941.04043 | VW10: 62393.86016 | VX10: 68075.24811 | VY10: 74718.35322 | VZ10: 60193.21303 | WA10: 77384.94854 | WB10: 88066.56864 | WC10: 69683.94153 | WD10: 66329.74133 | WE10: 88916.65377 | WF10: 63278.38276 | WG10: 66360.63554 | WH10: 72424.27329 | WI10: 67769.86364 | WJ10: 67312.83531 | WK10: 66099.74805 | WL10: 64490.66176 | WM10: 58602.00032 | WN10: 74997.4377 | WO10: 67805.331 | WP10: 74110.74246 | WQ10: 61939.85822 | WR10: 66034.57939 | WS10: 68299.22215 | WT10: 82010.19722 | WU10: 59697.33827 | WV10: 65268.40386 | WW10: 71723.69266 | WX10: 66740.00593 | WY10: 51029.61944 | WZ10: 77954.10986 | XA10: 76088.49082 | XB10: 81092.92902 | XC10: 78672.0978 | XD10: 86452.59794 | XE10: 53537.18815 | XF10: 73024.17713 | XG10: 64285.78539 | XH10: 73634.13832 | XI10: 75645.45511 | XJ10: 77412.11276 | XK10: 53839.00325 | XL10: 61679.34869 | XM10: 63885.4701 | XN10: 71592.37419 | XO10: 55866.56772 | XP10: 65184.33133 | XQ10: 61943.83369 | XR10: 88229.75365 | XS10: 70331.37233 | XT10: 87861.96575 | XU10: 89365.44879 | XV10: 72966.3602 | XW10: 62493.11651 | XX10: 60036.82801 | XY10: 88376.81963 | XZ10: 53924.23195 | YA10: 51725.13233 | YB10: 78595.14331 | YC10: 80963.35857 | YD10: 72704.6567 | YE10: 76999.6646 | YF10: 63686.31949 | YG10: 58460.13627 | YH10: 58702.77148 | YI10: 57481.81964 | YJ10: 65192.31072 | YK10: 76232.84987 | YL10: 62415.37327 | YM10: 69117.96794 | YN10: 66254.83487 | YO10: 63051.33321 | YP10: 71891.26704 | YQ10: 83106.5494 | YR10: 54402.53797 | YS10: 97441.29364 | YT10: 77923.3015 | YU10: 73867.41764 | YV10: 69723.0339 | YW10: 59785.28223 | YX10: 85736.17282 | YY10: 60933.92263 | YZ10: 60361.78394 | ZA10: 54292.18904 | ZB10: 72173.68606 | ZC10: 47002.83788 | ZD10: 59143.6015 | ZE10: 56622.43227 | ZF10: 60311.77924 | ZG10: 61268.39077 | ZH10: 68322.67035 | ZI10: 57935.18561 | ZJ10: 63217.83702 | ZK10: 63635.9913 | ZL10: 58693.73878 | ZM10: 65843.6932 | ZN10: 87491.43084 | ZO10: 59976.75751 | ZP10: 80014.12084 | ZQ10: 64068.0949 | ZR10: 74563.70184 | ZS10: 70302.82899 | ZT10: 63711.5247 | ZU10: 86258.78444 | ZV10: 59456.40043 | ZW10: 64298.85887 | ZX10: 69116.72735 | ZY10: 63497.61918 | ZZ10: 46850.08166 | AAA10: 61704.74999 | AAB10: 74236.29572 | AAC10: 76483.93317 | AAD10: 88711.97201 | AAE10: 58774.53853 | AAF10: 65985.83428 | AAG10: 53489.80254 | AAH10: 74284.27077 | AAI10: 82081.92847 | AAJ10: 73229.62034 | AAK10: 60909.22519 | AAL10: 67936.7129 | AAM10: 67832.60224 | AAN10: 77446.81383 | AAO10: 66050.16181 | AAP10: 61829.35236 | AAQ10: 77189.4753 | AAR10: 68792.42171 | AAS10: 87383.73203 | AAT10: 63260.95284 | AAU10: 55384.10447 | AAV10: 76397.78196 | AAW10: 73911.95627 | AAX10: 76484.01733 | AAY10: 61537.25423 | AAZ10: 87089.75735 | ABA10: 64259.48165 | ABB10: 68157.91971 | ABC10: 68538.71561 | ABD10: 57503.78868 | ABE10: 78674.19005 | ABF10: 51974.77016 | ABG10: 56670.62592 | ABH10: 65125.40712 | ABI10: 74855.11489 | ABJ10: 60085.1694 | ABK10: 71524.47129 | ABL10: 60619.57374 | ABM10: 60078.20969 | ABN10: 70774.52889 | ABO10: 71354.77468 | ABP10: 59858.82729 | ABQ10: 64875.02568 | ABR10: 64510.55955 | ABS10: 97312.69291 | ABT10: 74464.47074 | ABU10: 45259.13003 | ABV10: 57756.19286 | ABW10: 52316.25415 | ABX10: 72994.87316 | ABY10: 55973.47814 | ABZ10: 98163.90709 | ACA10: 88563.88449 | ACB10: 66261.9206 | ACC10: 52532.03101 | ACD10: 64547.92347 | ACE10: 69125.44468 | ACF10: 50412.07444 | ACG10: 54180.17222 | ACH10: 62516.69107 | ACI10: 67628.3285 | ACJ10: 70245.7096 | ACK10: 75638.2945 | ACL10: 77183.11312 | ACM10: 71497.83031 | ACN10: 46675.14649 | ACO10: 53000.40912 | ACP10: 66841.71366 | ACQ10: 77185.28594 | ACR10: 45984.78741 | ACS10: 75705.83708 | ACT10: 71633.70359 | ACU10: 66433.32474 | ACV10: 73773.56983 | ACW10: 54980.62089 | ACX10: 78595.68702 | ACY10: 94207.22104 | ACZ10: 61209.6599 | ADA10: 71931.62629 | ADB10: 59845.02876 | ADC10: 68913.79123 | ADD10: 91795.94581 | ADE10: 57524.48126 | ADF10: 58456.34304 | ADG10: 72073.1108 | ADH10: 60449.61844 | ADI10: 42638.57611 | ADJ10: 56662.99801 | ADK10: 54859.72438 | ADL10: 106306.0834 | ADM10: 57474.09496 | ADN10: 78176.13048 | ADO10: 96987.85266 | ADP10: 65007.71645 | ADQ10: 79537.88292 | ADR10: 81534.19979 | ADS10: 67915.00589 | ADT10: 53583.44209 | ADU10: 55607.31665 | ADV10: 80897.81167 | ADW10: 91644.52116 | ADX10: 67466.02686 | ADY10: 54474.54886 | ADZ10: 56204.35867 | AEA10: 61998.89928 | AEB10: 66760.26741 | AEC10: 80261.09335 | AED10: 76293.51714 | AEE10: 59579.60877 | AEF10: 70674.71716 | AEG10: 59154.46143 | AEH10: 73118.84359 | AEI10: 63005.55215 | AEJ10: 55446.06745 | AEK10: 66902.25776 | AEL10: 63013.88758 | AEM10: 62421.99037 | AEN10: 79967.34007 | AEO10: 81924.98154 | AEP10: 74093.88657 | AEQ10: 84167.67037 | AER10: 57373.35635 | AES10: 64224.86691 | AET10: 66473.87866 | AEU10: 67100.3746 | AEV10: 72546.62504 | AEW10: 75595.99127 | AEX10: 50317.4234 | AEY10: 74857.90829 | AEZ10: 65682.33411 | AFA10: 72223.07285 | AFB10: 62318.50491 | AFC10: 133383.6119 | AFD10: 61946.17627 | AFE10: 72660.02777 | AFF10: 60027.04824 | AFG10: 57918.1029 | AFH10: 71758.11022 | AFI10: 86267.03908 | AFJ10: 62680.91399 | AFK10: 100161.8295 | AFL10: 52908.08929 | AFM10: 65873.54834 | AFN10: 67058.99649 | AFO10: 62753.54717 | AFP10: 67276.87618 | AFQ10: 62963.53847 | AFR10: 55449.11755 | AFS10: 83577.72111 | AFT10: 79255.46171 | AFU10: 77508.58035 | AFV10: 82600.85385 | AFW10: 53469.17761 | AFX10: 68766.36536 | AFY10: 50318.07665 | AFZ10: 61758.23039 | AGA10: 54830.85712 | AGB10: 59074.60519 | AGC10: 59629.23589 | AGD10: 63478.34993 | AGE10: 69409.60682 | AGF10: 75400.84821 | AGG10: 67014.89897 | AGH10: 71559.47858 | AGI10: 87737.82549 | AGJ10: 76594.59169 | AGK10: 64524.51972 | AGL10: 74389.50994 | AGM10: 64687.50862 | AGN10: 57486.59983 | AGO10: 56366.27103 | AGP10: 79333.81799 | AGQ10: 94770.24624 | AGR10: 66151.16911 | AGS10: 82611.8149 | AGT10: 83521.53317 | AGU10: 78534.97018 | AGV10: 54431.05404 | AGW10: 72002.30691 | AGX10: 82267.39072 | AGY10: 102050.2076 | AGZ10: 71269.65786 | AHA10: 52782.27091 | AHB10: 74560.23791 | AHC10: 68307.88546 | AHD10: 50555.88769 | AHE10: 70507.57625 | AHF10: 62017.56562 | AHG10: 61811.01018 | AHH10: 61316.55918 | AHI10: 70737.31156 | AHJ10: 75329.18029 | AHK10: 64484.66579 | AHL10: 79138.41256 | AHM10: 72364.96735 | AHN10: 56253.10732 | AHO10: 83273.58098 | AHP10: 72995.90469 | AHQ10: 56957.40065 | AHR10: 79216.60166 | AHS10: 66680.28182 | AHT10: 66559.30007 | AHU10: 53745.49132 | AHV10: 90614.49747 | AHW10: 54081.9683 | AHX10: 59637.1931 | AHY10: 75519.03927 | AHZ10: 57363.93792 | AIA10: 48839.10717 | AIB10: 97679.10229 | AIC10: 43162.62364 | AID10: 67389.07176 | AIE10: 62674.39665 | AIF10: 65167.73215 | AIG10: 78322.42204 | AIH10: 62163.67404 | AII10: 60339.68819 | AIJ10: 65340.27765 | AIK10: 75156.35858 | AIL10: 99344.35798 | AIM10: 75133.79509 | AIN10: 60858.43373 | AIO10: 63335.3521 | AIP10: 66138.37888 | AIQ10: 61073.50125 | AIR10: 50967.06708 | AIS10: 67036.66121 | AIT10: 50734.86179 | AIU10: 69188.73231 | AIV10: 117612.9488 | AIW10: 59605.41985 | AIX10: 77639.48296 | AIY10: 70326.00417 | AIZ10: 51773.12589 | AJA10: 59021.23023 | AJB10: 73398.21179 | AJC10: 79497.4347 | AJD10: 64598.58045 | AJE10: 104117.8099 | AJF10: 44359.50743 | AJG10: 69275.42716 | AJH10: 70884.91435 | AJI10: 61786.40668 | AJJ10: 58410.61398 | AJK10: 75512.60301 | AJL10: 72189.57942 | AJM10: 67574.77552 | AJN10: 54882.88051 | AJO10: 73415.52955 | AJP10: 71287.73909 | AJQ10: 74703.54393 | AJR10: 40803.04791 | AJS10: 64700.1535 | AJT10: 80489.70767 | AJU10: 81741.62355 | AJV10: 58554.6441 | AJW10: 65613.65257 | AJX10: 54688.79472 | AJY10: 73044.49407 | AJZ10: 73338.36602 | AKA10: 72708.06121 | AKB10: 71543.351 | AKC10: 60905.1045 | AKD10: 76902.91186 | AKE10: 89451.50758 | AKF10: 70701.30347 | AKG10: 50420.89471 | AKH10: 67546.85445 | AKI10: 59812.22513 | AKJ10: 81149.63153 | AKK10: 55283.24927 | AKL10: 54316.15609 | AKM10: 65840.48554 | AKN10: 63121.34483 | AKO10: 74436.07768 | AKP10: 69592.55102 | AKQ10: 87957.9821 | AKR10: 89857.20682 | AKS10: 91379.96993 | AKT10: 75310.15706 | AKU10: 57404.65325 | AKV10: 67929.37531 | AKW10: 85320.71991 | AKX10: 59784.51926 | AKY10: 84518.9247 | AKZ10: 72718.01603 | ALA10: 66604.58764 | ALB10: 61131.7974 | ALC10: 82770.89235 | ALD10: 63361.43073 | ALE10: 58658.97752 | ALF10: 54904.03314 | ALG10: 58161.86893 | ALH10: 73721.04148 | ALI10: 73780.74081 | ALJ10: 60994.33307 | ALK10: 58376.00639 | ALL10: 69066.7683 | ALM10: 63663.00259 | ALN10: 57202.11344 | ALO10: 99402.76216 | ALP10: 61336.12218 | ALQ10: 71571.61343 | ALR10: 59598.38553 | ALS10: 63133.97386 | ALT10: 71446.5319 | ALU10: 70267.26984 | ALV10: 62411.65433 | ALW10: 91259.7541 | ALX10: 74219.15294 | ALY10: 90614.74011 | ALZ10: 49581.80804 | AMA10: 91494.71564 | AMB10: 59322.07421 | AMC10: 65892.16293 | AMD10: 52028.99984 | AME10: 72715.77823 | AMF10: 63450.5781 | AMG10: 63885.12612 | AMH10: 47375.83193 | AMI10: 68490.41855 | AML10: =IFERROR(AVERAGEIFS($X10:$AMI10,$X10:$AMI10,"<"&SMALL($X10:$AMI10,AMM$7),$X10:$AMI10,">"&SMALL($X10:$AMI10,AMK$7)),"") -> 50430.7174 | AMM10: 54232.84115 | AMN10: 56377.48333 | AMO10: 58251.56292 | AMP10: 59701.94019 | AMQ10: 61097.18116 | AMR10: 62663.66581 | AMS10: 64250.95909 | AMT10: 65858.32077 | AMU10: 67365.27271 | AMV10: 68895.33279 | AMW10: 70598.84177 | AMX10: 72166.35744 | AMY10: 73690.66485 | AMZ10: 75463.26711 | ANA10: 77683.66328 | ANB10: 80563.99358 | ANC10: 84836.14225 | AND10: =IFERROR(AVERAGEIFS($X10:$AMI10,$X10:$AMI10,"<"&SMALL($X10:$AMI10,ANE$7),$X10:$AMI10,">"&SMALL($X10:$AMI10,ANC$7)),"") -> 92476.13551 | ANF10: =IFERROR(AVERAGEIFS($X$7:$AMI$7,$X10:$AMI10,"<"&SMALL($X10:$AMI10,AMM$7),$X10:$AMI10,">"&SMALL($X10:$AMI10,AMK$7)),"") -> 1899.146411 | ANG10: 2281.386007 | ANH10: 2646.552943 | ANI10: 2308.868232 | ANJ10: 2303.229837 | ANK10: 3580.345656 | ANL10: 3401.876964 | ANM10: 2911.659321 | ANN10: 3246.378674 | ANO10: 3703.383507 | ANP10: 4770.112458 | ANQ10: 6029.359858 | ANR10: 6583.611372 | ANS10: 6651.690697 | ANT10: 6932.283724 | ANU10: 7031.142902 | ANV10: 7412.117158 | ANW10: 7634.280146 | ANX10: 9646.272329 | ANY10: =IFERROR(MATCH(MIN(ABS(ANF10:ANX10)),ABS(ANF10:ANX10),0),"") -> 1 | ANZ10: =IFERROR(INDEX(ANF10:ANX10,MIN(MAX(ANY10-1,1),17)),"") -> 1899.146411 | AOA10: =IFERROR(INDEX(ANF10:ANX10,MIN(MAX(ANY10,2),18)),"") -> 2281.386007 | AOB10: =IFERROR(INDEX(ANF10:ANX10,MIN(MAX(ANY10,3),19)),"") -> 2646.552943 | AOC10: =IFERROR(INDEX(AML10:AND10,MIN(MAX(ANY10-1,1),17)),"") -> 50430.7174 | AOD10: =IFERROR(INDEX(AML10:AND10,MIN(MAX(ANY10,2),18)),"") -> 54232.84115 | AOE10: =IFERROR(INDEX(AML10:AND10,MIN(MAX(ANY10,3),19)),"") -> 56377.48333 | AOF10: 35538.4294
A11: =ROW(Variables[[#This Row],[Variable Name]])-ROW(Variables[[#Headers],[Variable Name]]) -> 3 | B11: Initial development costs (2020) | C11: DevC | D11: =IF(COUNTA(Variables[[#This Row],[Lower Bound]], Variables[[#This Row],[Mode or P]], Variables[[#This Row],[Upper Bound]])=0, "", IF(Variables[[#This Row],[Shape]]="Constant",Variables[[#This Row],[Mode or P]],IF(Variables[[#This Row],[Shape]]="Lognorm",LOGINV(Variables[[#This Row],[Uniform PRNG]],((LN(Variables[[#This Row],[Lower Bound]]) + LN(Variables[[#This Row],[Upper Bound]]))/2),((LN(Variables[[#This Row],[Upper Bound]]) - LN(Variables[[#This Row],[Lower Bound]]))/3.28971)),IF(Variables[[#This Row],[Shape]]="Normal",NORMINV(Variables[[#This Row],[Uniform PRNG]],(Variables[[#This Row],[Upper Bound]]+Variables[[#This Row],[Lower Bound]])/2,(Variables[[#This Row],[Upper Bound]]-Variables[[#This Row],[Lower Bound]])/3.29),IF(Variables[[#This Row],[Shape]]="Uniform",(Variables[[#This Row],[Upper Bound]]-Variables[[#This Row],[Lower Bound]])*Variables[[#This Row],[Uniform PRNG]]+Variables[[#This Row],[Lower Bound]],IF(Variables[[#This Row],[Shape]]="Binary",IF(Variables[[#This Row],[Uniform PRNG]]<Variables[[#This Row],[Mode or P]],1,0),IF(Variables[[#This Row],[Shape]]="Triangular",IF(Variables[[#This Row],[Uniform PRNG]]<(Variables[[#This Row],[Mode or P]]-Variables[[#This Row],[Lower Bound]])/(Variables[[#This Row],[Upper Bound]]-Variables[[#This Row],[Lower Bound]]), 1, 0) * (Variables[[#This Row],[Lower Bound]] + SQRT(Variables[[#This Row],[Uniform PRNG]]*(Variables[[#This Row],[Upper Bound]]-Variables[[#This Row],[Lower Bound]])*(Variables[[#This Row],[Mode or P]]-Variables[[#This Row],[Lower Bound]]))) + IF(Variables[[#This Row],[Uniform PRNG]]>= (Variables[[#This Row],[Mode or P]]-Variables[[#This Row],[Lower Bound]])/(Variables[[#This Row],[Upper Bound]]-Variables[[#This Row],[Lower Bound]]), 1, 0) * (Variables[[#This Row],[Upper Bound]] - SQRT((1-Variables[[#This Row],[Uniform PRNG]]) * (Variables[[#This Row],[Upper Bound]] - Variables[[#This Row],[Lower Bound]]) * (Variables[[#This Row],[Upper Bound]] - Variables[[#This Row],[Mode or P]]))),""))))))) -> 5998.944049 | E11: Lognorm | F11: 5000 | H11: 15000 | I11: CE, PM 2/15/2019 | J11: =IFERROR(IF(OR(MIN(Variables[[#This Row],[P(X<T)]], Variables[[#This Row],[P(X>T)]])<0.002,SIGN(Variables[[#This Row],[EOL(X<T)]])=SIGN(Variables[[#This Row],[EOL(X>T)]])),0,IFERROR(IF(B$38=1,IF(Variables[[#This Row],[EOL(X<T)]]<Variables[[#This Row],[EOL(X>T)]],-Variables[[#This Row],[EOL(X<T)]]*Variables[[#This Row],[P(X<T)]],-Variables[[#This Row],[EOL(X>T)]]*Variables[[#This Row],[P(X>T)]]),IF(Variables[[#This Row],[EOL(X<T)]]>Variables[[#This Row],[EOL(X>T)]],Variables[[#This Row],[EOL(X<T)]]*Variables[[#This Row],[P(X<T)]],Variables[[#This Row],[EOL(X>T)]]*Variables[[#This Row],[P(X>T)]])),"")),0) -> 111.7984918 | K11: =IF(Variables[[#This Row],[Shape]]="Constant",Variables[[#This Row],[Mode or P]],IF(Variables[[#This Row],[Shape]]="Lognorm",EXP((LN(Variables[[#This Row],[Upper Bound]])+LN(Variables[[#This Row],[Lower Bound]]))/2+((LN(Variables[[#This Row],[Upper Bound]])-LN(Variables[[#This Row],[Lower Bound]]))/3.29)^2/2),IF(Variables[[#This Row],[Shape]]="Normal",(Variables[[#This Row],[Lower Bound]]+Variables[[#This Row],[Upper Bound]])/2,IF(Variables[[#This Row],[Shape]]="Uniform",(Variables[[#This Row],[Lower Bound]]+Variables[[#This Row],[Upper Bound]])/2,IF(Variables[[#This Row],[Shape]]="Binary",Variables[[#This Row],[Mode or P]],IF(Variables[[#This Row],[Shape]]="Triangular",(Variables[[#This Row],[Lower Bound]]+Variables[[#This Row],[Mode or P]]+Variables[[#This Row],[Upper Bound]])/3,"")))))) -> 9156.801276 | L11: =IF(Variables[[#This Row],[Shape]]="","",(MOD((MOD(MOD(999999999999989,MOD(ScenarioNum*2499997+Variables[[#This Row],[VarID]]*1800451,7450589)*4658+7450581)*383,99991)*231109+MOD(MOD(999999999999989,MOD(ScenarioNum*2246527+Variables[[#This Row],[VarID]]*2399993,7450987)*7580+7560584)*547,231109))*43271,4294967296)+0.5)/4294967296) -> 0.1357893684 | M11: =IF(Variables[[#This Row],[Shape]]="Binary", 1-Variables[[#This Row],[Mode or P]], IF(Variables[[#This Row],[Shape]]<>"",COUNTIF(INDEX($X$9:$AMI$159, ROW(Variables[[#This Row],[Variable Name]])-ROW(Variables[[#Headers],[Variable Name]]), ),"<"&Variables[[#This Row],[Threshold Estimate]])/1000,"")) -> 0.95 | N11: =IF(Variables[[#This Row],[Shape]]<>"",1-Variables[[#This Row],[P(X<T)]],"") -> 0.05 | O11: =IFERROR(AVERAGEIFS(X$7:AMI$7,INDEX(X$9:$AMI$159, ROW(Variables[[#This Row],[Variable Name]])-ROW(Variables[[#Headers],[Variable Name]]), ),IF(Variables[[#This Row],[Shape]]="Binary","=0","<"&Variables[[#This Row],[Threshold Estimate]])),"") -> 5231.422125 | P11: =IFERROR(AVERAGEIFS(X$7:AMI$7,INDEX($X$9:$AMI$159, ROW(Variables[[#This Row],[Variable Name]])-ROW(Variables[[#Headers],[Variable Name]]), ),IF(Variables[[#This Row],[Shape]]="Binary","=1",">"&Variables[[#This Row],[Threshold Estimate]])),"") -> -2235.969835 | Q11: =IFERROR(IF(Variables[[#This Row],[Shape]]="Binary",IF(B$38=1,IF(Variables[[#This Row],[EOL(X<T)]]<Variables[[#This Row],[EOL(X>T)]],0,1),IF(Variables[[#This Row],[EOL(X<T)]]<Variables[[#This Row],[EOL(X>T)]],1,0)), INDEX($AOF$9:$AOF$159, ROW(Variables[[#This Row],[Variable Name]])-ROW(Variables[[#Headers],[Variable Name]]))),"") -> 15102.28182 | V11: =IFERROR(IF(ISBLANK(Variables[[#This Row],[Variable Name]]), "", Variables[[#This Row],[Variable Name]]), "") -> Initial development costs (2020) | W11: =IFERROR(IF(ISBLANK(D11), "", D11), "") -> 5998.944049 | X11: 6210.009759 | Y11: 8988.734061 | Z11: 12967.80336 | AA11: 7779.829055 | AB11: 6881.263845 | AC11: 7811.790769 | AD11: 5090.360564 | AE11: 13177.38843 | AF11: 15510.34562 | AG11: 4601.400298 | AH11: 10577.48633 | AI11: 5316.381751 | AJ11: 9019.101121 | AK11: 10021.9795 | AL11: 11325.35273 | AM11: 5665.411452 | AN11: 7098.474485 | AO11: 8558.041073 | AP11: 11870.67153 | AQ11: 8567.711535 | AR11: 9796.239596 | AS11: 10515.89943 | AT11: 7321.678603 | AU11: 9519.937559 | AV11: 8077.901761 | AW11: 6477.5053 | AX11: 6396.542718 | AY11: 10878.34143 | AZ11: 12405.13604 | BA11: 11422.64436 | BB11: 7304.529239 | BC11: 11371.9062 | BD11: 7699.00339 | BE11: 6446.74905 | BF11: 14982.61541 | BG11: 11402.2357 | BH11: 6093.679743 | BI11: 13072.38913 | BJ11: 10238.39794 | BK11: 18122.54306 | BL11: 4260.607437 | BM11: 8694.192156 | BN11: 17345.08136 | BO11: 14568.18681 | BP11: 11582.74625 | BQ11: 6522.057435 | BR11: 4055.52795 | BS11: 10661.64115 | BT11: 13430.25021 | BU11: 6005.123296 | BV11: 6656.956117 | BW11: 7015.008277 | BX11: 10457.26807 | BY11: 8318.877316 | BZ11: 4035.525798 | CA11: 7243.181614 | CB11: 6354.508908 | CC11: 10359.97502 | CD11: 7145.201755 | CE11: 5692.032876 | CF11: 7737.44021 | CG11: 11708.8752 | CH11: 19167.44016 | CI11: 8485.783633 | CJ11: 10853.67066 | CK11: 9015.458867 | CL11: 10827.13137 | CM11: 6169.570084 | CN11: 5564.935695 | CO11: 4751.647735 | CP11: 9288.699146 | CQ11: 10300.27049 | CR11: 6991.091267 | CS11: 9669.451871 | CT11: 4090.353485 | CU11: 6000.387238 | CV11: 12816.18811 | CW11: 11952.10468 | CX11: 6447.236341 | CY11: 11673.2119 | CZ11: 6326.866513 | DA11: 9464.333469 | DB11: 6824.645295 | DC11: 7037.891122 | DD11: 9627.184705 | DE11: 5456.138422 | DF11: 3726.894957 | DG11: 13164.95994 | DH11: 5795.959548 | DI11: 15324.93734 | DJ11: 11680.69598 | DK11: 8442.424991 | DL11: 7194.653207 | DM11: 4645.345528 | DN11: 8651.448334 | DO11: 4442.863201 | DP11: 6026.164318 | DQ11: 12533.51721 | DR11: 12047.58543 | DS11: 12193.16396 | DT11: 10990.02623 | DU11: 13349.30534 | DV11: 18109.12515 | DW11: 6651.840646 | DX11: 11487.18691 | DY11: 5631.552426 | DZ11: 12633.66104 | EA11: 6065.511311 | EB11: 7687.818173 | EC11: 8750.55092 | ED11: 13806.37976 | EE11: 13799.78516 | EF11: 7118.833326 | EG11: 7221.002703 | EH11: 8768.597821 | EI11: 8676.157168 | EJ11: 6267.462735 | EK11: 7087.017483 | EL11: 10497.78516 | EM11: 16928.26394 | EN11: 8549.036257 | EO11: 12195.32121 | EP11: 10530.02694 | EQ11: 11504.81326 | ER11: 9486.235301 | ES11: 12093.64821 | ET11: 19447.80699 | EU11: 8338.218848 | EV11: 9667.294954 | EW11: 16023.26821 | EX11: 4770.914718 | EY11: 8285.977571 | EZ11: 19092.42673 | FA11: 7764.599443 | FB11: 8796.89584 | FC11: 8152.64381 | FD11: 6186.889162 | FE11: 7644.573599 | FF11: 11129.01701 | FG11: 6096.344748 | FH11: 6234.023581 | FI11: 9236.314426 | FJ11: 6782.371135 | FK11: 11812.66816 | FL11: 8507.768036 | FM11: 6474.674463 | FN11: 7164.859293 | FO11: 9313.445361 | FP11: 8760.508322 | FQ11: 7370.00574 | FR11: 15427.83681 | FS11: 6753.041005 | FT11: 15800.47883 | FU11: 9978.847873 | FV11: 9747.590962 | FW11: 5608.275587 | FX11: 10624.6511 | FY11: 13966.58006 | FZ11: 8117.444779 | GA11: 7810.542318 | GB11: 5065.456405 | GC11: 6362.644691 | GD11: 19583.12065 | GE11: 4288.065782 | GF11: 14266.85071 | GG11: 6997.213275 | GH11: 10776.15392 | GI11: 7255.241064 | GJ11: 9711.30119 | GK11: 9062.768151 | GL11: 7336.700891 | GM11: 9034.277333 | GN11: 7455.52531 | GO11: 6206.404072 | GP11: 11786.86511 | GQ11: 8494.805141 | GR11: 8848.379652 | GS11: 6055.645804 | GT11: 7158.428896 | GU11: 9469.934691 | GV11: 4494.515096 | GW11: 15021.15034 | GX11: 9885.945067 | GY11: 11793.02646 | GZ11: 5245.704852 | HA11: 5268.267111 | HB11: 10205.98994 | HC11: 8010.312653 | HD11: 10427.96555 | HE11: 8495.972661 | HF11: 8635.220552 | HG11: 6047.096335 | HH11: 10339.2104 | HI11: 9033.0319 | HJ11: 6640.315448 | HK11: 10143.43873 | HL11: 5137.122932 | HM11: 8755.988546 | HN11: 7504.062268 | HO11: 7232.470209 | HP11: 9072.60835 | HQ11: 6842.744086 | HR11: 14465.18375 | HS11: 5726.640472 | HT11: 6901.606601 | HU11: 13031.24025 | HV11: 8097.025934 | HW11: 9856.158357 | HX11: 13842.18171 | HY11: 12991.99933 | HZ11: 5714.302986 | IA11: 6371.99171 | IB11: 8245.552137 | IC11: 7363.67736 | ID11: 9256.232837 | IE11: 9100.608493 | IF11: 12670.93231 | IG11: 10930.95744 | IH11: 9806.30163 | II11: 6275.10341 | IJ11: 4182.388489 | IK11: 6938.358914 | IL11: 6990.143703 | IM11: 12757.44433 | IN11: 11109.39641 | IO11: 14689.2352 | IP11: 6073.417543 | IQ11: 14855.43541 | IR11: 7866.165991 | IS11: 6174.279055 | IT11: 8703.642528 | IU11: 7184.407075 | IV11: 5480.311112 | IW11: 7619.066828 | IX11: 8313.863126 | IY11: 8164.826777 | IZ11: 7212.903889 | JA11: 4891.060863 | JB11: 15219.31222 | JC11: 5990.485521 | JD11: 12941.16778 | JE11: 8776.521732 | JF11: 6388.506254 | JG11: 8093.684163 | JH11: 10830.1155 | JI11: 5932.678737 | JJ11: 7841.260969 | JK11: 12822.3815 | JL11: 5569.58174 | JM11: 10558.31142 | JN11: 7051.891239 | JO11: 8741.59852 | JP11: 4000.221998 | JQ11: 10035.31236 | JR11: 6298.463328 | JS11: 11101.39223 | JT11: 13321.95772 | JU11: 9851.921799 | JV11: 9981.653379 | JW11: 5973.688717 | JX11: 7992.184604 | JY11: 13176.32785 | JZ11: 6660.536692 | KA11: 7865.191091 | KB11: 6739.01322 | KC11: 11498.70182 | KD11: 9300.40294 | KE11: 16968.53479 | KF11: 6745.300036 | KG11: 13165.36551 | KH11: 16230.84028 | KI11: 7526.337985 | KJ11: 7913.570071 | KK11: 7849.499492 | KL11: 3768.223929 | KM11: 7692.432022 | KN11: 4220.362805 | KO11: 12069.5306 | KP11: 13476.73154 | KQ11: 7669.802782 | KR11: 10180.3404 | KS11: 8245.999475 | KT11: 8035.640656 | KU11: 7712.399072 | KV11: 6312.298135 | KW11: 10479.36257 | KX11: 5234.409478 | KY11: 6429.755194 | KZ11: 10243.30983 | LA11: 11965.39956 | LB11: 7060.131161 | LC11: 8344.106196 | LD11: 7037.724519 | LE11: 6852.727577 | LF11: 11038.47423 | LG11: 8313.572158 | LH11: 7586.511661 | LI11: 6853.975719 | LJ11: 6341.036948 | LK11: 6398.387198 | LL11: 4446.543735 | LM11: 6835.341064 | LN11: 9940.862982 | LO11: 12310.47735 | LP11: 6755.19076 | LQ11: 10139.90788 | LR11: 6148.61122 | LS11: 5728.542953 | LT11: 9949.116546 | LU11: 8179.998009 | LV11: 5982.61092 | LW11: 10072.64004 | LX11: 12824.94663 | LY11: 8963.686606 | LZ11: 11183.61962 | MA11: 5937.109416 | MB11: 8528.842463 | MC11: 6751.343168 | MD11: 7439.030554 | ME11: 10479.52274 | MF11: 11102.45161 | MG11: 5240.339247 | MH11: 8744.963289 | MI11: 8709.097224 | MJ11: 9876.967566 | MK11: 6498.25615 | ML11: 9904.05792 | MM11: 5910.143118 | MN11: 11061.74384 | MO11: 7199.717637 | MP11: 5890.226845 | MQ11: 4755.297511 | MR11: 10984.92747 | MS11: 13596.08387 | MT11: 11315.14977 | MU11: 9660.843016 | MV11: 8824.735804 | MW11: 12648.04076 | MX11: 8806.196971 | MY11: 5998.944049 | MZ11: 10441.24457 | NA11: 9571.384625 | NB11: 9307.121556 | NC11: 8037.774148 | ND11: 10001.64878 | NE11: 8199.729525 | NF11: 4763.338924 | NG11: 8634.481689 | NH11: 10536.71745 | NI11: 14080.80057 | NJ11: 13971.94155 | NK11: 10162.5016 | NL11: 11454.72463 | NM11: 5616.853095 | NN11: 5817.406379 | NO11: 8396.080737 | NP11: 9156.410539 | NQ11: 12588.82808 | NR11: 11004.22663 | NS11: 5052.353965 | NT11: 6835.041277 | NU11: 5345.126738 | NV11: 9885.65649 | NW11: 4920.491584 | NX11: 12943.76888 | NY11: 13306.90564 | NZ11: 10582.76371 | OA11: 11314.05091 | OB11: 5165.838356 | OC11: 14034.64301 | OD11: 11425.44203 | OE11: 12022.53305 | OF11: 10631.90382 | OG11: 37718.54717 | OH11: 6258.55308 | OI11: 6689.268987 | OJ11: 7617.496906 | OK11: 8409.953335 | OL11: 9030.11007 | OM11: 6150.250274 | ON11: 7379.147921 | OO11: 8570.240391 | OP11: 3533.732169 | OQ11: 9136.672018 | OR11: 17492.60446 | OS11: 15629.98808 | OT11: 14498.18514 | OU11: 7156.924461 | OV11: 8884.124399 | OW11: 6132.09772 | OX11: 8449.224059 | OY11: 8328.999311 | OZ11: 10776.19716 | PA11: 7427.002176 | PB11: 7613.546693 | PC11: 8618.051965 | PD11: 3725.713468 | PE11: 4066.158418 | PF11: 12116.70743 | PG11: 7230.608625 | PH11: 10398.96454 | PI11: 16912.18329 | PJ11: 9888.669962 | PK11: 4532.433239 | PL11: 7992.013846 | PM11: 7152.091486 | PN11: 13981.22673 | PO11: 6280.548554 | PP11: 10248.27551 | PQ11: 9863.290271 | PR11: 5231.412207 | PS11: 10979.98076 | PT11: 8417.895978 | PU11: 10273.00733 | PV11: 5332.663117 | PW11: 5987.817524 | PX11: 12433.8942 | PY11: 5092.890368 | PZ11: 6593.6765 | QA11: 8385.727451 | QB11: 6354.132027 | QC11: 7448.428619 | QD11: 6452.166605 | QE11: 4229.715473 | QF11: 4349.031135 | QG11: 5377.647259 | QH11: 7140.828143 | QI11: 6746.10492 | QJ11: 9743.568792 | QK11: 8980.84352 | QL11: 20916.37787 | QM11: 7135.514933 | QN11: 4167.035819 | QO11: 8764.757781 | QP11: 12586.89073 | QQ11: 8709.658035 | QR11: 10048.32872 | QS11: 10267.9386 | QT11: 13491.08364 | QU11: 10890.69853 | QV11: 7754.615532 | QW11: 10714.89059 | QX11: 7091.443507 | QY11: 8133.45655 | QZ11: 12633.14719 | RA11: 7810.247196 | RB11: 6103.82284 | RC11: 7837.46648 | RD11: 6835.064425 | RE11: 8852.015471 | RF11: 8965.180407 | RG11: 14674.23968 | RH11: 8449.291989 | RI11: 5508.14071 | RJ11: 9225.334949 | RK11: 11513.09476 | RL11: 10711.12906 | RM11: 10116.29263 | RN11: 9816.968636 | RO11: 13405.55147 | RP11: 22070.8611 | RQ11: 7777.409782 | RR11: 4706.446171 | RS11: 4329.588504 | RT11: 6133.474019 | RU11: 7650.976539 | RV11: 6854.005494 | RW11: 11027.42663 | RX11: 5564.668389 | RY11: 9738.668535 | RZ11: 8604.955505 | SA11: 9315.098065 | SB11: 7615.548254 | SC11: 7192.564762 | SD11: 6048.681635 | SE11: 11154.18924 | SF11: 9152.164004 | SG11: 7386.626386 | SH11: 14291.78784 | SI11: 7829.928878 | SJ11: 10198.85783 | SK11: 4753.893226 | SL11: 9843.061895 | SM11: 11403.70142 | SN11: 10270.89335 | SO11: 6331.395365 | SP11: 7647.11845 | SQ11: 8306.461818 | SR11: 8336.633361 | SS11: 8578.188713 | ST11: 8218.306248 | SU11: 7641.151582 | SV11: 6232.558178 | SW11: 12252.97195 | SX11: 8054.317844 | SY11: 11029.18585 | SZ11: 7939.938399 | TA11: 11321.18345 | TB11: 8843.351251 | TC11: 11824.52248 | TD11: 7502.958428 | TE11: 10104.72984 | TF11: 9664.040603 | TG11: 8397.416246 | TH11: 10414.15072 | TI11: 7405.566771 | TJ11: 8890.444101 | TK11: 8758.134395 | TL11: 6149.166307 | TM11: 8843.13468 | TN11: 7300.697476 | TO11: 8815.595567 | TP11: 9161.346898 | TQ11: 10018.3202 | TR11: 5301.063368 | TS11: 16782.8425 | TT11: 10642.78906 | TU11: 6775.666555 | TV11: 15723.7931 | TW11: 16704.11511 | TX11: 10913.24074 | TY11: 7275.582164 | TZ11: 7640.917896 | UA11: 9668.485817 | UB11: 5331.579294 | UC11: 11717.98947 | UD11: 7515.385863 | UE11: 6233.576028 | UF11: 17424.03217 | UG11: 7751.058437 | UH11: 7990.250798 | UI11: 8209.912813 | UJ11: 8695.891882 | UK11: 5477.210271 | UL11: 8091.69027 | UM11: 13236.75664 | UN11: 6311.017157 | UO11: 6820.539017 | UP11: 8938.17911 | UQ11: 9836.135826 | UR11: 5311.539801 | US11: 12337.0633 | UT11: 10276.70502 | UU11: 11735.27234 | UV11: 8590.599739 | UW11: 7128.734473 | UX11: 15381.33413 | UY11: 5703.509853 | UZ11: 4362.803293 | VA11: 5470.478651 | VB11: 9062.240447 | VC11: 12304.42787 | VD11: 8657.942191 | VE11: 6557.482464 | VF11: 7675.004664 | VG11: 7644.732568 | VH11: 10873.28824 | VI11: 11248.1535 | VJ11: 9719.015131 | VK11: 5698.868667 | VL11: 7298.477291 | VM11: 7143.587927 | VN11: 13315.72581 | VO11: 6549.298501 | VP11: 7725.866427 | VQ11: 8108.75786 | VR11: 8513.457002 | VS11: 8341.342788 | VT11: 6418.057429 | VU11: 4610.276161 | VV11: 10386.48849 | VW11: 9806.28012 | VX11: 9081.055071 | VY11: 7740.117779 | VZ11: 6307.436218 | WA11: 9905.510233 | WB11: 5384.707017 | WC11: 10294.83989 | WD11: 17356.037 | WE11: 7522.714337 | WF11: 6318.251057 | WG11: 7799.515433 | WH11: 9054.171498 | WI11: 9904.470875 | WJ11: 7259.628744 | WK11: 6363.73471 | WL11: 5765.247682 | WM11: 9558.598297 | WN11: 6270.103904 | WO11: 6571.003381 | WP11: 8104.613706 | WQ11: 16623.11897 | WR11: 5899.194407 | WS11: 9620.456967 | WT11: 17170.59523 | WU11: 11749.54228 | WV11: 7721.123276 | WW11: 12871.95202 | WX11: 5993.058551 | WY11: 8557.716125 | WZ11: 6531.969403 | XA11: 8069.753439 | XB11: 13507.23297 | XC11: 8596.096899 | XD11: 11095.62977 | XE11: 6440.30956 | XF11: 11690.12497 | XG11: 12550.58833 | XH11: 7711.423574 | XI11: 9146.463608 | XJ11: 6734.10731 | XK11: 6430.214185 | XL11: 7893.807846 | XM11: 6966.347431 | XN11: 11856.51691 | XO11: 9049.819613 | XP11: 7077.773976 | XQ11: 8044.89324 | XR11: 10733.93927 | XS11: 13479.65367 | XT11: 8206.009598 | XU11: 12620.20546 | XV11: 4548.075208 | XW11: 7968.650475 | XX11: 9833.378595 | XY11: 7299.239489 | XZ11: 8142.685356 | YA11: 11625.05086 | YB11: 8726.571798 | YC11: 7878.102402 | YD11: 3708.094429 | YE11: 7227.390091 | YF11: 8419.958693 | YG11: 15893.80445 | YH11: 6327.648987 | YI11: 15381.26853 | YJ11: 9027.529534 | YK11: 7307.331377 | YL11: 4239.456167 | YM11: 8109.16937 | YN11: 17105.37663 | YO11: 7394.869724 | YP11: 13934.41666 | YQ11: 9184.2805 | YR11: 10797.61745 | YS11: 3385.890494 | YT11: 6760.316439 | YU11: 9784.194845 | YV11: 5662.033968 | YW11: 10539.84463 | YX11: 14065.79203 | YY11: 12441.63451 | YZ11: 4975.126789 | ZA11: 8986.817579 | ZB11: 13794.63303 | ZC11: 6870.9433 | ZD11: 8331.529121 | ZE11: 6671.917024 | ZF11: 15840.61035 | ZG11: 6755.467855 | ZH11: 10684.37622 | ZI11: 9013.043354 | ZJ11: 11699.45612 | ZK11: 13059.2753 | ZL11: 11524.69489 | ZM11: 8607.235609 | ZN11: 9691.197968 | ZO11: 7386.351665 | ZP11: 9371.85063 | ZQ11: 9292.537159 | ZR11: 4922.210266 | ZS11: 14299.87022 | ZT11: 18659.93234 | ZU11: 10500.7198 | ZV11: 9723.487684 | ZW11: 10632.70935 | ZX11: 8431.925706 | ZY11: 12420.71092 | ZZ11: 6369.868794 | AAA11: 10513.25692 | AAB11: 9388.070076 | AAC11: 10662.07984 | AAD11: 6436.874858 | AAE11: 7700.296622 | AAF11: 7756.327531 | AAG11: 6225.171102 | AAH11: 3992.04041 | AAI11: 12264.6888 | AAJ11: 6388.883756 | AAK11: 9162.550707 | AAL11: 10300.01325 | AAM11: 4517.041229 | AAN11: 5751.120971 | AAO11: 12215.61797 | AAP11: 11104.93844 | AAQ11: 8163.101877 | AAR11: 7287.248972 | AAS11: 13530.59514 | AAT11: 8062.158437 | AAU11: 5715.198979 | AAV11: 8323.886482 | AAW11: 12072.91701 | AAX11: 6244.172726 | AAY11: 5684.68019 | AAZ11: 7761.652348 | ABA11: 8091.314386 | ABB11: 11726.40961 | ABC11: 7844.676276 | ABD11: 8402.598803 | ABE11: 7029.774666 | ABF11: 8427.836079 | ABG11: 13891.67961 | ABH11: 9960.731747 | ABI11: 11338.9881 | ABJ11: 8394.57212 | ABK11: 6823.27118 | ABL11: 7884.046733 | ABM11: 5050.377008 | ABN11: 6624.227702 | ABO11: 7936.85425 | ABP11: 8409.582675 | ABQ11: 17969.74482 | ABR11: 13078.63914 | ABS11: 6984.06115 | ABT11: 9334.401145 | ABU11: 11249.52919 | ABV11: 7791.615017 | ABW11: 8720.826266 | ABX11: 12076.23859 | ABY11: 7296.404398 | ABZ11: 6481.830896 | ACA11: 10821.77587 | ACB11: 12743.15231 | ACC11: 7823.872394 | ACD11: 5960.157387 | ACE11: 13415.2792 | ACF11: 10540.40708 | ACG11: 9573.89568 | ACH11: 9597.613548 | ACI11: 9167.668403 | ACJ11: 10957.4983 | ACK11: 9933.954245 | ACL11: 6517.693568 | ACM11: 6858.286614 | ACN11: 10171.89516 | ACO11: 9859.501516 | ACP11: 6114.687034 | ACQ11: 7679.860116 | ACR11: 9063.170179 | ACS11: 7910.933267 | ACT11: 8279.864368 | ACU11: 10327.04383 | ACV11: 8773.7484 | ACW11: 13754.12885 | ACX11: 11739.16264 | ACY11: 11185.18013 | ACZ11: 6686.216861 | ADA11: 12332.19769 | ADB11: 7338.89729 | ADC11: 6667.239623 | ADD11: 5745.269571 | ADE11: 8822.730948 | ADF11: 8104.09656 | ADG11: 5401.44221 | ADH11: 8980.542671 | ADI11: 8276.9544 | ADJ11: 9459.853546 | ADK11: 8959.194736 | ADL11: 7515.986165 | ADM11: 12326.2618 | ADN11: 6742.665393 | ADO11: 13497.90569 | ADP11: 8524.296334 | ADQ11: 7606.715403 | ADR11: 8016.956355 | ADS11: 6361.57688 | ADT11: 7409.622381 | ADU11: 6950.51156 | ADV11: 10511.03072 | ADW11: 8091.063507 | ADX11: 7080.445613 | ADY11: 4107.073426 | ADZ11: 10775.21712 | AEA11: 9319.782842 | AEB11: 13462.04785 | AEC11: 6900.357728 | AED11: 7232.306248 | AEE11: 7777.47166 | AEF11: 6440.643081 | AEG11: 9187.253256 | AEH11: 6984.10691 | AEI11: 7987.208402 | AEJ11: 9116.792024 | AEK11: 8400.525275 | AEL11: 6720.47797 | AEM11: 7987.654649 | AEN11: 5141.895746 | AEO11: 10212.93466 | AEP11: 13418.84093 | AEQ11: 14775.61888 | AER11: 9993.6755 | AES11: 18394.48036 | AET11: 7874.26613 | AEU11: 6077.98854 | AEV11: 5116.901488 | AEW11: 10275.25507 | AEX11: 13236.6395 | AEY11: 11135.66168 | AEZ11: 7881.413633 | AFA11: 9593.206825 | AFB11: 11041.48835 | AFC11: 9193.835275 | AFD11: 6731.497718 | AFE11: 12277.32128 | AFF11: 8876.061154 | AFG11: 6620.538149 | AFH11: 5863.260478 | AFI11: 6086.141405 | AFJ11: 11108.01258 | AFK11: 11349.60246 | AFL11: 7799.437513 | AFM11: 7833.720059 | AFN11: 17740.80744 | AFO11: 15591.41726 | AFP11: 23577.33559 | AFQ11: 7233.596889 | AFR11: 11549.6136 | AFS11: 6654.811704 | AFT11: 5790.715518 | AFU11: 7431.96716 | AFV11: 10201.62021 | AFW11: 7425.197069 | AFX11: 12450.33258 | AFY11: 10609.82683 | AFZ11: 8277.49389 | AGA11: 8871.025822 | AGB11: 9991.729747 | AGC11: 9269.360416 | AGD11: 7579.648111 | AGE11: 8061.485987 | AGF11: 7821.0514 | AGG11: 10197.84817 | AGH11: 10525.94219 | AGI11: 8429.162859 | AGJ11: 8298.028888 | AGK11: 14900.42775 | AGL11: 6734.655001 | AGM11: 5021.269258 | AGN11: 10355.14262 | AGO11: 5664.660958 | AGP11: 4783.114218 | AGQ11: 7373.731911 | AGR11: 3476.730943 | AGS11: 7962.451311 | AGT11: 6681.008606 | AGU11: 9399.930523 | AGV11: 11805.90953 | AGW11: 7960.634577 | AGX11: 8125.60681 | AGY11: 6797.244779 | AGZ11: 10091.13256 | AHA11: 8322.604466 | AHB11: 9598.04648 | AHC11: 8341.831638 | AHD11: 10932.58379 | AHE11: 7908.934842 | AHF11: 6509.079523 | AHG11: 13122.72791 | AHH11: 11215.10326 | AHI11: 7186.105085 | AHJ11: 10957.15676 | AHK11: 7305.960509 | AHL11: 12942.05851 | AHM11: 5257.000332 | AHN11: 11668.25343 | AHO11: 10765.47395 | AHP11: 7176.671927 | AHQ11: 11196.38114 | AHR11: 8108.485441 | AHS11: 12151.74571 | AHT11: 11813.54155 | AHU11: 7575.576933 | AHV11: 7363.478699 | AHW11: 11925.43007 | AHX11: 16219.15186 | AHY11: 15767.11077 | AHZ11: 6786.885307 | AIA11: 8103.489784 | AIB11: 9120.883887 | AIC11: 20212.87628 | AID11: 5339.182637 | AIE11: 5831.907945 | AIF11: 9154.025395 | AIG11: 15565.58758 | AIH11: 5733.16572 | AII11: 7007.517101 | AIJ11: 13934.23647 | AIK11: 6029.264103 | AIL11: 9739.045511 | AIM11: 12719.57099 | AIN11: 5328.856442 | AIO11: 6982.008542 | AIP11: 10105.12004 | AIQ11: 11850.18381 | AIR11: 8856.213833 | AIS11: 6856.150611 | AIT11: 9171.656704 | AIU11: 5374.072065 | AIV11: 16689.66222 | AIW11: 16703.62966 | AIX11: 9227.970005 | AIY11: 8256.09531 | AIZ11: 11777.33392 | AJA11: 11961.92147 | AJB11: 7228.562701 | AJC11: 5703.907153 | AJD11: 5257.243985 | AJE11: 15878.37331 | AJF11: 8859.341767 | AJG11: 10032.89312 | AJH11: 4057.946266 | AJI11: 14667.84416 | AJJ11: 8703.338615 | AJK11: 9410.349848 | AJL11: 9855.010427 | AJM11: 17603.70951 | AJN11: 6808.17453 | AJO11: 8094.172521 | AJP11: 14925.01302 | AJQ11: 11844.70431 | AJR11: 7397.7386 | AJS11: 6912.388238 | AJT11: 5952.272079 | AJU11: 9550.019737 | AJV11: 7602.648119 | AJW11: 4978.829277 | AJX11: 10275.80629 | AJY11: 9264.691165 | AJZ11: 8272.444737 | AKA11: 12874.84701 | AKB11: 8988.871132 | AKC11: 5366.01183 | AKD11: 8176.348327 | AKE11: 6563.057985 | AKF11: 7025.034953 | AKG11: 15692.36906 | AKH11: 7965.732143 | AKI11: 9464.089922 | AKJ11: 6318.027609 | AKK11: 6960.696407 | AKL11: 8943.455469 | AKM11: 10901.77752 | AKN11: 9950.069771 | AKO11: 12835.61555 | AKP11: 5604.508103 | AKQ11: 13986.42462 | AKR11: 10359.59921 | AKS11: 12089.98193 | AKT11: 3901.441623 | AKU11: 11529.94591 | AKV11: 9226.582746 | AKW11: 7599.376509 | AKX11: 10857.57482 | AKY11: 6338.14908 | AKZ11: 11269.73966 | ALA11: 7061.434235 | ALB11: 8773.376361 | ALC11: 12760.76796 | ALD11: 8077.332295 | ALE11: 7259.072804 | ALF11: 8103.758213 | ALG11: 6468.08006 | ALH11: 7869.115826 | ALI11: 7660.835092 | ALJ11: 4601.103828 | ALK11: 6272.839174 | ALL11: 6136.239873 | ALM11: 10829.50735 | ALN11: 6213.183588 | ALO11: 6837.344719 | ALP11: 9176.319223 | ALQ11: 10292.52557 | ALR11: 5459.292036 | ALS11: 9615.685444 | ALT11: 11275.09328 | ALU11: 9794.772393 | ALV11: 12601.80261 | ALW11: 4979.192341 | ALX11: 6141.430123 | ALY11: 5060.182794 | ALZ11: 7026.883365 | AMA11: 7751.997165 | AMB11: 11904.48726 | AMC11: 6625.016657 | AMD11: 12833.6588 | AME11: 10668.20988 | AMF11: 6750.345379 | AMG11: 7557.336546 | AMH11: 9182.179246 | AMI11: 17022.37855 | AML11: 4873.314585 | AMM11: 5666.741754 | AMN11: 6146.331678 | AMO11: 6510.682657 | AMP11: 6855.717565 | AMQ11: 7183.340257 | AMR11: 7526.379242 | AMS11: 7852.09681 | AMT11: 8150.704035 | AMU11: 8489.149442 | AMV11: 8859.965624 | AMW11: 9283.960394 | AMX11: 9764.558615 | AMY11: 10245.19565 | AMZ11: 10765.08286 | ANA11: 11392.86668 | ANB11: 12191.68749 | ANC11: 13275.35463 | AND11: 15561.18817 | ANF11: 9170.513508 | ANG11: 8446.950371 | ANH11: 7345.25803 | ANI11: 6327.688947 | ANJ11: 7129.357179 | ANK11: 6492.817626 | ANL11: 5554.51516 | ANM11: 5762.070627 | ANN11: 6104.159018 | ANO11: 5379.542351 | ANP11: 4887.626975 | ANQ11: 4820.538924 | ANR11: 4501.840087 | ANS11: 3698.483961 | ANT11: 2440.939662 | ANU11: 1727.712381 | ANV11: 2052.025215 | ANW11: 2023.583101 | ANX11: -399.5455241 | ANY11: =IFERROR(MATCH(MIN(ABS(ANF11:ANX11)),ABS(ANF11:ANX11),0),"") -> 19 | ANZ11: =IFERROR(INDEX(ANF11:ANX11,MIN(MAX(ANY11-1,1),17)),"") -> 2052.025215 | AOA11: =IFERROR(INDEX(ANF11:ANX11,MIN(MAX(ANY11,2),18)),"") -> 2023.583101 | AOB11: =IFERROR(INDEX(ANF11:ANX11,MIN(MAX(ANY11,3),19)),"") -> -399.5455241 | AOC11: =IFERROR(INDEX(AML11:AND11,MIN(MAX(ANY11-1,1),17)),"") -> 12191.68749 | AOD11: =IFERROR(INDEX(AML11:AND11,MIN(MAX(ANY11,2),18)),"") -> 13275.35463 | AOE11: =IFERROR(INDEX(AML11:AND11,MIN(MAX(ANY11,3),19)),"") -> 15561.18817 | AOF11: 15102.28182
A12: =ROW(Variables[[#This Row],[Variable Name]])-ROW(Variables[[#Headers],[Variable Name]]) -> 4 | B12: Chance of cancellation | C12: Cancel | D12: =IF(COUNTA(Variables[[#This Row],[Lower Bound]], Variables[[#This Row],[Mode or P]], Variables[[#This Row],[Upper Bound]])=0, "", IF(Variables[[#This Row],[Shape]]="Constant",Variables[[#This Row],[Mode or P]],IF(Variables[[#This Row],[Shape]]="Lognorm",LOGINV(Variables[[#This Row],[Uniform PRNG]],((LN(Variables[[#This Row],[Lower Bound]]) + LN(Variables[[#This Row],[Upper Bound]]))/2),((LN(Variables[[#This Row],[Upper Bound]]) - LN(Variables[[#This Row],[Lower Bound]]))/3.28971)),IF(Variables[[#This Row],[Shape]]="Normal",NORMINV(Variables[[#This Row],[Uniform PRNG]],(Variables[[#This Row],[Upper Bound]]+Variables[[#This Row],[Lower Bound]])/2,(Variables[[#This Row],[Upper Bound]]-Variables[[#This Row],[Lower Bound]])/3.29),IF(Variables[[#This Row],[Shape]]="Uniform",(Variables[[#This Row],[Upper Bound]]-Variables[[#This Row],[Lower Bound]])*Variables[[#This Row],[Uniform PRNG]]+Variables[[#This Row],[Lower Bound]],IF(Variables[[#This Row],[Shape]]="Binary",IF(Variables[[#This Row],[Uniform PRNG]]<Variables[[#This Row],[Mode or P]],1,0),IF(Variables[[#This Row],[Shape]]="Triangular",IF(Variables[[#This Row],[Uniform PRNG]]<(Variables[[#This Row],[Mode or P]]-Variables[[#This Row],[Lower Bound]])/(Variables[[#This Row],[Upper Bound]]-Variables[[#This Row],[Lower Bound]]), 1, 0) * (Variables[[#This Row],[Lower Bound]] + SQRT(Variables[[#This Row],[Uniform PRNG]]*(Variables[[#This Row],[Upper Bound]]-Variables[[#This Row],[Lower Bound]])*(Variables[[#This Row],[Mode or P]]-Variables[[#This Row],[Lower Bound]]))) + IF(Variables[[#This Row],[Uniform PRNG]]>= (Variables[[#This Row],[Mode or P]]-Variables[[#This Row],[Lower Bound]])/(Variables[[#This Row],[Upper Bound]]-Variables[[#This Row],[Lower Bound]]), 1, 0) * (Variables[[#This Row],[Upper Bound]] - SQRT((1-Variables[[#This Row],[Uniform PRNG]]) * (Variables[[#This Row],[Upper Bound]] - Variables[[#This Row],[Lower Bound]]) * (Variables[[#This Row],[Upper Bound]] - Variables[[#This Row],[Mode or P]]))),""))))))) -> 0 | E12: Binary | G12: 0.04 | I12: Historical analysis of projects | J12: =IFERROR(IF(OR(MIN(Variables[[#This Row],[P(X<T)]], Variables[[#This Row],[P(X>T)]])<0.002,SIGN(Variables[[#This Row],[EOL(X<T)]])=SIGN(Variables[[#This Row],[EOL(X>T)]])),0,IFERROR(IF(B$38=1,IF(Variables[[#This Row],[EOL(X<T)]]<Variables[[#This Row],[EOL(X>T)]],-Variables[[#This Row],[EOL(X<T)]]*Variables[[#This Row],[P(X<T)]],-Variables[[#This Row],[EOL(X>T)]]*Variables[[#This Row],[P(X>T)]]),IF(Variables[[#This Row],[EOL(X<T)]]>Variables[[#This Row],[EOL(X>T)]],Variables[[#This Row],[EOL(X<T)]]*Variables[[#This Row],[P(X<T)]],Variables[[#This Row],[EOL(X>T)]]*Variables[[#This Row],[P(X>T)]])),"")),0) -> 333.116708 | K12: =IF(Variables[[#This Row],[Shape]]="Constant",Variables[[#This Row],[Mode or P]],IF(Variables[[#This Row],[Shape]]="Lognorm",EXP((LN(Variables[[#This Row],[Upper Bound]])+LN(Variables[[#This Row],[Lower Bound]]))/2+((LN(Variables[[#This Row],[Upper Bound]])-LN(Variables[[#This Row],[Lower Bound]]))/3.29)^2/2),IF(Variables[[#This Row],[Shape]]="Normal",(Variables[[#This Row],[Lower Bound]]+Variables[[#This Row],[Upper Bound]])/2,IF(Variables[[#This Row],[Shape]]="Uniform",(Variables[[#This Row],[Lower Bound]]+Variables[[#This Row],[Upper Bound]])/2,IF(Variables[[#This Row],[Shape]]="Binary",Variables[[#This Row],[Mode or P]],IF(Variables[[#This Row],[Shape]]="Triangular",(Variables[[#This Row],[Lower Bound]]+Variables[[#This Row],[Mode or P]]+Variables[[#This Row],[Upper Bound]])/3,"")))))) -> 0.04 | L12: =IF(Variables[[#This Row],[Shape]]="","",(MOD((MOD(MOD(999999999999989,MOD(ScenarioNum*2499997+Variables[[#This Row],[VarID]]*1800451,7450589)*4658+7450581)*383,99991)*231109+MOD(MOD(999999999999989,MOD(ScenarioNum*2246527+Variables[[#This Row],[VarID]]*2399993,7450987)*7580+7560584)*547,231109))*43271,4294967296)+0.5)/4294967296) -> 0.500535471 | M12: =IF(Variables[[#This Row],[Shape]]="Binary", 1-Variables[[#This Row],[Mode or P]], IF(Variables[[#This Row],[Shape]]<>"",COUNTIF(INDEX($X$9:$AMI$159, ROW(Variables[[#This Row],[Variable Name]])-ROW(Variables[[#Headers],[Variable Name]]), ),"<"&Variables[[#This Row],[Threshold Estimate]])/1000,"")) -> 0.96 | N12: =IF(Variables[[#This Row],[Shape]]<>"",1-Variables[[#This Row],[P(X<T)]],"") -> 0.04 | O12: =IFERROR(AVERAGEIFS(X$7:AMI$7,INDEX(X$9:$AMI$159, ROW(Variables[[#This Row],[Variable Name]])-ROW(Variables[[#Headers],[Variable Name]]), ),IF(Variables[[#This Row],[Shape]]="Binary","=0","<"&Variables[[#This Row],[Threshold Estimate]])),"") -> 5378.912058 | P12: =IFERROR(AVERAGEIFS(X$7:AMI$7,INDEX($X$9:$AMI$159, ROW(Variables[[#This Row],[Variable Name]])-ROW(Variables[[#Headers],[Variable Name]]), ),IF(Variables[[#This Row],[Shape]]="Binary","=1",">"&Variables[[#This Row],[Threshold Estimate]])),"") -> -8327.917701 | Q12: =IFERROR(IF(Variables[[#This Row],[Shape]]="Binary",IF(B$38=1,IF(Variables[[#This Row],[EOL(X<T)]]<Variables[[#This Row],[EOL(X>T)]],0,1),IF(Variables[[#This Row],[EOL(X<T)]]<Variables[[#This Row],[EOL(X>T)]],1,0)), INDEX($AOF$9:$AOF$159, ROW(Variables[[#This Row],[Variable Name]])-ROW(Variables[[#Headers],[Variable Name]]))),"") -> 1 | V12: =IFERROR(IF(ISBLANK(Variables[[#This Row],[Variable Name]]), "", Variables[[#This Row],[Variable Name]]), "") -> Chance of cancellation | W12: =IFERROR(IF(ISBLANK(D12), "", D12), "") -> 0 | X12: 0 | Y12: 0 | Z12: 0 | AA12: 0 | AB12: 0 | AC12: 0 | AD12: 0 | AE12: 0 | AF12: 0 | AG12: 0 | AH12: 1 | AI12: 0 | AJ12: 0 | AK12: 0 | AL12: 0 | AM12: 0 | AN12: 0 | AO12: 0 | AP12: 0 | AQ12: 0 | AR12: 0 | AS12: 0 | AT12: 0 | AU12: 0 | AV12: 0 | AW12: 0 | AX12: 0 | AY12: 0 | AZ12: 0 | BA12: 0 | BB12: 0 | BC12: 0 | BD12: 0 | BE12: 0 | BF12: 0 | BG12: 0 | BH12: 0 | BI12: 0 | BJ12: 0 | BK12: 0 | BL12: 0 | BM12: 0 | BN12: 0 | BO12: 0 | BP12: 0 | BQ12: 0 | BR12: 1 | BS12: 0 | BT12: 0 | BU12: 0 | BV12: 0 | BW12: 0 | BX12: 0 | BY12: 0 | BZ12: 0 | CA12: 0 | CB12: 0 | CC12: 0 | CD12: 0 | CE12: 0 | CF12: 0 | CG12: 0 | CH12: 0 | CI12: 1 | CJ12: 0 | CK12: 0 | CL12: 0 | CM12: 0 | CN12: 0 | CO12: 0 | CP12: 0 | CQ12: 0 | CR12: 0 | CS12: 0 | CT12: 0 | CU12: 0 | CV12: 0 | CW12: 0 | CX12: 0 | CY12: 0 | CZ12: 0 | DA12: 0 | DB12: 0 | DC12: 0 | DD12: 0 | DE12: 0 | DF12: 0 | DG12: 0 | DH12: 0 | DI12: 0 | DJ12: 1 | DK12: 0 | DL12: 0 | DM12: 0 | DN12: 0 | DO12: 0 | DP12: 1 | DQ12: 0 | DR12: 0 | DS12: 0 | DT12: 0 | DU12: 0 | DV12: 0 | DW12: 0 | DX12: 0 | DY12: 0 | DZ12: 0 | EA12: 0 | EB12: 0 | EC12: 0 | ED12: 0 | EE12: 0 | EF12: 0 | EG12: 0 | EH12: 0 | EI12: 0 | EJ12: 0 | EK12: 0 | EL12: 0 | EM12: 0 | EN12: 0 | EO12: 0 | EP12: 0 | EQ12: 0 | ER12: 0 | ES12: 0 | ET12: 0 | EU12: 0 | EV12: 0 | EW12: 0 | EX12: 0 | EY12: 0 | EZ12: 0 | FA12: 0 | FB12: 0 | FC12: 0 | FD12: 0 | FE12: 0 | FF12: 0 | FG12: 0 | FH12: 0 | FI12: 0 | FJ12: 0 | FK12: 0 | FL12: 0 | FM12: 0 | FN12: 0 | FO12: 0 | FP12: 0 | FQ12: 0 | FR12: 0 | FS12: 0 | FT12: 0 | FU12: 0 | FV12: 0 | FW12: 0 | FX12: 0 | FY12: 0 | FZ12: 0 | GA12: 0 | GB12: 0 | GC12: 0 | GD12: 0 | GE12: 0 | GF12: 0 | GG12: 0 | GH12: 0 | GI12: 0 | GJ12: 0 | GK12: 0 | GL12: 0 | GM12: 0 | GN12: 0 | GO12: 0 | GP12: 0 | GQ12: 0 | GR12: 0 | GS12: 0 | GT12: 0 | GU12: 0 | GV12: 0 | GW12: 0 | GX12: 0 | GY12: 0 | GZ12: 0 | HA12: 0 | HB12: 0 | HC12: 0 | HD12: 0 | HE12: 0 | HF12: 0 | HG12: 0 | HH12: 1 | HI12: 0 | HJ12: 0 | HK12: 0 | HL12: 0 | HM12: 0 | HN12: 0 | HO12: 0 | HP12: 0 | HQ12: 0 | HR12: 0 | HS12: 0 | HT12: 0 | HU12: 0 | HV12: 0 | HW12: 0 | HX12: 0 | HY12: 0 | HZ12: 0 | IA12: 0 | IB12: 0 | IC12: 0 | ID12: 0 | IE12: 0 | IF12: 0 | IG12: 0 | IH12: 0 | II12: 0 | IJ12: 0 | IK12: 1 | IL12: 0 | IM12: 0 | IN12: 0 | IO12: 0 | IP12: 0 | IQ12: 0 | IR12: 0 | IS12: 0 | IT12: 0 | IU12: 0 | IV12: 0 | IW12: 0 | IX12: 0 | IY12: 0 | IZ12: 0 | JA12: 0 | JB12: 0 | JC12: 0 | JD12: 0 | JE12: 0 | JF12: 0 | JG12: 0 | JH12: 0 | JI12: 0 | JJ12: 0 | JK12: 0 | JL12: 0 | JM12: 0 | JN12: 0 | JO12: 0 | JP12: 0 | JQ12: 0 | JR12: 0 | JS12: 1 | JT12: 0 | JU12: 0 | JV12: 0 | JW12: 0 | JX12: 0 | JY12: 0 | JZ12: 0 | KA12: 0 | KB12: 0 | KC12: 0 | KD12: 0 | KE12: 0 | KF12: 0 | KG12: 0 | KH12: 0 | KI12: 0 | KJ12: 0 | KK12: 0 | KL12: 0 | KM12: 0 | KN12: 0 | KO12: 0 | KP12: 0 | KQ12: 0 | KR12: 0 | KS12: 0 | KT12: 0 | KU12: 0 | KV12: 0 | KW12: 0 | KX12: 1 | KY12: 0 | KZ12: 0 | LA12: 0 | LB12: 0 | LC12: 0 | LD12: 0 | LE12: 0 | LF12: 0 | LG12: 0 | LH12: 0 | LI12: 0 | LJ12: 0 | LK12: 0 | LL12: 0 | LM12: 0 | LN12: 0 | LO12: 0 | LP12: 0 | LQ12: 0 | LR12: 0 | LS12: 0 | LT12: 0 | LU12: 0 | LV12: 0 | LW12: 0 | LX12: 0 | LY12: 0 | LZ12: 0 | MA12: 0 | MB12: 0 | MC12: 0 | MD12: 0 | ME12: 0 | MF12: 0 | MG12: 0 | MH12: 0 | MI12: 0 | MJ12: 0 | MK12: 0 | ML12: 0 | MM12: 0 | MN12: 0 | MO12: 0 | MP12: 1 | MQ12: 0 | MR12: 1 | MS12: 0 | MT12: 0 | MU12: 0 | MV12: 0 | MW12: 0 | MX12: 0 | MY12: 0 | MZ12: 0 | NA12: 0 | NB12: 0 | NC12: 0 | ND12: 0 | NE12: 0 | NF12: 0 | NG12: 0 | NH12: 0 | NI12: 0 | NJ12: 0 | NK12: 0 | NL12: 0 | NM12: 0 | NN12: 0 | NO12: 0 | NP12: 0 | NQ12: 0 | NR12: 0 | NS12: 0 | NT12: 0 | NU12: 1 | NV12: 0 | NW12: 0 | NX12: 0 | NY12: 0 | NZ12: 1 | OA12: 0 | OB12: 0 | OC12: 0 | OD12: 0 | OE12: 0 | OF12: 0 | OG12: 0 | OH12: 0 | OI12: 0 | OJ12: 0 | OK12: 0 | OL12: 0 | OM12: 0 | ON12: 0 | OO12: 0 | OP12: 0 | OQ12: 0 | OR12: 0 | OS12: 0 | OT12: 0 | OU12: 0 | OV12: 0 | OW12: 0 | OX12: 0 | OY12: 0 | OZ12: 0 | PA12: 0 | PB12: 0 | PC12: 0 | PD12: 0 | PE12: 0 | PF12: 0 | PG12: 0 | PH12: 0 | PI12: 0 | PJ12: 0 | PK12: 0 | PL12: 0 | PM12: 0 | PN12: 1 | PO12: 0 | PP12: 0 | PQ12: 0 | PR12: 0 | PS12: 0 | PT12: 0 | PU12: 0 | PV12: 0 | PW12: 0 | PX12: 0 | PY12: 0 | PZ12: 0 | QA12: 0 | QB12: 0 | QC12: 0 | QD12: 0 | QE12: 0 | QF12: 0 | QG12: 0 | QH12: 0 | QI12: 0 | QJ12: 0 | QK12: 0 | QL12: 0 | QM12: 0 | QN12: 1 | QO12: 0 | QP12: 0 | QQ12: 0 | QR12: 0 | QS12: 0 | QT12: 0 | QU12: 0 | QV12: 0 | QW12: 0 | QX12: 0 | QY12: 0 | QZ12: 0 | RA12: 0 | RB12: 0 | RC12: 0 | RD12: 0 | RE12: 0 | RF12: 0 | RG12: 0 | RH12: 0 | RI12: 0 | RJ12: 0 | RK12: 0 | RL12: 0 | RM12: 0 | RN12: 0 | RO12: 0 | RP12: 0 | RQ12: 0 | RR12: 0 | RS12: 0 | RT12: 0 | RU12: 0 | RV12: 0 | RW12: 1 | RX12: 0 | RY12: 0 | RZ12: 0 | SA12: 0 | SB12: 0 | SC12: 0 | SD12: 0 | SE12: 0 | SF12: 0 | SG12: 0 | SH12: 0 | SI12: 0 | SJ12: 0 | SK12: 0 | SL12: 0 | SM12: 0 | SN12: 0 | SO12: 0 | SP12: 0 | SQ12: 0 | SR12: 0 | SS12: 0 | ST12: 0 | SU12: 0 | SV12: 0 | SW12: 0 | SX12: 0 | SY12: 0 | SZ12: 0 | TA12: 0 | TB12: 0 | TC12: 0 | TD12: 0 | TE12: 0 | TF12: 0 | TG12: 0 | TH12: 0 | TI12: 0 | TJ12: 0 | TK12: 0 | TL12: 0 | TM12: 0 | TN12: 0 | TO12: 0 | TP12: 0 | TQ12: 0 | TR12: 0 | TS12: 0 | TT12: 0 | TU12: 0 | TV12: 0 | TW12: 0 | TX12: 0 | TY12: 0 | TZ12: 0 | UA12: 0 | UB12: 0 | UC12: 0 | UD12: 0 | UE12: 0 | UF12: 0 | UG12: 0 | UH12: 0 | UI12: 0 | UJ12: 0 | UK12: 0 | UL12: 1 | UM12: 0 | UN12: 0 | UO12: 0 | UP12: 0 | UQ12: 0 | UR12: 0 | US12: 0 | UT12: 0 | UU12: 0 | UV12: 0 | UW12: 0 | UX12: 0 | UY12: 0 | UZ12: 0 | VA12: 0 | VB12: 0 | VC12: 0 | VD12: 0 | VE12: 0 | VF12: 0 | VG12: 0 | VH12: 0 | VI12: 0 | VJ12: 0 | VK12: 0 | VL12: 0 | VM12: 0 | VN12: 0 | VO12: 0 | VP12: 0 | VQ12: 0 | VR12: 0 | VS12: 0 | VT12: 0 | VU12: 0 | VV12: 0 | VW12: 0 | VX12: 0 | VY12: 0 | VZ12: 0 | WA12: 0 | WB12: 0 | WC12: 0 | WD12: 0 | WE12: 0 | WF12: 0 | WG12: 0 | WH12: 0 | WI12: 0 | WJ12: 0 | WK12: 1 | WL12: 0 | WM12: 0 | WN12: 0 | WO12: 0 | WP12: 0 | WQ12: 0 | WR12: 0 | WS12: 0 | WT12: 0 | WU12: 0 | WV12: 0 | WW12: 0 | WX12: 0 | WY12: 0 | WZ12: 0 | XA12: 0 | XB12: 0 | XC12: 0 | XD12: 0 | XE12: 0 | XF12: 0 | XG12: 0 | XH12: 0 | XI12: 0 | XJ12: 0 | XK12: 0 | XL12: 0 | XM12: 0 | XN12: 0 | XO12: 0 | XP12: 0 | XQ12: 0 | XR12: 0 | XS12: 0 | XT12: 0 | XU12: 0 | XV12: 0 | XW12: 0 | XX12: 0 | XY12: 0 | XZ12: 0 | YA12: 0 | YB12: 0 | YC12: 0 | YD12: 0 | YE12: 1 | YF12: 0 | YG12: 0 | YH12: 0 | YI12: 0 | YJ12: 0 | YK12: 0 | YL12: 0 | YM12: 0 | YN12: 0 | YO12: 0 | YP12: 0 | YQ12: 0 | YR12: 0 | YS12: 0 | YT12: 0 | YU12: 0 | YV12: 0 | YW12: 0 | YX12: 0 | YY12: 0 | YZ12: 0 | ZA12: 0 | ZB12: 0 | ZC12: 0 | ZD12: 0 | ZE12: 1 | ZF12: 0 | ZG12: 0 | ZH12: 0 | ZI12: 0 | ZJ12: 0 | ZK12: 0 | ZL12: 0 | ZM12: 0 | ZN12: 0 | ZO12: 1 | ZP12: 0 | ZQ12: 0 | ZR12: 0 | ZS12: 0 | ZT12: 0 | ZU12: 0 | ZV12: 0 | ZW12: 0 | ZX12: 0 | ZY12: 0 | ZZ12: 0 | AAA12: 0 | AAB12: 0 | AAC12: 0 | AAD12: 0 | AAE12: 0 | AAF12: 0 | AAG12: 0 | AAH12: 0 | AAI12: 0 | AAJ12: 0 | AAK12: 0 | AAL12: 0 | AAM12: 0 | AAN12: 0 | AAO12: 0 | AAP12: 0 | AAQ12: 0 | AAR12: 0 | AAS12: 0 | AAT12: 0 | AAU12: 0 | AAV12: 0 | AAW12: 0 | AAX12: 0 | AAY12: 0 | AAZ12: 0 | ABA12: 0 | ABB12: 0 | ABC12: 0 | ABD12: 0 | ABE12: 0 | ABF12: 0 | ABG12: 0 | ABH12: 1 | ABI12: 0 | ABJ12: 0 | ABK12: 0 | ABL12: 0 | ABM12: 0 | ABN12: 0 | ABO12: 0 | ABP12: 0 | ABQ12: 0 | ABR12: 0 | ABS12: 0 | ABT12: 0 | ABU12: 0 | ABV12: 0 | ABW12: 0 | ABX12: 0 | ABY12: 0 | ABZ12: 0 | ACA12: 0 | ACB12: 0 | ACC12: 0 | ACD12: 0 | ACE12: 0 | ACF12: 0 | ACG12: 0 | ACH12: 0 | ACI12: 0 | ACJ12: 0 | ACK12: 0 | ACL12: 0 | ACM12: 0 | ACN12: 0 | ACO12: 0 | ACP12: 0 | ACQ12: 0 | ACR12: 0 | ACS12: 0 | ACT12: 0 | ACU12: 0 | ACV12: 1 | ACW12: 0 | ACX12: 0 | ACY12: 0 | ACZ12: 0 | ADA12: 0 | ADB12: 0 | ADC12: 0 | ADD12: 0 | ADE12: 0 | ADF12: 0 | ADG12: 0 | ADH12: 0 | ADI12: 0 | ADJ12: 0 | ADK12: 0 | ADL12: 0 | ADM12: 0 | ADN12: 0 | ADO12: 0 | ADP12: 1 | ADQ12: 0 | ADR12: 0 | ADS12: 0 | ADT12: 0 | ADU12: 0 | ADV12: 0 | ADW12: 0 | ADX12: 0 | ADY12: 0 | ADZ12: 0 | AEA12: 0 | AEB12: 1 | AEC12: 0 | AED12: 0 | AEE12: 0 | AEF12: 0 | AEG12: 0 | AEH12: 0 | AEI12: 0 | AEJ12: 0 | AEK12: 0 | AEL12: 1 | AEM12: 0 | AEN12: 0 | AEO12: 0 | AEP12: 1 | AEQ12: 0 | AER12: 0 | AES12: 0 | AET12: 0 | AEU12: 0 | AEV12: 0 | AEW12: 0 | AEX12: 0 | AEY12: 0 | AEZ12: 0 | AFA12: 0 | AFB12: 0 | AFC12: 0 | AFD12: 1 | AFE12: 0 | AFF12: 0 | AFG12: 0 | AFH12: 0 | AFI12: 0 | AFJ12: 0 | AFK12: 0 | AFL12: 0 | AFM12: 0 | AFN12: 0 | AFO12: 0 | AFP12: 0 | AFQ12: 0 | AFR12: 0 | AFS12: 1 | AFT12: 0 | AFU12: 0 | AFV12: 0 | AFW12: 0 | AFX12: 0 | AFY12: 0 | AFZ12: 0 | AGA12: 1 | AGB12: 0 | AGC12: 0 | AGD12: 0 | AGE12: 1 | AGF12: 0 | AGG12: 0 | AGH12: 0 | AGI12: 0 | AGJ12: 0 | AGK12: 0 | AGL12: 0 | AGM12: 0 | AGN12: 0 | AGO12: 0 | AGP12: 0 | AGQ12: 0 | AGR12: 0 | AGS12: 0 | AGT12: 0 | AGU12: 0 | AGV12: 0 | AGW12: 0 | AGX12: 0 | AGY12: 0 | AGZ12: 0 | AHA12: 0 | AHB12: 0 | AHC12: 0 | AHD12: 0 | AHE12: 0 | AHF12: 0 | AHG12: 0 | AHH12: 0 | AHI12: 0 | AHJ12: 0 | AHK12: 0 | AHL12: 1 | AHM12: 0 | AHN12: 0 | AHO12: 0 | AHP12: 0 | AHQ12: 0 | AHR12: 0 | AHS12: 0 | AHT12: 0 | AHU12: 1 | AHV12: 0 | AHW12: 1 | AHX12: 0 | AHY12: 0 | AHZ12: 0 | AIA12: 0 | AIB12: 0 | AIC12: 0 | AID12: 0 | AIE12: 0 | AIF12: 0 | AIG12: 0 | AIH12: 0 | AII12: 0 | AIJ12: 0 | AIK12: 0 | AIL12: 0 | AIM12: 0 | AIN12: 0 | AIO12: 0 | AIP12: 0 | AIQ12: 0 | AIR12: 0 | AIS12: 0 | AIT12: 0 | AIU12: 0 | AIV12: 0 | AIW12: 0 | AIX12: 0 | AIY12: 0 | AIZ12: 0 | AJA12: 1 | AJB12: 0 | AJC12: 0 | AJD12: 1 | AJE12: 0 | AJF12: 0 | AJG12: 0 | AJH12: 0 | AJI12: 0 | AJJ12: 0 | AJK12: 0 | AJL12: 0 | AJM12: 0 | AJN12: 0 | AJO12: 0 | AJP12: 0 | AJQ12: 0 | AJR12: 0 | AJS12: 0 | AJT12: 0 | AJU12: 0 | AJV12: 0 | AJW12: 0 | AJX12: 0 | AJY12: 0 | AJZ12: 0 | AKA12: 0 | AKB12: 0 | AKC12: 0 | AKD12: 0 | AKE12: 0 | AKF12: 0 | AKG12: 0 | AKH12: 0 | AKI12: 0 | AKJ12: 0 | AKK12: 0 | AKL12: 0 | AKM12: 1 | AKN12: 0 | AKO12: 0 | AKP12: 0 | AKQ12: 0 | AKR12: 0 | AKS12: 0 | AKT12: 0 | AKU12: 0 | AKV12: 0 | AKW12: 0 | AKX12: 0 | AKY12: 0 | AKZ12: 0 | ALA12: 0 | ALB12: 0 | ALC12: 0 | ALD12: 0 | ALE12: 0 | ALF12: 0 | ALG12: 0 | ALH12: 0 | ALI12: 0 | ALJ12: 0 | ALK12: 0 | ALL12: 0 | ALM12: 0 | ALN12: 0 | ALO12: 0 | ALP12: 1 | ALQ12: 0 | ALR12: 0 | ALS12: 0 | ALT12: 0 | ALU12: 0 | ALV12: 0 | ALW12: 0 | ALX12: 0 | ALY12: 0 | ALZ12: 0 | AMA12: 0 | AMB12: 0 | AMC12: 0 | AMD12: 0 | AME12: 0 | AMF12: 0 | AMG12: 0 | AMH12: 0 | AMI12: 0 | ANY12: =IFERROR(MATCH(MIN(ABS(ANF12:ANX12)),ABS(ANF12:ANX12),0),"") ->  | ANZ12: =IFERROR(INDEX(ANF12:ANX12,MIN(MAX(ANY12-1,1),17)),"") ->  | AOA12: =IFERROR(INDEX(ANF12:ANX12,MIN(MAX(ANY12,2),18)),"") ->  | AOB12: =IFERROR(INDEX(ANF12:ANX12,MIN(MAX(ANY12,3),19)),"") ->  | AOC12: =IFERROR(INDEX(AML12:AND12,MIN(MAX(ANY12-1,1),17)),"") ->  | AOD12: =IFERROR(INDEX(AML12:AND12,MIN(MAX(ANY12,2),18)),"") ->  | AOE12: =IFERROR(INDEX(AML12:AND12,MIN(MAX(ANY12,3),19)),"") -> 
A13: =ROW(Variables[[#This Row],[Variable Name]])-ROW(Variables[[#Headers],[Variable Name]]) -> 5 | B13: Cost of money | C13: CostM | D13: =IF(COUNTA(Variables[[#This Row],[Lower Bound]], Variables[[#This Row],[Mode or P]], Variables[[#This Row],[Upper Bound]])=0, "", IF(Variables[[#This Row],[Shape]]="Constant",Variables[[#This Row],[Mode or P]],IF(Variables[[#This Row],[Shape]]="Lognorm",LOGINV(Variables[[#This Row],[Uniform PRNG]],((LN(Variables[[#This Row],[Lower Bound]]) + LN(Variables[[#This Row],[Upper Bound]]))/2),((LN(Variables[[#This Row],[Upper Bound]]) - LN(Variables[[#This Row],[Lower Bound]]))/3.28971)),IF(Variables[[#This Row],[Shape]]="Normal",NORMINV(Variables[[#This Row],[Uniform PRNG]],(Variables[[#This Row],[Upper Bound]]+Variables[[#This Row],[Lower Bound]])/2,(Variables[[#This Row],[Upper Bound]]-Variables[[#This Row],[Lower Bound]])/3.29),IF(Variables[[#This Row],[Shape]]="Uniform",(Variables[[#This Row],[Upper Bound]]-Variables[[#This Row],[Lower Bound]])*Variables[[#This Row],[Uniform PRNG]]+Variables[[#This Row],[Lower Bound]],IF(Variables[[#This Row],[Shape]]="Binary",IF(Variables[[#This Row],[Uniform PRNG]]<Variables[[#This Row],[Mode or P]],1,0),IF(Variables[[#This Row],[Shape]]="Triangular",IF(Variables[[#This Row],[Uniform PRNG]]<(Variables[[#This Row],[Mode or P]]-Variables[[#This Row],[Lower Bound]])/(Variables[[#This Row],[Upper Bound]]-Variables[[#This Row],[Lower Bound]]), 1, 0) * (Variables[[#This Row],[Lower Bound]] + SQRT(Variables[[#This Row],[Uniform PRNG]]*(Variables[[#This Row],[Upper Bound]]-Variables[[#This Row],[Lower Bound]])*(Variables[[#This Row],[Mode or P]]-Variables[[#This Row],[Lower Bound]]))) + IF(Variables[[#This Row],[Uniform PRNG]]>= (Variables[[#This Row],[Mode or P]]-Variables[[#This Row],[Lower Bound]])/(Variables[[#This Row],[Upper Bound]]-Variables[[#This Row],[Lower Bound]]), 1, 0) * (Variables[[#This Row],[Upper Bound]] - SQRT((1-Variables[[#This Row],[Uniform PRNG]]) * (Variables[[#This Row],[Upper Bound]] - Variables[[#This Row],[Lower Bound]]) * (Variables[[#This Row],[Upper Bound]] - Variables[[#This Row],[Mode or P]]))),""))))))) -> 0.04760455086 | E13: Lognorm | F13: 0.03 | H13: 0.09 | I13: CFO estimate | J13: =IFERROR(IF(OR(MIN(Variables[[#This Row],[P(X<T)]], Variables[[#This Row],[P(X>T)]])<0.002,SIGN(Variables[[#This Row],[EOL(X<T)]])=SIGN(Variables[[#This Row],[EOL(X>T)]])),0,IFERROR(IF(B$38=1,IF(Variables[[#This Row],[EOL(X<T)]]<Variables[[#This Row],[EOL(X>T)]],-Variables[[#This Row],[EOL(X<T)]]*Variables[[#This Row],[P(X<T)]],-Variables[[#This Row],[EOL(X>T)]]*Variables[[#This Row],[P(X>T)]]),IF(Variables[[#This Row],[EOL(X<T)]]>Variables[[#This Row],[EOL(X>T)]],Variables[[#This Row],[EOL(X<T)]]*Variables[[#This Row],[P(X<T)]],Variables[[#This Row],[EOL(X>T)]]*Variables[[#This Row],[P(X>T)]])),"")),0) -> 0 | K13: =IF(Variables[[#This Row],[Shape]]="Constant",Variables[[#This Row],[Mode or P]],IF(Variables[[#This Row],[Shape]]="Lognorm",EXP((LN(Variables[[#This Row],[Upper Bound]])+LN(Variables[[#This Row],[Lower Bound]]))/2+((LN(Variables[[#This Row],[Upper Bound]])-LN(Variables[[#This Row],[Lower Bound]]))/3.29)^2/2),IF(Variables[[#This Row],[Shape]]="Normal",(Variables[[#This Row],[Lower Bound]]+Variables[[#This Row],[Upper Bound]])/2,IF(Variables[[#This Row],[Shape]]="Uniform",(Variables[[#This Row],[Lower Bound]]+Variables[[#This Row],[Upper Bound]])/2,IF(Variables[[#This Row],[Shape]]="Binary",Variables[[#This Row],[Mode or P]],IF(Variables[[#This Row],[Shape]]="Triangular",(Variables[[#This Row],[Lower Bound]]+Variables[[#This Row],[Mode or P]]+Variables[[#This Row],[Upper Bound]])/3,"")))))) -> 0.05494080766 | L13: =IF(Variables[[#This Row],[Shape]]="","",(MOD((MOD(MOD(999999999999989,MOD(ScenarioNum*2499997+Variables[[#This Row],[VarID]]*1800451,7450589)*4658+7450581)*383,99991)*231109+MOD(MOD(999999999999989,MOD(ScenarioNum*2246527+Variables[[#This Row],[VarID]]*2399993,7450987)*7580+7560584)*547,231109))*43271,4294967296)+0.5)/4294967296) -> 0.3965693299 | M13: =IF(Variables[[#This Row],[Shape]]="Binary", 1-Variables[[#This Row],[Mode or P]], IF(Variables[[#This Row],[Shape]]<>"",COUNTIF(INDEX($X$9:$AMI$159, ROW(Variables[[#This Row],[Variable Name]])-ROW(Variables[[#Headers],[Variable Name]]), ),"<"&Variables[[#This Row],[Threshold Estimate]])/1000,"")) -> 0.999 | N13: =IF(Variables[[#This Row],[Shape]]<>"",1-Variables[[#This Row],[P(X<T)]],"") -> 0.001 | O13: =IFERROR(AVERAGEIFS(X$7:AMI$7,INDEX(X$9:$AMI$159, ROW(Variables[[#This Row],[Variable Name]])-ROW(Variables[[#Headers],[Variable Name]]), ),IF(Variables[[#This Row],[Shape]]="Binary","=0","<"&Variables[[#This Row],[Threshold Estimate]])),"") -> 4857.19382 | P13: =IFERROR(AVERAGEIFS(X$7:AMI$7,INDEX($X$9:$AMI$159, ROW(Variables[[#This Row],[Variable Name]])-ROW(Variables[[#Headers],[Variable Name]]), ),IF(Variables[[#This Row],[Shape]]="Binary","=1",">"&Variables[[#This Row],[Threshold Estimate]])),"") -> 5715.901192 | Q13: =IFERROR(IF(Variables[[#This Row],[Shape]]="Binary",IF(B$38=1,IF(Variables[[#This Row],[EOL(X<T)]]<Variables[[#This Row],[EOL(X>T)]],0,1),IF(Variables[[#This Row],[EOL(X<T)]]<Variables[[#This Row],[EOL(X>T)]],1,0)), INDEX($AOF$9:$AOF$159, ROW(Variables[[#This Row],[Variable Name]])-ROW(Variables[[#Headers],[Variable Name]]))),"") -> 0.1345590481 | V13: =IFERROR(IF(ISBLANK(Variables[[#This Row],[Variable Name]]), "", Variables[[#This Row],[Variable Name]]), "") -> Cost of money | W13: =IFERROR(IF(ISBLANK(D13), "", D13), "") -> 0.04760455086 | X13: 0.05893346021 | Y13: 0.02409186028 | Z13: 0.05062072669 | AA13: 0.05634365097 | AB13: 0.06372496879 | AC13: 0.08188012612 | AD13: 0.06788841157 | AE13: 0.09346155393 | AF13: 0.08696015333 | AG13: 0.05759737702 | AH13: 0.04245953365 | AI13: 0.03108271647 | AJ13: 0.05918372581 | AK13: 0.06110806132 | AL13: 0.03843201022 | AM13: 0.03599049025 | AN13: 0.04274480928 | AO13: 0.04850015377 | AP13: 0.06446178014 | AQ13: 0.1151261919 | AR13: 0.06442615754 | AS13: 0.03024775052 | AT13: 0.07720376482 | AU13: 0.03538964102 | AV13: 0.03609347007 | AW13: 0.06472712154 | AX13: 0.03539142751 | AY13: 0.05117583989 | AZ13: 0.03610743243 | BA13: 0.05823594931 | BB13: 0.068155527 | BC13: 0.05433836815 | BD13: 0.07395712257 | BE13: 0.05774400217 | BF13: 0.0370960134 | BG13: 0.0619350275 | BH13: 0.0551073504 | BI13: 0.04507191589 | BJ13: 0.07727193187 | BK13: 0.08491112324 | BL13: 0.05140426469 | BM13: 0.09253030145 | BN13: 0.04603988373 | BO13: 0.056144481 | BP13: 0.06512610548 | BQ13: 0.09932351763 | BR13: 0.0431046062 | BS13: 0.06792356735 | BT13: 0.04503250364 | BU13: 0.05506310829 | BV13: 0.04097419403 | BW13: 0.04347810247 | BX13: 0.03961101815 | BY13: 0.05012177767 | BZ13: 0.09190826876 | CA13: 0.03683528329 | CB13: 0.05543881358 | CC13: 0.04485502438 | CD13: 0.05144592888 | CE13: 0.05656143063 | CF13: 0.04845860097 | CG13: 0.02659279621 | CH13: 0.02928247854 | CI13: 0.0752027884 | CJ13: 0.03403392681 | CK13: 0.03423130312 | CL13: 0.03138995316 | CM13: 0.03468008055 | CN13: 0.05310400065 | CO13: 0.05068634668 | CP13: 0.05220747733 | CQ13: 0.1156682698 | CR13: 0.05439461574 | CS13: 0.05364666935 | CT13: 0.04587553708 | CU13: 0.05632929325 | CV13: 0.02212820861 | CW13: 0.05986520737 | CX13: 0.04903173351 | CY13: 0.09132494149 | CZ13: 0.08587479192 | DA13: 0.05613705353 | DB13: 0.04958768603 | DC13: 0.06925862808 | DD13: 0.06612718531 | DE13: 0.06462580351 | DF13: 0.04512588839 | DG13: 0.0401784392 | DH13: 0.0538898578 | DI13: 0.0432121003 | DJ13: 0.05558901436 | DK13: 0.02895519752 | DL13: 0.09973895533 | DM13: 0.03157756969 | DN13: 0.04184189824 | DO13: 0.04454801086 | DP13: 0.07245083654 | DQ13: 0.03738426447 | DR13: 0.0525604883 | DS13: 0.07384556275 | DT13: 0.03945432018 | DU13: 0.08065271196 | DV13: 0.04698918527 | DW13: 0.04113930878 | DX13: 0.06577211998 | DY13: 0.06535039672 | DZ13: 0.03972377318 | EA13: 0.06087018899 | EB13: 0.0921527857 | EC13: 0.08388061298 | ED13: 0.1059928139 | EE13: 0.06398238359 | EF13: 0.06325265849 | EG13: 0.04407010806 | EH13: 0.03686176078 | EI13: 0.09579611534 | EJ13: 0.03953819186 | EK13: 0.03817241958 | EL13: 0.04837584469 | EM13: 0.04603926713 | EN13: 0.04765186382 | EO13: 0.04447642359 | EP13: 0.0774637259 | EQ13: 0.04857714493 | ER13: 0.0656361901 | ES13: 0.07744758268 | ET13: 0.0258177577 | EU13: 0.06383414335 | EV13: 0.07418806133 | EW13: 0.064901445 | EX13: 0.0416408831 | EY13: 0.05541557985 | EZ13: 0.04098659485 | FA13: 0.08652598062 | FB13: 0.04877925266 | FC13: 0.04914653456 | FD13: 0.09543175846 | FE13: 0.04494699916 | FF13: 0.03802565682 | FG13: 0.04020767536 | FH13: 0.04452342548 | FI13: 0.06182896218 | FJ13: 0.08089294378 | FK13: 0.03528500544 | FL13: 0.04402406716 | FM13: 0.04128811257 | FN13: 0.05285477378 | FO13: 0.02422028667 | FP13: 0.04310854824 | FQ13: 0.04431813231 | FR13: 0.03769545097 | FS13: 0.05530589095 | FT13: 0.04124926699 | FU13: 0.05622611036 | FV13: 0.07538978341 | FW13: 0.03315548391 | FX13: 0.02563449057 | FY13: 0.02989603981 | FZ13: 0.04510486972 | GA13: 0.0559492388 | GB13: 0.03115343204 | GC13: 0.0534606543 | GD13: 0.05983971287 | GE13: 0.06097021852 | GF13: 0.0612923568 | GG13: 0.04381278055 | GH13: 0.05673412361 | GI13: 0.05440272966 | GJ13: 0.04876447208 | GK13: 0.07749380161 | GL13: 0.05707850919 | GM13: 0.1338634132 | GN13: 0.03534197542 | GO13: 0.04622933419 | GP13: 0.05546821161 | GQ13: 0.08815572901 | GR13: 0.04977681027 | GS13: 0.05253965357 | GT13: 0.04758703693 | GU13: 0.06019156751 | GV13: 0.04625349095 | GW13: 0.05614589513 | GX13: 0.03153976205 | GY13: 0.05119002471 | GZ13: 0.06509333476 | HA13: 0.04947835711 | HB13: 0.0767434287 | HC13: 0.03584405933 | HD13: 0.02675522233 | HE13: 0.03258529141 | HF13: 0.05933319513 | HG13: 0.04622524577 | HH13: 0.03615388137 | HI13: 0.08113363911 | HJ13: 0.07810206462 | HK13: 0.09988365278 | HL13: 0.04122247724 | HM13: 0.0482289112 | HN13: 0.0430466142 | HO13: 0.03672193995 | HP13: 0.0315416641 | HQ13: 0.04678704244 | HR13: 0.07017485305 | HS13: 0.09440237648 | HT13: 0.05155752394 | HU13: 0.03135513707 | HV13: 0.04583424384 | HW13: 0.03302692733 | HX13: 0.04241716278 | HY13: 0.04214172292 | HZ13: 0.06916203852 | IA13: 0.04996065206 | IB13: 0.05439323474 | IC13: 0.06806001578 | ID13: 0.03121820944 | IE13: 0.03782340331 | IF13: 0.0544010298 | IG13: 0.05803764132 | IH13: 0.1038446477 | II13: 0.04792471626 | IJ13: 0.05793046026 | IK13: 0.06489694586 | IL13: 0.05707551154 | IM13: 0.03923724 | IN13: 0.02920096939 | IO13: 0.07779378125 | IP13: 0.02795571499 | IQ13: 0.05134126625 | IR13: 0.03146181633 | IS13: 0.04665123073 | IT13: 0.03701999417 | IU13: 0.05771796244 | IV13: 0.0401381919 | IW13: 0.07229769937 | IX13: 0.09036395779 | IY13: 0.0443616848 | IZ13: 0.04686007702 | JA13: 0.05224821953 | JB13: 0.09676008565 | JC13: 0.06087365354 | JD13: 0.05493399146 | JE13: 0.07174193682 | JF13: 0.04523241035 | JG13: 0.05495275593 | JH13: 0.06872837598 | JI13: 0.07656459317 | JJ13: 0.06984685135 | JK13: 0.05814394849 | JL13: 0.0468565307 | JM13: 0.04267773169 | JN13: 0.06580822279 | JO13: 0.04648303993 | JP13: 0.05289408089 | JQ13: 0.06890280598 | JR13: 0.05007515245 | JS13: 0.08745650523 | JT13: 0.02204861082 | JU13: 0.03672465533 | JV13: 0.03456570398 | JW13: 0.03544447357 | JX13: 0.05849993448 | JY13: 0.03776280867 | JZ13: 0.07562947317 | KA13: 0.0342543771 | KB13: 0.03513680941 | KC13: 0.06185533214 | KD13: 0.1069791511 | KE13: 0.06155465021 | KF13: 0.0378122932 | KG13: 0.04227581869 | KH13: 0.06747245618 | KI13: 0.05190542206 | KJ13: 0.04420414513 | KK13: 0.03353719242 | KL13: 0.07962631865 | KM13: 0.1035804988 | KN13: 0.05678912794 | KO13: 0.0509545969 | KP13: 0.05448958941 | KQ13: 0.04960878033 | KR13: 0.04291978779 | KS13: 0.03834249812 | KT13: 0.04724229621 | KU13: 0.0474491248 | KV13: 0.04564449652 | KW13: 0.05181644701 | KX13: 0.02257123453 | KY13: 0.03814692113 | KZ13: 0.04721950959 | LA13: 0.04398417486 | LB13: 0.05441202816 | LC13: 0.09917362068 | LD13: 0.03622905797 | LE13: 0.02778154891 | LF13: 0.04826148745 | LG13: 0.05735635877 | LH13: 0.03524456498 | LI13: 0.061433346 | LJ13: 0.04341389671 | LK13: 0.04417925772 | LL13: 0.06973129646 | LM13: 0.07422019262 | LN13: 0.08928050254 | LO13: 0.03633056046 | LP13: 0.04869115505 | LQ13: 0.03205433282 | LR13: 0.08653301826 | LS13: 0.08094723747 | LT13: 0.05749548957 | LU13: 0.06123058718 | LV13: 0.07395591772 | LW13: 0.03579840495 | LX13: 0.05864442381 | LY13: 0.03378854062 | LZ13: 0.03598924112 | MA13: 0.08104521387 | MB13: 0.0478517319 | MC13: 0.04763869885 | MD13: 0.05223784166 | ME13: 0.0370793951 | MF13: 0.06143099456 | MG13: 0.07010939956 | MH13: 0.03557578576 | MI13: 0.05010584901 | MJ13: 0.02811058203 | MK13: 0.05684694521 | ML13: 0.05190360433 | MM13: 0.06931117059 | MN13: 0.0537251195 | MO13: 0.05825814348 | MP13: 0.04714107625 | MQ13: 0.04381304488 | MR13: 0.03058155442 | MS13: 0.06228434461 | MT13: 0.08534016326 | MU13: 0.04346188925 | MV13: 0.09599617717 | MW13: 0.03126943243 | MX13: 0.06661825902 | MY13: 0.04760455086 | MZ13: 0.05257135954 | NA13: 0.04639158959 | NB13: 0.07334604614 | NC13: 0.03462486806 | ND13: 0.0523749278 | NE13: 0.03853533661 | NF13: 0.05206029997 | NG13: 0.05326530568 | NH13: 0.05565864071 | NI13: 0.04415986419 | NJ13: 0.03677725996 | NK13: 0.03722256164 | NL13: 0.05520478116 | NM13: 0.07643339131 | NN13: 0.06409178117 | NO13: 0.05189355639 | NP13: 0.04976393371 | NQ13: 0.05569713407 | NR13: 0.04744885379 | NS13: 0.02705927418 | NT13: 0.06578130566 | NU13: 0.03822645199 | NV13: 0.02962474883 | NW13: 0.04399757805 | NX13: 0.07665098132 | NY13: 0.1231846184 | NZ13: 0.03148124648 | OA13: 0.0417610902 | OB13: 0.05647131879 | OC13: 0.02807559327 | OD13: 0.03580651407 | OE13: 0.0299147809 | OF13: 0.03304587193 | OG13: 0.05524772931 | OH13: 0.05111250719 | OI13: 0.06728406707 | OJ13: 0.05266191882 | OK13: 0.0338352556 | OL13: 0.09032489415 | OM13: 0.0310450614 | ON13: 0.06601631809 | OO13: 0.07809981588 | OP13: 0.02846065947 | OQ13: 0.1691378436 | OR13: 0.04747752916 | OS13: 0.07001788546 | OT13: 0.05463205639 | OU13: 0.03878704424 | OV13: 0.06504909736 | OW13: 0.06159717736 | OX13: 0.0511957978 | OY13: 0.06757589354 | OZ13: 0.05402721762 | PA13: 0.03693152943 | PB13: 0.03563097411 | PC13: 0.04281721823 | PD13: 0.0361631352 | PE13: 0.03587063938 | PF13: 0.05781104423 | PG13: 0.06103366085 | PH13: 0.06942360573 | PI13: 0.06160390611 | PJ13: 0.05249299979 | PK13: 0.02708326473 | PL13: 0.03866755971 | PM13: 0.07015761446 | PN13: 0.03061492546 | PO13: 0.04268712557 | PP13: 0.06681994128 | PQ13: 0.09596804384 | PR13: 0.04819158882 | PS13: 0.06538020413 | PT13: 0.06107025301 | PU13: 0.09477538051 | PV13: 0.03766164331 | PW13: 0.04709685738 | PX13: 0.0567294044 | PY13: 0.04727407692 | PZ13: 0.08336672771 | QA13: 0.05324254648 | QB13: 0.05830357193 | QC13: 0.07082690875 | QD13: 0.06771723311 | QE13: 0.07826306827 | QF13: 0.05199852159 | QG13: 0.0460899451 | QH13: 0.04246844657 | QI13: 0.05252454245 | QJ13: 0.05288715656 | QK13: 0.05595118713 | QL13: 0.07851378313 | QM13: 0.03260470902 | QN13: 0.06515730909 | QO13: 0.04502458764 | QP13: 0.04628923841 | QQ13: 0.03352007248 | QR13: 0.0344054443 | QS13: 0.02570306882 | QT13: 0.03605628005 | QU13: 0.05303079343 | QV13: 0.08725007957 | QW13: 0.02368467366 | QX13: 0.04986410875 | QY13: 0.03721267751 | QZ13: 0.03945888659 | RA13: 0.05669951213 | RB13: 0.04977795828 | RC13: 0.04877758348 | RD13: 0.0616827539 | RE13: 0.06093372664 | RF13: 0.03412811148 | RG13: 0.03760500603 | RH13: 0.0364743712 | RI13: 0.06821897868 | RJ13: 0.09626685691 | RK13: 0.03328139367 | RL13: 0.09136565558 | RM13: 0.05206120966 | RN13: 0.04874261168 | RO13: 0.08259803017 | RP13: 0.06480897509 | RQ13: 0.07584632823 | RR13: 0.0400356982 | RS13: 0.0528274455 | RT13: 0.06227497681 | RU13: 0.07553145525 | RV13: 0.02882915617 | RW13: 0.07007773657 | RX13: 0.05730216308 | RY13: 0.06978640263 | RZ13: 0.05035796606 | SA13: 0.07336952483 | SB13: 0.04545923391 | SC13: 0.08469305353 | SD13: 0.06034403263 | SE13: 0.05237134146 | SF13: 0.04936705844 | SG13: 0.04869534711 | SH13: 0.04767818383 | SI13: 0.03960822405 | SJ13: 0.05509575183 | SK13: 0.03588692087 | SL13: 0.0318377214 | SM13: 0.04852327834 | SN13: 0.0728277878 | SO13: 0.07954895476 | SP13: 0.04065006715 | SQ13: 0.05401276079 | SR13: 0.05003928099 | SS13: 0.08020699626 | ST13: 0.05010987086 | SU13: 0.04630189022 | SV13: 0.06227954867 | SW13: 0.04104620139 | SX13: 0.05959727479 | SY13: 0.04310572993 | SZ13: 0.06466879158 | TA13: 0.05701268702 | TB13: 0.06299807876 | TC13: 0.05899951779 | TD13: 0.1266653615 | TE13: 0.05205777909 | TF13: 0.0460566825 | TG13: 0.04434188762 | TH13: 0.04886024827 | TI13: 0.04769302436 | TJ13: 0.06054293952 | TK13: 0.0345965783 | TL13: 0.02833314428 | TM13: 0.03865640027 | TN13: 0.03599248625 | TO13: 0.05273612374 | TP13: 0.06699367703 | TQ13: 0.06270039236 | TR13: 0.08340836771 | TS13: 0.07585166174 | TT13: 0.05080278249 | TU13: 0.08643015004 | TV13: 0.04259601132 | TW13: 0.05816335382 | TX13: 0.04779912032 | TY13: 0.05624608656 | TZ13: 0.106744243 | UA13: 0.08203433585 | UB13: 0.02989004035 | UC13: 0.04307483659 | UD13: 0.10664403 | UE13: 0.05804342527 | UF13: 0.04080638836 | UG13: 0.03642436154 | UH13: 0.04803543175 | UI13: 0.04556934418 | UJ13: 0.07596611445 | UK13: 0.04564502889 | UL13: 0.06674042427 | UM13: 0.07597185556 | UN13: 0.09339354144 | UO13: 0.04805298107 | UP13: 0.06029543132 | UQ13: 0.05963178842 | UR13: 0.05875121517 | US13: 0.03414884662 | UT13: 0.06308220322 | UU13: 0.04375731885 | UV13: 0.08664248727 | UW13: 0.06432523646 | UX13: 0.03161619675 | UY13: 0.06609287559 | UZ13: 0.0630829072 | VA13: 0.06207732173 | VB13: 0.04996806239 | VC13: 0.02730182565 | VD13: 0.03619702231 | VE13: 0.02643536065 | VF13: 0.08575229248 | VG13: 0.05214355936 | VH13: 0.04501136463 | VI13: 0.0495951347 | VJ13: 0.03696264666 | VK13: 0.08675568381 | VL13: 0.0342986104 | VM13: 0.03019666713 | VN13: 0.03017320514 | VO13: 0.03118586003 | VP13: 0.04212901266 | VQ13: 0.02979037968 | VR13: 0.04210386842 | VS13: 0.02560758358 | VT13: 0.04190532299 | VU13: 0.04276171155 | VV13: 0.03669558122 | VW13: 0.03420338274 | VX13: 0.03507741492 | VY13: 0.0393069263 | VZ13: 0.03897067523 | WA13: 0.05475943513 | WB13: 0.09904528513 | WC13: 0.07263223729 | WD13: 0.06072100798 | WE13: 0.04922922329 | WF13: 0.07612457045 | WG13: 0.05515518782 | WH13: 0.05597584224 | WI13: 0.02313584527 | WJ13: 0.03766687668 | WK13: 0.1047873339 | WL13: 0.02953480946 | WM13: 0.07508555135 | WN13: 0.04343486617 | WO13: 0.06841659686 | WP13: 0.04556592267 | WQ13: 0.0861457946 | WR13: 0.02605919375 | WS13: 0.05002412678 | WT13: 0.03834433789 | WU13: 0.03293569075 | WV13: 0.06132509946 | WW13: 0.0396569759 | WX13: 0.04306893828 | WY13: 0.032343107 | WZ13: 0.06330483226 | XA13: 0.05336503185 | XB13: 0.06231900523 | XC13: 0.04523209613 | XD13: 0.04474592967 | XE13: 0.04866408981 | XF13: 0.08334040643 | XG13: 0.07540533457 | XH13: 0.03507064988 | XI13: 0.02929445825 | XJ13: 0.08693350475 | XK13: 0.04557386451 | XL13: 0.05935063207 | XM13: 0.04376433849 | XN13: 0.05942945201 | XO13: 0.0685438428 | XP13: 0.03795723893 | XQ13: 0.05589197928 | XR13: 0.06482271366 | XS13: 0.05083007423 | XT13: 0.052807198 | XU13: 0.054121685 | XV13: 0.0779942523 | XW13: 0.08108713292 | XX13: 0.06960993183 | XY13: 0.03544444933 | XZ13: 0.04980090902 | YA13: 0.08963841605 | YB13: 0.03417671222 | YC13: 0.05622019909 | YD13: 0.03702284976 | YE13: 0.06403217585 | YF13: 0.08577102727 | YG13: 0.03312282306 | YH13: 0.05991215645 | YI13: 0.1159471043 | YJ13: 0.04849746899 | YK13: 0.07440689744 | YL13: 0.02796926192 | YM13: 0.06626160929 | YN13: 0.1009953948 | YO13: 0.05290640115 | YP13: 0.06275028154 | YQ13: 0.09233859328 | YR13: 0.06059050901 | YS13: 0.05655111149 | YT13: 0.03473587569 | YU13: 0.05652241167 | YV13: 0.03488508875 | YW13: 0.05209475681 | YX13: 0.08293958639 | YY13: 0.04995643369 | YZ13: 0.05087974041 | ZA13: 0.0788940947 | ZB13: 0.05073886968 | ZC13: 0.05654343638 | ZD13: 0.05307589412 | ZE13: 0.0407752937 | ZF13: 0.07029296872 | ZG13: 0.07580793447 | ZH13: 0.05864368622 | ZI13: 0.06640994706 | ZJ13: 0.08289008181 | ZK13: 0.04465390545 | ZL13: 0.03769319764 | ZM13: 0.06850649182 | ZN13: 0.05125070737 | ZO13: 0.05022992158 | ZP13: 0.07499195796 | ZQ13: 0.05269146888 | ZR13: 0.04308522159 | ZS13: 0.02536645733 | ZT13: 0.08195004065 | ZU13: 0.08705486383 | ZV13: 0.04445741204 | ZW13: 0.07871060813 | ZX13: 0.05453626526 | ZY13: 0.05242678195 | ZZ13: 0.03975106089 | AAA13: 0.05121975995 | AAB13: 0.05390566189 | AAC13: 0.07171192302 | AAD13: 0.04896487511 | AAE13: 0.04815134731 | AAF13: 0.06193744818 | AAG13: 0.04705478238 | AAH13: 0.07105413089 | AAI13: 0.05602610301 | AAJ13: 0.04596643966 | AAK13: 0.05883662331 | AAL13: 0.03920230438 | AAM13: 0.08196623608 | AAN13: 0.05774632726 | AAO13: 0.06660309902 | AAP13: 0.04052054118 | AAQ13: 0.05076174104 | AAR13: 0.06605689366 | AAS13: 0.07640693234 | AAT13: 0.08347312617 | AAU13: 0.0472811009 | AAV13: 0.0400106186 | AAW13: 0.06785426894 | AAX13: 0.01889205054 | AAY13: 0.05605382705 | AAZ13: 0.05097918508 | ABA13: 0.05426281201 | ABB13: 0.0682387216 | ABC13: 0.05255286197 | ABD13: 0.04106988323 | ABE13: 0.04160227373 | ABF13: 0.08578671923 | ABG13: 0.03997053214 | ABH13: 0.04167607518 | ABI13: 0.03829512967 | ABJ13: 0.06630645465 | ABK13: 0.03707995608 | ABL13: 0.05625231472 | ABM13: 0.06837101816 | ABN13: 0.04131099141 | ABO13: 0.07554816472 | ABP13: 0.03953883153 | ABQ13: 0.06822877134 | ABR13: 0.02711555377 | ABS13: 0.04205603299 | ABT13: 0.0387160572 | ABU13: 0.0446007183 | ABV13: 0.1077858603 | ABW13: 0.08815848168 | ABX13: 0.05472373992 | ABY13: 0.04241135882 | ABZ13: 0.09212888898 | ACA13: 0.08399294538 | ACB13: 0.04515630404 | ACC13: 0.07246403229 | ACD13: 0.07630599529 | ACE13: 0.0510655696 | ACF13: 0.05745001721 | ACG13: 0.07450368187 | ACH13: 0.03957623048 | ACI13: 0.04110337718 | ACJ13: 0.05910778263 | ACK13: 0.04757556937 | ACL13: 0.04107946399 | ACM13: 0.05494721657 | ACN13: 0.08799482927 | ACO13: 0.03876464069 | ACP13: 0.07444921542 | ACQ13: 0.06252084723 | ACR13: 0.07275612435 | ACS13: 0.04073884679 | ACT13: 0.03948518262 | ACU13: 0.08100316951 | ACV13: 0.06009904371 | ACW13: 0.04446000939 | ACX13: 0.04599291116 | ACY13: 0.04339166416 | ACZ13: 0.05644118636 | ADA13: 0.08659106697 | ADB13: 0.03538946325 | ADC13: 0.05118154297 | ADD13: 0.05398266339 | ADE13: 0.04321636952 | ADF13: 0.03819108322 | ADG13: 0.07038945746 | ADH13: 0.08058081965 | ADI13: 0.05361941415 | ADJ13: 0.07755527279 | ADK13: 0.07274878188 | ADL13: 0.04091576136 | ADM13: 0.06764331139 | ADN13: 0.04248722515 | ADO13: 0.1016882542 | ADP13: 0.02943696794 | ADQ13: 0.05531882632 | ADR13: 0.06069278958 | ADS13: 0.04263372323 | ADT13: 0.06681249702 | ADU13: 0.05340985354 | ADV13: 0.05027549237 | ADW13: 0.0298189613 | ADX13: 0.03902877477 | ADY13: 0.03228093684 | ADZ13: 0.04988054084 | AEA13: 0.07178812843 | AEB13: 0.05674076839 | AEC13: 0.04832010102 | AED13: 0.02850081457 | AEE13: 0.05165399814 | AEF13: 0.02596497006 | AEG13: 0.04096979622 | AEH13: 0.04982747316 | AEI13: 0.09321437453 | AEJ13: 0.02947605301 | AEK13: 0.02569135137 | AEL13: 0.03689740985 | AEM13: 0.04082585616 | AEN13: 0.05318766069 | AEO13: 0.05621765287 | AEP13: 0.06509453792 | AEQ13: 0.03167888787 | AER13: 0.05140726892 | AES13: 0.03660109328 | AET13: 0.05448433782 | AEU13: 0.02859189923 | AEV13: 0.03026326853 | AEW13: 0.0396177113 | AEX13: 0.04996051412 | AEY13: 0.07009817183 | AEZ13: 0.0429311528 | AFA13: 0.03251444063 | AFB13: 0.07115159672 | AFC13: 0.04054729872 | AFD13: 0.03242499925 | AFE13: 0.06494495418 | AFF13: 0.05992323872 | AFG13: 0.06523671101 | AFH13: 0.04612742689 | AFI13: 0.07893885035 | AFJ13: 0.04269799356 | AFK13: 0.04953981148 | AFL13: 0.0327754107 | AFM13: 0.06428213202 | AFN13: 0.03846378294 | AFO13: 0.04947486604 | AFP13: 0.09048718469 | AFQ13: 0.05485275063 | AFR13: 0.03838412151 | AFS13: 0.04902007287 | AFT13: 0.04387867795 | AFU13: 0.05549428636 | AFV13: 0.06183937755 | AFW13: 0.04139840656 | AFX13: 0.05701215195 | AFY13: 0.06116550303 | AFZ13: 0.04705276812 | AGA13: 0.06783809919 | AGB13: 0.04285554181 | AGC13: 0.04914829249 | AGD13: 0.06036190419 | AGE13: 0.05866623289 | AGF13: 0.06751074924 | AGG13: 0.04747018696 | AGH13: 0.049478664 | AGI13: 0.05335560583 | AGJ13: 0.07564189987 | AGK13: 0.03361051377 | AGL13: 0.03835719157 | AGM13: 0.02033211476 | AGN13: 0.05694437676 | AGO13: 0.04935470137 | AGP13: 0.03396888751 | AGQ13: 0.05033818204 | AGR13: 0.04524797151 | AGS13: 0.01789181608 | AGT13: 0.04059129671 | AGU13: 0.1066906292 | AGV13: 0.04745345573 | AGW13: 0.04059611377 | AGX13: 0.04665048208 | AGY13: 0.09832182107 | AGZ13: 0.06175388984 | AHA13: 0.07300477766 | AHB13: 0.03258785087 | AHC13: 0.05175081009 | AHD13: 0.07057086669 | AHE13: 0.02587024654 | AHF13: 0.03214201425 | AHG13: 0.05442051049 | AHH13: 0.0355458257 | AHI13: 0.04414783033 | AHJ13: 0.03738068851 | AHK13: 0.03855792223 | AHL13: 0.07677362925 | AHM13: 0.03565804939 | AHN13: 0.05031244253 | AHO13: 0.03975878177 | AHP13: 0.07910555014 | AHQ13: 0.04491372253 | AHR13: 0.08038067745 | AHS13: 0.06209152199 | AHT13: 0.07218226173 | AHU13: 0.0648435026 | AHV13: 0.07244180017 | AHW13: 0.05557406254 | AHX13: 0.055807418 | AHY13: 0.03853289552 | AHZ13: 0.05047674282 | AIA13: 0.05575609328 | AIB13: 0.06303811166 | AIC13: 0.05939648249 | AID13: 0.06588559944 | AIE13: 0.06208004176 | AIF13: 0.06170726126 | AIG13: 0.06364467377 | AIH13: 0.06646318957 | AII13: 0.03988481961 | AIJ13: 0.04308400025 | AIK13: 0.08404292174 | AIL13: 0.0557678399 | AIM13: 0.04066359754 | AIN13: 0.03302599175 | AIO13: 0.07987743972 | AIP13: 0.06512655773 | AIQ13: 0.05050926036 | AIR13: 0.04778454044 | AIS13: 0.06468716516 | AIT13: 0.04907462199 | AIU13: 0.05642675437 | AIV13: 0.03948767423 | AIW13: 0.03418794648 | AIX13: 0.06108402225 | AIY13: 0.0552092476 | AIZ13: 0.04324261056 | AJA13: 0.02515183402 | AJB13: 0.03194878585 | AJC13: 0.03833465132 | AJD13: 0.06175172542 | AJE13: 0.08374126004 | AJF13: 0.0511322918 | AJG13: 0.0577593287 | AJH13: 0.06692711348 | AJI13: 0.06136785872 | AJJ13: 0.03177245544 | AJK13: 0.05469410849 | AJL13: 0.06431973894 | AJM13: 0.04073207748 | AJN13: 0.05091786213 | AJO13: 0.05249380312 | AJP13: 0.0527797501 | AJQ13: 0.0513532678 | AJR13: 0.0659638912 | AJS13: 0.04252827724 | AJT13: 0.05781276737 | AJU13: 0.05744978045 | AJV13: 0.02991566236 | AJW13: 0.08078670126 | AJX13: 0.04113315531 | AJY13: 0.05556881244 | AJZ13: 0.03892887901 | AKA13: 0.03824339537 | AKB13: 0.06031214687 | AKC13: 0.079537382 | AKD13: 0.04957201543 | AKE13: 0.04100945366 | AKF13: 0.02206548531 | AKG13: 0.07301362566 | AKH13: 0.0503708316 | AKI13: 0.04888989753 | AKJ13: 0.05479796465 | AKK13: 0.0525453069 | AKL13: 0.09145074681 | AKM13: 0.03719592692 | AKN13: 0.06399475404 | AKO13: 0.06621159925 | AKP13: 0.04053006568 | AKQ13: 0.05030542468 | AKR13: 0.03014562143 | AKS13: 0.06983386489 | AKT13: 0.04954256644 | AKU13: 0.07367740559 | AKV13: 0.0384091534 | AKW13: 0.09432777556 | AKX13: 0.058453862 | AKY13: 0.05385648099 | AKZ13: 0.04214764397 | ALA13: 0.1013934421 | ALB13: 0.03371857076 | ALC13: 0.06914061137 | ALD13: 0.05747481813 | ALE13: 0.0348689868 | ALF13: 0.03948989658 | ALG13: 0.08574771779 | ALH13: 0.09195414726 | ALI13: 0.03801822814 | ALJ13: 0.06427026681 | ALK13: 0.0393239426 | ALL13: 0.06985147574 | ALM13: 0.05579287101 | ALN13: 0.09065223621 | ALO13: 0.04108316546 | ALP13: 0.05663228753 | ALQ13: 0.074646015 | ALR13: 0.03670806889 | ALS13: 0.06170342372 | ALT13: 0.0866793356 | ALU13: 0.06184076347 | ALV13: 0.03427370442 | ALW13: 0.07768445044 | ALX13: 0.0591010144 | ALY13: 0.02747224413 | ALZ13: 0.06145970974 | AMA13: 0.03606112441 | AMB13: 0.07020619462 | AMC13: 0.05239224436 | AMD13: 0.06550340082 | AME13: 0.05478548514 | AMF13: 0.03304687754 | AMG13: 0.02775051913 | AMH13: 0.06155141226 | AMI13: 0.06196259889 | AML13: 0.02912891454 | AMM13: 0.03337729021 | AMN13: 0.03620079118 | AMO13: 0.03848524796 | AMP13: 0.04076509279 | AMQ13: 0.04304747805 | AMR13: 0.04543333011 | AMS13: 0.04783681805 | AMT13: 0.04991262106 | AMU13: 0.05187713496 | AMV13: 0.0540251364 | AMW13: 0.05612231897 | AMX13: 0.05864424206 | AMY13: 0.06164913555 | AMZ13: 0.06479690196 | ANA13: 0.06874392793 | ANB13: 0.0739496635 | ANC13: 0.08067548914 | AND13: 0.09232871311 | ANF13: 5055.623935 | ANG13: 5744.22375 | ANH13: 6712.350059 | ANI13: 6584.326451 | ANJ13: 6148.743044 | ANK13: 5765.617288 | ANL13: 6083.30724 | ANM13: 6020.667043 | ANN13: 5115.377445 | ANO13: 5571.021357 | ANP13: 5328.19521 | ANQ13: 4388.31941 | ANR13: 3397.993806 | ANS13: 3314.170384 | ANT13: 3598.301143 | ANU13: 3419.388737 | ANV13: 4176.746632 | ANW13: 3441.835503 | ANX13: 2979.950263 | ANY13: =IFERROR(MATCH(MIN(ABS(ANF13:ANX13)),ABS(ANF13:ANX13),0),"") -> 19 | ANZ13: =IFERROR(INDEX(ANF13:ANX13,MIN(MAX(ANY13-1,1),17)),"") -> 4176.746632 | AOA13: =IFERROR(INDEX(ANF13:ANX13,MIN(MAX(ANY13,2),18)),"") -> 3441.835503 | AOB13: =IFERROR(INDEX(ANF13:ANX13,MIN(MAX(ANY13,3),19)),"") -> 2979.950263 | AOC13: =IFERROR(INDEX(AML13:AND13,MIN(MAX(ANY13-1,1),17)),"") -> 0.0739496635 | AOD13: =IFERROR(INDEX(AML13:AND13,MIN(MAX(ANY13,2),18)),"") -> 0.08067548914 | AOE13: =IFERROR(INDEX(AML13:AND13,MIN(MAX(ANY13,3),19)),"") -> 0.09232871311 | AOF13: 0.1345590481
V14: =IFERROR(IF(ISBLANK(Variables[[#This Row],[Variable Name]]), "", Variables[[#This Row],[Variable Name]]), "") -> 
A15: Decision Model Summary | V15: Normal
A16: Use this space to describe your decision model or cash flow. | V16: Binary
D17: Years | V17: Uniform
C18: 0 | D18: 1 | E18: 2 | F18: 3 | G18: 4 | H18: 5 | V18: Lognorm
A19: Costs | V19: Triangular
A20: Initial Development Costs | C20: =-DevC -> -5998.944049 | V20: Constant
A21: Cancellation? (1=cancelled) | C21: =Canc -> 0
A23: Benefits
A24: Labor savings | D24: =LoadLab*Reduc*(1-$C21) -> 5418.044429 | E24: =LoadLab*Reduc*(1-$C21) -> 5418.044429 | F24: =LoadLab*Reduc*(1-$C21) -> 5418.044429 | G24: =LoadLab*Reduc*(1-$C21) -> 5418.044429 | H24: =LoadLab*Reduc*(1-$C21) -> 5418.044429
A26: Net Cash Flow | C26: =C24+C20 -> -5998.944049 | D26: =D24+D20 -> 5418.044429 | E26: =E24+E20 -> 5418.044429 | F26: 5418.044429 | G26: 5418.044429 | H26: 5418.044429
A28: Results Summary
A29: This section shows the output of the simulation in two charts: a histogram of NPVs and a loss exceedance curve. Certain Monetary Equivalent (CME) is also computed. Enter chart min and increment size to modify how the histogram is displayed.
C31: Histogram of Simulated NPV | G31: Loss Exceedance Curve
A33: Average NPV | B33: =IFERROR(AVERAGE(X7:AMI7), 0) -> 4858.052527
A34: Average Loss | B34: =IFERROR(SUMIF(X7:AMI7,"<0")/COUNTIF(X7:AMI7,"<0"), 0) -> -3573.819853
A35: Base EOL | B35: =IFERROR(IF(B38=1,-AVERAGEIF(X7:AMI7,"<=0")*B36,AVERAGEIF(X7:AMI7,">=0")*(1-B36)),0) -> 814.8309265
A36: P(NPV<0) | B36: =COUNTIF(X7:AMI7,"<0")/1000 -> 0.228
A37: CME | B37: =IFERROR(-B51*LN(1-AVERAGE(X8:AMI8)), 0) -> 716.1059807
A38: Default Action (1=Invest) | B38: =IF(B33>0,1,0) -> 1
A39: Sum of Individual EVPIs | B39: =SUM(J9:J13) -> 605.2806309
A41: Chart Min | B41: -20000
A42: Increment | B42: 1000
A43: Chart Max | B43: =B41+B42*30 -> 10000
A45: The probability of losing more than | B45: -4000
A46: is | B46: =_xlfn.PERCENTRANK.INC(X7:AMI7,B45,) -> 0.079
A49: Constant Absolute Risk Aversion | C49: Data for Graphs
C50: The table below ais used to construct the above histogram and loss exceedance tolerance curve. The size of the bins can be changed using the above yellow cells
A51: X | B51: 5000 | C51: Increment Midpoint | D51: Increment Lower Bound | E51: Increment Upper Bound | F51: Count less than Upper Bound | G51: Number within Increment | H51: Loss Exceedance Probability | I51: Loss Exceeded
A52: Award | B52: Probability | C52: =B41 -> -20000 | D52: =C52-B$42/2 -> -20500 | E52: =C52+B$42/2 -> -19500 | F52: =COUNTIF(X$7:AMI$7,"<="&E52) -> 0 | G52: =F52 -> 0 | H52: =COUNTIF(X$7:AMI$7,"<"&C52)/1000 -> 0 | I52: =-C52 -> 20000
A53: 2000 | B53: 0.25 | C53: =C52+B$42 -> -19000 | D53: =C53-B$42/2 -> -19500 | E53: =C53+B$42/2 -> -18500 | F53: =COUNTIF(X$7:AMI$7,"<="&E53) -> 0 | G53: =F53-F52 -> 0 | H53: =COUNTIF(X$7:AMI$7,"<"&C53)/1000 -> 0 | I53: 19000
A54: Utility | B54: Certain Monetary Equivalent | C54: =C53+B$42 -> -18000 | D54: =C54-B$42/2 -> -18500 | E54: =C54+B$42/2 -> -17500 | F54: =COUNTIF(X$7:AMI$7,"<="&E54) -> 0 | G54: 0 | H54: =COUNTIF(X$7:AMI$7,"<"&C54)/1000 -> 0 | I54: 18000
A55: =1-EXP(-A53/B51) -> 0.329679954 | B55: =-B51*LN(1-A55*B53) -> 430.0774843 | C55: -17000 | D55: -17500 | E55: -16500 | F55: 0 | G55: 0 | H55: 0 | I55: 17000
A56: Flip a coin… | C56: -16000 | D56: -16500 | E56: -15500 | F56: 0 | G56: 0 | H56: 0 | I56: 16000
C57: -15000 | D57: -15500 | E57: -14500 | F57: 0 | G57: 0 | H57: 0 | I57: 15000
C58: -14000 | D58: -14500 | E58: -13500 | F58: 2 | G58: 2 | H58: 0 | I58: 14000
C59: -13000 | D59: -13500 | E59: -12500 | F59: 5 | G59: 3 | H59: 0.002 | I59: 13000
C60: -12000 | D60: -12500 | E60: -11500 | F60: 7 | G60: 2 | H60: 0.006 | I60: 12000
A61: Win $X | B61: Lose $X/2 | C61: -11000 | D61: -11500 | E61: -10500 | F61: 11 | G61: 4 | H61: 0.009 | I61: 11000
A62: Risk Tolerance | C62: -10000 | D62: -10500 | E62: -9500 | F62: 18 | G62: 7 | H62: 0.015 | I62: 10000
A63: To use the stated loss exceedance tolerance curve with the loss exceedance curve above fill in a set of loss and probabilities such that the loss at each probability is barely acceptable. | C63: -9000 | D63: -9500 | E63: -8500 | F63: 19 | G63: 1 | H63: 0.018 | I63: 9000
A64: Loss (per year) | B64: Acceptable P Loss Exceeded | C64: -8000 | D64: -8500 | E64: -7500 | F64: 29 | G64: 10 | H64: 0.023 | I64: 8000
A65: 1000 | B65: 0.1 | C65: -7000 | D65: -7500 | E65: -6500 | F65: 37 | G65: 8 | H65: 0.031 | I65: 7000
A66: 2000 | B66: 0.05 | C66: -6000 | D66: -6500 | E66: -5500 | F66: 53 | G66: 16 | H66: 0.044 | I66: 6000
A67: 10000 | B67: 0.01 | C67: -5000 | D67: -5500 | E67: -4500 | F67: 71 | G67: 18 | H67: 0.061 | I67: 5000
A68: 50000 | B68: 0.0001 | C68: -4000 | D68: -4500 | E68: -3500 | F68: 93 | G68: 22 | H68: 0.08 | I68: 4000
C69: -3000 | D69: -3500 | E69: -2500 | F69: 119 | G69: 26 | H69: 0.104 | I69: 3000
C70: -2000 | D70: -2500 | E70: -1500 | F70: 158 | G70: 39 | H70: 0.138 | I70: 2000
C71: -1000 | D71: -1500 | E71: -500 | F71: 197 | G71: 39 | H71: 0.173 | I71: 1000
C72: 0 | D72: -500 | E72: 500 | F72: 255 | G72: 58 | H72: 0.228 | I72: 0
C73: 1000 | D73: 500 | E73: 1500 | F73: 314 | G73: 59 | H73: 0.283 | I73: -1000
C74: 2000 | D74: 1500 | E74: 2500 | F74: 380 | G74: 66 | H74: 0.353 | I74: -2000
C75: 3000 | D75: 2500 | E75: 3500 | F75: 445 | G75: 65 | H75: 0.415 | I75: -3000
C76: 4000 | D76: 3500 | E76: 4500 | F76: 516 | G76: 71 | H76: 0.489 | I76: -4000
C77: 5000 | D77: 4500 | E77: 5500 | F77: 566 | G77: 50 | H77: 0.541 | I77: -5000
C78: 6000 | D78: 5500 | E78: 6500 | F78: 625 | G78: 59 | H78: 0.601 | I78: -6000
C79: 7000 | D79: 6500 | E79: 7500 | F79: 675 | G79: 50 | H79: 0.644 | I79: -7000
C80: 8000 | D80: 7500 | E80: 8500 | F80: 727 | G80: 52 | H80: 0.705 | I80: -8000
C81: 9000 | D81: 8500 | E81: 9500 | F81: 768 | G81: 41 | H81: 0.746 | I81: -9000
C82: 10000 | D82: 9500 | E82: 10500 | F82: 799 | G82: 31 | H82: 0.781 | I82: -10000
C83: 11000 | D83: 10500 | E83: 11500 | F83: 833 | G83: 34 | H83: 0.817 | I83: -11000
C84: 12000 | D84: 11500 | E84: 12500 | F84: 856 | G84: 23 | H84: 0.847 | I84: -12000
C85: 13000 | D85: 12500 | E85: 13500 | F85: 888 | G85: 32 | H85: 0.876 | I85: -13000
C86: 14000 | D86: 13500 | E86: 14500 | F86: 910 | G86: 22 | H86: 0.899 | I86: -14000
C87: 15000 | D87: 14500 | E87: 15500 | F87: 934 | G87: 24 | H87: 0.92 | I87: -15000
C88: 16000 | D88: 15500 | E88: 16500 | F88: 949 | G88: 15 | H88: 0.942 | I88: -16000
C89: 17000 | D89: 16500 | E89: 17500 | F89: 966 | G89: 17 | H89: 0.962 | I89: -17000
C90: 18000 | D90: 17500 | E90: 18500 | F90: 974 | G90: 8 | H90: 0.972 | I90: -18000
C91: 19000 | D91: 18500 | E91: 19500 | F91: 982 | G91: 8 | H91: 0.979 | I91: -19000
C92: 20000 | D92: 19500 | E92: 20500 | F92: 988 | G92: 6 | H92: 0.987 | I92: -20000
C93: 21000 | D93: 20500 | E93: 21500 | F93: 991 | G93: 3 | H93: 0.989 | I93: -21000
C94: 22000 | D94: 21500 | E94: 22500 | F94: 993 | G94: 2 | H94: 0.992 | I94: -22000
C95: 23000 | D95: 22500 | E95: 23500 | F95: 995 | G95: 2 | H95: 0.994 | I95: -23000
C96: 24000 | D96: 23500 | E96: 24500 | F96: 997 | G96: 2 | H96: 0.995 | I96: -24000
C97: 25000 | D97: 24500 | E97: 25500 | F97: 998 | G97: 1 | H97: 0.997 | I97: -25000
C98: 26000 | D98: 25500 | E98: 26500 | F98: 998 | G98: 0 | H98: 0.998 | I98: -26000
C99: 27000 | D99: 26500 | E99: 27500 | F99: 998 | G99: 0 | H99: 0.998 | I99: -27000
C100: 28000 | D100: 27500 | E100: 28500 | F100: 999 | G100: 1 | H100: 0.999 | I100: -28000
C101: 29000 | D101: 28500 | E101: 29500 | F101: 999 | G101: 0 | H101: 0.999 | I101: -29000
C102: 30000 | D102: 29500 | E102: 30500 | F102: 999 | G102: 0 | H102: 0.999 | I102: -30000
C103: 31000 | D103: 30500 | E103: 31500 | F103: 999 | G103: 0 | H103: 0.999 | I103: -31000
W156: =IFERROR(IF(ISBLANK(Variables[[#This Row],[Simulated Value]]), "", Variables[[#This Row],[Simulated Value]]), "") -> 
W157: =IFERROR(IF(ISBLANK(Variables[[#This Row],[Simulated Value]]), "", Variables[[#This Row],[Simulated Value]]), "") -> 
W158: =IFERROR(IF(ISBLANK(Variables[[#This Row],[Simulated Value]]), "", Variables[[#This Row],[Simulated Value]]), "") -> 
W159: =IFERROR(IF(ISBLANK(Variables[[#This Row],[Simulated Value]]), "", Variables[[#This Row],[Simulated Value]]), "") -> 

Sheet Beta Distribution
A1: The Beta Distribution for Project Cancellation
A2: This spreadsheet computes how uncertainty about an estimate of a "population proportion" (e.g., "what percentage of customers want X?"). It uses a method called a beta distrubtion, which allows for establishing a "prior" uncertainty which is updated with new data. Enter values in the yellow "prior" fields to set the initial estimate. Enter "hits" and "misses" from a random sample in the yellow "Observations" fields. We are using it here as a method of estimating cancellation frequency of projects given a prior of various project cancellation studies.
B4: Prior | C4: w/Data | E4: Observations
A5: alpha | B5: 1.5 | C5: =B5+F5 -> 3.5 | E5: "Hits" (Cancellations) | F5: 2
A6: beta | B6: 90 | C6: =B6+F6 -> 522 | E6: "Misses" | F6: =F7-F5 -> 432
E7: Total Observations of Project-Months | F7: 434
A8: Monthly Rate
A9: P5 | B9: =_xlfn.BETA.INV(0.05,B5,B6) -> 0.001947401769 | C9: =_xlfn.BETA.INV(0.05,C5,C6) -> 0.002068907512
A10: Mode | B10: =_xlfn.BETA.INV(0.5,B5,B6) -> 0.01302247619 | C10: =_xlfn.BETA.INV(0.5,C5,C6) -> 0.006045512125
A11: Mean | B11: =B5/(B5+B6) -> 0.01639344262 | C11: =C5/(C5+C6) -> 0.006660323501
A12: P95 | B12: =_xlfn.BETA.INV(0.95,B5,B6) -> 0.04237172763 | C12: =_xlfn.BETA.INV(0.95,C5,C6) -> 0.01335220041
A13: Annualized
A14: P5 | B14: =1-(1-B9)^12 -> 0.02312014223 | C14: =1-(1-C9)^12 -> 0.0245463244
A15: Mode | B15: =1-(1-B10)^12 -> 0.1455490196 | C15: 0.07018191793
A16: Mean | B16: 0.1799185574 | C16: 0.07706016355
A17: P95 | B17: 0.4052101991 | C17: 0.1489681381
A19: Chart Distribution Calculations
A20: Population Proportion | B20: Prior | C20: w/Data | E20: Calcs for Chart Boundaries
A21: 0.001 | B21: =_xlfn.BETA.DIST(A21+A$21/2,B$5,B$6,1)-_xlfn.BETA.DIST(A21-A$21/2,B$5,B$6,1) -> 0.02758288276 | C21: =_xlfn.BETA.DIST(A21+A$21/2,C$5,C$6,1)-_xlfn.BETA.DIST(A21-A$21/2,C$5,C$6,1) -> 0.01960413396 | E21: =E22 -> 0.001947401769 | F21: 0
A22: =A21+A$21 -> 0.002 | B22: 0.03605265745 | C22: 0.06192067426 | E22: =B9 -> 0.001947401769 | F22: =VLOOKUP(E22,A$21:B$1019,2) -> 0.02758288276
A23: =A22+A$21 -> 0.003 | B23: 0.04047135939 | C23: 0.1008351122 | E23: =E24 -> 0.04237172763 | F23: 0
A24: 0.004 | B24: 0.04277468474 | C24: 0.122891042 | E24: =B12 -> 0.04237172763 | F24: =VLOOKUP(E24,A$21:B$1019,2) -> 0.004354000619
A25: 0.005 | B25: 0.04375205763 | C25: 0.1274504458 | E25: =E26 -> 0.002068907512 | F25: 0
A26: 0.006 | B26: 0.04383618919 | C26: 0.1192688066 | E26: =C9 -> 0.002068907512 | F26: =VLOOKUP(E26,A$21:C$1019,3) -> 0.06192067426
A27: 0.007 | B27: 0.04329854028 | C27: 0.1039389547 | E27: =E28 -> 0.01335220041 | F27: 0
A28: 0.008 | B28: 0.04232292968 | C28: 0.08596235369 | E28: =C12 -> 0.01335220041 | F28: =VLOOKUP(E28,A$21:C$1019,3) -> 0.02088117337
A29: 0.009 | B29: 0.04103986883 | C29: 0.06830063179
A30: 0.01 | B30: 0.03954491196 | C30: 0.05257212453
A31: 0.011 | B31: 0.03790944238 | C31: 0.03943570307
A32: 0.012 | B32: 0.03618747442 | C32: 0.02895601244
A33: 0.013 | B33: 0.03442017881 | C33: 0.02088117337
A34: 0.014 | B34: 0.03263902258 | C34: 0.01482744938
A35: 0.015 | B35: 0.03086802091 | C35: 0.01038885724
A36: 0.016 | B36: 0.02912539602 | C36: 0.007194153627
A37: 0.017 | B37: 0.02742482557 | C37: 0.004930507896
A38: 0.018 | B38: 0.02577639902 | C38: 0.003348048459
A39: 0.019 | B39: 0.02418736055 | C39: 0.002254699491
A40: 0.02 | B40: 0.02266269304 | C40: 0.001507051579
A41: 0.021 | B41: 0.02120558155 | C41: 0.001000472152
A42: 0.022 | B42: 0.01981778376 | C42: 0.000660044117
A43: 0.023 | B43: 0.01849992802 | C43: 0.0004329639061
A44: 0.024 | B44: 0.0172517542 | C44: 0.0002825092901
A45: 0.025 | B45: 0.01607230903 | C45: 0.0001834357929
A46: 0.026 | B46: 0.01496010487 | C46: 0.0001185642826
A47: 0.027 | B47: 0.0139132489 | C47: 7.630858781e-05
A48: 0.028 | B48: 0.01292954837 | C48: 4.891697488e-05
A49: 0.029 | B49: 0.01200659617 | C49: 3.124042436e-05
A50: 0.03 | B50: 0.01114184039 | C50: 1.988104655e-05
A51: 0.031 | B51: 0.01033264053 | C51: 1.260988368e-05
A52: 0.032 | B52: 0.009576312929 | C52: 7.972763223e-06
A53: 0.033 | B53: 0.008870167137 | C53: 5.02576198e-06
A54: 0.034 | B54: 0.008211534802 | C54: 3.159026626e-06
A55: 0.035 | B55: 0.007597792442 | C55: 1.980252168e-06
A56: 0.036 | B56: 0.0070263791 | C56: 1.238101246e-06
A57: 0.037 | B57: 0.006494809792 | C57: 7.721621615e-07
A58: 0.038 | B58: 0.006000685472 | C58: 4.804209057e-07
A59: 0.039 | B59: 0.005541700139 | C59: 2.982202574e-07
A60: 0.04 | B60: 0.005115645601 | C60: 1.847106499e-07
A61: 0.041 | B61: 0.004720414305 | C61: 1.141618874e-07
A62: 0.042 | B62: 0.004354000619 | C62: 7.041368122e-08
A63: 0.043 | B63: 0.004014500848 | C63: 4.3344065e-08
A64: 0.044 | B64: 0.003700112239 | C64: 2.662973131e-08
A65: 0.045 | B65: 0.003409131193 | C65: 1.633030999e-08
A66: 0.046 | B66: 0.003139950845 | C66: 9.9962425e-09
A67: 0.047 | B67: 0.002891058174 | C67: 6.108245021e-09
A68: 0.048 | B68: 0.002661030758 | C68: 3.726100761e-09
A69: 0.049 | B69: 0.002448533263 | C69: 2.269190613e-09
A70: 0.05 | B70: 0.00225231378 | C70: 1.379698578e-09
A71: 0.051 | B71: 0.002071200042 | C71: 8.375516947e-10
A72: 0.052 | B72: 0.001904095606 | C72: 5.076562504e-10
A73: 0.053 | B73: 0.001749976031 | C73: 3.072373467e-10
A74: 0.054 | B74: 0.001607885091 | C74: 1.856687026e-10
A75: 0.055 | B75: 0.001476931055 | C75: 1.120411541e-10
A76: 0.056 | B76: 0.001356283057 | C76: 6.751554871e-11
A77: 0.057 | B77: 0.001245167574 | C77: 4.062838954e-11
A78: 0.058 | B78: 0.001142865013 | C78: 2.441535862e-11
A79: 0.059 | B79: 0.001048706444 | C79: 1.465294552e-11
A80: 0.06 | B80: 0.0009620704561 | C80: 8.782530259e-12
A81: 0.061 | B81: 0.0008823801561 | C81: 5.257017044e-12
A82: 0.062 | B82: 0.000809100314 | C82: 3.14293036e-12
A83: 0.063 | B83: 0.0007417346449 | C83: 1.876609979e-12
A84: 0.064 | B84: 0.0006798232343 | C84: 1.119104809e-12
A85: 0.065 | B85: =_xlfn.BETA.DIST(A85+A$21/2,B$5,B$6,1)-_xlfn.BETA.DIST(A85-A$21/2,B$5,B$6,1) -> 0.0006229401023 | C85: =_xlfn.BETA.DIST(A85+A$21/2,C$5,C$6,1)-_xlfn.BETA.DIST(A85-A$21/2,C$5,C$6,1) -> 6.666889263e-13
A86: 0.066 | B86: 0.0005706909022 | C86: 3.965716644e-13
A87: =A86+A$21 -> 0.067 | B87: 0.0005227107517 | C87: 2.355893258e-13
A88: 0.068 | B88: 0.0004786621915 | C88: 1.398881011e-13
A89: 0.069 | B89: 0.0004382332664 | C89: 8.304468224e-14
A90: 0.07 | B90: 0.000401135724 | C90: 4.907185769e-14
A91: 0.071 | B91: 0.0003671033267 | C91: 2.908784325e-14
A92: 0.072 | B92: 0.0003358902704 | C92: 1.709743458e-14
A93: 0.073 | B93: 0.0003072697059 | C93: 1.021405183e-14
A94: 0.074 | B94: 0.0002810323569 | C94: 5.884182031e-15
A95: 0.075 | B95: 0.0002569852306 | C95: 3.552713679e-15
A96: 0.076 | B96: 0.0002349504136 | C96: 2.109423747e-15
A97: 0.077 | B97: 0.0002147639517 | C97: 1.110223025e-15
A98: 0.078 | B98: 0.0001962748049 | C98: 0
A99: 0.079 | B99: 0.0001793438765 | C99: 0
A100: 0.08 | B100: 0.0001638431093 | C100: 0
A101: 0.081 | B101: 0.0001496546464 | C101: 0
A102: 0.082 | B102: 0.0001366700516 | C102: 0
A103: 0.083 | B103: 0.000124789586 | C103: 0
A104: 0.084 | B104: 0.0001139215369 | C104: 0
A105: 0.085 | B105: 0.0001039815959 | C105: 0
A106: 0.086 | B106: 9.489228251e-05 | C106: 0
A107: 0.087 | B107: 8.65824106e-05 | C107: 0
A108: 0.088 | B108: 7.898659429e-05 | C108: 0
A109: 0.089 | B109: 7.204479104e-05 | C109: 0
A110: 0.09 | B110: 6.570187909e-05 | C110: 0
A111: 0.091 | B111: 5.99072668e-05 | C111: 0
A112: 0.092 | B112: 5.461453183e-05 | C112: 0
A113: 0.093 | B113: 4.978108782e-05 | C113: 0
A114: 0.094 | B114: 4.536787668e-05 | C114: 0
A115: 0.095 | B115: 4.133908469e-05 | C115: 0
A116: 0.096 | B116: 3.766188053e-05 | C116: 0
A117: 0.097 | B117: 3.430617375e-05 | C117: 0
A118: 0.098 | B118: 3.124439212e-05 | C118: 0
A119: 0.099 | B119: 2.845127644e-05 | C119: 0
A120: 0.1 | B120: 2.590369148e-05 | C120: 0
A121: 0.101 | B121: 2.358045201e-05 | C121: 0
A122: 0.102 | B122: 2.146216244e-05 | C122: 0
A123: 0.103 | B123: 1.95310694e-05 | C123: 0
A124: 0.104 | B124: 1.777092604e-05 | C124: 0
A125: 0.105 | B125: 1.616686719e-05 | C125: 0
A126: 0.106 | B126: 1.470529461e-05 | C126: 0
A127: 0.107 | B127: 1.337377151e-05 | C127: 0
A128: 0.108 | B128: 1.216092554e-05 | C128: 0
A129: 0.109 | B129: 1.105635978e-05 | C129: 0
A130: 0.11 | B130: 1.005057083e-05 | C130: 0
A131: 0.111 | B131: 9.134873751e-06 | C131: 0
A132: 0.112 | B132: 8.301333038e-06 | C132: 0
A133: 0.113 | B133: 7.542699322e-06 | C133: 0
A134: 0.114 | B134: 6.852351277e-06 | C134: 0
A135: 0.115 | B135: 6.224242319e-06 | C135: 0
A136: 0.116 | B136: 5.652851733e-06 | C136: 0
A137: 0.117 | B137: 5.133139848e-06 | C137: 0
A138: 0.118 | B138: 4.66050695e-06 | C138: 0
A139: 0.119 | B139: 4.230755627e-06 | C139: 0
A140: 0.12 | B140: 3.840056258e-06 | C140: 0
A141: 0.121 | B141: 3.484915402e-06 | C141: 0
A142: 0.122 | B142: 3.162146846e-06 | C142: 0
A143: 0.123 | B143: 2.868845089e-06 | C143: 0
A144: 0.124 | B144: 2.60236107e-06 | C144: 0
A145: 0.125 | B145: 2.360279944e-06 | C145: 0
A146: 0.126 | B146: 2.140400758e-06 | C146: 0
A147: 0.127 | B147: 1.940717838e-06 | C147: 0
A148: 0.128 | B148: 1.759403774e-06 | C148: 0
A149: 0.129 | B149: =_xlfn.BETA.DIST(A149+A$21/2,B$5,B$6,1)-_xlfn.BETA.DIST(A149-A$21/2,B$5,B$6,1) -> 1.594793857e-06 | C149: =_xlfn.BETA.DIST(A149+A$21/2,C$5,C$6,1)-_xlfn.BETA.DIST(A149-A$21/2,C$5,C$6,1) -> 0
A150: 0.13 | B150: 1.445371843e-06 | C150: 0
A151: =A150+A$21 -> 0.131 | B151: 1.309756946e-06 | C151: 0
A152: 0.132 | B152: 1.186691939e-06 | C152: 0
A153: 0.133 | B153: 1.075032291e-06 | C153: 0
A154: 0.134 | B154: 9.737362318e-07 | C154: 0
A155: 0.135 | B155: 8.81855682e-07 | C155: 0
A156: 0.136 | B156: 7.98527968e-07 | C156: 0
A157: 0.137 | B157: 7.22968253e-07 | C157: 0
A158: 0.138 | B158: 6.544626319e-07 | C158: 0
A159: 0.139 | B159: 5.923618229e-07 | C159: 0
A160: 0.14 | B160: 5.360754126e-07 | C160: 0
A161: 0.141 | B161: 4.850666052e-07 | C161: 0
A162: 0.142 | B162: 4.388474297e-07 | C162: 0
A163: 0.143 | B163: 3.969743699e-07 | C163: 0
A164: 0.144 | B164: 3.590443777e-07 | C164: 0
A165: 0.145 | B165: 3.246912392e-07 | C165: 0
A166: 0.146 | B166: 2.935822597e-07 | C166: 0
A167: 0.147 | B167: 2.654152439e-07 | C167: 0
A168: 0.148 | B168: 2.399157422e-07 | C168: 0
A169: 0.149 | B169: 2.168345423e-07 | C169: 0
A170: 0.15 | B170: 1.95945384e-07 | C170: 0
A171: 0.151 | B171: 1.770428769e-07 | C171: 0
A172: 0.152 | B172: 1.599406042e-07 | C172: 0
A173: 0.153 | B173: 1.444693961e-07 | C173: 0
A174: 0.154 | B174: 1.304757581e-07 | C174: 0
A175: 0.155 | B175: 1.178204401e-07 | C175: 0
A176: 0.156 | B176: 1.063771329e-07 | C176: 0
A177: 0.157 | B177: 9.603128448e-08 | C177: 0
A178: 0.158 | B178: 8.667902074e-08 | C178: 0
A179: 0.159 | B179: 7.822616443e-08 | C179: 0
A180: 0.16 | B180: 7.058734386e-08 | C180: 0
A181: 0.161 | B181: 6.368518035e-08 | C181: 0
A182: 0.162 | B182: 5.744955089e-08 | C182: 0
A183: 0.163 | B183: 5.181691809e-08 | C183: 0
A184: 0.164 | B184: 4.672971987e-08 | C184: 0
A185: 0.165 | B185: 4.213581462e-08 | C185: 0
A186: 0.166 | B186: 3.798798021e-08 | C186: 0
A187: 0.167 | B187: 3.424345363e-08 | C187: 0
A188: 0.168 | B188: 3.086351807e-08 | C188: 0
A189: 0.169 | B189: 2.781312358e-08 | C189: 0
A190: 0.17 | B190: 2.506054586e-08 | C190: 0
A191: 0.171 | B191: 2.257707488e-08 | C191: 0
A192: 0.172 | B192: 2.033673119e-08 | C192: 0
A193: 0.173 | B193: 1.831601137e-08 | C193: 0
A194: 0.174 | B194: 1.649365455e-08 | C194: 0
A195: 0.175 | B195: 1.485043111e-08 | C195: 0
A196: 0.176 | B196: 1.336895139e-08 | C196: 0
A197: 0.177 | B197: 1.203349276e-08 | C197: 0
A198: 0.178 | B198: 1.082984025e-08 | C198: 0
A199: 0.179 | B199: 9.745146023e-09 | C199: 0
A200: 0.18 | B200: 8.767797821e-09 | C200: 0
A201: 0.181 | B201: 7.887303033e-09 | C201: 0
A202: 0.182 | B202: 7.094180909e-09 | C202: 0
... 817 more rows

Sheet PopMean Ws
B1: Worksheet: Computing 90% Confidence Intervals with Small Samples
B2: The "t-stat" is used for small samples. Note that two excel formulas are introduced here that give the same answers as the steps in the book: VAR() and TINV(). This will slightly simplify the calculation. You can use this spreadsheet to compute ranges for larger samples, too. Just add however many rows you need and don't forget to change the references in the cells to capture all the new rows. See how close the answers would be if you just used the "Mathless" table. This sheet will also calculate an estimate of the underlying distribution using a t-distribution. One will notice from the previous example that this may or ay not be a good assumption.
B3: 90% Confidence Interval Calculations (by steps described in book)
B4: Average of Sample Values (step 1.a in book) | D4: =AVERAGE(C18:C117) -> 27.10356937
B5: Population Variance | D5: =VAR(C18:C117) -> 57.07136857
B6: SD of the estimate of the mean | D6: =SQRT(D5/COUNT(C18:C117)) -> 1.689250848
B7: t-stat using Excel's "Tinv()" formula (same answer as step 3 in book) | D7: =TINV(0.1,COUNT(C18:C117)-1) -> 1.729132812
B8: Sample error (step 4 in book) | D8: =D7*D6 -> 2.920939069
B9: SD | D9: =_xlfn.STDEV.S(C18:C117) -> 7.554559456
B10: Sample size | D10: =COUNT(C18:C1001) -> 20
B12: Computing bounds for 90% CI (step 5 in book)
B13: Upper bound | D13: =D4+D8 -> 30.02450844
B14: Lower bound | D14: =D4-D8 -> 24.1826303
B16: Data | D16: Chart Data | F16: Std Error for Estimate of Mean (Normalized) | G16: cpf for Sample | H16: Incremental P | I16: Sample | J16: Error of the mean | K16: Confidence Interval Bars | M16: Estimate of Distribution | N16: Estimate of Distribution | O16: Error of the Mean
B17: Data Point | C17: Sample Value | D17: Min | E17: =MIN(C18:C117) -> 14 | F17: -4.2 | G17: =NORMDIST(F17+0.05,0,1,1) -> 1.662376373e-05 | K17: =D14 -> 24.1826303 | L17: 0 | M17: =E17-(E19*100) -> -3.1875
A18: 0 | B18: 1 | C18: 19.60341451 | D18: Max | E18: =MAX(C18:C117) -> 41.5 | F18: -4.1 | G18: =NORMDIST(F18+0.05,0,1,1) -> 2.560881647e-05 | H18: =(G18-G17) -> 8.985052744e-06 | I18: =D$4+F18*D$6 -> 20.17764089 | K18: =D14 -> 24.1826303 | L18: =_xlfn.T.DIST(((K18+2*E19)-D$4)/D$6,D$10-1,1)-_xlfn.T.DIST((K18-D$4)/D$6,D$10-1,1) -> 0.02178687124 | M18: =M17+$E$19 -> -3.015625 | N18: =_xlfn.T.DIST((M19-D$4)/D$9,D$10-1,1)-_xlfn.T.DIST((M17-D$4)/D$9,D$10-1,1) -> 4.104815415e-05 | O18: =_xlfn.T.DIST((M19-D$4)/D$6,D$10-1,1)-_xlfn.T.DIST((M17-D$4)/D$6,D$10-1,1) -> 2.612624929e-14
A19: 0 | B19: 2 | C19: 14 | D19: Increment | E19: =(E18-E17)/160 -> 0.171875 | F19: -4 | G19: =NORMDIST(F19+0.05,0,1,1) -> 3.90755966e-05 | H19: =(G19-G18) -> 1.346678012e-05 | I19: 20.34656597 | J19: =_xlfn.T.DIST((I19-D$4)/D$6,D$10-1,1)-_xlfn.T.DIST((I18-D$4)/D$6,D$10-1,1) -> 7.822297032e-05 | K19: =D13 -> 30.02450844 | L19: 0 | M19: -2.84375 | N19: =_xlfn.T.DIST((M20-D$4)/D$9,D$10-1,1)-_xlfn.T.DIST((M18-D$4)/D$9,D$10-1,1) -> 4.323798252e-05 | O19: =_xlfn.T.DIST((M20-D$4)/D$6,D$10-1,1)-_xlfn.T.DIST((M18-D$4)/D$6,D$10-1,1) -> 2.910552513e-14
A20: 0 | B20: 3 | C20: 29.77796994 | F20: -3.9 | G20: =NORMDIST(F20+0.05,0,1,1) -> 5.905891242e-05 | H20: =(G20-G19) -> 1.998331582e-05 | I20: 20.51549106 | J20: 9.830871461e-05 | K20: =D13 -> 30.02450844 | L20: =L18 -> 0.02178687124 | M20: -2.671875 | N20: 4.554334619e-05 | O20: 3.244240022e-14
A21: 0 | B21: 4 | C21: 19 | F21: -3.8 | G21: 8.84172852e-05 | H21: =(G21-G20) -> 2.935837278e-05 | I21: 20.68441614 | J21: 0.0001234813702 | M21: -2.5 | N21: 4.797018242e-05 | O21: 3.618194861e-14
A22: 0 | B22: 5 | C22: 22.47266207 | F22: -3.7 | G22: 0.0001311201544 | H22: =(G22-G21) -> 4.270286922e-05 | I22: 20.85334123 | J22: =_xlfn.T.DIST((I22-D$4)/D$6,D$10-1,1)-_xlfn.T.DIST((I21-D$4)/D$6,D$10-1,1) -> 0.0001549857457 | M22: -2.328125 | N22: 5.052471882e-05 | O22: 4.037519788e-14
A23: 0 | B23: 6 | C23: 36 | F23: -3.6 | G23: =NORMDIST(F23+0.05,0,1,1) -> 0.0001926155756 | H23: 6.149542122e-05 | I23: 21.02226631 | J23: 0.0001943514317 | M23: -2.15625 | N23: 5.32134863e-05 | O23: 4.507995168e-14
A24: 0 | B24: 7 | C24: 26.24873078 | F24: -3.5 | G24: 0.0002802932768 | H24: 8.767770118e-05 | I24: =D$4+F24*D$6 -> 21.1911914 | J24: 0.0002434499141 | M24: -1.984375 | N24: 5.604333247e-05 | O24: 5.036173067e-14
A25: 0 | B25: 8 | C25: 32.49631261 | F25: -3.4 | G25: =NORMDIST(F25+0.05,0,1,1) -> 0.0004040578019 | H25: 0.000123764525 | I25: 21.36011648 | J25: 0.0003045600619 | M25: -1.8125 | N25: 5.902143563e-05 | O25: 5.629485005e-14
A26: 0 | B26: 9 | C26: 17 | F26: -3.3 | G26: 0.0005770250424 | H26: 0.0001729672405 | I26: 21.52904157 | J26: 0.0003804420315 | M26: -1.640625 | N26: 6.215531913e-05 | O26: 6.296365408e-14
A27: 0 | B27: 10 | C27: 35 | F27: -3.2 | G27: 0.0008163523128 | H27: 0.0002393272704 | I27: 21.69796665 | J27: 0.0004744190759 | M27: -1.46875 | N27: 6.545286631e-05 | O27: 7.046393153e-14
A28: 0 | B28: 11 | C28: 26.44677252 | F28: -3.1 | G28: 0.001144206831 | H28: 0.0003278545182 | I28: 21.86689174 | J28: 0.0005904659598 | M28: -1.296875 | N28: 6.892233597e-05 | O28: 7.890453964e-14
A29: 0 | B29: 12 | C29: 39 | F29: -3 | G29: 0.001588869647 | H29: =(G29-G28) -> 0.0004446628163 | I29: 22.03581682 | J29: 0.000733301618 | M29: -1.125 | N29: 7.257237831e-05 | O29: 8.840926864e-14
A30: 0 | B30: 13 | C30: 41.5 | F30: -2.9 | G30: 0.002185961455 | H30: 0.0005970918075 | I30: 22.20474191 | J30: 0.0009084823083 | M30: -0.953125 | N30: 7.641205142e-05 | O30: 9.911898403e-14
A31: 0 | B31: 14 | C31: 22.85143994 | F31: -2.8 | G31: 0.002979763235 | H31: 0.0007938017801 | I31: 22.37366699 | J31: 0.00112248979 | M31: -0.78125 | N31: 8.045083832e-05 | O31: 1.111940895e-13
A32: 0 | B32: 15 | C32: 30.26941439 | F32: -2.7 | G32: 0.004024588543 | H32: 0.001044825308 | I32: 22.54259208 | J32: 0.001382806994 | M32: -0.609375 | N32: 8.469866448e-05 | O32: 1.248173609e-13
A33: 0 | B33: 16 | C33: 34 | F33: -2.6 | G33: 0.005386145954 | H33: 0.001361557411 | I33: 22.71151716 | J33: 0.001697971311 | M33: -0.4375 | N33: 8.916591597e-05 | O33: 1.401972091e-13
A34: 0 | B34: 17 | C34: 23.50836979 | F34: -2.5 | G34: 0.007142810735 | H34: 0.001756664781 | I34: 22.88044225 | J34: 0.002077593089 | M34: -0.265625 | N34: 9.386345808e-05 | O34: 1.575714395e-13
A35: 0 | B35: 18 | C35: 22.52725565 | F35: -2.4 | G35: 0.009386705535 | H35: 0.0022438948 | I35: 23.04936733 | J35: 0.002532324436 | M35: -0.09375 | N35: 9.880265447e-05 | O35: 1.772115872e-13
A36: 0 | B36: 19 | C36: 21.82083612 | F36: -2.3 | G36: 0.01222447266 | H36: 0.00283776712 | I36: 23.21829242 | J36: 0.003073761211 | M36: 0.078125 | N36: 0.0001039953869 | O36: 1.994279196e-13
A37: 0 | B37: 20 | C37: 28.548209 | F37: -2.2 | G37: 0.01577760739 | H37: 0.003553134736 | I37: 23.3872175 | J37: 0.003714259591 | M37: 0.25 | N37: 0.0001094540757 | O37: 2.245752129e-13
A38: 0 | B38: 21 | F38: -2.1 | G38: 0.02018221541 | H38: 0.004404608015 | I38: 23.55614258 | J38: 0.004466648299 | M38: 0.421875 | N38: 0.0001151917001 | O38: 2.530594282e-13
A39: 0 | B39: 22 | F39: -2 | G39: 0.02558805952 | H39: 0.005405844116 | I39: 23.72506767 | J39: 0.005343819071 | M39: 0.59375 | N39: 0.0001212218199 | O39: 2.853454329e-13
A40: 0 | B40: 23 | F40: -1.9 | G40: 0.0321567748 | H40: 0.006568715274 | I40: 23.89399275 | J40: 0.006358181849 | M40: 0.765625 | N40: 0.0001275585973 | O40: 3.219659365e-13
A41: 0 | B41: 24 | F41: -1.8 | G41: 0.04005915686 | H41: 0.007902382068 | I41: 24.06291784 | J41: 0.007520978011 | M41: 0.9375 | N41: 0.0001342168191 | O41: 3.635318429e-13
A42: 0 | B42: 25 | F42: -1.7 | G42: 0.04947146803 | H42: 0.00941231117 | I42: 24.23184292 | J42: 0.00884145524 | M42: 1.109375 | N42: 0.0001412119196 | O42: 4.107442496e-13
A43: 0 | B43: 26 | F43: -1.6 | G43: 0.060570758 | H43: 0.01109928997 | I43: 24.40076801 | J43: 0.0103259213 | M43: 1.28125 | N43: 0.0001485600037 | O43: 4.644083692e-13
A44: 0 | B44: 27 | F44: -1.5 | G44: 0.07352925961 | H44: 0.01295850161 | I44: 24.56969309 | J44: 0.01197671078 | M44: 1.453125 | N44: 0.0001562778709 | O44: 5.254496932e-13
A45: 0 | B45: 28 | F45: -1.4 | G45: 0.08850799144 | H45: 0.01497873183 | I45: 24.73861818 | J45: 0.01379111779 | M45: 1.625 | N45: 0.0001643830395 | O45: 5.949327739e-13
A46: 0 | B46: 29 | F46: -1.3 | G46: 0.1056497737 | H46: 0.01714178223 | I46: 24.90754326 | J46: 0.01576036698 | M46: 1.796875 | N46: 0.0001728937706 | O46: 6.74083067e-13
A47: 0 | B47: 30 | F47: -1.2 | G47: 0.1250719356 | H47: 0.01942216197 | I47: 25.07646835 | J47: 0.01786871251 | M47: 1.96875 | N47: 0.0001818290938 | O47: 7.64312354e-13
A48: 0 | B48: 31 | F48: -1.1 | G48: 0.1468590564 | H48: 0.02178712074 | I48: 25.24539343 | J48: 0.02009276744 | M48: 2.140625 | N48: 0.000191208832 | O48: 8.672483549e-13
A49: 0 | B49: 32 | F49: -1 | G49: 0.1710561263 | H49: 0.02419706993 | I49: 25.41431852 | J49: 0.02240117036 | M49: 2.3125 | N49: 0.0002010536268 | O49: 9.84769252e-13
A50: 0 | B50: 33 | F50: -0.9 | G50: 0.1976625431 | H50: 0.02660641681 | I50: 25.5832436 | J50: 0.02475468974 | M50: 2.484375 | N50: 0.000211384965 | O50: 1.119043972e-12
A51: 0 | B51: 34 | F51: -0.8 | G51: 0.2266273524 | H51: 0.02896480925 | I51: 25.75216869 | J51: 0.02710684712 | M51: 2.65625 | N51: 0.0002222252035 | O51: 1.272579226e-12
A52: 0 | B52: 35 | F52: -0.7 | G52: 0.2578461108 | H52: 0.03121875843 | I52: 25.92109377 | J52: 0.02940510679 | M52: 2.828125 | N52: 0.0002335975966 | O52: 1.448274492e-12
A53: 0 | B53: 36 | F53: -0.6 | G53: 0.2911596868 | H53: 0.03331357598 | I53: 26.09001886 | J53: 0.03159263386 | M53: 3 | N53: 0.0002455263214 | O53: 1.649486327e-12
A54: 0 | B54: 37 | F54: -0.5 | G54: 0.3263552203 | H54: 0.0351955335 | I54: 26.25894394 | J54: 0.03361056767 | M54: 3.171875 | N54: 0.0002580365043 | O54: 1.880103674e-12
A55: 0 | B55: 38 | F55: -0.4 | G55: 0.3631693488 | H55: 0.03681412854 | I55: 26.42786903 | J55: 0.03540069904 | M55: 3.34375 | N55: 0.0002711542472 | O55: 2.1446361e-12
A56: 0 | B56: 39 | F56: -0.3 | G56: 0.4012936743 | H56: 0.03812432549 | I56: 26.59679411 | J56: 0.03690838548 | M56: 3.515625 | N56: 0.0002849066538 | O56: 2.448317295e-12
A57: 0 | B57: 40 | F57: -0.2 | G57: 0.4403823076 | H57: 0.03908863331 | I57: 26.7657192 | J57: 0.03808549544 | M57: 3.6875 | N57: 0.0002993218548 | O57: 2.797226571e-12
A58: 0 | B58: 41 | F58: -0.1 | G58: 0.4800611942 | H58: 0.03967888653 | I58: 26.93464428 | J58: 0.03889314927 | M58: 3.859375 | N58: 0.0003144290343 | O58: 3.198431618e-12
A59: 0 | B59: 42 | F59: 0 | G59: 0.5199388058 | H59: 0.03987761168 | I59: 27.10356937 | J59: 0.03930402512 | M59: 4.03125 | N59: 0.0003302584543 | O59: 3.660156401e-12
A60: 0 | B60: 43 | F60: 0.1 | G60: 0.5596176924 | H60: 0.03967888653 | I60: 27.27249445 | J60: 0.03930402512 | M60: 4.203125 | N60: 0.0003468414796 | O60: 4.191978793e-12
A61: 0 | B61: 44 | F61: 0.2 | G61: 0.5987063257 | H61: 0.03908863331 | I61: 27.44141954 | J61: 0.03889314927 | M61: 4.375 | N61: 0.0003642106019 | O61: 4.80506343e-12
A62: 0 | B62: 45 | F62: 0.3 | G62: 0.6368306512 | H62: 0.03812432549 | I62: 27.61034462 | J62: 0.03808549544 | M62: 4.546875 | N62: 0.0003823994631 | O62: 5.512436332e-12
A63: 0 | B63: 46 | F63: 0.4 | G63: 0.6736447797 | H63: 0.03681412854 | I63: 27.77926971 | J63: 0.03690838548 | M63: 4.71875 | N63: 0.0004014428779 | O63: 6.329309066e-12
A64: 0 | B64: 47 | F64: 0.5 | G64: 0.7088403132 | H64: 0.0351955335 | I64: 27.94819479 | J64: 0.03540069904 | M64: 4.890625 | N64: 0.0004213768548 | O64: 7.273461782e-12
A65: 0 | B65: 48 | F65: 0.6 | G65: 0.7421538892 | H65: 0.03331357598 | I65: 28.11711988 | J65: 0.03361056767 | M65: 5.0625 | N65: 0.0004422386171 | O65: 8.365696213e-12
A66: 0 | B66: 49 | F66: 0.7 | G66: 0.7733726476 | H66: 0.03121875843 | I66: 28.28604496 | J66: 0.03159263386 | M66: 5.234375 | N66: 0.0004640666217 | O66: 9.630371971e-12
A67: 0 | B67: 50 | F67: 0.8 | G67: 0.8023374569 | H67: 0.02896480925 | I67: 28.45497005 | J67: 0.02940510679 | M67: 5.40625 | N67: 0.0004869005765 | O67: 1.109604205e-11
A68: 0 | B68: 51 | F68: 0.9 | G68: 0.8289438737 | H68: 0.02660641681 | I68: 28.62389513 | J68: 0.02710684712 | M68: 5.578125 | N68: 0.000510781457 | O68: 1.279620665e-11
A69: 0 | B69: 52 | F69: 1 | G69: 0.8531409436 | H69: 0.02419706993 | I69: 28.79282021 | J69: 0.02475468974 | M69: 5.75 | N69: 0.0005357515199 | O69: 1.47702082e-11
A70: 0 | B70: 53 | F70: 1.1 | G70: 0.8749280644 | H70: 0.02178712074 | I70: 28.9617453 | J70: 0.02240117036 | M70: 5.921875 | N70: 0.0005618543161 | O70: 1.70642952e-11
A71: 0 | B71: 54 | F71: 1.2 | G71: 0.8943502263 | H71: 0.01942216197 | I71: 29.13067038 | J71: 0.02009276744 | M71: 6.09375 | N71: 0.0005891347002 | O71: 1.973288778e-11
A72: 0 | B72: 55 | F72: 1.3 | G72: 0.9114920086 | H72: 0.01714178223 | I72: 29.29959547 | J72: 0.01786871251 | M72: 6.265625 | N72: 0.0006176388386 | O72: 2.284008507e-11
A73: 0 | B73: 56 | F73: 1.4 | G73: 0.9264707404 | H73: 0.01497873183 | I73: 29.46852055 | J73: 0.01576036698 | M73: 6.4375 | N73: 0.0006474142148 | O73: 2.646146214e-11
A74: 0 | B74: 57 | F74: 1.5 | G74: 0.939429242 | H74: 0.01295850161 | I74: 29.63744564 | J74: 0.01379111779 | M74: 6.609375 | N74: 0.0006785096317 | O74: 3.068621452e-11
A75: 0 | B75: 58 | F75: 1.6 | G75: 0.950528532 | H75: 0.01109928997 | I75: 29.80637072 | J75: 0.01197671078 | M75: 6.78125 | N75: 0.0007109752108 | O75: 3.561972013e-11
A76: 0 | B76: 59 | F76: 1.7 | G76: 0.9599408431 | H76: 0.00941231117 | I76: 29.97529581 | J76: 0.0103259213 | M76: 6.953125 | N76: 0.0007448623887 | O76: 4.138660316e-11
A77: 0 | B77: 60 | F77: 1.8 | G77: 0.9678432252 | H77: 0.007902382068 | I77: 30.14422089 | J77: 0.00884145524 | M77: 7.125 | N77: 0.0007802239098 | O77: 4.813440201e-11
A78: 0 | B78: 61 | F78: 1.9 | G78: 0.9744119405 | H78: 0.006568715274 | I78: 30.31314598 | J78: 0.007520978011 | M78: 7.296875 | N78: 0.000817113815 | O78: 5.603796523e-11
A79: 0 | B79: 62 | F79: 2 | G79: 0.9798177846 | H79: 0.005405844116 | I79: 30.48207106 | J79: 0.006358181849 | M79: 7.46875 | N79: 0.0008555874266 | O79: 6.530472542e-11
A80: 0 | B80: 63 | F80: 2.1 | G80: 0.9842223926 | H80: 0.004404608015 | I80: 30.65099615 | J80: 0.005343819071 | M80: 7.640625 | N80: 0.0008957013294 | O80: 7.618103357e-11
A81: 0 | B81: 64 | F81: 2.2 | G81: 0.9877755273 | H81: 0.003553134736 | I81: 30.81992123 | J81: 0.004466648299 | M81: 7.8125 | N81: 0.0009375133466 | O81: 8.895977509e-11
A82: 0 | B82: 65 | F82: 2.3 | G82: 0.9906132945 | H82: 0.00283776712 | I82: =D$4+F82*D$6 -> 30.98884632 | J82: 0.003714259591 | M82: =M81+$E$19 -> 7.984375 | N82: 0.0009810825112 | O82: 1.039895371e-10
A83: 0 | B83: 66 | F83: 2.4 | G83: 0.9928571893 | H83: =(G83-G82) -> 0.0022438948 | I83: 31.1577714 | J83: =_xlfn.T.DIST((I83-D$4)/D$6,D$10-1,1)-_xlfn.T.DIST((I82-D$4)/D$6,D$10-1,1) -> 0.003073761211 | M83: 8.15625 | N83: =_xlfn.T.DIST((M84-D$4)/D$9,D$10-1,1)-_xlfn.T.DIST((M82-D$4)/D$9,D$10-1,1) -> 0.001026469032 | O83: =_xlfn.T.DIST((M84-D$4)/D$6,D$10-1,1)-_xlfn.T.DIST((M82-D$4)/D$6,D$10-1,1) -> 1.216856554e-10
A84: 0 | B84: 67 | F84: 2.5 | G84: =NORMDIST(F84+0.05,0,1,1) -> 0.994613854 | H84: 0.001756664781 | I84: 31.32669649 | J84: 0.002532324436 | M84: 8.328125 | N84: 0.001073734256 | O84: 1.425435405e-10
A85: 0 | B85: 68 | F85: 2.6 | G85: 0.9959754115 | H85: 0.001361557411 | I85: 31.49562157 | J85: 0.002077593089 | M85: 8.5 | N85: 0.001122940622 | O85: 1.671547725e-10
A86: 0 | B86: 69 | F86: 2.7 | G86: 0.9970202368 | H86: 0.001044825308 | I86: 31.66454666 | J86: 0.001697971311 | M86: 8.671875 | N86: 0.001174151611 | O86: 1.962265602e-10
A87: 0 | B87: 70 | F87: 2.8 | G87: 0.9978140385 | H87: 0.0007938017801 | I87: 31.83347174 | J87: 0.001382806994 | M87: 8.84375 | N87: 0.001227431689 | O87: 2.306052965e-10
A88: 0 | B88: 71 | F88: 2.9 | G88: 0.9984111304 | H88: 0.0005970918075 | I88: 32.00239683 | J88: 0.00112248979 | M88: 9.015625 | N88: 0.001282846245 | O88: 2.713051028e-10
A89: 0 | B89: 72 | F89: 3 | G89: 0.9988557932 | H89: 0.0004446628163 | I89: 32.17132191 | J89: 0.0009084823083 | M89: 9.1875 | N89: 0.001340461519 | O89: 3.195424608e-10
A90: 0 | B90: 73 | F90: 3.1 | G90: 0.9991836477 | H90: 0.0003278545182 | I90: 32.340247 | J90: 0.000733301618 | M90: 9.359375 | N90: 0.001400344528 | O90: 3.767782775e-10
A91: 0 | B91: 74 | F91: 3.2 | G91: 0.999422975 | H91: 0.0002393272704 | I91: 32.50917208 | J91: 0.0005904659598 | M91: 9.53125 | N91: 0.00146256298 | O91: 4.447690386e-10
A92: 0 | B92: 75 | F92: 3.3 | G92: 0.9995959422 | H92: 0.0001729672405 | I92: 32.67809717 | J92: 0.0004744190759 | M92: 9.703125 | N92: 0.00152718518 | O92: 5.256290864e-10
A93: 0 | B93: 76 | F93: 3.4 | G93: 0.9997197067 | H93: 0.000123764525 | I93: 32.84702225 | J93: 0.0003804420315 | M93: 9.875 | N93: 0.001594279938 | O93: 6.21906531e-10
A94: 0 | B94: 77 | F94: 3.5 | G94: 0.9998073844 | H94: 8.767770118e-05 | I94: 33.01594734 | J94: 0.0003045600619 | M94: 10.046875 | N94: 0.001663916452 | O94: 7.366758884e-10
A95: 0 | B95: 78 | F95: 3.6 | G95: 0.9998688798 | H95: 6.149542122e-05 | I95: 33.18487242 | J95: 0.0002434499141 | M95: 10.21875 | N95: 0.0017361642 | O95: 8.736512646e-10
A96: 0 | B96: 79 | F96: 3.7 | G96: 0.9999115827 | H96: 4.270286922e-05 | I96: 33.35379751 | J96: 0.0001943514317 | M96: 10.390625 | N96: 0.001811092813 | O96: 1.037324808e-09
A97: 0 | B97: 80 | F97: 3.8 | G97: 0.9999409411 | H97: 2.935837278e-05 | I97: 33.52272259 | J97: 0.0001549857457 | M97: 10.5625 | N97: 0.001888771941 | O97: 1.233136272e-09
A98: 0 | B98: 81 | F98: 3.9 | G98: 0.9999609244 | H98: 1.998331582e-05 | I98: 33.69164767 | J98: 0.0001234813702 | M98: 10.734375 | N98: 0.001969271115 | O98: 1.46768093e-09
A99: 0 | B99: 82 | F99: 4 | G99: 0.9999743912 | H99: 1.346678012e-05 | I99: 33.86057276 | J99: 9.830871461e-05 | M99: 10.90625 | N99: 0.002052659594 | O99: 1.748964814e-09
A100: 0 | B100: 83 | F100: 4.1 | G100: 0.9999833762 | H100: 8.985052744e-06 | I100: 34.02949784 | J100: 7.822297032e-05 | M100: 11.078125 | N100: 0.002139006205 | O100: 2.086718444e-09
A101: 0 | B101: 84 | F101: 4.2 | G101: 0.9999893115 | H101: 5.935237955e-06 | I101: 34.19842293 | J101: 6.221496225e-05 | M101: 11.25 | N101: 0.002228379178 | O101: 2.492782887e-09
A102: 0 | B102: 85 | J102: -0.9997573418 | M102: 11.421875 | N102: 0.002320845968 | O102: 2.981585421e-09
A103: 0 | B103: 86 | M103: 11.59375 | N103: 0.002416473064 | O103: 3.570726289e-09
A104: 0 | B104: 87 | M104: 11.765625 | N104: 0.002515325798 | O104: 4.28170337e-09
A105: 0 | B105: 88 | M105: 11.9375 | N105: 0.002617468137 | O105: 5.140808241e-09
A106: 0 | B106: 89 | M106: 12.109375 | N106: 0.002722962473 | O106: 6.180235521e-09
A107: 0 | B107: 90 | M107: 12.28125 | N107: 0.002831869394 | O107: 7.439457875e-09
A108: 0 | B108: 91 | M108: 12.453125 | N108: 0.002944247459 | O108: 8.96693234e-09
A109: 0 | B109: 92 | M109: 12.625 | N109: 0.003060152954 | O109: 1.082222032e-08
A110: 0 | B110: 93 | M110: 12.796875 | N110: 0.003179639648 | O110: 1.307862459e-08
A111: 0 | B111: 94 | M111: 12.96875 | N111: 0.003302758532 | O111: 1.582647335e-08
A112: 0 | B112: 95 | M112: 13.140625 | N112: 0.003429557562 | O112: 1.917721455e-08
A113: 0 | B113: 96 | M113: 13.3125 | N113: 0.003560081383 | O113: 2.326852666e-08
A114: 0 | B114: 97 | M114: 13.484375 | N114: 0.003694371058 | O114: 2.827070503e-08
A115: 0 | B115: 98 | M115: 13.65625 | N115: 0.003832463783 | O115: 3.439465132e-08
A116: 0 | B116: 99 | M116: 13.828125 | N116: 0.003974392602 | O116: 4.190187936e-08
A117: 0 | B117: 100 | M117: 14 | N117: 0.004120186113 | O117: 5.111705979e-08
M118: 14.171875 | N118: 0.004269868174 | O118: 6.244376416e-08
M119: 14.34375 | N119: 0.004423457606 | O119: 7.638424493e-08
M120: 14.515625 | N120: 0.004580967891 | O120: 9.356431084e-08
M121: 14.6875 | N121: 0.004742406873 | O121: 1.147646403e-07
M122: 14.859375 | N122: 0.004907776459 | O122: 1.409602361e-07
M123: 15.03125 | N123: 0.005077072315 | O123: 1.733701829e-07
M124: 15.203125 | N124: 0.005250283574 | O124: 2.135204503e-07
M125: 15.375 | N125: 0.00542739254 | O125: 2.633232283e-07
M126: 15.546875 | N126: 0.005608374402 | O126: 3.251772204e-07
M127: 15.71875 | N127: 0.00579319695 | O127: 4.020945213e-07
M128: 15.890625 | N128: 0.005981820302 | O128: 4.978612288e-07
M129: 16.0625 | N129: 0.006174196639 | O129: 6.17240876e-07
M130: 16.234375 | N130: 0.00637026995 | O130: 7.662322285e-07
M131: 16.40625 | N131: 0.006569975791 | O131: 9.52396116e-07
M132: 16.578125 | N132: 0.006773241056 | O132: 1.185269921e-06
M133: 16.75 | N133: 0.006979983762 | O133: 1.476893365e-06
M134: 16.921875 | N134: 0.007190112853 | O134: 1.842475567e-06
M135: 17.09375 | N135: 0.007403528024 | O135: 2.301241359e-06
M136: 17.265625 | N136: 0.007620119559 | O136: 2.877504924e-06
M137: 17.4375 | N137: 0.0078397682 | O137: 3.602031503e-06
M138: 17.609375 | N138: 0.008062345025 | O138: 4.513763811e-06
M139: 17.78125 | N139: 0.008287711366 | O139: 5.662009673e-06
M140: 17.953125 | N140: 0.008515718745 | O140: 7.109212129e-06
M141: 18.125 | N141: 0.008746208835 | O141: 8.934453915e-06
M142: 18.296875 | N142: 0.008979013458 | O142: 1.12378861e-05
M143: 18.46875 | N143: 0.009213954603 | O143: 1.414631709e-05
M144: 18.640625 | N144: 0.00945084449 | O144: 1.78202547e-05
M145: 18.8125 | N145: 0.009689485648 | O145: 2.246276273e-05
M146: =M145+$E$19 -> 18.984375 | N146: 0.009929671044 | O146: 2.833057495e-05
M147: 19.15625 | N147: =_xlfn.T.DIST((M148-D$4)/D$9,D$10-1,1)-_xlfn.T.DIST((M146-D$4)/D$9,D$10-1,1) -> 0.01017118423 | O147: =_xlfn.T.DIST((M148-D$4)/D$6,D$10-1,1)-_xlfn.T.DIST((M146-D$4)/D$6,D$10-1,1) -> 3.574800725e-05
M148: 19.328125 | N148: 0.01041379956 | O148: 4.512432173e-05
M149: 19.5 | N149: 0.01065728236 | O149: 5.697532789e-05
M150: 19.671875 | N150: 0.01090138927 | O150: 7.195015316e-05
M151: 19.84375 | N151: 0.01114586848 | O151: 9.086427734e-05
M152: 20.015625 | N152: 0.0113904601 | O152: 0.0001147400972
M153: 20.1875 | N153: 0.01163489652 | O153: 0.00014485646
M154: 20.359375 | N154: 0.01187890283 | O154: 0.0001828087657
M155: 20.53125 | N155: 0.01212219727 | O155: 0.0002305813637
M156: 20.703125 | N156: 0.01236449171 | O156: 0.0002906340349
M157: 20.875 | N157: 0.01260549217 | O157: 0.0003660043115
M158: 21.046875 | N158: 0.01284489938 | O158: 0.0004604271895
M159: 21.21875 | N159: 0.01308240935 | O159: 0.0005784733721
M160: 21.390625 | N160: 0.01331771402 | O160: 0.0007257064492
M161: 21.5625 | N161: 0.01355050188 | O161: 0.0009088582876
M162: 21.734375 | N162: 0.01378045868 | O162: 0.001136020254
M163: 21.90625 | N163: 0.0140072681 | O163: 0.001416845624
M164: 22.078125 | N164: 0.01423061251 | O164: 0.001762755524
M165: 22.25 | N165: 0.01445017371 | O165: 0.002187136976
M166: 22.421875 | N166: 0.01466563373 | O166: 0.002705517023
M167: 22.59375 | N167: 0.01487667556 | O167: 0.003335691616
M168: 22.765625 | N168: 0.01508298404 | O168: 0.004097782169
M169: 22.9375 | N169: 0.01528424661 | O169: 0.005014186864
M170: 23.109375 | N170: 0.01548015418 | O170: 0.006109388537
M171: 23.28125 | N171: 0.01567040192 | O171: 0.007409577211
M172: 23.453125 | N172: 0.01585469016 | O172: 0.008942044242
M173: 23.625 | N173: 0.01603272515 | O173: 0.01073430797
M174: 23.796875 | N174: 0.01620421995 | O174: 0.01281293914
M175: 23.96875 | N175: 0.01636889523 | O175: 0.01520206965
M176: 24.140625 | N176: 0.01652648007 | O176: 0.01792159115
M177: 24.3125 | N177: 0.01667671277 | O177: 0.0209850814
M178: 24.484375 | N178: 0.01681934165 | O178: 0.02439753454
M179: 24.65625 | N179: 0.01695412575 | O179: 0.02815301502
M180: 24.828125 | N180: 0.01708083563 | O180: 0.03223239943
M181: 25 | N181: 0.017199254 | O181: 0.03660141019
M182: 25.171875 | N182: 0.01730917647 | O182: 0.04120917389
M183: 25.34375 | N183: 0.01741041213 | O183: 0.04598754589
M184: 25.515625 | N184: 0.01750278417 | O184: 0.05085142697
M185: 25.6875 | N185: 0.01758613043 | O185: 0.05570024983
M186: 25.859375 | N186: 0.01766030394 | O186: 0.06042073454
M187: 26.03125 | N187: 0.01772517336 | O187: 0.06489090342
M188: 26.203125 | N188: 0.0177806234 | O188: 0.06898521813
M189: 26.375 | N189: 0.01782655523 | O189: 0.07258056792
M190: 26.546875 | N190: 0.01786288677 | O190: 0.07556271575
M191: 26.71875 | N191: 0.01788955294 | O191: 0.07783271725
M192: 26.890625 | N192: 0.01790650593 | O192: 0.07931278254
M193: 27.0625 | N193: 0.01791371528 | O193: 0.07995106475
M194: 27.234375 | N194: 0.01791116804 | O194: 0.07972493397
M195: 27.40625 | N195: 0.0178988688 | O195: 0.0786424261
M196: 27.578125 | N196: 0.01787683964 | O196: 0.07674172697
M197: 27.75 | N197: 0.0178451201 | O197: 0.07408874171
M198: 27.921875 | N198: 0.01780376703 | O198: 0.07077298182
M199: 28.09375 | N199: 0.01775285441 | O199: 0.06690215512
M200: 28.265625 | N200: 0.01769247311 | O200: 0.06259594626
M201: 28.4375 | N201: 0.01762273061 | O201: 0.05797951911
M202: 28.609375 | N202: 0.0175437506 | O202: 0.05317725403
... 418 more rows

Sheet Sheet1 (hidden)
A1: Variable ID Start | B1: 1 | D1: TRUE | E1: =IF(SIPmath=FALSE,1,0) -> 0
B4: Var IDs | H4: HDRs | I4: Triangulars
A5: ='Project Planner'!B5 -> Activity 01 | B5: =B1 -> 1 | D5: =IF( $D$1, 'Project Planner'!D5-1, E5) -> 0 | E5: ='Project Planner'!E5 -> 5 | F5: =IF( $D$1, 'Project Planner'!F5, E5) -> 9 | H5: =( MOD((( MOD( (3019481+1000000)^2 + (3019481+1000000)*(PM_Index+10000000), 99999989 )) + 1000007 ) * (( MOD( (PM_Index+10000000)^2 + (PM_Index+10000000) * ( MOD( (3019481+1000000)^2 + (3019481+1000000)*(PM_Index+10000000), 99999989 )), 99999989 )) + 1000013 ), 2147483647 ) + 0.5 ) / 2147483647 -> 0.3763626324 | I5: =IF( D5 > E5, NA(), IF( E5 > F5, NA(), IF( D5 = F5, E5, IF( H5 < (( E5 - D5 ) / ( F5 - D5 )), D5 + SQRT( H5 * ( E5 - D5 ) * ( F5 - D5 )), F5 - SQRT(( 1 - H5 ) * ( F5 - D5 ) * ( F5 - E5 )))))) -> 4.115375859
A6: ='Project Planner'!B6 -> Activity 02 | B6: =B5+1 -> 2 | D6: =IF( $D$1, 'Project Planner'!D6-1, E6) -> 0 | E6: ='Project Planner'!E6 -> 5 | F6: =IF( $D$1, 'Project Planner'!F6, E6) -> 9 | H6: =( MOD((( MOD( (B6+1000000)^2 + (B6+1000000)*(PM_Index+10000000), 99999989 )) + 1000007 ) * (( MOD( (PM_Index+10000000)^2 + (PM_Index+10000000) * ( MOD( (B6+1000000)^2 + (B6+1000000)*(PM_Index+10000000), 99999989 )), 99999989 )) + 1000013 ), 2147483647 ) + 0.5 ) / 2147483647 -> 0.6992471508 | I6: 5.709543714
A7: ='Project Planner'!B7 -> Activity 03 | B7: =B6+1 -> 3 | D7: =IF( $D$1, 'Project Planner'!D7-1, E7) -> 0 | E7: ='Project Planner'!E7 -> 4 | F7: =IF( $D$1, 'Project Planner'!F7, E7) -> 8 | H7: 0.5282754768 | I7: 4.114747789
A8: ='Project Planner'!B8 -> Activity 04 | B8: 4 | D8: =IF( $D$1, 'Project Planner'!D8-1, E8) -> 1 | E8: ='Project Planner'!E8 -> 3 | F8: =IF( $D$1, 'Project Planner'!F8, E8) -> 5 | H8: 0.3621276169 | I8: 2.702063728
A9: ='Project Planner'!B9 -> Activity 05 | B9: 5 | D9: =IF( $D$1, 'Project Planner'!D9-1, E9) -> 1 | E9: ='Project Planner'!E9 -> 4 | F9: =IF( $D$1, 'Project Planner'!F9, E9) -> 6 | H9: 0.3913194481 | I9: 3.422765305
A10: ='Project Planner'!B10 -> Activity 06 | B10: 6 | D10: =IF( $D$1, 'Project Planner'!D10-1, E10) -> 1 | E10: ='Project Planner'!E10 -> 4 | F10: =IF( $D$1, 'Project Planner'!F10, E10) -> 6 | H10: 0.3354106116 | I10: 3.243024559
A11: ='Project Planner'!B11 -> Activity 07 | B11: 7 | D11: =IF( $D$1, 'Project Planner'!D11-1, E11) -> 0 | E11: ='Project Planner'!E11 -> 3 | F11: =IF( $D$1, 'Project Planner'!F11, E11) -> 7 | H11: 0.6939538239 | I11: 4.072664534
A12: ='Project Planner'!B12 -> Activity 08 | B12: 8 | D12: =IF( $D$1, 'Project Planner'!D12-1, E12) -> 0 | E12: ='Project Planner'!E12 -> 3 | F12: =IF( $D$1, 'Project Planner'!F12, E12) -> 5 | H12: 0.1096043184 | I12: 1.282210894
A13: ='Project Planner'!B13 -> Activity 09 | B13: 9 | D13: =IF( $D$1, 'Project Planner'!D13-1, E13) -> 0 | E13: ='Project Planner'!E13 -> 2 | F13: =IF( $D$1, 'Project Planner'!F13, E13) -> 3 | H13: 0.5293867341 | I13: 1.782223444
A14: ='Project Planner'!B14 -> Activity 10 | B14: 10 | D14: =IF( $D$1, 'Project Planner'!D14-1, E14) -> 0 | E14: ='Project Planner'!E14 -> 5 | F14: =IF( $D$1, 'Project Planner'!F14, E14) -> 9 | H14: 0.6858964177 | I14: 5.63730332
D17: Average Completion Period | E17: =AVERAGE( FinishProject ) -> 18.86
D18: %ile | E18: 0.9
D19: % Value | E19: =_xlfn.PERCENTILE.EXC( FinishProject, E18 ) -> 23
D20: Target Completion Period | E20: 20
D21: Chance of Exceeding Target | E21: =1-_xlfn.PERCENTRANK.EXC( FinishProject, E20 ) -> 0.409

Sheet PMTable (hidden)
A1: ='Project Planner'!BA1 -> 7 | B1: Generated with the SIPmath™ Modeler Tools from ProbabilityManagement.org
B2: Index | C2: Finish01 | D2: Finish02 | E2: Finish03 | F2: Finish04 | G2: Finish05 | H2: Finish06 | I2: Finish07 | J2: Finish08 | K2: Finish09 | L2: Finish10 | M2: FinishProject
B3: Values | C3: =IF(Sheet1!$D$1,'Project Planner'!$I$5,NA()) -> 4 | D3: =IF(Sheet1!$D$1,'Project Planner'!$I$6,NA()) -> 9 | E3: =IF(Sheet1!$D$1,'Project Planner'!$I$7,NA()) -> 9 | F3: =IF(Sheet1!$D$1,'Project Planner'!$I$8,NA()) -> 10 | G3: =IF(Sheet1!$D$1,'Project Planner'!$I$9,NA()) -> 12 | H3: =IF(Sheet1!$D$1,'Project Planner'!$I$10,NA()) -> 14 | I3: =IF(Sheet1!$D$1,'Project Planner'!$I$11,NA()) -> 15 | J3: =IF(Sheet1!$D$1,'Project Planner'!$I$12,NA()) -> 12 | K3: =IF(Sheet1!$D$1,'Project Planner'!$I$13,NA()) -> 15 | L3: =IF(Sheet1!$D$1,'Project Planner'!$I$14,NA()) -> 19 | M3: =IF(Sheet1!$D$1,'Project Planner'!$I$15,NA()) -> 19
B4: 1 | C4: 4 | D4: 8 | E4: 5 | F4: 6 | G4: 8 | H4: 12 | I4: 10 | J4: 9 | K4: 12 | L4: 18 | M4: 18
B5: 2 | C5: 0 | D5: 9 | E5: 8 | F5: 10 | G5: 14 | H5: 15 | I5: 15 | J5: 15 | K5: 14 | L5: 14 | M5: 14
B6: 3 | C6: 6 | D6: 10 | E6: 8 | F6: 10 | G6: 14 | H6: 16 | I6: 14 | J6: 15 | K6: 17 | L6: 21 | M6: 21
B7: 4 | C7: 6 | D7: 9 | E7: 8 | F7: 10 | G7: 13 | H7: 14 | I7: 16 | J7: 15 | K7: 17 | L7: 22 | M7: 22
B8: 5 | C8: 8 | D8: 13 | E8: 14 | F8: 15 | G8: 15 | H8: 17 | I8: 16 | J8: 16 | K8: 17 | L8: 21 | M8: 21
B9: 6 | C9: 4 | D9: 10 | E9: 8 | F9: 10 | G9: 14 | H9: 14 | I9: 17 | J9: 14 | K9: 17 | L9: 21 | M9: 21
B10: 7 | C10: 4 | D10: 9 | E10: 9 | F10: 10 | G10: 12 | H10: 14 | I10: 15 | J10: 12 | K10: 15 | L10: 19 | M10: 19
B11: 8 | C11: 5 | D11: 7 | E11: 8 | F11: 10 | G11: 11 | H11: 14 | I11: 13 | J11: 14 | K11: 13 | L11: 18 | M11: 18
B12: 9 | C12: 1 | D12: 7 | E12: 5 | F12: 6 | G12: 11 | H12: 11 | I12: 13 | J12: 13 | K12: 14 | L12: 20 | M12: 20
B13: 10 | C13: 8 | D13: 8 | E13: 10 | F13: 11 | G13: 14 | H13: 18 | I13: 15 | J13: 14 | K13: 17 | L13: 21 | M13: 21
B14: 11 | C14: 6 | D14: 8 | E14: 8 | F14: 8 | G14: 11 | H14: 14 | I14: 11 | J14: 13 | K14: 15 | L14: 15 | M14: 15
B15: 12 | C15: 4 | D15: 6 | E15: 11 | F15: 13 | G15: 15 | H15: 17 | I15: 20 | J15: 16 | K15: 20 | L15: 23 | M15: 23
B16: 13 | C16: 5 | D16: 8 | E16: 8 | F16: 9 | G16: 12 | H16: 15 | I16: 15 | J16: 14 | K16: 16 | L16: 16 | M16: 16
B17: 14 | C17: 5 | D17: 7 | E17: 7 | F17: 8 | G17: 10 | H17: 13 | I17: 13 | J17: 12 | K17: 14 | L17: 18 | M17: 18
B18: 15 | C18: 6 | D18: 9 | E18: 11 | F18: 13 | G18: 16 | H18: 18 | I18: 19 | J18: 19 | K18: 19 | L18: 21 | M18: 21
B19: 16 | C19: 4 | D19: 8 | E19: 9 | F19: 10 | G19: 13 | H19: 15 | I19: 15 | J19: 14 | K19: 15 | L19: 18 | M19: 18
B20: 17 | C20: 4 | D20: 10 | E20: 7 | F20: 9 | G20: 11 | H20: 15 | I20: 12 | J20: 13 | K20: 16 | L20: 20 | M20: 20
B21: 18 | C21: 6 | D21: 10 | E21: 8 | F21: 9 | G21: 11 | H21: 12 | I21: 11 | J21: 12 | K21: 12 | L21: 18 | M21: 18
B22: 19 | C22: 6 | D22: 13 | E22: 7 | F22: 10 | G22: 16 | H22: 17 | I22: 17 | J22: 18 | K22: 17 | L22: 19 | M22: 19
B23: 20 | C23: 4 | D23: 9 | E23: 12 | F23: 13 | G23: 16 | H23: 19 | I23: 19 | J23: 16 | K23: 20 | L23: 24 | M23: 24
B24: 21 | C24: 3 | D24: 8 | E24: 9 | F24: 10 | G24: 13 | H24: 14 | I24: 14 | J24: 15 | K24: 15 | L24: 19 | M24: 19
B25: 22 | C25: 7 | D25: 11 | E25: 11 | F25: 12 | G25: 15 | H25: 17 | I25: 15 | J25: 17 | K25: 17 | L25: 16 | M25: 16
B26: 23 | C26: 7 | D26: 9 | E26: 8 | F26: 10 | G26: 12 | H26: 13 | I26: 11 | J26: 14 | K26: 15 | L26: 18 | M26: 18
B27: 24 | C27: 3 | D27: 6 | E27: 7 | F27: 8 | G27: 8 | H27: 11 | I27: 12 | J27: 8 | K27: 12 | L27: 13 | M27: 13
B28: 25 | C28: 5 | D28: 7 | E28: 10 | F28: 10 | G28: 13 | H28: 13 | I28: 15 | J28: 14 | K28: 16 | L28: 17 | M28: 17
B29: 26 | C29: 3 | D29: 9 | E29: 9 | F29: 10 | G29: 10 | H29: 11 | I29: 11 | J29: 11 | K29: 11 | L29: 13 | M29: 13
B30: 27 | C30: 5 | D30: 8 | E30: 11 | F30: 13 | G30: 16 | H30: 18 | I30: 17 | J30: 16 | K30: 19 | L30: 23 | M30: 23
B31: 28 | C31: 2 | D31: 9 | E31: 9 | F31: 9 | G31: 12 | H31: 15 | I31: 14 | J31: 14 | K31: 15 | L31: 18 | M31: 18
B32: 29 | C32: 5 | D32: 9 | E32: 10 | F32: 10 | G32: 11 | H32: 15 | I32: 13 | J32: 10 | K32: 14 | L32: 18 | M32: 18
B33: 30 | C33: 2 | D33: 10 | E33: 7 | F33: 8 | G33: 13 | H33: 17 | I33: 15 | J33: 16 | K33: 18 | L33: 19 | M33: 19
B34: 31 | C34: 5 | D34: 7 | E34: 9 | F34: 11 | G34: 13 | H34: 16 | I34: 15 | J34: 13 | K34: 16 | L34: 23 | M34: 23
B35: 32 | C35: 1 | D35: 7 | E35: 9 | F35: 9 | G35: 11 | H35: 13 | I35: 13 | J35: 13 | K35: 13 | L35: 15 | M35: 15
B36: 33 | C36: 5 | D36: 9 | E36: 11 | F36: 14 | G36: 14 | H36: 17 | I36: 16 | J36: 16 | K36: 18 | L36: 25 | M36: 25
B37: 34 | C37: 3 | D37: 7 | E37: 7 | F37: 9 | G37: 12 | H37: 16 | I37: 14 | J37: 12 | K37: 17 | L37: 18 | M37: 18
B38: 35 | C38: 6 | D38: 11 | E38: 10 | F38: 13 | G38: 14 | H38: 18 | I38: 16 | J38: 14 | K38: 18 | L38: 24 | M38: 24
B39: 36 | C39: 5 | D39: 8 | E39: 5 | F39: 6 | G39: 11 | H39: 12 | I39: 13 | J39: 11 | K39: 13 | L39: 14 | M39: 14
B40: 37 | C40: 2 | D40: 9 | E40: 7 | F40: 9 | G40: 13 | H40: 15 | I40: 16 | J40: 16 | K40: 15 | L40: 21 | M40: 21
B41: 38 | C41: 2 | D41: 6 | E41: 7 | F41: 8 | G41: 11 | H41: 14 | I41: 15 | J41: 12 | K41: 15 | L41: 17 | M41: 17
B42: 39 | C42: 6 | D42: 10 | E42: 7 | F42: 8 | G42: 10 | H42: 14 | I42: 10 | J42: 12 | K42: 14 | L42: 15 | M42: 15
B43: 40 | C43: 2 | D43: 5 | E43: 10 | F43: 13 | G43: 16 | H43: 19 | I43: 18 | J43: 15 | K43: 19 | L43: 20 | M43: 20
B44: 41 | C44: 5 | D44: 8 | E44: 9 | F44: 11 | G44: 12 | H44: 14 | I44: 12 | J44: 12 | K44: 14 | L44: 18 | M44: 18
B45: 42 | C45: 4 | D45: 6 | E45: 6 | F45: 8 | G45: 9 | H45: 12 | I45: 10 | J45: 9 | K45: 12 | L45: 12 | M45: 12
B46: 43 | C46: 3 | D46: 8 | E46: 6 | F46: 7 | G46: 11 | H46: 14 | I46: 12 | J46: 14 | K46: 15 | L46: 19 | M46: 19
B47: 44 | C47: 4 | D47: 7 | E47: 8 | F47: 9 | G47: 13 | H47: 15 | I47: 16 | J47: 14 | K47: 16 | L47: 21 | M47: 21
B48: 45 | C48: 6 | D48: 7 | E48: 8 | F48: 9 | G48: 11 | H48: 11 | I48: 15 | J48: 13 | K48: 15 | L48: 20 | M48: 20
B49: 46 | C49: 4 | D49: 8 | E49: 7 | F49: 8 | G49: 10 | H49: 12 | I49: 12 | J49: 10 | K49: 12 | L49: 14 | M49: 14
B50: 47 | C50: 3 | D50: 4 | E50: 9 | F50: 10 | G50: 10 | H50: 12 | I50: 10 | J50: 12 | K50: 12 | L50: 14 | M50: 14
B51: 48 | C51: 4 | D51: 6 | E51: 10 | F51: 11 | G51: 12 | H51: 14 | I51: 12 | J51: 11 | K51: 15 | L51: 14 | M51: 14
B52: 49 | C52: 4 | D52: 10 | E52: 10 | F52: 11 | G52: 12 | H52: 13 | I52: 14 | J52: 12 | K52: 14 | L52: 18 | M52: 18
B53: 50 | C53: 3 | D53: 8 | E53: 9 | F53: 10 | G53: 11 | H53: 13 | I53: 13 | J53: 12 | K53: 13 | L53: 17 | M53: 17
B54: 51 | C54: 6 | D54: 8 | E54: 6 | F54: 8 | G54: 11 | H54: 15 | I54: 12 | J54: 12 | K54: 15 | L54: 18 | M54: 18
B55: 52 | C55: 2 | D55: 8 | E55: 7 | F55: 10 | G55: 10 | H55: 13 | I55: 12 | J55: 10 | K55: 13 | L55: 17 | M55: 17
B56: 53 | C56: 3 | D56: 10 | E56: 10 | F56: 11 | G56: 13 | H56: 16 | I56: 15 | J56: 16 | K56: 17 | L56: 22 | M56: 22
B57: 54 | C57: 2 | D57: 12 | E57: 7 | F57: 9 | G57: 13 | H57: 14 | I57: 17 | J57: 15 | K57: 17 | L57: 18 | M57: 18
B58: 55 | C58: 5 | D58: 8 | E58: 6 | F58: 7 | G58: 11 | H58: 12 | I58: 14 | J58: 12 | K58: 13 | L58: 17 | M58: 17
B59: 56 | C59: 8 | D59: 8 | E59: 11 | F59: 11 | G59: 13 | H59: 14 | I59: 14 | J59: 13 | K59: 15 | L59: 17 | M59: 17
B60: 57 | C60: 0 | D60: 12 | E60: 9 | F60: 9 | G60: 13 | H60: 15 | I60: 13 | J60: 12 | K60: 16 | L60: 21 | M60: 21
B61: 58 | C61: 5 | D61: 8 | E61: 8 | F61: 9 | G61: 12 | H61: 14 | I61: 12 | J61: 12 | K61: 13 | L61: 16 | M61: 16
B62: 59 | C62: 3 | D62: 5 | E62: 9 | F62: 10 | G62: 12 | H62: 13 | I62: 15 | J62: 13 | K62: 15 | L62: 18 | M62: 18
B63: 60 | C63: 3 | D63: 12 | E63: 8 | F63: 9 | G63: 15 | H63: 17 | I63: 18 | J63: 16 | K63: 17 | L63: 22 | M63: 22
B64: 61 | C64: 6 | D64: 7 | E64: 9 | F64: 9 | G64: 11 | H64: 13 | I64: 13 | J64: 13 | K64: 14 | L64: 17 | M64: 17
B65: 62 | C65: 2 | D65: 8 | E65: 8 | F65: 9 | G65: 11 | H65: 13 | I65: 14 | J65: 11 | K65: 14 | L65: 20 | M65: 20
B66: 63 | C66: 6 | D66: 12 | E66: 12 | F66: 14 | G66: 16 | H66: 18 | I66: 19 | J66: 18 | K66: 19 | L66: 24 | M66: 24
B67: 64 | C67: 6 | D67: 9 | E67: 8 | F67: 10 | G67: 14 | H67: 17 | I67: 15 | J67: 16 | K67: 18 | L67: 18 | M67: 18
B68: 65 | C68: 3 | D68: 7 | E68: 11 | F68: 12 | G68: 15 | H68: 16 | I68: 16 | J68: 18 | K68: 19 | L68: 22 | M68: 22
B69: 66 | C69: 5 | D69: 6 | E69: 9 | F69: 12 | G69: 15 | H69: 18 | I69: 15 | J69: 14 | K69: 17 | L69: 23 | M69: 23
B70: 67 | C70: 1 | D70: 6 | E70: 8 | F70: 10 | G70: 12 | H70: 16 | I70: 14 | J70: 14 | K70: 17 | L70: 19 | M70: 19
B71: 68 | C71: 3 | D71: 7 | E71: 10 | F71: 12 | G71: 12 | H71: 14 | I71: 15 | J71: 15 | K71: 16 | L71: 20 | M71: 20
B72: 69 | C72: 4 | D72: 8 | E72: 11 | F72: 13 | G72: 16 | H72: 17 | I72: 20 | J72: 17 | K72: 20 | L72: 23 | M72: 23
B73: 70 | C73: 4 | D73: 9 | E73: 6 | F73: 8 | G73: 10 | H73: 11 | I73: 14 | J73: 11 | K73: 14 | L73: 16 | M73: 16
B74: 71 | C74: 5 | D74: 10 | E74: 9 | F74: 11 | G74: 14 | H74: 15 | I74: 16 | J74: 15 | K74: 17 | L74: 20 | M74: 20
B75: 72 | C75: 4 | D75: 5 | E75: 11 | F75: 11 | G75: 13 | H75: 16 | I75: 16 | J75: 14 | K75: 17 | L75: 21 | M75: 21
B76: 73 | C76: 5 | D76: 7 | E76: 8 | F76: 11 | G76: 14 | H76: 15 | I76: 17 | J76: 15 | K76: 17 | L76: 24 | M76: 24
B77: 74 | C77: 2 | D77: 8 | E77: 10 | F77: 12 | G77: 14 | H77: 14 | I77: 17 | J77: 16 | K77: 17 | L77: 21 | M77: 21
B78: 75 | C78: 3 | D78: 12 | E78: 7 | F78: 9 | G78: 15 | H78: 16 | I78: 18 | J78: 17 | K78: 17 | L78: 22 | M78: 22
B79: 76 | C79: 5 | D79: 6 | E79: 9 | F79: 10 | G79: 13 | H79: 15 | I79: 15 | J79: 15 | K79: 15 | L79: 18 | M79: 18
B80: 77 | C80: 6 | D80: 8 | E80: 6 | F80: 8 | G80: 11 | H80: 15 | I80: 14 | J80: 14 | K80: 16 | L80: 18 | M80: 18
B81: 78 | C81: 4 | D81: 12 | E81: 7 | F81: 9 | G81: 14 | H81: 17 | I81: 16 | J81: 14 | K81: 18 | L81: 22 | M81: 22
B82: 79 | C82: 4 | D82: 5 | E82: 10 | F82: 12 | G82: 12 | H82: 15 | I82: 12 | J82: 13 | K82: 15 | L82: 17 | M82: 17
B83: 80 | C83: 7 | D83: 10 | E83: 9 | F83: 12 | G83: 14 | H83: 15 | I83: 15 | J83: 16 | K83: 17 | L83: 23 | M83: 23
B84: 81 | C84: 8 | D84: 13 | E84: 8 | F84: 9 | G84: 16 | H84: 19 | I84: 18 | J84: 17 | K84: 18 | L84: 23 | M84: 23
B85: 82 | C85: 4 | D85: 9 | E85: 7 | F85: 8 | G85: 12 | H85: 14 | I85: 16 | J85: 15 | K85: 16 | L85: 15 | M85: 15
B86: 83 | C86: 6 | D86: 10 | E86: 10 | F86: 13 | G86: 15 | H86: 15 | I86: 16 | J86: 14 | K86: 16 | L86: 19 | M86: 19
B87: 84 | C87: 5 | D87: 6 | E87: 8 | F87: 8 | G87: 10 | H87: 14 | I87: 14 | J87: 12 | K87: 14 | L87: 16 | M87: 16
B88: 85 | C88: 6 | D88: 9 | E88: 6 | F88: 8 | G88: 10 | H88: 11 | I88: 12 | J88: 9 | K88: 13 | L88: 16 | M88: 16
B89: 86 | C89: 3 | D89: 5 | E89: 6 | F89: 8 | G89: 12 | H89: 16 | I89: 13 | J89: 14 | K89: 16 | L89: 16 | M89: 16
B90: 87 | C90: 8 | D90: 10 | E90: 11 | F90: 11 | G90: 15 | H90: 17 | I90: 16 | J90: 17 | K90: 17 | L90: 17 | M90: 17
B91: 88 | C91: 3 | D91: 5 | E91: 11 | F91: 12 | G91: 15 | H91: 15 | I91: 16 | J91: 18 | K91: 19 | L91: 22 | M91: 22
B92: 89 | C92: 2 | D92: 11 | E92: 8 | F92: 10 | G92: 13 | H92: 17 | I92: 16 | J92: 15 | K92: 18 | L92: 23 | M92: 23
B93: 90 | C93: 5 | D93: 10 | E93: 12 | F93: 13 | G93: 13 | H93: 16 | I93: 16 | J93: 15 | K93: 17 | L93: 21 | M93: 21
B94: 91 | C94: 6 | D94: 11 | E94: 9 | F94: 11 | G94: 13 | H94: 14 | I94: 15 | J94: 13 | K94: 15 | L94: 21 | M94: 21
B95: 92 | C95: 5 | D95: 7 | E95: 8 | F95: 8 | G95: 10 | H95: 12 | I95: 9 | J95: 12 | K95: 13 | L95: 16 | M95: 16
B96: 93 | C96: 1 | D96: 7 | E96: 12 | F96: 15 | G96: 17 | H96: 20 | I96: 18 | J96: 17 | K96: 20 | L96: 22 | M96: 22
B97: 94 | C97: 3 | D97: 7 | E97: 10 | F97: 11 | G97: 13 | H97: 15 | I97: 15 | J97: 16 | K97: 16 | L97: 20 | M97: 20
B98: 95 | C98: 4 | D98: 10 | E98: 9 | F98: 11 | G98: 13 | H98: 17 | I98: 16 | J98: 14 | K98: 16 | L98: 21 | M98: 21
B99: 96 | C99: 1 | D99: 9 | E99: 8 | F99: 10 | G99: 12 | H99: 16 | I99: 13 | J99: 13 | K99: 16 | L99: 21 | M99: 21
B100: 97 | C100: 6 | D100: 10 | E100: 7 | F100: 9 | G100: 10 | H100: 14 | I100: 10 | J100: 13 | K100: 14 | L100: 18 | M100: 18
B101: 98 | C101: 5 | D101: 6 | E101: 10 | F101: 11 | G101: 13 | H101: 14 | I101: 14 | J101: 14 | K101: 14 | L101: 16 | M101: 16
B102: 99 | C102: 6 | D102: 9 | E102: 10 | F102: 11 | G102: 13 | H102: 16 | I102: 15 | J102: 15 | K102: 16 | L102: 15 | M102: 15
B103: 100 | C103: 7 | D103: 10 | E103: 9 | F103: 10 | G103: 11 | H103: 12 | I103: 14 | J103: 13 | K103: 15 | L103: 18 | M103: 18
B104: 101 | C104: 3 | D104: 8 | E104: 11 | F104: 13 | G104: 15 | H104: 15 | I104: 16 | J104: 16 | K104: 16 | L104: 15 | M104: 15
B105: 102 | C105: 8 | D105: 12 | E105: 10 | F105: 12 | G105: 14 | H105: 17 | I105: 17 | J105: 16 | K105: 17 | L105: 20 | M105: 20
B106: 103 | C106: 6 | D106: 7 | E106: 9 | F106: 11 | G106: 11 | H106: 12 | I106: 14 | J106: 13 | K106: 15 | L106: 21 | M106: 21
B107: 104 | C107: 8 | D107: 11 | E107: 11 | F107: 12 | G107: 13 | H107: 14 | I107: 17 | J107: 14 | K107: 17 | L107: 21 | M107: 21
B108: 105 | C108: 4 | D108: 7 | E108: 9 | F108: 11 | G108: 12 | H108: 13 | I108: 12 | J108: 12 | K108: 14 | L108: 20 | M108: 20
B109: 106 | C109: 3 | D109: 8 | E109: 7 | F109: 7 | G109: 11 | H109: 14 | I109: 12 | J109: 13 | K109: 14 | L109: 19 | M109: 19
B110: 107 | C110: 4 | D110: 11 | E110: 9 | F110: 11 | G110: 15 | H110: 18 | I110: 18 | J110: 15 | K110: 17 | L110: 19 | M110: 19
B111: 108 | C111: 6 | D111: 11 | E111: 12 | F111: 12 | G111: 15 | H111: 19 | I111: 16 | J111: 15 | K111: 18 | L111: 21 | M111: 21
B112: 109 | C112: 6 | D112: 10 | E112: 5 | F112: 8 | G112: 12 | H112: 14 | I112: 13 | J112: 14 | K112: 14 | L112: 15 | M112: 15
B113: 110 | C113: 6 | D113: 9 | E113: 10 | F113: 11 | G113: 13 | H113: 16 | I113: 16 | J113: 14 | K113: 16 | L113: 21 | M113: 21
B114: 111 | C114: 2 | D114: 9 | E114: 8 | F114: 10 | G114: 13 | H114: 15 | I114: 13 | J114: 14 | K114: 16 | L114: 21 | M114: 21
B115: 112 | C115: 4 | D115: 7 | E115: 9 | F115: 10 | G115: 13 | H115: 13 | I115: 16 | J115: 13 | K115: 17 | L115: 21 | M115: 21
B116: 113 | C116: 4 | D116: 5 | E116: 9 | F116: 11 | G116: 13 | H116: 15 | I116: 15 | J116: 14 | K116: 15 | L116: 18 | M116: 18
B117: 114 | C117: 3 | D117: 6 | E117: 11 | F117: 12 | G117: 12 | H117: 13 | I117: 14 | J117: 12 | K117: 15 | L117: 20 | M117: 20
B118: 115 | C118: 7 | D118: 10 | E118: 7 | F118: 8 | G118: 13 | H118: 16 | I118: 15 | J118: 16 | K118: 16 | L118: 17 | M118: 17
B119: 116 | C119: 8 | D119: 9 | E119: 12 | F119: 12 | G119: 16 | H119: 19 | I119: 18 | J119: 17 | K119: 19 | L119: 22 | M119: 22
B120: 117 | C120: 4 | D120: 12 | E120: 8 | F120: 10 | G120: 16 | H120: 19 | I120: 15 | J120: 16 | K120: 19 | L120: 20 | M120: 20
B121: 118 | C121: 4 | D121: 5 | E121: 9 | F121: 10 | G121: 12 | H121: 14 | I121: 15 | J121: 14 | K121: 16 | L121: 17 | M121: 17
B122: 119 | C122: 5 | D122: 7 | E122: 9 | F122: 10 | G122: 14 | H122: 17 | I122: 17 | J122: 16 | K122: 17 | L122: 19 | M122: 19
B123: 120 | C123: 4 | D123: 9 | E123: 9 | F123: 9 | G123: 11 | H123: 13 | I123: 15 | J123: 13 | K123: 15 | L123: 18 | M123: 18
B124: 121 | C124: 7 | D124: 9 | E124: 9 | F124: 10 | G124: 12 | H124: 12 | I124: 13 | J124: 13 | K124: 12 | L124: 18 | M124: 18
B125: 122 | C125: 5 | D125: 11 | E125: 10 | F125: 10 | G125: 13 | H125: 14 | I125: 13 | J125: 12 | K125: 14 | L125: 18 | M125: 18
B126: 123 | C126: 1 | D126: 9 | E126: 11 | F126: 13 | G126: 16 | H126: 20 | I126: 18 | J126: 16 | K126: 19 | L126: 25 | M126: 25
B127: 124 | C127: 4 | D127: 9 | E127: 7 | F127: 8 | G127: 12 | H127: 14 | I127: 13 | J127: 11 | K127: 13 | L127: 16 | M127: 16
B128: 125 | C128: 6 | D128: 10 | E128: 10 | F128: 11 | G128: 14 | H128: 16 | I128: 16 | J128: 15 | K128: 16 | L128: 18 | M128: 18
B129: 126 | C129: 2 | D129: 9 | E129: 11 | F129: 13 | G129: 14 | H129: 18 | I129: 13 | J129: 16 | K129: 17 | L129: 19 | M129: 19
B130: 127 | C130: 5 | D130: 8 | E130: 9 | F130: 10 | G130: 13 | H130: 16 | I130: 14 | J130: 15 | K130: 16 | L130: 20 | M130: 20
B131: 128 | C131: 1 | D131: 7 | E131: 9 | F131: 12 | G131: 14 | H131: 15 | I131: 13 | J131: 16 | K131: 16 | L131: 18 | M131: 18
B132: 129 | C132: 4 | D132: 7 | E132: 7 | F132: 8 | G132: 12 | H132: 14 | I132: 12 | J132: 11 | K132: 15 | L132: 18 | M132: 18
B133: 130 | C133: 6 | D133: 7 | E133: 8 | F133: 9 | G133: 12 | H133: 15 | I133: 14 | J133: 13 | K133: 15 | L133: 20 | M133: 20
B134: 131 | C134: 3 | D134: 10 | E134: 9 | F134: 11 | G134: 13 | H134: 17 | I134: 17 | J134: 14 | K134: 18 | L134: 22 | M134: 22
B135: 132 | C135: 6 | D135: 9 | E135: 6 | F135: 8 | G135: 9 | H135: 9 | I135: 11 | J135: 10 | K135: 10 | L135: 15 | M135: 15
B136: 133 | C136: 4 | D136: 10 | E136: 5 | F136: 6 | G136: 13 | H136: 17 | I136: 15 | J136: 14 | K136: 16 | L136: 19 | M136: 19
B137: 134 | C137: 2 | D137: 8 | E137: 9 | F137: 10 | G137: 12 | H137: 14 | I137: 14 | J137: 13 | K137: 15 | L137: 19 | M137: 19
B138: 135 | C138: 7 | D138: 11 | E138: 8 | F138: 10 | G138: 12 | H138: 13 | I138: 15 | J138: 12 | K138: 14 | L138: 16 | M138: 16
B139: 136 | C139: 4 | D139: 9 | E139: 10 | F139: 12 | G139: 12 | H139: 12 | I139: 13 | J139: 11 | K139: 12 | L139: 16 | M139: 16
B140: 137 | C140: 5 | D140: 11 | E140: 8 | F140: 8 | G140: 14 | H140: 16 | I140: 19 | J140: 15 | K140: 19 | L140: 21 | M140: 21
B141: 138 | C141: 6 | D141: 9 | E141: 9 | F141: 12 | G141: 15 | H141: 19 | I141: 18 | J141: 15 | K141: 18 | L141: 19 | M141: 19
B142: 139 | C142: 0 | D142: 10 | E142: 7 | F142: 8 | G142: 13 | H142: 16 | I142: 13 | J142: 15 | K142: 16 | L142: 19 | M142: 19
B143: 140 | C143: 4 | D143: 9 | E143: 9 | F143: 10 | G143: 13 | H143: 14 | I143: 14 | J143: 15 | K143: 15 | L143: 18 | M143: 18
B144: 141 | C144: 7 | D144: 7 | E144: 9 | F144: 10 | G144: 13 | H144: 15 | I144: 13 | J144: 16 | K144: 16 | L144: 18 | M144: 18
B145: 142 | C145: 3 | D145: 7 | E145: 10 | F145: 10 | G145: 13 | H145: 14 | I145: 17 | J145: 14 | K145: 17 | L145: 21 | M145: 21
B146: 143 | C146: 4 | D146: 8 | E146: 11 | F146: 11 | G146: 13 | H146: 16 | I146: 14 | J146: 14 | K146: 16 | L146: 17 | M146: 17
B147: 144 | C147: 6 | D147: 12 | E147: 8 | F147: 9 | G147: 14 | H147: 17 | I147: 15 | J147: 16 | K147: 17 | L147: 20 | M147: 20
B148: 145 | C148: 2 | D148: 11 | E148: 8 | F148: 9 | G148: 14 | H148: 16 | I148: 16 | J148: 15 | K148: 16 | L148: 20 | M148: 20
B149: 146 | C149: 1 | D149: 9 | E149: 6 | F149: 7 | G149: 11 | H149: 11 | I149: 12 | J149: 11 | K149: 13 | L149: 20 | M149: 20
B150: 147 | C150: 5 | D150: 7 | E150: 9 | F150: 11 | G150: 13 | H150: 16 | I150: 16 | J150: 14 | K150: 15 | L150: 15 | M150: 15
B151: 148 | C151: 1 | D151: 5 | E151: 11 | F151: 12 | G151: 13 | H151: 16 | I151: 15 | J151: 15 | K151: 16 | L151: 19 | M151: 19
B152: 149 | C152: 6 | D152: 9 | E152: 11 | F152: 13 | G152: 14 | H152: 18 | I152: 16 | J152: 15 | K152: 19 | L152: 23 | M152: 23
B153: 150 | C153: 4 | D153: 11 | E153: 9 | F153: 12 | G153: 13 | H153: 13 | I153: 14 | J153: 14 | K153: 14 | L153: 19 | M153: 19
B154: 151 | C154: 5 | D154: 6 | E154: 8 | F154: 8 | G154: 10 | H154: 13 | I154: 13 | J154: 13 | K154: 13 | L154: 17 | M154: 17
B155: 152 | C155: 6 | D155: 8 | E155: 10 | F155: 12 | G155: 14 | H155: 16 | I155: 16 | J155: 16 | K155: 16 | L155: 23 | M155: 23
B156: 153 | C156: 5 | D156: 8 | E156: 10 | F156: 10 | G156: 13 | H156: 15 | I156: 15 | J156: 15 | K156: 16 | L156: 22 | M156: 22
B157: 154 | C157: 2 | D157: 10 | E157: 9 | F157: 11 | G157: 15 | H157: 18 | I157: 17 | J157: 16 | K157: 18 | L157: 22 | M157: 22
B158: 155 | C158: 4 | D158: 9 | E158: 6 | F158: 8 | G158: 11 | H158: 14 | I158: 16 | J158: 12 | K158: 15 | L158: 22 | M158: 22
B159: 156 | C159: 4 | D159: 7 | E159: 7 | F159: 8 | G159: 11 | H159: 13 | I159: 12 | J159: 13 | K159: 13 | L159: 15 | M159: 15
B160: 157 | C160: 2 | D160: 5 | E160: 10 | F160: 11 | G160: 12 | H160: 14 | I160: 12 | J160: 14 | K160: 13 | L160: 19 | M160: 19
B161: 158 | C161: 6 | D161: 11 | E161: 7 | F161: 9 | G161: 13 | H161: 14 | I161: 16 | J161: 15 | K161: 16 | L161: 21 | M161: 21
B162: 159 | C162: 8 | D162: 12 | E162: 9 | F162: 11 | G162: 13 | H162: 16 | I162: 14 | J162: 15 | K162: 17 | L162: 23 | M162: 23
B163: 160 | C163: 4 | D163: 4 | E163: 9 | F163: 10 | G163: 13 | H163: 13 | I163: 14 | J163: 15 | K163: 16 | L163: 16 | M163: 16
B164: 161 | C164: 7 | D164: 7 | E164: 11 | F164: 11 | G164: 14 | H164: 16 | I164: 15 | J164: 14 | K164: 16 | L164: 18 | M164: 18
B165: 162 | C165: 6 | D165: 6 | E165: 9 | F165: 10 | G165: 10 | H165: 13 | I165: 14 | J165: 12 | K165: 14 | L165: 14 | M165: 14
B166: 163 | C166: 8 | D166: 8 | E166: 10 | F166: 11 | G166: 13 | H166: 16 | I166: 14 | J166: 13 | K166: 16 | L166: 22 | M166: 22
B167: 164 | C167: 4 | D167: 11 | E167: 7 | F167: 8 | G167: 15 | H167: 19 | I167: 17 | J167: 18 | K167: 20 | L167: 24 | M167: 24
B168: 165 | C168: 6 | D168: 10 | E168: 10 | F168: 12 | G168: 13 | H168: 14 | I168: 15 | J168: 15 | K168: 16 | L168: 18 | M168: 18
B169: 166 | C169: 7 | D169: 10 | E169: 9 | F169: 11 | G169: 12 | H169: 14 | I169: 13 | J169: 13 | K169: 14 | L169: 15 | M169: 15
B170: 167 | C170: 4 | D170: 12 | E170: 12 | F170: 12 | G170: 14 | H170: 18 | I170: 18 | J170: 15 | K170: 19 | L170: 23 | M170: 23
B171: 168 | C171: 5 | D171: 8 | E171: 8 | F171: 10 | G171: 12 | H171: 14 | I171: 13 | J171: 11 | K171: 14 | L171: 17 | M171: 17
B172: 169 | C172: 8 | D172: 12 | E172: 10 | F172: 10 | G172: 13 | H172: 15 | I172: 15 | J172: 15 | K172: 14 | L172: 17 | M172: 17
B173: 170 | C173: 4 | D173: 10 | E173: 8 | F173: 9 | G173: 12 | H173: 15 | I173: 15 | J173: 13 | K173: 15 | L173: 19 | M173: 19
B174: 171 | C174: 6 | D174: 10 | E174: 11 | F174: 13 | G174: 14 | H174: 18 | I174: 17 | J174: 17 | K174: 18 | L174: 19 | M174: 19
B175: 172 | C175: 2 | D175: 8 | E175: 9 | F175: 11 | G175: 13 | H175: 15 | I175: 16 | J175: 13 | K175: 17 | L175: 23 | M175: 23
B176: 173 | C176: 4 | D176: 10 | E176: 9 | F176: 9 | G176: 11 | H176: 14 | I176: 16 | J176: 11 | K176: 17 | L176: 19 | M176: 19
B177: 174 | C177: 5 | D177: 4 | E177: 8 | F177: 10 | G177: 12 | H177: 14 | I177: 12 | J177: 14 | K177: 15 | L177: 17 | M177: 17
B178: 175 | C178: 2 | D178: 10 | E178: 8 | F178: 11 | G178: 11 | H178: 12 | I178: 11 | J178: 13 | K178: 13 | L178: 18 | M178: 18
B179: 176 | C179: 2 | D179: 7 | E179: 8 | F179: 8 | G179: 9 | H179: 10 | I179: 11 | J179: 10 | K179: 12 | L179: 16 | M179: 16
B180: 177 | C180: 6 | D180: 5 | E180: 6 | F180: 7 | G180: 7 | H180: 8 | I180: 10 | J180: 7 | K180: 9 | L180: 16 | M180: 16
B181: 178 | C181: 6 | D181: 11 | E181: 8 | F181: 9 | G181: 13 | H181: 14 | I181: 13 | J181: 15 | K181: 16 | L181: 21 | M181: 21
B182: 179 | C182: 4 | D182: 10 | E182: 9 | F182: 12 | G182: 13 | H182: 14 | I182: 14 | J182: 15 | K182: 15 | L182: 19 | M182: 19
B183: 180 | C183: 4 | D183: 5 | E183: 8 | F183: 10 | G183: 11 | H183: 12 | I183: 10 | J183: 12 | K183: 13 | L183: 15 | M183: 15
B184: 181 | C184: 7 | D184: 7 | E184: 10 | F184: 11 | G184: 14 | H184: 16 | I184: 16 | J184: 16 | K184: 17 | L184: 17 | M184: 17
B185: 182 | C185: 4 | D185: 6 | E185: 6 | F185: 8 | G185: 11 | H185: 14 | I185: 16 | J185: 11 | K185: 17 | L185: 18 | M185: 18
B186: 183 | C186: 3 | D186: 9 | E186: 8 | F186: 8 | G186: 11 | H186: 13 | I186: 11 | J186: 13 | K186: 13 | L186: 17 | M186: 17
B187: 184 | C187: 5 | D187: 9 | E187: 8 | F187: 9 | G187: 10 | H187: 12 | I187: 10 | J187: 11 | K187: 12 | L187: 15 | M187: 15
B188: 185 | C188: 5 | D188: 8 | E188: 9 | F188: 10 | G188: 12 | H188: 12 | I188: 14 | J188: 12 | K188: 14 | L188: 17 | M188: 17
B189: 186 | C189: 1 | D189: 7 | E189: 8 | F189: 8 | G189: 9 | H189: 12 | I189: 10 | J189: 8 | K189: 12 | L189: 13 | M189: 13
B190: 187 | C190: 4 | D190: 11 | E190: 5 | F190: 7 | G190: 13 | H190: 15 | I190: 14 | J190: 15 | K190: 16 | L190: 19 | M190: 19
B191: 188 | C191: 2 | D191: 9 | E191: 10 | F191: 12 | G191: 16 | H191: 18 | I191: 18 | J191: 17 | K191: 17 | L191: 20 | M191: 20
B192: 189 | C192: 7 | D192: 10 | E192: 12 | F192: 14 | G192: 18 | H192: 19 | I192: 19 | J192: 19 | K192: 19 | L192: 23 | M192: 23
B193: 190 | C193: 3 | D193: 9 | E193: 12 | F193: 14 | G193: 16 | H193: 17 | I193: 15 | J193: 17 | K193: 16 | L193: 20 | M193: 20
B194: 191 | C194: 3 | D194: 9 | E194: 6 | F194: 7 | G194: 10 | H194: 10 | I194: 12 | J194: 11 | K194: 12 | L194: 12 | M194: 12
B195: 192 | C195: 1 | D195: 9 | E195: 9 | F195: 10 | G195: 12 | H195: 16 | I195: 13 | J195: 12 | K195: 16 | L195: 19 | M195: 19
B196: 193 | C196: 4 | D196: 9 | E196: 6 | F196: 7 | G196: 13 | H196: 14 | I196: 14 | J196: 15 | K196: 15 | L196: 18 | M196: 18
B197: 194 | C197: 2 | D197: 6 | E197: 9 | F197: 9 | G197: 12 | H197: 12 | I197: 15 | J197: 12 | K197: 15 | L197: 21 | M197: 21
B198: 195 | C198: 2 | D198: 7 | E198: 6 | F198: 7 | G198: 10 | H198: 11 | I198: 11 | J198: 11 | K198: 11 | L198: 16 | M198: 16
B199: 196 | C199: 5 | D199: 6 | E199: 10 | F199: 11 | G199: 12 | H199: 14 | I199: 15 | J199: 12 | K199: 16 | L199: 17 | M199: 17
B200: 197 | C200: 5 | D200: 6 | E200: 9 | F200: 9 | G200: 11 | H200: 13 | I200: 12 | J200: 13 | K200: 13 | L200: 14 | M200: 14
... 803 more rows

Sheet SIPmath Chart Data (hidden)
B1: Finish01 | C1: Finish02 | D1: Finish03 | E1: Finish04 | F1: Finish05 | G1: Finish06 | H1: Finish07 | I1: Finish08 | J1: Finish09 | K1: Finish10 | L1: =IF(SIPmath,"Finish - ","") -> Finish -
A2: Expected Value | B2: =ROUND( AVERAGE( Finish01 ), $B$9 ) -> 4 | C2: =ROUND( AVERAGE( Finish02 ), $C$9 ) -> 9 | D2: =ROUND( AVERAGE( Finish03 ), $D$9 ) -> 9 | E2: =ROUND( AVERAGE( Finish04 ), $E$9 ) -> 10 | F2: =ROUND( AVERAGE( Finish05 ), $F$9 ) -> 13 | G2: =ROUND( AVERAGE( Finish06 ), $G$9 ) -> 15 | H2: =ROUND( AVERAGE( Finish07 ), $H$9 ) -> 15 | I2: =ROUND( AVERAGE( Finish08 ), $I$9 ) -> 14 | J2: =ROUND( AVERAGE( Finish09 ), $J$9 ) -> 16 | K2: =ROUND( AVERAGE( Finish10 ), $K$9 ) -> 19 | L2: =ROUND( AVERAGE( FinishProject ), $L$9 ) -> 19
A3: Series Name | B3: =$B$1 & " EV " & $B$2 -> Finish01 EV 4 | C3: =$C$1 & " EV " & $C$2 -> Finish02 EV 9 | D3: =$D$1 & " EV " & $D$2 -> Finish03 EV 9 | E3: =$E$1 & " EV " & $E$2 -> Finish04 EV 10 | F3: =$F$1 & " EV " & $F$2 -> Finish05 EV 13 | G3: =$G$1 & " EV " & $G$2 -> Finish06 EV 15 | H3: =$H$1 & " EV " & $H$2 -> Finish07 EV 15 | I3: =$I$1 & " EV " & $I$2 -> Finish08 EV 14 | J3: =$J$1 & " EV " & $J$2 -> Finish09 EV 16 | K3: =$K$1 & " EV " & $K$2 -> Finish10 EV 19 | L3: =IF(SIPmath,$L$1 & " Average=" & $L$2,"") -> Finish - Average=19
A4: Integer chart? | B4: TRUE | C4: TRUE | D4: TRUE | E4: TRUE | F4: TRUE | G4: TRUE | H4: TRUE | I4: TRUE | J4: TRUE | K4: TRUE | L4: FALSE
A5: Loss Exceedance | B5: FALSE | C5: FALSE | D5: FALSE | E5: FALSE | F5: FALSE | G5: FALSE | H5: FALSE | I5: FALSE | J5: FALSE | K5: FALSE | L5: FALSE
A6: Number of Bins | B6: =IF( $B$4, MIN( INT( MAX( Finish01 ) - MIN( Finish01 ) + 1 ), 100 ), 100 ) -> 9 | C6: =IF( $C$4, MIN( INT( MAX( Finish02 ) - MIN( Finish02 ) + 1 ), 100 ), 100 ) -> 11 | D6: =IF( $D$4, MIN( INT( MAX( Finish03 ) - MIN( Finish03 ) + 1 ), 100 ), 100 ) -> 10 | E6: =IF( $E$4, MIN( INT( MAX( Finish04 ) - MIN( Finish04 ) + 1 ), 100 ), 100 ) -> 12 | F6: =IF( $F$4, MIN( INT( MAX( Finish05 ) - MIN( Finish05 ) + 1 ), 100 ), 100 ) -> 14 | G6: =IF( $G$4, MIN( INT( MAX( Finish06 ) - MIN( Finish06 ) + 1 ), 100 ), 100 ) -> 16 | H6: =IF( $H$4, MIN( INT( MAX( Finish07 ) - MIN( Finish07 ) + 1 ), 100 ), 100 ) -> 17 | I6: =IF( $I$4, MIN( INT( MAX( Finish08 ) - MIN( Finish08 ) + 1 ), 100 ), 100 ) -> 17 | J6: =IF( $J$4, MIN( INT( MAX( Finish09 ) - MIN( Finish09 ) + 1 ), 100 ), 100 ) -> 15 | K6: =IF( $K$4, MIN( INT( MAX( Finish10 ) - MIN( Finish10 ) + 1 ), 100 ), 100 ) -> 18 | L6: =IF( $K$4, MIN( INT( MAX( FinishProject ) - MIN( FinishProject ) + 1 ), 100 ), 100 ) -> 18
A7: Label position | B7: 10 | C7: 10 | D7: 10 | E7: 10 | F7: 10 | G7: 10 | H7: 10 | I7: 10 | J7: 10 | K7: 10 | L7: 10
A8: Bin Width | B8: =ROUNDUP(( MAX( Finish01 ) - $B$13 ) / $B$6, $B$9 ) -> 1 | C8: =ROUNDUP(( MAX( Finish02 ) - $C$13 ) / $C$6, $C$9 ) -> 1 | D8: =ROUNDUP(( MAX( Finish03 ) - $D$13 ) / $D$6, $D$9 ) -> 1 | E8: =ROUNDUP(( MAX( Finish04 ) - $E$13 ) / $E$6, $E$9 ) -> 1 | F8: =ROUNDUP(( MAX( Finish05 ) - $F$13 ) / $F$6, $F$9 ) -> 1 | G8: =ROUNDUP(( MAX( Finish06 ) - $G$13 ) / $G$6, $G$9 ) -> 1 | H8: =ROUNDUP(( MAX( Finish07 ) - $H$13 ) / $H$6, $H$9 ) -> 1 | I8: =ROUNDUP(( MAX( Finish08 ) - $I$13 ) / $I$6, $I$9 ) -> 1 | J8: =ROUNDUP(( MAX( Finish09 ) - $J$13 ) / $J$6, $J$9 ) -> 1 | K8: =ROUNDUP(( MAX( Finish10 ) - $K$13 ) / $K$6, $K$9 ) -> 1 | L8: =ROUNDUP(( MAX( FinishProject ) - $L$13 ) / $L$6, $L$9 ) -> 1
A9: Decimals | B9: 0 | C9: 0 | D9: 0 | E9: 0 | F9: 0 | G9: 0 | H9: 0 | I9: 0 | J9: 0 | K9: 0 | L9: 0
A10: Scale | B10: 1 | C10: 1 | D10: 1 | E10: 1 | F10: 1 | G10: 1 | H10: 1 | I10: 1 | J10: 1 | K10: 1 | L10: 1
A11: Use Axis Title? | B11: FALSE | C11: FALSE | D11: FALSE | E11: FALSE | F11: FALSE | G11: FALSE | H11: FALSE | I11: FALSE | J11: FALSE | K11: FALSE | L11: FALSE
A12: Axis Title | B12: =IF( AND( $B$11, $B$10 > 1 ), MID( TEXT( $B$10, "#,##0" ), IF( MOD( LEN( TEXT( $B$10, "0" )), 3 ) = 1, 3, 2), 100 ) & "s", "" ) ->  | C12: =IF( AND( $C$11, $C$10 > 1 ), MID( TEXT( $C$10, "#,##0" ), IF( MOD( LEN( TEXT( $C$10, "0" )), 3 ) = 1, 3, 2), 100 ) & "s", "" ) ->  | D12: =IF( AND( $D$11, $D$10 > 1 ), MID( TEXT( $D$10, "#,##0" ), IF( MOD( LEN( TEXT( $D$10, "0" )), 3 ) = 1, 3, 2), 100 ) & "s", "" ) ->  | E12: =IF( AND( $E$11, $E$10 > 1 ), MID( TEXT( $E$10, "#,##0" ), IF( MOD( LEN( TEXT( $E$10, "0" )), 3 ) = 1, 3, 2), 100 ) & "s", "" ) ->  | F12: =IF( AND( $F$11, $F$10 > 1 ), MID( TEXT( $F$10, "#,##0" ), IF( MOD( LEN( TEXT( $F$10, "0" )), 3 ) = 1, 3, 2), 100 ) & "s", "" ) ->  | G12: =IF( AND( $G$11, $G$10 > 1 ), MID( TEXT( $G$10, "#,##0" ), IF( MOD( LEN( TEXT( $G$10, "0" )), 3 ) = 1, 3, 2), 100 ) & "s", "" ) ->  | H12: =IF( AND( $H$11, $H$10 > 1 ), MID( TEXT( $H$10, "#,##0" ), IF( MOD( LEN( TEXT( $H$10, "0" )), 3 ) = 1, 3, 2), 100 ) & "s", "" ) ->  | I12: =IF( AND( $I$11, $I$10 > 1 ), MID( TEXT( $I$10, "#,##0" ), IF( MOD( LEN( TEXT( $I$10, "0" )), 3 ) = 1, 3, 2), 100 ) & "s", "" ) ->  | J12: =IF( AND( $J$11, $J$10 > 1 ), MID( TEXT( $J$10, "#,##0" ), IF( MOD( LEN( TEXT( $J$10, "0" )), 3 ) = 1, 3, 2), 100 ) & "s", "" ) ->  | K12: =IF( AND( $K$11, $K$10 > 1 ), MID( TEXT( $K$10, "#,##0" ), IF( MOD( LEN( TEXT( $K$10, "0" )), 3 ) = 1, 3, 2), 100 ) & "s", "" ) ->  | L12: =IF( AND( $L$11, $L$10 > 1 ), MID( TEXT( $L$10, "#,##0" ), IF( MOD( LEN( TEXT( $L$10, "0" )), 3 ) = 1, 3, 2), 100 ) & "s", "" ) -> 
A13: Min | B13: =ROUND( MIN( Finish01 ), $B$9 - LOG( $B$10 )) - IF( $B$4, 1, 0 ) -> -1 | C13: =ROUND( MIN( Finish02 ), $C$9 - LOG( $C$10 )) - IF( $C$4, 1, 0 ) -> 3 | D13: =ROUND( MIN( Finish03 ), $D$9 - LOG( $D$10 )) - IF( $D$4, 1, 0 ) -> 4 | E13: =ROUND( MIN( Finish04 ), $E$9 - LOG( $E$10 )) - IF( $E$4, 1, 0 ) -> 4 | F13: =ROUND( MIN( Finish05 ), $F$9 - LOG( $F$10 )) - IF( $F$4, 1, 0 ) -> 6 | G13: =ROUND( MIN( Finish06 ), $G$9 - LOG( $G$10 )) - IF( $G$4, 1, 0 ) -> 7 | H13: =ROUND( MIN( Finish07 ), $H$9 - LOG( $H$10 )) - IF( $H$4, 1, 0 ) -> 6 | I13: =ROUND( MIN( Finish08 ), $I$9 - LOG( $I$10 )) - IF( $I$4, 1, 0 ) -> 6 | J13: =ROUND( MIN( Finish09 ), $J$9 - LOG( $J$10 )) - IF( $J$4, 1, 0 ) -> 8 | K13: =ROUND( MIN( Finish10 ), $K$9 - LOG( $K$10 )) - IF( $K$4, 1, 0 ) -> 10 | L13: =ROUND( MIN( FinishProject ), $L$9 - LOG( $L$10 )) - IF( $L$4, 1, 0 ) -> 11
A14: Bin Range | B14: =ROUND( $B$13 + $B$8, $B$9 - LOG( $B$10 )) -> 0 | C14: =ROUND( $C$13 + $C$8, $C$9 - LOG( $C$10 )) -> 4 | D14: =ROUND( $D$13 + $D$8, $D$9 - LOG( $D$10 )) -> 5 | E14: =ROUND( $E$13 + $E$8, $E$9 - LOG( $E$10 )) -> 5 | F14: =ROUND( $F$13 + $F$8, $F$9 - LOG( $F$10 )) -> 7 | G14: =ROUND( $G$13 + $G$8, $G$9 - LOG( $G$10 )) -> 8 | H14: =ROUND( $H$13 + $H$8, $H$9 - LOG( $H$10 )) -> 7 | I14: =ROUND( $I$13 + $I$8, $I$9 - LOG( $I$10 )) -> 7 | J14: =ROUND( $J$13 + $J$8, $J$9 - LOG( $J$10 )) -> 9 | K14: =ROUND( $K$13 + $K$8, $K$9 - LOG( $K$10 )) -> 11 | L14: =ROUND( $L$13 + $L$8, $L$9 - LOG( $L$10 )) -> 12
A15: Frequency | B15: =ROUND( $B$14 + $B$8, $B$9 - LOG( $B$10 )) -> 1 | C15: =ROUND( $C$14 + $C$8, $C$9 - LOG( $C$10 )) -> 5 | D15: =ROUND( $D$14 + $D$8, $D$9 - LOG( $D$10 )) -> 6 | E15: =ROUND( $E$14 + $E$8, $E$9 - LOG( $E$10 )) -> 6 | F15: =ROUND( $F$14 + $F$8, $F$9 - LOG( $F$10 )) -> 8 | G15: =ROUND( $G$14 + $G$8, $G$9 - LOG( $G$10 )) -> 9 | H15: =ROUND( $H$14 + $H$8, $H$9 - LOG( $H$10 )) -> 8 | I15: =ROUND( $I$14 + $I$8, $I$9 - LOG( $I$10 )) -> 8 | J15: =ROUND( $J$14 + $J$8, $J$9 - LOG( $J$10 )) -> 10 | K15: =ROUND( $K$14 + $K$8, $K$9 - LOG( $K$10 )) -> 12 | L15: =ROUND( $L$14 + $L$8, $L$9 - LOG( $L$10 )) -> 13
A16: Labels | B16: =ROUND( $B$15 + $B$8, $B$9 - LOG( $B$10 )) -> 2 | C16: =ROUND( $C$15 + $C$8, $C$9 - LOG( $C$10 )) -> 6 | D16: =ROUND( $D$15 + $D$8, $D$9 - LOG( $D$10 )) -> 7 | E16: =ROUND( $E$15 + $E$8, $E$9 - LOG( $E$10 )) -> 7 | F16: =ROUND( $F$15 + $F$8, $F$9 - LOG( $F$10 )) -> 9 | G16: =ROUND( $G$15 + $G$8, $G$9 - LOG( $G$10 )) -> 10 | H16: =ROUND( $H$15 + $H$8, $H$9 - LOG( $H$10 )) -> 9 | I16: =ROUND( $I$15 + $I$8, $I$9 - LOG( $I$10 )) -> 9 | J16: =ROUND( $J$15 + $J$8, $J$9 - LOG( $J$10 )) -> 11 | K16: =ROUND( $K$15 + $K$8, $K$9 - LOG( $K$10 )) -> 13 | L16: =ROUND( $L$15 + $L$8, $L$9 - LOG( $L$10 )) -> 14
A17: Cumulative | B17: =ROUND( $B$16 + $B$8, $B$9 - LOG( $B$10 )) -> 3 | C17: =ROUND( $C$16 + $C$8, $C$9 - LOG( $C$10 )) -> 7 | D17: =ROUND( $D$16 + $D$8, $D$9 - LOG( $D$10 )) -> 8 | E17: =ROUND( $E$16 + $E$8, $E$9 - LOG( $E$10 )) -> 8 | F17: =ROUND( $F$16 + $F$8, $F$9 - LOG( $F$10 )) -> 10 | G17: =ROUND( $G$16 + $G$8, $G$9 - LOG( $G$10 )) -> 11 | H17: =ROUND( $H$16 + $H$8, $H$9 - LOG( $H$10 )) -> 10 | I17: =ROUND( $I$16 + $I$8, $I$9 - LOG( $I$10 )) -> 10 | J17: =ROUND( $J$16 + $J$8, $J$9 - LOG( $J$10 )) -> 12 | K17: =ROUND( $K$16 + $K$8, $K$9 - LOG( $K$10 )) -> 14 | L17: =ROUND( $L$16 + $L$8, $L$9 - LOG( $L$10 )) -> 15
B18: =ROUND( $B$17 + $B$8, $B$9 - LOG( $B$10 )) -> 4 | C18: =ROUND( $C$17 + $C$8, $C$9 - LOG( $C$10 )) -> 8 | D18: =ROUND( $D$17 + $D$8, $D$9 - LOG( $D$10 )) -> 9 | E18: =ROUND( $E$17 + $E$8, $E$9 - LOG( $E$10 )) -> 9 | F18: =ROUND( $F$17 + $F$8, $F$9 - LOG( $F$10 )) -> 11 | G18: =ROUND( $G$17 + $G$8, $G$9 - LOG( $G$10 )) -> 12 | H18: =ROUND( $H$17 + $H$8, $H$9 - LOG( $H$10 )) -> 11 | I18: =ROUND( $I$17 + $I$8, $I$9 - LOG( $I$10 )) -> 11 | J18: =ROUND( $J$17 + $J$8, $J$9 - LOG( $J$10 )) -> 13 | K18: =ROUND( $K$17 + $K$8, $K$9 - LOG( $K$10 )) -> 15 | L18: =ROUND( $L$17 + $L$8, $L$9 - LOG( $L$10 )) -> 16
B19: =ROUND( $B$18 + $B$8, $B$9 - LOG( $B$10 )) -> 5 | C19: =ROUND( $C$18 + $C$8, $C$9 - LOG( $C$10 )) -> 9 | D19: =ROUND( $D$18 + $D$8, $D$9 - LOG( $D$10 )) -> 10 | E19: =ROUND( $E$18 + $E$8, $E$9 - LOG( $E$10 )) -> 10 | F19: =ROUND( $F$18 + $F$8, $F$9 - LOG( $F$10 )) -> 12 | G19: =ROUND( $G$18 + $G$8, $G$9 - LOG( $G$10 )) -> 13 | H19: =ROUND( $H$18 + $H$8, $H$9 - LOG( $H$10 )) -> 12 | I19: =ROUND( $I$18 + $I$8, $I$9 - LOG( $I$10 )) -> 12 | J19: =ROUND( $J$18 + $J$8, $J$9 - LOG( $J$10 )) -> 14 | K19: =ROUND( $K$18 + $K$8, $K$9 - LOG( $K$10 )) -> 16 | L19: =ROUND( $L$18 + $L$8, $L$9 - LOG( $L$10 )) -> 17
B20: =ROUND( $B$19 + $B$8, $B$9 - LOG( $B$10 )) -> 6 | C20: =ROUND( $C$19 + $C$8, $C$9 - LOG( $C$10 )) -> 10 | D20: =ROUND( $D$19 + $D$8, $D$9 - LOG( $D$10 )) -> 11 | E20: =ROUND( $E$19 + $E$8, $E$9 - LOG( $E$10 )) -> 11 | F20: =ROUND( $F$19 + $F$8, $F$9 - LOG( $F$10 )) -> 13 | G20: =ROUND( $G$19 + $G$8, $G$9 - LOG( $G$10 )) -> 14 | H20: =ROUND( $H$19 + $H$8, $H$9 - LOG( $H$10 )) -> 13 | I20: =ROUND( $I$19 + $I$8, $I$9 - LOG( $I$10 )) -> 13 | J20: =ROUND( $J$19 + $J$8, $J$9 - LOG( $J$10 )) -> 15 | K20: =ROUND( $K$19 + $K$8, $K$9 - LOG( $K$10 )) -> 17 | L20: =ROUND( $L$19 + $L$8, $L$9 - LOG( $L$10 )) -> 18
B21: =ROUND( $B$20 + $B$8, $B$9 - LOG( $B$10 )) -> 7 | C21: =ROUND( $C$20 + $C$8, $C$9 - LOG( $C$10 )) -> 11 | D21: =ROUND( $D$20 + $D$8, $D$9 - LOG( $D$10 )) -> 12 | E21: =ROUND( $E$20 + $E$8, $E$9 - LOG( $E$10 )) -> 12 | F21: =ROUND( $F$20 + $F$8, $F$9 - LOG( $F$10 )) -> 14 | G21: =ROUND( $G$20 + $G$8, $G$9 - LOG( $G$10 )) -> 15 | H21: =ROUND( $H$20 + $H$8, $H$9 - LOG( $H$10 )) -> 14 | I21: =ROUND( $I$20 + $I$8, $I$9 - LOG( $I$10 )) -> 14 | J21: =ROUND( $J$20 + $J$8, $J$9 - LOG( $J$10 )) -> 16 | K21: =ROUND( $K$20 + $K$8, $K$9 - LOG( $K$10 )) -> 18 | L21: =ROUND( $L$20 + $L$8, $L$9 - LOG( $L$10 )) -> 19
B22: =ROUND( $B$21 + $B$8, $B$9 - LOG( $B$10 )) -> 8 | C22: =ROUND( $C$21 + $C$8, $C$9 - LOG( $C$10 )) -> 12 | D22: =ROUND( $D$21 + $D$8, $D$9 - LOG( $D$10 )) -> 13 | E22: =ROUND( $E$21 + $E$8, $E$9 - LOG( $E$10 )) -> 13 | F22: =ROUND( $F$21 + $F$8, $F$9 - LOG( $F$10 )) -> 15 | G22: =ROUND( $G$21 + $G$8, $G$9 - LOG( $G$10 )) -> 16 | H22: =ROUND( $H$21 + $H$8, $H$9 - LOG( $H$10 )) -> 15 | I22: =ROUND( $I$21 + $I$8, $I$9 - LOG( $I$10 )) -> 15 | J22: =ROUND( $J$21 + $J$8, $J$9 - LOG( $J$10 )) -> 17 | K22: =ROUND( $K$21 + $K$8, $K$9 - LOG( $K$10 )) -> 19 | L22: =ROUND( $L$21 + $L$8, $L$9 - LOG( $L$10 )) -> 20
B23: =ROUND( $B$22 + $B$8, $B$9 - LOG( $B$10 )) -> 9 | C23: =ROUND( $C$22 + $C$8, $C$9 - LOG( $C$10 )) -> 13 | D23: =ROUND( $D$22 + $D$8, $D$9 - LOG( $D$10 )) -> 14 | E23: =ROUND( $E$22 + $E$8, $E$9 - LOG( $E$10 )) -> 14 | F23: =ROUND( $F$22 + $F$8, $F$9 - LOG( $F$10 )) -> 16 | G23: =ROUND( $G$22 + $G$8, $G$9 - LOG( $G$10 )) -> 17 | H23: =ROUND( $H$22 + $H$8, $H$9 - LOG( $H$10 )) -> 16 | I23: =ROUND( $I$22 + $I$8, $I$9 - LOG( $I$10 )) -> 16 | J23: =ROUND( $J$22 + $J$8, $J$9 - LOG( $J$10 )) -> 18 | K23: =ROUND( $K$22 + $K$8, $K$9 - LOG( $K$10 )) -> 20 | L23: =ROUND( $L$22 + $L$8, $L$9 - LOG( $L$10 )) -> 21
B24: =ROUND( $B$23 + $B$8, $B$9 - LOG( $B$10 )) -> 10 | C24: =ROUND( $C$23 + $C$8, $C$9 - LOG( $C$10 )) -> 14 | D24: =ROUND( $D$23 + $D$8, $D$9 - LOG( $D$10 )) -> 15 | E24: =ROUND( $E$23 + $E$8, $E$9 - LOG( $E$10 )) -> 15 | F24: =ROUND( $F$23 + $F$8, $F$9 - LOG( $F$10 )) -> 17 | G24: =ROUND( $G$23 + $G$8, $G$9 - LOG( $G$10 )) -> 18 | H24: =ROUND( $H$23 + $H$8, $H$9 - LOG( $H$10 )) -> 17 | I24: =ROUND( $I$23 + $I$8, $I$9 - LOG( $I$10 )) -> 17 | J24: =ROUND( $J$23 + $J$8, $J$9 - LOG( $J$10 )) -> 19 | K24: =ROUND( $K$23 + $K$8, $K$9 - LOG( $K$10 )) -> 21 | L24: =ROUND( $L$23 + $L$8, $L$9 - LOG( $L$10 )) -> 22
